Workbook

Sheet Listas (hidden)
B1: Cód. Regional | C1: Regional | E1: Cód. Regional | F1: Regional | G1: Cód. Sucursal o Centro Zonal | H1: NOMBRE CENTRO ZONAL | J1: Cód. Regional | K1: Regional | L1: Cód. Sucursal o Centro Zonal | M1: NOMBRE CENTRO ZONAL | N1: Cód. Municipio | O1: NOMBRE MUNICIPIO | P1: Codigo DANE departamento | Q1: Nombre DANE Departamento | R1: Cód. DANE | S1: Nombre municipio/Centro poblado | T1: TIPO | V1: Formas | W1: Contrapartida | Y1: Tiempo Etapa | AC1: Meses | AD1: DETALLADA RECURSOS- LISTA DESPLEGABLE
B2: 91 | C2: AMAZONAS | E2: 05 | F2: ANTIOQUIA | G2: 0501 | H2: CZ INTEGRAL NORORIENTAL | J2: 05 | K2: ANTIOQUIA | L2: 0501 | M2: CZ INTEGRAL NORORIENTAL | N2: 05001 | O2: MEDELLÍN | P2: 05 | Q2: ANTIOQUIA | R2: 05001 | S2: MEDELLÍN | T2: Municipio | V2: APOYOS | W2: 0 | X2: ETAPA CONTRACTUAL | Y2: COMUNITARIOS | Z2: APOYOS | AA2: BID | AB2: EXPERIENCIAS | AC2: Mes 1 | AD2: FORMA ATENCIÓN | AE2: CONCEPTO | AF2: FORMA ATENCIÓN - CONCEPTO | AG2: FORMA ATENCIÓN | AH2: CONCEPTO | AI2: DETALLE
B3: 05 | C3: ANTIOQUIA | E3: 05 | F3: ANTIOQUIA | G3: 0502 | H3: CZ INTEGRAL NOROCCIDENTAL | J3: 05 | K3: ANTIOQUIA | L3: 0502 | M3: CZ INTEGRAL NOROCCIDENTAL | N3: 05001 | O3: MEDELLÍN | P3: 05 | Q3: ANTIOQUIA | R3: 05001 | S3: MEDELLÍN | T3: Municipio | V3: BID | W3: 0.03 | X3: Alistamiento | Y3: 0.5 | Z3: 0.5 | AA3: 0.5 | AB3: 0.5 | AC3: Mes 2 | AD3: COMUNITARIOS | AE3: TALENTO HUMANO | AF3: COMUNITARIOS_TALENTO_HUMANO | AG3: COMUNITARIOS | AH3: TALENTO HUMANO | AI3: Coordinador(a)
B4: 81 | C4: ARAUCA | E4: 05 | F4: ANTIOQUIA | G4: 0504 | H4: CZ SUR ORIENTE | J4: 05 | K4: ANTIOQUIA | L4: 0504 | M4: CZ SUR ORIENTE | N4: 05001 | O4: MEDELLÍN | P4: 05 | Q4: ANTIOQUIA | R4: 05001 | S4: MEDELLÍN | T4: Municipio | V4: COMUNITARIOS | W4: 0.03 | X4: Atención | Y4: 5 | Z4: 3 | AA4: 4.5 | AB4: 4.25 | AC4: Mes 3 | AD4: COMUNITARIOS | AE4: TRANSPORTE Y VIAJES DEL TH | AF4: COMUNITARIOS_TALENTO_HUMANO | AG4: COMUNITARIOS | AH4: TALENTO HUMANO | AI4: Pedagogo
B5: 08 | C5: ATLÁNTICO | E5: 05 | F5: ANTIOQUIA | G5: 0535 | H5: CZ LA FLORESTA | J5: 05 | K5: ANTIOQUIA | L5: 0535 | M5: CZ LA FLORESTA | N5: 05001 | O5: MEDELLÍN | P5: 05 | Q5: ANTIOQUIA | R5: 05001 | S5: MEDELLÍN | T5: Municipio | V5: EXPERIENCIAS | W5: 0 | X5: Cierre | Y5: 0.5 | Z5: 0.5 | AB5: 0.25 | AC5: Mes 4 | AD5: COMUNITARIOS | AE5: APOYOS NUTRICIONALES | AF5: COMUNITARIOS_TALENTO_HUMANO | AG5: COMUNITARIOS | AH5: TALENTO HUMANO | AI5: Nutricionista
B6: 11 | C6: BOGOTÁ DC | E6: 05 | F6: ANTIOQUIA | G6: 0536 | H6: CZ ROSALES | J6: 05 | K6: ANTIOQUIA | L6: 0536 | M6: CZ ROSALES | N6: 05001 | O6: MEDELLÍN | P6: 05 | Q6: ANTIOQUIA | R6: 05001 | S6: MEDELLÍN | T6: Municipio | X6: TOTAL TIEMPO | Y6: =SUM(Y3:Y5) -> 6 | Z6: =SUM(Z3:Z5) -> 4 | AA6: =SUM(AA3:AA5) -> 5 | AB6: =SUM(AB3:AB5) -> 5 | AC6: Mes 5 | AD6: COMUNITARIOS | AE6: DOTACIÓN | AF6: COMUNITARIOS_TALENTO_HUMANO | AG6: COMUNITARIOS | AH6: TALENTO HUMANO | AI6: Psicólogo(a)
B7: 13 | C7: BOLÍVAR | E7: 05 | F7: ANTIOQUIA | G7: 0512 | H7: CZ ORIENTE | J7: 05 | K7: ANTIOQUIA | L7: 0512 | M7: CZ ORIENTE | N7: 05002 | O7: ABEJORRAL | P7: 05 | Q7: ANTIOQUIA | R7: 05002 | S7: ABEJORRAL | T7: Municipio | AC7: Mes 6 | AD7: COMUNITARIOS | AE7: SERVICIO DE COMUNICACIÓN MÓBIL E NTERNET | AF7: COMUNITARIOS_TALENTO_HUMANO | AG7: COMUNITARIOS | AH7: TALENTO HUMANO | AI7: Psicosocial
B8: 15 | C8: BOYACÁ | E8: 05 | F8: ANTIOQUIA | G8: 0511 | H8: CZ OCCIDENTE MEDIO | J8: 05 | K8: ANTIOQUIA | L8: 0511 | M8: CZ OCCIDENTE MEDIO | N8: 05004 | O8: ABRIAQUÍ | P8: 05 | Q8: ANTIOQUIA | R8: 05004 | S8: ABRIAQUÍ | T8: Municipio | X8: Alistamiento | AC8: Mes 7 | AD8: COMUNITARIOS | AE8: MATERIAL IDENTIFICACIÓN | AF8: COMUNITARIOS_TALENTO_HUMANO | AG8: COMUNITARIOS | AH8: TALENTO HUMANO | AI8: Gestor(a) de Experiencias 1
B9: 17 | C9: CALDAS | E9: 05 | F9: ANTIOQUIA | G9: 0506 | H9: CZ ABURRA SUR | J9: 05 | K9: ANTIOQUIA | L9: 0512 | M9: CZ ORIENTE | N9: 05021 | O9: ALEJANDRÍA | P9: 05 | Q9: ANTIOQUIA | R9: 05021 | S9: ALEJANDRÍA | T9: Municipio | X9: Atención Mes 1 | AC9: Mes 8 | AD9: COMUNITARIOS | AE9: SEGURO | AF9: COMUNITARIOS_TALENTO_HUMANO | AG9: COMUNITARIOS | AH9: TALENTO HUMANO | AI9: Gestor(a) de Experiencias 2
B10: 18 | C10: CAQUETÁ | E10: 05 | F10: ANTIOQUIA | G10: 0513 | H10: CZ PORCE NUS | J10: 05 | K10: ANTIOQUIA | L10: 0506 | M10: CZ ABURRA SUR | N10: 05030 | O10: AMAGÁ | P10: 05 | Q10: ANTIOQUIA | R10: 05030 | S10: AMAGÁ | T10: Municipio | X10: Atención Mes 2 | AC10: Mes 9 | AD10: COMUNITARIOS | AE10: APOYO A INICIATIVAS | AF10: COMUNITARIOS_TALENTO_HUMANO | AG10: COMUNITARIOS | AH10: TALENTO HUMANO | AI10: Dinamizador(a) comunitario
B11: 85 | C11: CASANARE | E11: 05 | F11: ANTIOQUIA | G11: 0514 | H11: CZ SUROESTE | J11: 05 | K11: ANTIOQUIA | L11: 0513 | M11: CZ PORCE NUS | N11: 05031 | O11: AMALFI | P11: 05 | Q11: ANTIOQUIA | R11: 05031 | S11: AMALFI | T11: Municipio | X11: Atención Mes 3 | AC11: Mes 10 | AD11: COMUNITARIOS | AE11: GASTOS OPERATIVOS | AF11: COMUNITARIOS_TALENTO_HUMANO | AG11: COMUNITARIOS | AH11: TALENTO HUMANO | AI11: Auxiliar Administrativo
B12: 19 | C12: CAUCA | E12: 05 | F12: ANTIOQUIA | G12: 0508 | H12: CZ LA MESETA | J12: 05 | K12: ANTIOQUIA | L12: 0514 | M12: CZ SUROESTE | N12: 05034 | O12: ANDES | P12: 05 | Q12: ANTIOQUIA | R12: 05034 | S12: ANDES | T12: Municipio | X12: Atención Mes 4 | AC12: Mes 11 | AD12: COMUNITARIOS | AE12: GRAVAMEN MOVIMIENTOS FINANCIEROS GMF | AF12: COMUNITARIOS_TRANSPORTE_Y_VIAJES_DEL_TH | AG12: COMUNITARIOS | AH12: TRANSPORTE Y VIAJES DEL TH | AI12: Coordinador General
B13: 20 | C13: CESAR | E13: 05 | F13: ANTIOQUIA | G13: 0510 | H13: CZ OCCIDENTE | J13: 05 | K13: ANTIOQUIA | L13: 0506 | M13: CZ ABURRA SUR | N13: 05036 | O13: ANGELÓPOLIS | P13: 05 | Q13: ANTIOQUIA | R13: 05036 | S13: ANGELÓPOLIS | T13: Municipio | X13: Atención Mes 5 | AC13: Mes 12 | AD13: COMUNITARIOS | AE13: MATERIAL DE CONSUMO | AF13: COMUNITARIOS_TRANSPORTE_Y_VIAJES_DEL_TH | AG13: COMUNITARIOS | AH13: TRANSPORTE Y VIAJES DEL TH | AI13: Pedagogo (a)
B14: 27 | C14: CHOCÓ | E14: 05 | F14: ANTIOQUIA | G14: 0516 | H14: CZ URABA | J14: 05 | K14: ANTIOQUIA | L14: 0535 | M14: CZ LA FLORESTA | N14: 05036 | O14: ANGELÓPOLIS | P14: 05 | Q14: ANTIOQUIA | R14: 05036 | S14: ANGELÓPOLIS | T14: Municipio | X14: Atención Mes 6 | AD14: APOYOS | AE14: TALENTO HUMANO | AF14: COMUNITARIOS_TRANSPORTE_Y_VIAJES_DEL_TH | AG14: COMUNITARIOS | AH14: TRANSPORTE Y VIAJES DEL TH | AI14: Nutricionista Dietista
B15: 23 | C15: CÓRDOBA | E15: 05 | F15: ANTIOQUIA | G15: 0505 | H15: CZ ABURRA NORTE | J15: 05 | K15: ANTIOQUIA | L15: 0508 | M15: CZ LA MESETA | N15: 05038 | O15: ANGOSTURA | P15: 05 | Q15: ANTIOQUIA | R15: 05038 | S15: ANGOSTURA | T15: Municipio | X15: Atención Mes 7 | AD15: APOYOS | AE15: COMPLEMENTACIÓN ALIMENTARIA Y NUTRICIONAL | AF15: COMUNITARIOS_TRANSPORTE_Y_VIAJES_DEL_TH | AG15: COMUNITARIOS | AH15: TRANSPORTE Y VIAJES DEL TH | AI15: Dinamizador(a) Comunitario
B16: 25 | C16: CUNDINAMARCA | E16: 05 | F16: ANTIOQUIA | G16: 0515 | H16: CZ PENDERISCO | J16: 05 | K16: ANTIOQUIA | L16: 0513 | M16: CZ PORCE NUS | N16: 05040 | O16: ANORÍ | P16: 05 | Q16: ANTIOQUIA | R16: 05040 | S16: ANORÍ | T16: Municipio | X16: Atención Mes 8 | AD16: APOYOS | AE16: TRANSPORTE NNA | AF16: COMUNITARIOS_APOYOS_NUTRICIONALES | AG16: COMUNITARIOS | AH16: APOYOS NUTRICIONALES | AI16: Refrigerio reforzado (Encuentros grupales)
B17: 94 | C17: GUAINÍA | E17: 05 | F17: ANTIOQUIA | G17: 0507 | H17: CZ BAJO CAUCA | J17: 05 | K17: ANTIOQUIA | L17: 0510 | M17: CZ OCCIDENTE | N17: 05042 | O17: SANTA FÉ DE ANTIOQUIA | P17: 05 | Q17: ANTIOQUIA | R17: 05042 | S17: SANTA FÉ DE ANTIOQUIA | T17: Municipio | X17: Atención Mes 9 | AD17: APOYOS | AE17: DOTACIÓN | AF17: COMUNITARIOS_APOYOS_NUTRICIONALES | AG17: COMUNITARIOS | AH17: APOYOS NUTRICIONALES | AI17: Refrigerio reforzado (Encuentros comunitarios)
B18: 95 | C18: GUAVIARE | E18: 05 | F18: ANTIOQUIA | G18: 0509 | H18: CZ MAGDALENA MEDIO | J18: 05 | K18: ANTIOQUIA | L18: 0510 | M18: CZ OCCIDENTE | N18: 05044 | O18: ANZA | P18: 05 | Q18: ANTIOQUIA | R18: 05044 | S18: ANZÁ | T18: Municipio | X18: Atención Mes 10 | AD18: APOYOS | AE18: MATERIAL IDENTIFICACIÓN | AF18: COMUNITARIOS_APOYOS_NUTRICIONALES | AG18: COMUNITARIOS | AH18: APOYOS NUTRICIONALES | AI18: Olla comunitaria
B19: 41 | C19: HUILA | E19: 05 | F19: ANTIOQUIA | G19: 0517 | H19: CZ ORIENTE MEDIO | J19: 05 | K19: ANTIOQUIA | L19: 0516 | M19: CZ URABA | N19: 05045 | O19: APARTADÓ | P19: 05 | Q19: ANTIOQUIA | R19: 05045 | S19: APARTADÓ | T19: Municipio | X19: Atención Mes 11 | AD19: APOYOS | AE19: PÓLIZA | AF19: COMUNITARIOS_DOTACIÓN | AG19: COMUNITARIOS | AH19: DOTACIÓN | AI19: Botiquín
B20: 44 | C20: LA GUAJIRA | E20: 08 | F20: ATLÁNTICO | G20: 0801 | H20: CZ NORTE CENTRO HISTORICO | J20: 05 | K20: ANTIOQUIA | L20: 0516 | M20: CZ URABA | N20: 05051 | O20: ARBOLETES | P20: 05 | Q20: ANTIOQUIA | R20: 05051 | S20: ARBOLETES | T20: Municipio | X20: Atención Mes 12 | AD20: APOYOS | AE20: APOYO A INICIATIVAS | AF20: COMUNITARIOS_DOTACIÓN | AG20: COMUNITARIOS | AH20: DOTACIÓN | AI20: Kit de aseo personal
B21: 47 | C21: MAGDALENA | E21: 08 | F21: ATLÁNTICO | G21: 0802 | H21: CZ SUROCCIDENTE | J21: 05 | K21: ANTIOQUIA | L21: 0512 | M21: CZ ORIENTE | N21: 05055 | O21: ARGELIA | P21: 05 | Q21: ANTIOQUIA | R21: 05055 | S21: ARGELIA | T21: Municipio | X21: Cierre | AD21: APOYOS | AE21: GASTOS OPERATIVOS | AF21: COMUNITARIOS_SERVICIO_DE_COMUNICACIÓN_MÓBIL_E_NTERNET | AG21: COMUNITARIOS | AH21: SERVICIO DE COMUNICACIÓN MÓBIL E NTERNET | AI21: Servicio de comunicación móbil e Internet
B22: 50 | C22: META | E22: 08 | F22: ATLÁNTICO | G22: 0807 | H22: CZ SURORIENTE | J22: 05 | K22: ANTIOQUIA | L22: 0506 | M22: CZ ABURRA SUR | N22: 05059 | O22: ARMENIA | P22: 05 | Q22: ANTIOQUIA | R22: 05059 | S22: ARMENIA | T22: Municipio | AD22: APOYOS | AE22: UTILIZACIÓN DE INSTALACIONES EN AMBIENTES SANOS | AF22: COMUNITARIOS_MATERIAL_IDENTIFICACIÓN | AG22: COMUNITARIOS | AH22: MATERIAL IDENTIFICACIÓN | AI22: Chalecos
B23: 52 | C23: NARIÑO | E23: 08 | F23: ATLÁNTICO | G23: 0803 | H23: CZ BARANOA | J23: 05 | K23: ANTIOQUIA | L23: 0535 | M23: CZ LA FLORESTA | N23: 05059 | O23: ARMENIA | P23: 05 | Q23: ANTIOQUIA | R23: 05059 | S23: ARMENIA | T23: Municipio | AD23: APOYOS | AE23: GRAVAMEN MOVIMIENTOS FINANCIEROS GMF | AF23: COMUNITARIOS_MATERIAL_IDENTIFICACIÓN | AG23: COMUNITARIOS | AH23: MATERIAL IDENTIFICACIÓN | AI23: Gorras
B24: 54 | C24: NORTE DE SANTANDER | E24: 08 | F24: ATLÁNTICO | G24: 0805 | H24: CZ SABANAGRANDE | J24: 05 | K24: ANTIOQUIA | L24: 0505 | M24: CZ ABURRA NORTE | N24: 05079 | O24: BARBOSA | P24: 05 | Q24: ANTIOQUIA | R24: 05079 | S24: BARBOSA | T24: Municipio | AD24: APOYOS | AE24: MATERIALES E INSUMOS | AF24: COMUNITARIOS_MATERIAL_IDENTIFICACIÓN | AG24: COMUNITARIOS | AH24: MATERIAL IDENTIFICACIÓN | AI24: Camisetas
B25: 86 | C25: PUTUMAYO | E25: 08 | F25: ATLÁNTICO | G25: 0804 | H25: CZ SABANALARGA | J25: 05 | K25: ANTIOQUIA | L25: 0535 | M25: CZ LA FLORESTA | N25: 05079 | O25: BARBOSA | P25: 05 | Q25: ANTIOQUIA | R25: 05079 | S25: BARBOSA | T25: Municipio | AD25: BID | AE25: TALENTO HUMANO | AF25: COMUNITARIOS_MATERIAL_IDENTIFICACIÓN | AG25: COMUNITARIOS | AH25: MATERIAL IDENTIFICACIÓN | AI25: Carné
B26: 63 | C26: QUINDÍO | E26: 08 | F26: ATLÁNTICO | G26: 0806 | H26: CZ HIPODROMO | J26: 05 | K26: ANTIOQUIA | L26: 0505 | M26: CZ ABURRA NORTE | N26: 05086 | O26: BELMIRA | P26: 05 | Q26: ANTIOQUIA | R26: 05086 | S26: BELMIRA | T26: Municipio | AD26: BID | AE26: TRANSPORTE Y VIAJES DEL TH | AF26: COMUNITARIOS_MATERIAL_IDENTIFICACIÓN | AG26: COMUNITARIOS | AH26: MATERIAL IDENTIFICACIÓN | AI26: Pendón
B27: 66 | C27: RISARALDA | E27: 11 | F27: BOGOTÁ DC | G27: 1130 | H27: CZ CREER | J27: 05 | K27: ANTIOQUIA | L27: 0505 | M27: CZ ABURRA NORTE | N27: 05088 | O27: BELLO | P27: 05 | Q27: ANTIOQUIA | R27: 05088 | S27: BELLO | T27: Municipio | AD27: BID | AE27: APOYOS NUTRICIONALES | AF27: COMUNITARIOS_SEGURO | AG27: COMUNITARIOS | AH27: SEGURO | AI27: Seguro
B28: 88 | C28: SAN ANDRÉS | E28: 11 | F28: BOGOTÁ DC | G28: 1101 | H28: CZ CIUDAD BOLIVAR | J28: 05 | K28: ANTIOQUIA | L28: 0535 | M28: CZ LA FLORESTA | N28: 05088 | O28: BELLO | P28: 05 | Q28: ANTIOQUIA | R28: 05088 | S28: BELLO | T28: Municipio | AD28: BID | AE28: DOTACIÓN | AF28: COMUNITARIOS_APOYO_A_INICIATIVAS | AG28: COMUNITARIOS | AH28: APOYO A INICIATIVAS | AI28: Apoyo Iniciativas
B29: 68 | C29: SANTANDER | E29: 11 | F29: BOGOTÁ DC | G29: 1102 | H29: CZ TUNJUELITO | J29: 05 | K29: ANTIOQUIA | L29: 0514 | M29: CZ SUROESTE | N29: 05091 | O29: BETANIA | P29: 05 | Q29: ANTIOQUIA | R29: 05091 | S29: BETANIA | T29: Municipio | AD29: BID | AE29: INTERNET | AF29: COMUNITARIOS_GASTOS_OPERATIVOS | AG29: COMUNITARIOS | AH29: GASTOS OPERATIVOS | AI29: Plan de fortalecimiento técnico al talento humano
B30: 70 | C30: SUCRE | E30: 11 | F30: BOGOTÁ DC | G30: 1103 | H30: CZ USME | J30: 05 | K30: ANTIOQUIA | L30: 0515 | M30: CZ PENDERISCO | N30: 05093 | O30: BETULIA | P30: 05 | Q30: ANTIOQUIA | R30: 05093 | S30: BETULIA | T30: Municipio | AD30: BID | AE30: MATERIAL IDENTIFICACIÓN | AF30: COMUNITARIOS_GASTOS_OPERATIVOS | AG30: COMUNITARIOS | AH30: GASTOS OPERATIVOS | AI30: Papelería asociada con el manejo administrativo del contrato
B31: 73 | C31: TOLIMA | E31: 11 | F31: BOGOTÁ DC | G31: 1104 | H31: CZ SAN CRISTOBAL SUR | J31: 05 | K31: ANTIOQUIA | L31: 0514 | M31: CZ SUROESTE | N31: 05101 | O31: CIUDAD BOLÍVAR | P31: 05 | Q31: ANTIOQUIA | R31: 05101 | S31: CIUDAD BOLÍVAR | T31: Municipio | AD31: BID | AE31: SEGURO | AF31: COMUNITARIOS_GRAVAMEN_MOVIMIENTOS_FINANCIEROS_GMF | AG31: COMUNITARIOS | AH31: GRAVAMEN MOVIMIENTOS FINANCIEROS GMF | AI31: Gravamen Movimientos Financieros GMF
B32: 76 | C32: VALLE DEL CAUCA | E32: 11 | F32: BOGOTÁ DC | G32: 1105 | H32: CZ KENNEDY | J32: 05 | K32: ANTIOQUIA | L32: 0508 | M32: CZ LA MESETA | N32: 05107 | O32: BRICEÑO | P32: 05 | Q32: ANTIOQUIA | R32: 05107 | S32: BRICEÑO | T32: Municipio | AD32: BID | AE32: ENCUENTROS EXPERIENCIAS OPORTUNIDADES | AF32: COMUNITARIOS_MATERIAL_DE_CONSUMO | AG32: COMUNITARIOS | AH32: MATERIAL DE CONSUMO | AI32: Bolígrafos mina negra - Caja
B33: 97 | C33: VAUPÉS | E33: 11 | F33: BOGOTÁ DC | G33: 1106 | H33: CZ REVIVIR | J33: 05 | K33: ANTIOQUIA | L33: 0510 | M33: CZ OCCIDENTE | N33: 05113 | O33: BURITICÁ | P33: 05 | Q33: ANTIOQUIA | R33: 05113 | S33: BURITICÁ | T33: Municipio | AD33: BID | AE33: GASTOS OPERATIVOS ADMINISTRACIÓN | AF33: COMUNITARIOS_MATERIAL_DE_CONSUMO | AG33: COMUNITARIOS | AH33: MATERIAL DE CONSUMO | AI33: Papel bond - Resma
B34: 99 | C34: VICHADA | E34: 11 | F34: BOGOTÁ DC | G34: 1107 | H34: CZ PUENTE ARANDA | J34: 05 | K34: ANTIOQUIA | L34: 0507 | M34: CZ BAJO CAUCA | N34: 05120 | O34: CÁCERES | P34: 05 | Q34: ANTIOQUIA | R34: 05120 | S34: CÁCERES | T34: Municipio | AD34: BID | AE34: GRAVAMEN MOVIMIENTOS FINANCIEROS GMF | AF34: COMUNITARIOS_MATERIAL_DE_CONSUMO | AG34: COMUNITARIOS | AH34: MATERIAL DE CONSUMO | AI34: Nota adhesiva - Block
E35: 11 | F35: BOGOTÁ DC | G35: 1108 | H35: CZ BOSA | J35: 05 | K35: ANTIOQUIA | L35: 0515 | M35: CZ PENDERISCO | N35: 05125 | O35: CAICEDO | P35: 05 | Q35: ANTIOQUIA | R35: 05125 | S35: CAICEDO | T35: Municipio | AD35: BID | AE35: MATERIALES E INSUMOS | AF35: COMUNITARIOS_MATERIAL_DE_CONSUMO | AG35: COMUNITARIOS | AH35: MATERIAL DE CONSUMO | AI35: Marcadores permanentes - Caja
E36: 11 | F36: BOGOTÁ DC | G36: 1109 | H36: CZ RAFAEL URIBE | J36: 05 | K36: ANTIOQUIA | L36: 0506 | M36: CZ ABURRA SUR | N36: 05129 | O36: CALDAS | P36: 05 | Q36: ANTIOQUIA | R36: 05129 | S36: CALDAS | T36: Municipio | AD36: EXPERIENCIAS | AE36: TALENTO HUMANO | AF36: COMUNITARIOS_MATERIAL_DE_CONSUMO | AG36: COMUNITARIOS | AH36: MATERIAL DE CONSUMO | AI36: Papel Kraft - Rollo
E37: 11 | F37: BOGOTÁ DC | G37: 1110 | H37: CZ SANTA FE | J37: 05 | K37: ANTIOQUIA | L37: 0535 | M37: CZ LA FLORESTA | N37: 05129 | O37: CALDAS | P37: 05 | Q37: ANTIOQUIA | R37: 05129 | S37: CALDAS | T37: Municipio | AD37: EXPERIENCIAS | AE37: COMPLEMENTACIÓN ALIMENTARIA Y NUTRICIONAL | AF37: COMUNITARIOS_MATERIAL_DE_CONSUMO | AG37: COMUNITARIOS | AH37: MATERIAL DE CONSUMO | AI37: Cinta de enmascarar - Rollo
E38: 11 | F38: BOGOTÁ DC | G38: 1111 | H38: CZ FONTIBON | J38: 05 | K38: ANTIOQUIA | L38: 0508 | M38: CZ LA MESETA | N38: 05134 | O38: CAMPAMENTO | P38: 05 | Q38: ANTIOQUIA | R38: 05134 | S38: CAMPAMENTO | T38: Municipio | AD38: EXPERIENCIAS | AE38: BOTIQUÍN | AF38: COMUNITARIOS_MATERIAL_DE_CONSUMO | AG38: COMUNITARIOS | AH38: MATERIAL DE CONSUMO | AI38: Temperas - Caja
E39: 11 | F39: BOGOTÁ DC | G39: 1112 | H39: CZ BARRIOS UNIDOS | J39: 05 | K39: ANTIOQUIA | L39: 0511 | M39: CZ OCCIDENTE MEDIO | N39: 05138 | O39: CAÑASGORDAS | P39: 05 | Q39: ANTIOQUIA | R39: 05138 | S39: CAÑASGORDAS | T39: Municipio | AD39: EXPERIENCIAS | AE39: MATERIAL IDENTIFICACIÓN | AF39: COMUNITARIOS_MATERIAL_DE_CONSUMO | AG39: COMUNITARIOS | AH39: MATERIAL DE CONSUMO | AI39: Pinceles - Sets
E40: 11 | F40: BOGOTÁ DC | G40: 1113 | H40: CZ ENGATIVA | J40: 05 | K40: ANTIOQUIA | L40: 0509 | M40: CZ MAGDALENA MEDIO | N40: 05142 | O40: CARACOLÍ | P40: 05 | Q40: ANTIOQUIA | R40: 05142 | S40: CARACOLÍ | T40: Municipio | AD40: EXPERIENCIAS | AE40: SEGURO | AF40: COMUNITARIOS_MATERIAL_DE_CONSUMO | AG40: COMUNITARIOS | AH40: MATERIAL DE CONSUMO | AI40: Pegante en líquido - Unidad
E41: 11 | F41: BOGOTÁ DC | G41: 1114 | H41: CZ SUBA | J41: 05 | K41: ANTIOQUIA | L41: 0514 | M41: CZ SUROESTE | N41: 05145 | O41: CARAMANTA | P41: 05 | Q41: ANTIOQUIA | R41: 05145 | S41: CARAMANTA | T41: Municipio | AD41: EXPERIENCIAS | AE41: ENCUENTROS EXPERIENCIAS OPORTUNIDADES | AF41: COMUNITARIOS_MATERIAL_DE_CONSUMO | AG41: COMUNITARIOS | AH41: MATERIAL DE CONSUMO | AI41: Colores - Caja
E42: 11 | F42: BOGOTÁ DC | G42: 1115 | H42: CZ USAQUEN | J42: 05 | K42: ANTIOQUIA | L42: 0516 | M42: CZ URABA | N42: 05147 | O42: CAREPA | P42: 05 | Q42: ANTIOQUIA | R42: 05147 | S42: CAREPA | T42: Municipio | AD42: EXPERIENCIAS | AE42: GASTOS OPERATIVOS | AF42: COMUNITARIOS_MATERIAL_DE_CONSUMO | AG42: COMUNITARIOS | AH42: MATERIAL DE CONSUMO | AI42: Fichas bibliográficas - Paquete
E43: 11 | F43: BOGOTÁ DC | G43: 1116 | H43: CZ MARTIRES | J43: 05 | K43: ANTIOQUIA | L43: 0512 | M43: CZ ORIENTE | N43: 05148 | O43: EL CARMEN DE VIBORAL | P43: 05 | Q43: ANTIOQUIA | R43: 05148 | S43: EL CARMEN DE VIBORAL | T43: Municipio | AD43: EXPERIENCIAS | AE43: GRAVAMEN MOVIMIENTOS FINANCIEROS GMF | AF43: COMUNITARIOS_MATERIAL_DE_CONSUMO | AG43: COMUNITARIOS | AH43: MATERIAL DE CONSUMO | AI43: Lana - Paquete
E44: 11 | F44: BOGOTÁ DC | G44: 1131 | H44: CZ KENNEDY CENTRAL | J44: 05 | K44: ANTIOQUIA | L44: 0508 | M44: CZ LA MESETA | N44: 05150 | O44: CAROLINA | P44: 05 | Q44: ANTIOQUIA | R44: 05150 | S44: CAROLINA | T44: Municipio | AD44: EXPERIENCIAS | AE44: MATERIALES E INSUMOS | AF44: COMUNITARIOS_MATERIAL_DE_CONSUMO | AG44: COMUNITARIOS | AH44: MATERIAL DE CONSUMO | AI44: Lana Silvia - Paquete
E45: 13 | F45: BOLÍVAR | G45: 1301 | H45: CZ HISTORICO Y DEL CARIBE NORTE | J45: 05 | K45: ANTIOQUIA | L45: 0507 | M45: CZ BAJO CAUCA | N45: 05154 | O45: CAUCASIA | P45: 05 | Q45: ANTIOQUIA | R45: 05154 | S45: CAUCASIA | T45: Municipio | AF45: COMUNITARIOS_MATERIAL_DE_CONSUMO | AG45: COMUNITARIOS | AH45: MATERIAL DE CONSUMO | AI45: Ovillo hilo algodón eco - Paquete
E46: 13 | F46: BOLÍVAR | G46: 1302 | H46: CZ DE LA VIRGEN Y TURISTICO | J46: 05 | K46: ANTIOQUIA | L46: 0516 | M46: CZ URABA | N46: 05172 | O46: CHIGORODÓ | P46: 05 | Q46: ANTIOQUIA | R46: 05172 | S46: CHIGORODÓ | T46: Municipio | AF46: COMUNITARIOS_MATERIAL_DE_CONSUMO | AG46: COMUNITARIOS | AH46: MATERIAL DE CONSUMO | AI46: Plastilina - Caja
E47: 13 | F47: BOLÍVAR | G47: 1303 | H47: CZ INDUSTRIAL DE LA BAHIA | J47: 05 | K47: ANTIOQUIA | L47: 0513 | M47: CZ PORCE NUS | N47: 05190 | O47: CISNEROS | P47: 05 | Q47: ANTIOQUIA | R47: 05190 | S47: CISNEROS | T47: Municipio | AF47: COMUNITARIOS_MATERIAL_DE_CONSUMO | AG47: COMUNITARIOS | AH47: MATERIAL DE CONSUMO | AI47: Lápices - Paquete
E48: 13 | F48: BOLÍVAR | G48: 1306 | H48: CZ MAGANGUE | J48: 05 | K48: ANTIOQUIA | L48: 0517 | M48: CZ ORIENTE MEDIO | N48: 05197 | O48: COCORNÁ | P48: 05 | Q48: ANTIOQUIA | R48: 05197 | S48: COCORNÁ | T48: Municipio | AF48: COMUNITARIOS_MATERIAL_DE_CONSUMO | AG48: COMUNITARIOS | AH48: MATERIAL DE CONSUMO | AI48: Taja Lápiz - Unidad
E49: 13 | F49: BOLÍVAR | G49: 1307 | H49: CZ MOMPOX | J49: 05 | K49: ANTIOQUIA | L49: 0512 | M49: CZ ORIENTE | N49: 05206 | O49: CONCEPCIÓN | P49: 05 | Q49: ANTIOQUIA | R49: 05206 | S49: CONCEPCIÓN | T49: Municipio | AF49: COMUNITARIOS_MATERIAL_DE_CONSUMO | AG49: COMUNITARIOS | AH49: MATERIAL DE CONSUMO | AI49: Tijeras punta roma - Unidad
E50: 13 | F50: BOLÍVAR | G50: 1308 | H50: CZ SIMITI | J50: 05 | K50: ANTIOQUIA | L50: 0515 | M50: CZ PENDERISCO | N50: 05209 | O50: CONCORDIA | P50: 05 | Q50: ANTIOQUIA | R50: 05209 | S50: CONCORDIA | T50: Municipio | AF50: COMUNITARIOS_MATERIAL_DE_CONSUMO | AG50: COMUNITARIOS | AH50: MATERIAL DE CONSUMO | AI50: Palillos tipo pincho - Paquete
E51: 13 | F51: BOLÍVAR | G51: 1304 | H51: CZ TURBACO | J51: 05 | K51: ANTIOQUIA | L51: 0505 | M51: CZ ABURRA NORTE | N51: 05212 | O51: COPACABANA | P51: 05 | Q51: ANTIOQUIA | R51: 05212 | S51: COPACABANA | T51: Municipio | AF51: COMUNITARIOS_MATERIAL_DE_CONSUMO | AG51: COMUNITARIOS | AH51: MATERIAL DE CONSUMO | AI51: Borradores - Caja
E52: 13 | F52: BOLÍVAR | G52: 1305 | H52: CZ EL CARMEN DE BOLIVAR | J52: 05 | K52: ANTIOQUIA | L52: 0535 | M52: CZ LA FLORESTA | N52: 05212 | O52: COPACABANA | P52: 05 | Q52: ANTIOQUIA | R52: 05212 | S52: COPACABANA | T52: Municipio | AF52: COMUNITARIOS_MATERIAL_DE_CONSUMO | AG52: COMUNITARIOS | AH52: MATERIAL DE CONSUMO | AI52: Clips estándar - Caja
E53: 15 | F53: BOYACÁ | G53: 1501 | H53: CZ TUNJA 1 | J53: 05 | K53: ANTIOQUIA | L53: 0511 | M53: CZ OCCIDENTE MEDIO | N53: 05234 | O53: DABEIBA | P53: 05 | Q53: ANTIOQUIA | R53: 05234 | S53: DABEIBA | T53: Municipio | AF53: COMUNITARIOS_MATERIAL_DE_CONSUMO | AG53: COMUNITARIOS | AH53: MATERIAL DE CONSUMO | AI53: Papel Crepé - Rollo
E54: 15 | F54: BOYACÁ | G54: 1502 | H54: CZ TUNJA 2 | J54: 05 | K54: ANTIOQUIA | L54: 0505 | M54: CZ ABURRA NORTE | N54: 05237 | O54: DON MATÍAS | P54: 05 | Q54: ANTIOQUIA | R54: 05237 | S54: DONMATÍAS | T54: Municipio | AF54: COMUNITARIOS_MATERIAL_DE_CONSUMO | AG54: COMUNITARIOS | AH54: MATERIAL DE CONSUMO | AI54: Bandas elásticas - Bolsa
E55: 15 | F55: BOYACÁ | G55: 1506 | H55: CZ GARAGOA | J55: 05 | K55: ANTIOQUIA | L55: 0510 | M55: CZ OCCIDENTE | N55: 05240 | O55: EBÉJICO | P55: 05 | Q55: ANTIOQUIA | R55: 05240 | S55: EBÉJICO | T55: Municipio | AF55: COMUNITARIOS_MATERIAL_DE_CONSUMO | AG55: COMUNITARIOS | AH55: MATERIAL DE CONSUMO | AI55: Arcilla - Paquete
E56: 15 | F56: BOYACÁ | G56: 1503 | H56: CZ SOGAMOSO | J56: 05 | K56: ANTIOQUIA | L56: 0507 | M56: CZ BAJO CAUCA | N56: 05250 | O56: EL BAGRE | P56: 05 | Q56: ANTIOQUIA | R56: 05250 | S56: EL BAGRE | T56: Municipio | AF56: COMUNITARIOS_MATERIAL_DE_CONSUMO | AG56: COMUNITARIOS | AH56: MATERIAL DE CONSUMO | AI56: Cartón paja - Paquete
E57: 15 | F57: BOYACÁ | G57: 1511 | H57: CZ MONIQUIRA | J57: 05 | K57: ANTIOQUIA | L57: 0505 | M57: CZ ABURRA NORTE | N57: 05264 | O57: ENTRERRIOS | P57: 05 | Q57: ANTIOQUIA | R57: 05264 | S57: ENTRERRÍOS | T57: Municipio | AF57: COMUNITARIOS_MATERIAL_DE_CONSUMO | AG57: COMUNITARIOS | AH57: MATERIAL DE CONSUMO | AI57: Cartulina - Paquete
E58: 15 | F58: BOYACÁ | G58: 1504 | H58: CZ DUITAMA | J58: 05 | K58: ANTIOQUIA | L58: 0506 | M58: CZ ABURRA SUR | N58: 05266 | O58: ENVIGADO | P58: 05 | Q58: ANTIOQUIA | R58: 05266 | S58: ENVIGADO | T58: Municipio | AF58: COMUNITARIOS_MATERIAL_DE_CONSUMO | AG58: COMUNITARIOS | AH58: MATERIAL DE CONSUMO | AI58: Regla plástica - Paquete
E59: 15 | F59: BOYACÁ | G59: 1510 | H59: CZ MIRAFLORES | J59: 05 | K59: ANTIOQUIA | L59: 0535 | M59: CZ LA FLORESTA | N59: 05266 | O59: ENVIGADO | P59: 05 | Q59: ANTIOQUIA | R59: 05266 | S59: ENVIGADO | T59: Municipio | AF59: COMUNITARIOS_MATERIAL_DE_CONSUMO | AG59: COMUNITARIOS | AH59: MATERIAL DE CONSUMO | AI59: Silicona Líquida - Unidad
E60: 15 | F60: BOYACÁ | G60: 1508 | H60: CZ SOATA | J60: 05 | K60: ANTIOQUIA | L60: 0506 | M60: CZ ABURRA SUR | N60: 05282 | O60: FREDONIA | P60: 05 | Q60: ANTIOQUIA | R60: 05282 | S60: FREDONIA | T60: Municipio | AF60: COMUNITARIOS_MATERIAL_DE_CONSUMO | AG60: COMUNITARIOS | AH60: MATERIAL DE CONSUMO | AI60: Papel para origami - Block
E61: 15 | F61: BOYACÁ | G61: 1512 | H61: CZ OTANCHE | J61: 05 | K61: ANTIOQUIA | L61: 0511 | M61: CZ OCCIDENTE MEDIO | N61: 05284 | O61: FRONTINO | P61: 05 | Q61: ANTIOQUIA | R61: 05284 | S61: FRONTINO | T61: Municipio | AF61: COMUNITARIOS_MATERIAL_DE_CONSUMO | AG61: COMUNITARIOS | AH61: MATERIAL DE CONSUMO | AI61: Acuarelas - Unidad
E62: 15 | F62: BOYACÁ | G62: 1505 | H62: CZ CHIQUINQUIRA | J62: 05 | K62: ANTIOQUIA | L62: 0510 | M62: CZ OCCIDENTE | N62: 05306 | O62: GIRALDO | P62: 05 | Q62: ANTIOQUIA | R62: 05306 | S62: GIRALDO | T62: Municipio | AF62: COMUNITARIOS_MATERIAL_DE_CONSUMO | AG62: COMUNITARIOS | AH62: MATERIAL DE CONSUMO | AI62: Vinilos - Unidad
E63: 15 | F63: BOYACÁ | G63: 1509 | H63: CZ EL COCUY | J63: 05 | K63: ANTIOQUIA | L63: 0505 | M63: CZ ABURRA NORTE | N63: 05308 | O63: GIRARDOTA | P63: 05 | Q63: ANTIOQUIA | R63: 05308 | S63: GIRARDOTA | T63: Municipio | AF63: COMUNITARIOS_MATERIAL_DE_CONSUMO | AG63: COMUNITARIOS | AH63: MATERIAL DE CONSUMO | AI63: Papel iris - Block
E64: 15 | F64: BOYACÁ | G64: 1507 | H64: CZ PUERTO BOYACA | J64: 05 | K64: ANTIOQUIA | L64: 0535 | M64: CZ LA FLORESTA | N64: 05308 | O64: GIRARDOTA | P64: 05 | Q64: ANTIOQUIA | R64: 05308 | S64: GIRARDOTA | T64: Municipio | AF64: COMUNITARIOS_MATERIAL_DE_CONSUMO | AG64: COMUNITARIOS | AH64: MATERIAL DE CONSUMO | AI64: Palos de paleta - Paquete
E65: 17 | F65: CALDAS | G65: 1701 | H65: CZ MANIZALES 1 | J65: 05 | K65: ANTIOQUIA | L65: 0508 | M65: CZ LA MESETA | N65: 05310 | O65: GÓMEZ PLATA | P65: 05 | Q65: ANTIOQUIA | R65: 05310 | S65: GÓMEZ PLATA | T65: Municipio | AF65: COMUNITARIOS_MATERIAL_DE_CONSUMO | AG65: COMUNITARIOS | AH65: MATERIAL DE CONSUMO | AI65: Block de dibujo - Block
E66: 17 | F66: CALDAS | G66: 1702 | H66: CZ MANIZALES 2 | J66: 05 | K66: ANTIOQUIA | L66: 0517 | M66: CZ ORIENTE MEDIO | N66: 05313 | O66: GRANADA | P66: 05 | Q66: ANTIOQUIA | R66: 05313 | S66: GRANADA | T66: Municipio | AF66: COMUNITARIOS_MATERIAL_DE_CONSUMO | AG66: COMUNITARIOS | AH66: MATERIAL DE CONSUMO | AI66: Formato DIN A3 - Block
E67: 17 | F67: CALDAS | G67: 1705 | H67: CZ NORTE | J67: 05 | K67: ANTIOQUIA | L67: 0508 | M67: CZ LA MESETA | N67: 05315 | O67: GUADALUPE | P67: 05 | Q67: ANTIOQUIA | R67: 05315 | S67: GUADALUPE | T67: Municipio | AF67: COMUNITARIOS_MATERIAL_DE_CONSUMO | AG67: COMUNITARIOS | AH67: MATERIAL DE CONSUMO | AI67: Tabla de dibujo formato DIN A3 - Unidad
E68: 17 | F68: CALDAS | G68: 1703 | H68: CZ OCCIDENTE | J68: 05 | K68: ANTIOQUIA | L68: 0512 | M68: CZ ORIENTE | N68: 05318 | O68: GUARNE | P68: 05 | Q68: ANTIOQUIA | R68: 05318 | S68: GUARNE | T68: Municipio | AF68: COMUNITARIOS_MATERIAL_DE_CONSUMO | AG68: COMUNITARIOS | AH68: MATERIAL DE CONSUMO | AI68: Lápiz de dibujo HB - Caja
E69: 17 | F69: CALDAS | G69: 1709 | H69: CZ DEL CAFE | J69: 05 | K69: ANTIOQUIA | L69: 0512 | M69: CZ ORIENTE | N69: 05321 | O69: GUATAPE | P69: 05 | Q69: ANTIOQUIA | R69: 05321 | S69: GUATAPÉ | T69: Municipio | AF69: COMUNITARIOS_MATERIAL_DE_CONSUMO | AG69: COMUNITARIOS | AH69: MATERIAL DE CONSUMO | AI69: Lápiz de dibujo 2H - Caja
E70: 17 | F70: CALDAS | G70: 1704 | H70: CZ ORIENTE | J70: 05 | K70: ANTIOQUIA | L70: 0506 | M70: CZ ABURRA SUR | N70: 05347 | O70: HELICONIA | P70: 05 | Q70: ANTIOQUIA | R70: 05347 | S70: HELICONIA | T70: Municipio | AF70: COMUNITARIOS_MATERIAL_DE_CONSUMO | AG70: COMUNITARIOS | AH70: MATERIAL DE CONSUMO | AI70: Cuaderno de dibujo - Unidad
E71: 17 | F71: CALDAS | G71: 1706 | H71: CZ SUR ORIENTE | J71: 05 | K71: ANTIOQUIA | L71: 0535 | M71: CZ LA FLORESTA | N71: 05347 | O71: HELICONIA | P71: 05 | Q71: ANTIOQUIA | R71: 05347 | S71: HELICONIA | T71: Municipio | AF71: COMUNITARIOS_MATERIAL_DE_CONSUMO | AG71: COMUNITARIOS | AH71: MATERIAL DE CONSUMO | AI71: Libreta de bocetos - Unidad
E72: 18 | F72: CAQUETÁ | G72: 1801 | H72: CZ FLORENCIA 1 | J72: 05 | K72: ANTIOQUIA | L72: 0514 | M72: CZ SUROESTE | N72: 05353 | O72: HISPANIA | P72: 05 | Q72: ANTIOQUIA | R72: 05353 | S72: HISPANIA | T72: Municipio | AF72: COMUNITARIOS_MATERIAL_DE_CONSUMO | AG72: COMUNITARIOS | AH72: MATERIAL DE CONSUMO | AI72: Plumas artificiales - Paquete
E73: 18 | F73: CAQUETÁ | G73: 1802 | H73: CZ FLORENCIA 2 | J73: 05 | K73: ANTIOQUIA | L73: 0506 | M73: CZ ABURRA SUR | N73: 05360 | O73: ITAGUI | P73: 05 | Q73: ANTIOQUIA | R73: 05360 | S73: ITAGÜÍ | T73: Municipio | AF73: COMUNITARIOS_MATERIAL_DE_CONSUMO | AG73: COMUNITARIOS | AH73: MATERIAL DE CONSUMO | AI73: Lienzo con Bastidor - Unidad
E74: 18 | F74: CAQUETÁ | G74: 1804 | H74: CZ BELEN DE LOS ANDAQUIES | J74: 05 | K74: ANTIOQUIA | L74: 0535 | M74: CZ LA FLORESTA | N74: 05360 | O74: ITAGUI | P74: 05 | Q74: ANTIOQUIA | R74: 05360 | S74: ITAGÜÍ | T74: Municipio | AF74: COMUNITARIOS_MATERIAL_DE_CONSUMO | AG74: COMUNITARIOS | AH74: MATERIAL DE CONSUMO | AI74: Lápiz carboncillo charcoal Dixon Suave C / Pita - Unidad
E75: 18 | F75: CAQUETÁ | G75: 1803 | H75: CZ PUERTO RICO | J75: 05 | K75: ANTIOQUIA | L75: 0508 | M75: CZ LA MESETA | N75: 05361 | O75: ITUANGO | P75: 05 | Q75: ANTIOQUIA | R75: 05361 | S75: ITUANGO | T75: Municipio | AF75: COMUNITARIOS_MATERIAL_DE_CONSUMO | AG75: COMUNITARIOS | AH75: MATERIAL DE CONSUMO | AI75: Tinta china de colores - Caja
E76: 19 | F76: CAUCA | G76: 1901 | H76: CZ POPAYAN | J76: 05 | K76: ANTIOQUIA | L76: 0514 | M76: CZ SUROESTE | N76: 05364 | O76: JARDÍN | P76: 05 | Q76: ANTIOQUIA | R76: 05364 | S76: JARDÍN | T76: Municipio | AF76: COMUNITARIOS_MATERIAL_DE_CONSUMO | AG76: COMUNITARIOS | AH76: MATERIAL DE CONSUMO | AI76: Set de plumones - Unidad
E77: 19 | F77: CAUCA | G77: 1906 | H77: CZ MACIZO COLOMBIANO | J77: 05 | K77: ANTIOQUIA | L77: 0514 | M77: CZ SUROESTE | N77: 05368 | O77: JERICÓ | P77: 05 | Q77: ANTIOQUIA | R77: 05368 | S77: JERICÓ | T77: Municipio | AF77: COMUNITARIOS_MATERIAL_DE_CONSUMO | AG77: COMUNITARIOS | AH77: MATERIAL DE CONSUMO | AI77: Masa porcelana fria - Unidad
E78: 19 | F78: CAUCA | G78: 1904 | H78: CZ SUR | J78: 05 | K78: ANTIOQUIA | L78: 0512 | M78: CZ ORIENTE | N78: 05376 | O78: LA CEJA | P78: 05 | Q78: ANTIOQUIA | R78: 05376 | S78: LA CEJA | T78: Municipio | AF78: COMUNITARIOS_MATERIAL_DE_CONSUMO | AG78: COMUNITARIOS | AH78: MATERIAL DE CONSUMO | AI78: Tiza oleo - Caja
E79: 19 | F79: CAUCA | G79: 1905 | H79: CZ NORTE | J79: 05 | K79: ANTIOQUIA | L79: 0506 | M79: CZ ABURRA SUR | N79: 05380 | O79: LA ESTRELLA | P79: 05 | Q79: ANTIOQUIA | R79: 05380 | S79: LA ESTRELLA | T79: Municipio | AF79: COMUNITARIOS_MATERIAL_DE_CONSUMO | AG79: COMUNITARIOS | AH79: MATERIAL DE CONSUMO | AI79: Set óleo - Caja
E80: 19 | F80: CAUCA | G80: 1902 | H80: CZ CENTRO | J80: 05 | K80: ANTIOQUIA | L80: 0535 | M80: CZ LA FLORESTA | N80: 05380 | O80: LA ESTRELLA | P80: 05 | Q80: ANTIOQUIA | R80: 05380 | S80: LA ESTRELLA | T80: Municipio | AF80: COMUNITARIOS_MATERIAL_DE_CONSUMO | AG80: COMUNITARIOS | AH80: MATERIAL DE CONSUMO | AI80: Pintura para vidrios cristal visos - Caja
E81: 19 | F81: CAUCA | G81: 1903 | H81: CZ INDIGENA | J81: 05 | K81: ANTIOQUIA | L81: 0506 | M81: CZ ABURRA SUR | N81: 05390 | O81: LA PINTADA | P81: 05 | Q81: ANTIOQUIA | R81: 05390 | S81: LA PINTADA | T81: Municipio | AF81: COMUNITARIOS_MATERIAL_DE_CONSUMO | AG81: COMUNITARIOS | AH81: MATERIAL DE CONSUMO | AI81: Secante Cobalto - Unidad
E82: 19 | F82: CAUCA | G82: 1907 | H82: CZ COSTA PACIFICA | J82: 05 | K82: ANTIOQUIA | L82: 0512 | M82: CZ ORIENTE | N82: 05400 | O82: LA UNIÓN | P82: 05 | Q82: ANTIOQUIA | R82: 05400 | S82: LA UNIÓN | T82: Municipio | AF82: COMUNITARIOS_MATERIAL_DE_CONSUMO | AG82: COMUNITARIOS | AH82: MATERIAL DE CONSUMO | AI82: Barniz Super Brillante - Unidad
E83: 20 | F83: CESAR | G83: 2001 | H83: CZ VALLEDUPAR 1 | J83: 05 | K83: ANTIOQUIA | L83: 0510 | M83: CZ OCCIDENTE | N83: 05411 | O83: LIBORINA | P83: 05 | Q83: ANTIOQUIA | R83: 05411 | S83: LIBORINA | T83: Municipio | AF83: COMUNITARIOS_MATERIAL_DE_CONSUMO | AG83: COMUNITARIOS | AH83: MATERIAL DE CONSUMO | AI83: Disolvente Oleo - Unidad
E84: 20 | F84: CESAR | G84: 2002 | H84: CZ VALLEDUPAR 2 | J84: 05 | K84: ANTIOQUIA | L84: 0509 | M84: CZ MAGDALENA MEDIO | N84: 05425 | O84: MACEO | P84: 05 | Q84: ANTIOQUIA | R84: 05425 | S84: MACEO | T84: Municipio | AF84: COMUNITARIOS_MATERIAL_DE_CONSUMO | AG84: COMUNITARIOS | AH84: MATERIAL DE CONSUMO | AI84: Trementina o aguarrás - Unidad
E85: 20 | F85: CESAR | G85: 2004 | H85: CZ AGUACHICA | J85: 05 | K85: ANTIOQUIA | L85: 0512 | M85: CZ ORIENTE | N85: 05440 | O85: MARINILLA | P85: 05 | Q85: ANTIOQUIA | R85: 05440 | S85: MARINILLA | T85: Municipio | AF85: COMUNITARIOS_MATERIAL_DE_CONSUMO | AG85: COMUNITARIOS | AH85: MATERIAL DE CONSUMO | AI85: Estuche acrílico - Caja
E86: 20 | F86: CESAR | G86: 2005 | H86: CZ AGUSTIN CODAZZI | J86: 05 | K86: ANTIOQUIA | L86: 0506 | M86: CZ ABURRA SUR | N86: 05467 | O86: MONTEBELLO | P86: 05 | Q86: ANTIOQUIA | R86: 05467 | S86: MONTEBELLO | T86: Municipio | AF86: COMUNITARIOS_MATERIAL_DE_CONSUMO | AG86: COMUNITARIOS | AH86: MATERIAL DE CONSUMO | AI86: Papel filigrana - Paquete
E87: 20 | F87: CESAR | G87: 2003 | H87: CZ CHIRIGUANA | J87: 05 | K87: ANTIOQUIA | L87: 0516 | M87: CZ URABA | N87: 05475 | O87: MURINDÓ | P87: 05 | Q87: ANTIOQUIA | R87: 05475 | S87: MURINDÓ | T87: Municipio | AF87: COMUNITARIOS_MATERIAL_DE_CONSUMO | AG87: COMUNITARIOS | AH87: MATERIAL DE CONSUMO | AI87: Papel filigrana - Paquete
E88: 23 | F88: CÓRDOBA | G88: 2301 | H88: CZ 1 MONTERIA | J88: 05 | K88: ANTIOQUIA | L88: 0516 | M88: CZ URABA | N88: 05480 | O88: MUTATÁ | P88: 05 | Q88: ANTIOQUIA | R88: 05480 | S88: MUTATÁ | T88: Municipio | AF88: COMUNITARIOS_MATERIAL_DE_CONSUMO | AG88: COMUNITARIOS | AH88: MATERIAL DE CONSUMO | AI88: Kit de Miyuki - Kit
E89: 23 | F89: CÓRDOBA | G89: 2305 | H89: CZ MONTELIBANO | J89: 05 | K89: ANTIOQUIA | L89: 0512 | M89: CZ ORIENTE | N89: 05483 | O89: NARIÑO | P89: 05 | Q89: ANTIOQUIA | R89: 05483 | S89: NARIÑO | T89: Municipio | AF89: COMUNITARIOS_MATERIAL_DE_CONSUMO | AG89: COMUNITARIOS | AH89: MATERIAL DE CONSUMO | AI89: Kit de Bisuteria - Kit
E90: 23 | F90: CÓRDOBA | G90: 2303 | H90: CZ PLANETARICA | J90: 05 | K90: ANTIOQUIA | L90: 0516 | M90: CZ URABA | N90: 05490 | O90: NECOCLÍ | P90: 05 | Q90: ANTIOQUIA | R90: 05490 | S90: NECOCLÍ | T90: Municipio | AF90: COMUNITARIOS_MATERIAL_DE_CONSUMO | AG90: COMUNITARIOS | AH90: MATERIAL DE CONSUMO | AI90: Madejas de hilos - Kit
E91: 23 | F91: CÓRDOBA | G91: 2302 | H91: CZ CERETE | J91: 05 | K91: ANTIOQUIA | L91: 0507 | M91: CZ BAJO CAUCA | N91: 05495 | O91: NECHÍ | P91: 05 | Q91: ANTIOQUIA | R91: 05495 | S91: NECHÍ | T91: Municipio | AF91: COMUNITARIOS_MATERIAL_DE_CONSUMO | AG91: COMUNITARIOS | AH91: MATERIAL DE CONSUMO | AI91: Agujas para bordar - Paquete
E92: 23 | F92: CÓRDOBA | G92: 2308 | H92: CZ SAN ANDRES DE SOTAVENTO | J92: 05 | K92: ANTIOQUIA | L92: 0510 | M92: CZ OCCIDENTE | N92: 05501 | O92: OLAYA | P92: 05 | Q92: ANTIOQUIA | R92: 05501 | S92: OLAYA | T92: Municipio | AF92: COMUNITARIOS_MATERIAL_DE_CONSUMO | AG92: COMUNITARIOS | AH92: MATERIAL DE CONSUMO | AI92: Balones de fútbol - Unidad
E93: 23 | F93: CÓRDOBA | G93: 2307 | H93: CZ SAHAGUN | J93: 05 | K93: ANTIOQUIA | L93: 0512 | M93: CZ ORIENTE | N93: 05541 | O93: PEÑOL | P93: 05 | Q93: ANTIOQUIA | R93: 05541 | S93: PEÑOL | T93: Municipio | AF93: COMUNITARIOS_MATERIAL_DE_CONSUMO | AG93: COMUNITARIOS | AH93: MATERIAL DE CONSUMO | AI93: Balones de baloncesto - Unidad
E94: 23 | F94: CÓRDOBA | G94: 2306 | H94: CZ LORICA | J94: 05 | K94: ANTIOQUIA | L94: 0511 | M94: CZ OCCIDENTE MEDIO | N94: 05543 | O94: PEQUE | P94: 05 | Q94: ANTIOQUIA | R94: 05543 | S94: PEQUE | T94: Municipio | AF94: COMUNITARIOS_MATERIAL_DE_CONSUMO | AG94: COMUNITARIOS | AH94: MATERIAL DE CONSUMO | AI94: Lazos - Unidad
E95: 23 | F95: CÓRDOBA | G95: 2304 | H95: CZ TIERRALTA | J95: 05 | K95: ANTIOQUIA | L95: 0514 | M95: CZ SUROESTE | N95: 05576 | O95: PUEBLORRICO | P95: 05 | Q95: ANTIOQUIA | R95: 05576 | S95: PUEBLORRICO | T95: Municipio | AF95: COMUNITARIOS_MATERIAL_DE_CONSUMO | AG95: COMUNITARIOS | AH95: MATERIAL DE CONSUMO | AI95: Balón de voleibol - Unidad
E96: 25 | F96: CUNDINAMARCA | G96: 2510 | H96: CZ GIRARDOT | J96: 05 | K96: ANTIOQUIA | L96: 0509 | M96: CZ MAGDALENA MEDIO | N96: 05579 | O96: PUERTO BERRÍO | P96: 05 | Q96: ANTIOQUIA | R96: 05579 | S96: PUERTO BERRÍO | T96: Municipio | AF96: APOYOS_TALENTO_HUMANO | AG96: APOYOS | AH96: TALENTO HUMANO | AI96: Gestor Operativo
E97: 25 | F97: CUNDINAMARCA | G97: 2506 | H97: CZ FACATATIVA | J97: 05 | K97: ANTIOQUIA | L97: 0509 | M97: CZ MAGDALENA MEDIO | N97: 05585 | O97: PUERTO NARE | P97: 05 | Q97: ANTIOQUIA | R97: 05585 | S97: PUERTO NARE | T97: Municipio | AF97: APOYOS_TALENTO_HUMANO | AG97: APOYOS | AH97: TALENTO HUMANO | AI97: Gestor Pedagógico
E98: 25 | F98: CUNDINAMARCA | G98: 2511 | H98: CZ LA MESA | J98: 05 | K98: ANTIOQUIA | L98: 0509 | M98: CZ MAGDALENA MEDIO | N98: 05591 | O98: PUERTO TRIUNFO | P98: 05 | Q98: ANTIOQUIA | R98: 05591 | S98: PUERTO TRIUNFO | T98: Municipio | AF98: APOYOS_TALENTO_HUMANO | AG98: APOYOS | AH98: TALENTO HUMANO | AI98: Gestor de Experiencias
E99: 25 | F99: CUNDINAMARCA | G99: 2507 | H99: CZ FUSAGASUGA | J99: 05 | K99: ANTIOQUIA | L99: 0513 | M99: CZ PORCE NUS | N99: 05604 | O99: REMEDIOS | P99: 05 | Q99: ANTIOQUIA | R99: 05604 | S99: REMEDIOS | T99: Municipio | AF99: APOYOS_TALENTO_HUMANO | AG99: APOYOS | AH99: TALENTO HUMANO | AI99: Gestor Territorial para la inclusión y participación
E100: 25 | F100: CUNDINAMARCA | G100: 2513 | H100: CZ SAN JUAN DE RIOSECO | J100: 05 | K100: ANTIOQUIA | L100: 0512 | M100: CZ ORIENTE | N100: 05607 | O100: RETIRO | P100: 05 | Q100: ANTIOQUIA | R100: 05607 | S100: RETIRO | T100: Municipio | AF100: APOYOS_TALENTO_HUMANO | AG100: APOYOS | AH100: TALENTO HUMANO | AI100: Nutricionista Dietista
E101: 25 | F101: CUNDINAMARCA | G101: 2502 | H101: CZ ZIPAQUIRA | J101: 05 | K101: ANTIOQUIA | L101: 0512 | M101: CZ ORIENTE | N101: 05615 | O101: RIONEGRO | P101: 05 | Q101: ANTIOQUIA | R101: 05615 | S101: RIONEGRO | T101: Municipio | AF101: APOYOS_TALENTO_HUMANO | AG101: APOYOS | AH101: TALENTO HUMANO | AI101: Apoyo para el cuidado
E102: 25 | F102: CUNDINAMARCA | G102: 2504 | H102: CZ PACHO | J102: 05 | K102: ANTIOQUIA | L102: 0510 | M102: CZ OCCIDENTE | N102: 05628 | O102: SABANALARGA | P102: 05 | Q102: ANTIOQUIA | R102: 05628 | S102: SABANALARGA | T102: Municipio | AF102: APOYOS_TALENTO_HUMANO | AG102: APOYOS | AH102: TALENTO HUMANO | AI102: Apoyo a la experiencia
E103: 25 | F103: CUNDINAMARCA | G103: 2508 | H103: CZ CAQUEZA | J103: 05 | K103: ANTIOQUIA | L103: 0506 | M103: CZ ABURRA SUR | N103: 05631 | O103: SABANETA | P103: 05 | Q103: ANTIOQUIA | R103: 05631 | S103: SABANETA | T103: Municipio | AF103: APOYOS_TALENTO_HUMANO | AG103: APOYOS | AH103: TALENTO HUMANO | AI103: Auxiliar Administrativo
E104: 25 | F104: CUNDINAMARCA | G104: 2512 | H104: CZ UBATE | J104: 05 | K104: ANTIOQUIA | L104: 0535 | M104: CZ LA FLORESTA | N104: 05631 | O104: SABANETA | P104: 05 | Q104: ANTIOQUIA | R104: 05631 | S104: SABANETA | T104: Municipio | AF104: APOYOS_TALENTO_HUMANO | AG104: APOYOS | AH104: TALENTO HUMANO | AI104: Manipulador de alimentos
E105: 25 | F105: CUNDINAMARCA | G105: 2503 | H105: CZ CHOCONTA | J105: 05 | K105: ANTIOQUIA | L105: 0514 | M105: CZ SUROESTE | N105: 05642 | O105: SALGAR | P105: 05 | Q105: ANTIOQUIA | R105: 05642 | S105: SALGAR | T105: Municipio | AF105: APOYOS_TALENTO_HUMANO | AG105: APOYOS | AH105: TALENTO HUMANO | AI105: Servicios generales
E106: 25 | F106: CUNDINAMARCA | G106: 2509 | H106: CZ GACHETA | J106: 05 | K106: ANTIOQUIA | L106: 0508 | M106: CZ LA MESETA | N106: 05647 | O106: SAN ANDRÉS DE CUERQUÍA | P106: 05 | Q106: ANTIOQUIA | R106: 05647 | S106: SAN ANDRÉS DE CUERQUÍA | T106: Municipio | AF106: APOYOS_COMPLEMENTACIÓN_ALIMENTARIA_Y_NUTRICIONAL | AG106: APOYOS | AH106: COMPLEMENTACIÓN ALIMENTARIA Y NUTRICIONAL | AI106: Encuentros Grupales
E107: 25 | F107: CUNDINAMARCA | G107: 2505 | H107: CZ VILLETA | J107: 05 | K107: ANTIOQUIA | L107: 0517 | M107: CZ ORIENTE MEDIO | N107: 05649 | O107: SAN CARLOS | P107: 05 | Q107: ANTIOQUIA | R107: 05649 | S107: SAN CARLOS | T107: Municipio | AF107: APOYOS_COMPLEMENTACIÓN_ALIMENTARIA_Y_NUTRICIONAL | AG107: APOYOS | AH107: COMPLEMENTACIÓN ALIMENTARIA Y NUTRICIONAL | AI107: Encuentros Familiares
E108: 25 | F108: CUNDINAMARCA | G108: 2518 | H108: CZ SOACHA CENTRO | J108: 05 | K108: ANTIOQUIA | L108: 0517 | M108: CZ ORIENTE MEDIO | N108: 05652 | O108: SAN FRANCISCO | P108: 05 | Q108: ANTIOQUIA | R108: 05652 | S108: SAN FRANCISCO | T108: Municipio | AF108: APOYOS_COMPLEMENTACIÓN_ALIMENTARIA_Y_NUTRICIONAL | AG108: APOYOS | AH108: COMPLEMENTACIÓN ALIMENTARIA Y NUTRICIONAL | AI108: Encuentros Comunitarios
E109: 25 | F109: CUNDINAMARCA | G109: 2501 | H109: CZ SOACHA | J109: 05 | K109: ANTIOQUIA | L109: 0510 | M109: CZ OCCIDENTE | N109: 05656 | O109: SAN JERÓNIMO | P109: 05 | Q109: ANTIOQUIA | R109: 05656 | S109: SAN JERÓNIMO | T109: Municipio | AF109: APOYOS_TRANSPORTE_NNA | AG109: APOYOS | AH109: TRANSPORTE NNA | AI109: Transporte NNA
E110: 27 | F110: CHOCÓ | G110: 2701 | H110: CZ QUIBDO | J110: 05 | K110: ANTIOQUIA | L110: 0508 | M110: CZ LA MESETA | N110: 05658 | O110: SAN JOSÉ DE LA MONTAÑA | P110: 05 | Q110: ANTIOQUIA | R110: 05658 | S110: SAN JOSÉ DE LA MONTAÑA | T110: Municipio | AF110: APOYOS_DOTACIÓN | AG110: APOYOS | AH110: DOTACIÓN | AI110: Reposición dotación lúdico - pedagógica - deportiva
E111: 27 | F111: CHOCÓ | G111: 2704 | H111: CZ RIOSUCIO | J111: 05 | K111: ANTIOQUIA | L111: 0516 | M111: CZ URABA | N111: 05659 | O111: SAN JUAN DE URABÁ | P111: 05 | Q111: ANTIOQUIA | R111: 05659 | S111: SAN JUAN DE URABÁ | T111: Municipio | AF111: APOYOS_DOTACIÓN | AG111: APOYOS | AH111: DOTACIÓN | AI111: Reposición Menaje de alimentación
E112: 27 | F112: CHOCÓ | G112: 2702 | H112: CZ ISTMINA | J112: 05 | K112: ANTIOQUIA | L112: 0517 | M112: CZ ORIENTE MEDIO | N112: 05660 | O112: SAN LUIS | P112: 05 | Q112: ANTIOQUIA | R112: 05660 | S112: SAN LUIS | T112: Municipio | AF112: APOYOS_DOTACIÓN | AG112: APOYOS | AH112: DOTACIÓN | AI112: Dotación de aseo e higiene personal
E113: 27 | F113: CHOCÓ | G113: 2705 | H113: CZ TADO | J113: 05 | K113: ANTIOQUIA | L113: 0505 | M113: CZ ABURRA NORTE | N113: 05664 | O113: SAN PEDRO DE LOS MILAGROS | P113: 05 | Q113: ANTIOQUIA | R113: 05664 | S113: SAN PEDRO DE LOS MILAGROS | T113: Municipio | AF113: APOYOS_DOTACIÓN | AG113: APOYOS | AH113: DOTACIÓN | AI113: Botiquín
E114: 27 | F114: CHOCÓ | G114: 2703 | H114: CZ BAHIA SOLANO | J114: 05 | K114: ANTIOQUIA | L114: 0516 | M114: CZ URABA | N114: 05665 | O114: SAN PEDRO DE URABA | P114: 05 | Q114: ANTIOQUIA | R114: 05665 | S114: SAN PEDRO DE URABÁ | T114: Municipio | AF114: APOYOS_MATERIAL_IDENTIFICACIÓN | AG114: APOYOS | AH114: MATERIAL IDENTIFICACIÓN | AI114: Chaleco
E115: 41 | F115: HUILA | G115: 4101 | H115: CZ NEIVA | J115: 05 | K115: ANTIOQUIA | L115: 0517 | M115: CZ ORIENTE MEDIO | N115: 05667 | O115: SAN RAFAEL | P115: 05 | Q115: ANTIOQUIA | R115: 05667 | S115: SAN RAFAEL | T115: Municipio | AF115: APOYOS_MATERIAL_IDENTIFICACIÓN | AG115: APOYOS | AH115: MATERIAL IDENTIFICACIÓN | AI115: Gorra
E116: 41 | F116: HUILA | G116: 4105 | H116: CZ LA GAITANA | J116: 05 | K116: ANTIOQUIA | L116: 0513 | M116: CZ PORCE NUS | N116: 05670 | O116: SAN ROQUE | P116: 05 | Q116: ANTIOQUIA | R116: 05670 | S116: SAN ROQUE | T116: Municipio | AF116: APOYOS_MATERIAL_IDENTIFICACIÓN | AG116: APOYOS | AH116: MATERIAL IDENTIFICACIÓN | AI116: Camisetas
E117: 41 | F117: HUILA | G117: 4104 | H117: CZ PITALITO | J117: 05 | K117: ANTIOQUIA | L117: 0512 | M117: CZ ORIENTE | N117: 05674 | O117: SAN VICENTE FERRER | P117: 05 | Q117: ANTIOQUIA | R117: 05674 | S117: SAN VICENTE FERRER | T117: Municipio | AF117: APOYOS_MATERIAL_IDENTIFICACIÓN | AG117: APOYOS | AH117: MATERIAL IDENTIFICACIÓN | AI117: Carné
E118: 41 | F118: HUILA | G118: 4102 | H118: CZ GARZON | J118: 05 | K118: ANTIOQUIA | L118: 0506 | M118: CZ ABURRA SUR | N118: 05679 | O118: SANTA BÁRBARA | P118: 05 | Q118: ANTIOQUIA | R118: 05679 | S118: SANTA BÁRBARA | T118: Municipio | AF118: APOYOS_MATERIAL_IDENTIFICACIÓN | AG118: APOYOS | AH118: MATERIAL IDENTIFICACIÓN | AI118: Pendón
E119: 41 | F119: HUILA | G119: 4103 | H119: CZ LA PLATA | J119: 05 | K119: ANTIOQUIA | L119: 0508 | M119: CZ LA MESETA | N119: 05686 | O119: SANTA ROSA DE OSOS | P119: 05 | Q119: ANTIOQUIA | R119: 05686 | S119: SANTA ROSA DE OSOS | T119: Municipio | AF119: APOYOS_PÓLIZA | AG119: APOYOS | AH119: PÓLIZA | AI119: Póliza
E120: 44 | F120: LA GUAJIRA | G120: 4401 | H120: CZ RIOHACHA 1 | J120: 05 | K120: ANTIOQUIA | L120: 0513 | M120: CZ PORCE NUS | N120: 05690 | O120: SANTO DOMINGO | P120: 05 | Q120: ANTIOQUIA | R120: 05690 | S120: SANTO DOMINGO | T120: Municipio | AF120: APOYOS_APOYO_A_INICIATIVAS | AG120: APOYOS | AH120: APOYO A INICIATIVAS | AI120: Apoyo Iniciativas
E121: 44 | F121: LA GUAJIRA | G121: 4402 | H121: CZ RIOHACHA 2 | J121: 05 | K121: ANTIOQUIA | L121: 0517 | M121: CZ ORIENTE MEDIO | N121: 05697 | O121: EL SANTUARIO | P121: 05 | Q121: ANTIOQUIA | R121: 05697 | S121: EL SANTUARIO | T121: Municipio | AF121: APOYOS_GASTOS_OPERATIVOS | AG121: APOYOS | AH121: GASTOS OPERATIVOS | AI121: Aseo
E122: 44 | F122: LA GUAJIRA | G122: 4405 | H122: CZ MAICAO | J122: 05 | K122: ANTIOQUIA | L122: 0513 | M122: CZ PORCE NUS | N122: 05736 | O122: SEGOVIA | P122: 05 | Q122: ANTIOQUIA | R122: 05736 | S122: SEGOVIA | T122: Municipio | AF122: APOYOS_GASTOS_OPERATIVOS | AG122: APOYOS | AH122: GASTOS OPERATIVOS | AI122: Reparación y mantenimiento de dotación instituciona
E123: 44 | F123: LA GUAJIRA | G123: 4403 | H123: CZ FONSECA | J123: 05 | K123: ANTIOQUIA | L123: 0512 | M123: CZ ORIENTE | N123: 05756 | O123: SONSON | P123: 05 | Q123: ANTIOQUIA | R123: 05756 | S123: SONSÓN | T123: Municipio | AF123: APOYOS_GASTOS_OPERATIVOS | AG123: APOYOS | AH123: GASTOS OPERATIVOS | AI123: Servicios públicos
E124: 44 | F124: LA GUAJIRA | G124: 4404 | H124: CZ MANAURE | J124: 05 | K124: ANTIOQUIA | L124: 0510 | M124: CZ OCCIDENTE | N124: 05761 | O124: SOPETRÁN | P124: 05 | Q124: ANTIOQUIA | R124: 05761 | S124: SOPETRÁN | T124: Municipio | AF124: APOYOS_GASTOS_OPERATIVOS | AG124: APOYOS | AH124: GASTOS OPERATIVOS | AI124: Papelería
E125: 44 | F125: LA GUAJIRA | G125: 4408 | H125: CZ NAZARETH | J125: 05 | K125: ANTIOQUIA | L125: 0514 | M125: CZ SUROESTE | N125: 05789 | O125: TÁMESIS | P125: 05 | Q125: ANTIOQUIA | R125: 05789 | S125: TÁMESIS | T125: Municipio | AF125: APOYOS_GASTOS_OPERATIVOS | AG125: APOYOS | AH125: GASTOS OPERATIVOS | AI125: Mantenimiento de instalaciones locativas
E126: 47 | F126: MAGDALENA | G126: 4701 | H126: CZ SANTA MARTA 1 | J126: 05 | K126: ANTIOQUIA | L126: 0507 | M126: CZ BAJO CAUCA | N126: 05790 | O126: TARAZÁ | P126: 05 | Q126: ANTIOQUIA | R126: 05790 | S126: TARAZÁ | T126: Municipio | AF126: APOYOS_GASTOS_OPERATIVOS | AG126: APOYOS | AH126: GASTOS OPERATIVOS | AI126: Acciones de movilización social
E127: 47 | F127: MAGDALENA | G127: 4702 | H127: CZ SANTA MARTA 2 | J127: 05 | K127: ANTIOQUIA | L127: 0514 | M127: CZ SUROESTE | N127: 05792 | O127: TARSO | P127: 05 | Q127: ANTIOQUIA | R127: 05792 | S127: TARSO | T127: Municipio | AF127: APOYOS_GASTOS_OPERATIVOS | AG127: APOYOS | AH127: GASTOS OPERATIVOS | AI127: Gastos bancarios (comisiones, transferencias y chequeras)
E128: 47 | F128: MAGDALENA | G128: 4705 | H128: CZ FUNDACIÓN | J128: 05 | K128: ANTIOQUIA | L128: 0506 | M128: CZ ABURRA SUR | N128: 05809 | O128: TITIRIBÍ | P128: 05 | Q128: ANTIOQUIA | R128: 05809 | S128: TITIRIBÍ | T128: Municipio | AF128: APOYOS_GASTOS_OPERATIVOS | AG128: APOYOS | AH128: GASTOS OPERATIVOS | AI128: Materiales o dispositivos de apoyo de baja complejidad para los participantes
E129: 47 | F129: MAGDALENA | G129: 4706 | H129: CZ PLATO | J129: 05 | K129: ANTIOQUIA | L129: 0508 | M129: CZ LA MESETA | N129: 05819 | O129: TOLEDO | P129: 05 | Q129: ANTIOQUIA | R129: 05819 | S129: TOLEDO | T129: Municipio | AF129: APOYOS_GASTOS_OPERATIVOS | AG129: APOYOS | AH129: GASTOS OPERATIVOS | AI129: Otros (lo que se requiera para el adecuado desarrollo de la Modalidad)
E130: 47 | F130: MAGDALENA | G130: 4703 | H130: CZ DEL RIO | J130: 05 | K130: ANTIOQUIA | L130: 0516 | M130: CZ URABA | N130: 05837 | O130: TURBO | P130: 05 | Q130: ANTIOQUIA | R130: 05837 | S130: TURBO | T130: Municipio | AF130: APOYOS_UTILIZACIÓN_DE_INSTALACIONES_EN_AMBIENTES_SANOS | AG130: APOYOS | AH130: UTILIZACIÓN DE INSTALACIONES EN AMBIENTES SANOS | AI130: Utilización de Instalaciones en Ambientes Sanos
E131: 47 | F131: MAGDALENA | G131: 4704 | H131: CZ CIENAGA | J131: 05 | K131: ANTIOQUIA | L131: 0511 | M131: CZ OCCIDENTE MEDIO | N131: 05842 | O131: URAMITA | P131: 05 | Q131: ANTIOQUIA | R131: 05842 | S131: URAMITA | T131: Municipio | AF131: APOYOS_GRAVAMEN_MOVIMIENTOS_FINANCIEROS_GMF | AG131: APOYOS | AH131: GRAVAMEN MOVIMIENTOS FINANCIEROS GMF | AI131: Gravamen Movimientos Financieros GMF
E132: 47 | F132: MAGDALENA | G132: 4707 | H132: CZ EL BANCO | J132: 05 | K132: ANTIOQUIA | L132: 0515 | M132: CZ PENDERISCO | N132: 05847 | O132: URRAO | P132: 05 | Q132: ANTIOQUIA | R132: 05847 | S132: URRAO | T132: Municipio | AF132: APOYOS_MATERIALES_E_INSUMOS | AG132: APOYOS | AH132: MATERIALES E INSUMOS | AI132: Bolígrafos mina negra
E133: 47 | F133: MAGDALENA | G133: 4708 | H133: CZ SANTA ANA | J133: 05 | K133: ANTIOQUIA | L133: 0508 | M133: CZ LA MESETA | N133: 05854 | O133: VALDIVIA | P133: 05 | Q133: ANTIOQUIA | R133: 05854 | S133: VALDIVIA | T133: Municipio | AF133: APOYOS_MATERIALES_E_INSUMOS | AG133: APOYOS | AH133: MATERIALES E INSUMOS | AI133: Palo de Paleta
E134: 50 | F134: META | G134: 5001 | H134: CZ VILLAVICENCIO 1 | J134: 05 | K134: ANTIOQUIA | L134: 0514 | M134: CZ SUROESTE | N134: 05856 | O134: VALPARAÍSO | P134: 05 | Q134: ANTIOQUIA | R134: 05856 | S134: VALPARAÍSO | T134: Municipio | AF134: APOYOS_MATERIALES_E_INSUMOS | AG134: APOYOS | AH134: MATERIALES E INSUMOS | AI134: Marcadores no borrables
E135: 50 | F135: META | G135: 5002 | H135: CZ VILLAVICENCIO 2 | J135: 05 | K135: ANTIOQUIA | L135: 0513 | M135: CZ PORCE NUS | N135: 05858 | O135: VEGACHÍ | P135: 05 | Q135: ANTIOQUIA | R135: 05858 | S135: VEGACHÍ | T135: Municipio | AF135: APOYOS_MATERIALES_E_INSUMOS | AG135: APOYOS | AH135: MATERIALES E INSUMOS | AI135: Papel kraft
E136: 50 | F136: META | G136: 5004 | H136: CZ ACACIAS | J136: 05 | K136: ANTIOQUIA | L136: 0506 | M136: CZ ABURRA SUR | N136: 05861 | O136: VENECIA | P136: 05 | Q136: ANTIOQUIA | R136: 05861 | S136: VENECIA | T136: Municipio | AF136: APOYOS_MATERIALES_E_INSUMOS | AG136: APOYOS | AH136: MATERIALES E INSUMOS | AI136: Cinta de enmascarar
E137: 50 | F137: META | G137: 5005 | H137: CZ PUERTO LOPEZ | J137: 05 | K137: ANTIOQUIA | L137: 0516 | M137: CZ URABA | N137: 05873 | O137: VIGÍA DEL FUERTE | P137: 05 | Q137: ANTIOQUIA | R137: 05873 | S137: VIGÍA DEL FUERTE | T137: Municipio | AF137: APOYOS_MATERIALES_E_INSUMOS | AG137: APOYOS | AH137: MATERIALES E INSUMOS | AI137: Papel bond
E138: 50 | F138: META | G138: 5003 | H138: CZ GRANADA | J138: 05 | K138: ANTIOQUIA | L138: 0513 | M138: CZ PORCE NUS | N138: 05885 | O138: YALÍ | P138: 05 | Q138: ANTIOQUIA | R138: 05885 | S138: YALÍ | T138: Municipio | AF138: APOYOS_MATERIALES_E_INSUMOS | AG138: APOYOS | AH138: MATERIALES E INSUMOS | AI138: Tijeras punta roma
E139: 52 | F139: NARIÑO | G139: 5201 | H139: CZ PASTO 1 | J139: 05 | K139: ANTIOQUIA | L139: 0508 | M139: CZ LA MESETA | N139: 05887 | O139: YARUMAL | P139: 05 | Q139: ANTIOQUIA | R139: 05887 | S139: YARUMAL | T139: Municipio | AF139: APOYOS_MATERIALES_E_INSUMOS | AG139: APOYOS | AH139: MATERIALES E INSUMOS | AI139: Lápices
E140: 52 | F140: NARIÑO | G140: 5202 | H140: CZ PASTO 2 | J140: 05 | K140: ANTIOQUIA | L140: 0513 | M140: CZ PORCE NUS | N140: 05890 | O140: YOLOMBÓ | P140: 05 | Q140: ANTIOQUIA | R140: 05890 | S140: YOLOMBÓ | T140: Municipio | AF140: APOYOS_MATERIALES_E_INSUMOS | AG140: APOYOS | AH140: MATERIALES E INSUMOS | AI140: Arcilla
E141: 52 | F141: NARIÑO | G141: 5204 | H141: CZ IPIALES | J141: 05 | K141: ANTIOQUIA | L141: 0509 | M141: CZ MAGDALENA MEDIO | N141: 05893 | O141: YONDÓ | P141: 05 | Q141: ANTIOQUIA | R141: 05893 | S141: YONDÓ | T141: Municipio | AF141: APOYOS_MATERIALES_E_INSUMOS | AG141: APOYOS | AH141: MATERIALES E INSUMOS | AI141: Cartón paja
E142: 52 | F142: NARIÑO | G142: 5206 | H142: CZ LA UNION | J142: 05 | K142: ANTIOQUIA | L142: 0507 | M142: CZ BAJO CAUCA | N142: 05895 | O142: ZARAGOZA | P142: 05 | Q142: ANTIOQUIA | R142: 05895 | S142: ZARAGOZA | T142: Municipio | AF142: APOYOS_MATERIALES_E_INSUMOS | AG142: APOYOS | AH142: MATERIALES E INSUMOS | AI142: Cartulina
E143: 52 | F143: NARIÑO | G143: 5207 | H143: CZ BARBACOAS | J143: 08 | K143: ATLÁNTICO | L143: 0801 | M143: CZ NORTE CENTRO HISTORICO | N143: 08001 | O143: BARRANQUILLA | P143: 08 | Q143: ATLÁNTICO | R143: 08001 | S143: BARRANQUILLA | T143: Municipio | AF143: APOYOS_MATERIALES_E_INSUMOS | AG143: APOYOS | AH143: MATERIALES E INSUMOS | AI143: Pegante líquido
E144: 52 | F144: NARIÑO | G144: 5208 | H144: CZ REMOLINO | J144: 08 | K144: ATLÁNTICO | L144: 0802 | M144: CZ SUROCCIDENTE | N144: 08001 | O144: BARRANQUILLA | P144: 08 | Q144: ATLÁNTICO | R144: 08001 | S144: BARRANQUILLA | T144: Municipio | AF144: APOYOS_MATERIALES_E_INSUMOS | AG144: APOYOS | AH144: MATERIALES E INSUMOS | AI144: Vinilo
E145: 52 | F145: NARIÑO | G145: 5203 | H145: CZ TUMACO | J145: 08 | K145: ATLÁNTICO | L145: 0807 | M145: CZ SURORIENTE | N145: 08001 | O145: BARRANQUILLA | P145: 08 | Q145: ATLÁNTICO | R145: 08001 | S145: BARRANQUILLA | T145: Municipio | AF145: APOYOS_MATERIALES_E_INSUMOS | AG145: APOYOS | AH145: MATERIALES E INSUMOS | AI145: Papel iris
E146: 52 | F146: NARIÑO | G146: 5205 | H146: CZ TUQUERRES | J146: 08 | K146: ATLÁNTICO | L146: 0803 | M146: CZ BARANOA | N146: 08078 | O146: BARANOA | P146: 08 | Q146: ATLÁNTICO | R146: 08078 | S146: BARANOA | T146: Municipio | AF146: APOYOS_MATERIALES_E_INSUMOS | AG146: APOYOS | AH146: MATERIALES E INSUMOS | AI146: Lana
E147: 54 | F147: NORTE DE SANTANDER | G147: 5401 | H147: CZ CUCUTA 1 | J147: 08 | K147: ATLÁNTICO | L147: 0805 | M147: CZ SABANAGRANDE | N147: 08137 | O147: CAMPO DE LA CRUZ | P147: 08 | Q147: ATLÁNTICO | R147: 08137 | S147: CAMPO DE LA CRUZ | T147: Municipio | AF147: APOYOS_MATERIALES_E_INSUMOS | AG147: APOYOS | AH147: MATERIALES E INSUMOS | AI147: Plastilina
E148: 54 | F148: NORTE DE SANTANDER | G148: 5402 | H148: CZ CUCUTA 2 | J148: 08 | K148: ATLÁNTICO | L148: 0804 | M148: CZ SABANALARGA | N148: 08141 | O148: CANDELARIA | P148: 08 | Q148: ATLÁNTICO | R148: 08141 | S148: CANDELARIA | T148: Municipio | AF148: APOYOS_MATERIALES_E_INSUMOS | AG148: APOYOS | AH148: MATERIALES E INSUMOS | AI148: Colores
E149: 54 | F149: NORTE DE SANTANDER | G149: 5403 | H149: CZ CUCUTA 3 | J149: 08 | K149: ATLÁNTICO | L149: 0803 | M149: CZ BARANOA | N149: 08296 | O149: GALAPA | P149: 08 | Q149: ATLÁNTICO | R149: 08296 | S149: GALAPA | T149: Municipio | AF149: APOYOS_MATERIALES_E_INSUMOS | AG149: APOYOS | AH149: MATERIALES E INSUMOS | AI149: Papel Periódico
E150: 54 | F150: NORTE DE SANTANDER | G150: 5404 | H150: CZ OCAÑA | J150: 08 | K150: ATLÁNTICO | L150: 0803 | M150: CZ BARANOA | N150: 08372 | O150: JUAN DE ACOSTA | P150: 08 | Q150: ATLÁNTICO | R150: 08372 | S150: JUAN DE ACOSTA | T150: Municipio | AF150: APOYOS_MATERIALES_E_INSUMOS | AG150: APOYOS | AH150: MATERIALES E INSUMOS | AI150: Pimpones
E151: 54 | F151: NORTE DE SANTANDER | G151: 5405 | H151: CZ PAMPLONA | J151: 08 | K151: ATLÁNTICO | L151: 0804 | M151: CZ SABANALARGA | N151: 08421 | O151: LURUACO | P151: 08 | Q151: ATLÁNTICO | R151: 08421 | S151: LURUACO | T151: Municipio | AF151: APOYOS_MATERIALES_E_INSUMOS | AG151: APOYOS | AH151: MATERIALES E INSUMOS | AI151: Pinceles
E152: 54 | F152: NORTE DE SANTANDER | G152: 5406 | H152: CZ TIBU | J152: 08 | K152: ATLÁNTICO | L152: 0806 | M152: CZ HIPODROMO | N152: 08433 | O152: MALAMBO | P152: 08 | Q152: ATLÁNTICO | R152: 08433 | S152: MALAMBO | T152: Municipio | AF152: APOYOS_MATERIALES_E_INSUMOS | AG152: APOYOS | AH152: MATERIALES E INSUMOS | AI152: Témperas
E153: 63 | F153: QUINDÍO | G153: 6301 | H153: CZ ARMENIA SUR | J153: 08 | K153: ATLÁNTICO | L153: 0804 | M153: CZ SABANALARGA | N153: 08436 | O153: MANATÍ | P153: 08 | Q153: ATLÁNTICO | R153: 08436 | S153: MANATÍ | T153: Municipio | AF153: APOYOS_MATERIALES_E_INSUMOS | AG153: APOYOS | AH153: MATERIALES E INSUMOS | AI153: Crayolas
E154: 63 | F154: QUINDÍO | G154: 6302 | H154: CZ ARMENIA NORTE | J154: 08 | K154: ATLÁNTICO | L154: 0805 | M154: CZ SABANAGRANDE | N154: 08520 | O154: PALMAR DE VARELA | P154: 08 | Q154: ATLÁNTICO | R154: 08520 | S154: PALMAR DE VARELA | T154: Municipio | AF154: APOYOS_MATERIALES_E_INSUMOS | AG154: APOYOS | AH154: MATERIALES E INSUMOS | AI154: Pasteles secos
E155: 63 | F155: QUINDÍO | G155: 6303 | H155: CZ CALARCA | J155: 08 | K155: ATLÁNTICO | L155: 0803 | M155: CZ BARANOA | N155: 08549 | O155: PIOJÓ | P155: 08 | Q155: ATLÁNTICO | R155: 08549 | S155: PIOJÓ | T155: Municipio | AF155: APOYOS_MATERIALES_E_INSUMOS | AG155: APOYOS | AH155: MATERIALES E INSUMOS | AI155: Pintu caritas de colores
E156: 66 | F156: RISARALDA | G156: 6601 | H156: CZ PEREIRA | J156: 08 | K156: ATLÁNTICO | L156: 0803 | M156: CZ BARANOA | N156: 08558 | O156: POLONUEVO | P156: 08 | Q156: ATLÁNTICO | R156: 08558 | S156: POLONUEVO | T156: Municipio | AF156: APOYOS_MATERIALES_E_INSUMOS | AG156: APOYOS | AH156: MATERIALES E INSUMOS | AI156: Tela colores
E157: 66 | F157: RISARALDA | G157: 6602 | H157: CZ LA VIRGINIA | J157: 08 | K157: ATLÁNTICO | L157: 0805 | M157: CZ SABANAGRANDE | N157: 08560 | O157: PONEDERA | P157: 08 | Q157: ATLÁNTICO | R157: 08560 | S157: PONEDERA | T157: Municipio | AF157: APOYOS_MATERIALES_E_INSUMOS | AG157: APOYOS | AH157: MATERIALES E INSUMOS | AI157: Taja Lápiz
E158: 66 | F158: RISARALDA | G158: 6604 | H158: CZ BELEN DE UMBRIA | J158: 08 | K158: ATLÁNTICO | L158: 0801 | M158: CZ NORTE CENTRO HISTORICO | N158: 08573 | O158: PUERTO COLOMBIA | P158: 08 | Q158: ATLÁNTICO | R158: 08573 | S158: PUERTO COLOMBIA | T158: Municipio | AF158: APOYOS_MATERIALES_E_INSUMOS | AG158: APOYOS | AH158: MATERIALES E INSUMOS | AI158: Borradores
E159: 66 | F159: RISARALDA | G159: 6603 | H159: CZ DOS QUEBRADAS | J159: 08 | K159: ATLÁNTICO | L159: 0804 | M159: CZ SABANALARGA | N159: 08606 | O159: REPELÓN | P159: 08 | Q159: ATLÁNTICO | R159: 08606 | S159: REPELÓN | T159: Municipio | AF159: APOYOS_MATERIALES_E_INSUMOS | AG159: APOYOS | AH159: MATERIALES E INSUMOS | AI159: Papel Crepé
E160: 66 | F160: RISARALDA | G160: 6605 | H160: CZ SANTA ROSA DE CABAL | J160: 08 | K160: ATLÁNTICO | L160: 0805 | M160: CZ SABANAGRANDE | N160: 08634 | O160: SABANAGRANDE | P160: 08 | Q160: ATLÁNTICO | R160: 08634 | S160: SABANAGRANDE | T160: Municipio | AF160: APOYOS_MATERIALES_E_INSUMOS | AG160: APOYOS | AH160: MATERIALES E INSUMOS | AI160: Bandas Elásticas
E161: 68 | F161: SANTANDER | G161: 6803 | H161: CZ CARLOS LLERAS RESTREPO | J161: 08 | K161: ATLÁNTICO | L161: 0804 | M161: CZ SABANALARGA | N161: 08638 | O161: SABANALARGA | P161: 08 | Q161: ATLÁNTICO | R161: 08638 | S161: SABANALARGA | T161: Municipio | AF161: APOYOS_MATERIALES_E_INSUMOS | AG161: APOYOS | AH161: MATERIALES E INSUMOS | AI161: Silicona Líquida
E162: 68 | F162: SANTANDER | G162: 6804 | H162: CZ LUIS CARLOS GALÁN SARMIENTO | J162: 08 | K162: ATLÁNTICO | L162: 0805 | M162: CZ SABANAGRANDE | N162: 08675 | O162: SANTA LUCÍA | P162: 08 | Q162: ATLÁNTICO | R162: 08675 | S162: SANTA LUCÍA | T162: Municipio | AF162: APOYOS_MATERIALES_E_INSUMOS | AG162: APOYOS | AH162: MATERIALES E INSUMOS | AI162: Narices
E163: 68 | F163: SANTANDER | G163: 6815 | H163: CZ RESURGIR | J163: 08 | K163: ATLÁNTICO | L163: 0805 | M163: CZ SABANAGRANDE | N163: 08685 | O163: SANTO TOMÁS | P163: 08 | Q163: ATLÁNTICO | R163: 08685 | S163: SANTO TOMÁS | T163: Municipio | AF163: APOYOS_MATERIALES_E_INSUMOS | AG163: APOYOS | AH163: MATERIALES E INSUMOS | AI163: Corbata
E164: 68 | F164: SANTANDER | G164: 6809 | H164: CZ VELEZ | J164: 08 | K164: ATLÁNTICO | L164: 0806 | M164: CZ HIPODROMO | N164: 08758 | O164: SOLEDAD | P164: 08 | Q164: ATLÁNTICO | R164: 08758 | S164: SOLEDAD | T164: Municipio | AF164: APOYOS_MATERIALES_E_INSUMOS | AG164: APOYOS | AH164: MATERIALES E INSUMOS | AI164: Gafas
E165: 68 | F165: SANTANDER | G165: 6807 | H165: CZ SAN GIL | J165: 08 | K165: ATLÁNTICO | L165: 0805 | M165: CZ SABANAGRANDE | N165: 08770 | O165: SUAN | P165: 08 | Q165: ATLÁNTICO | R165: 08770 | S165: SUAN | T165: Municipio | AF165: APOYOS_MATERIALES_E_INSUMOS | AG165: APOYOS | AH165: MATERIALES E INSUMOS | AI165: Corbatines
E166: 68 | F166: SANTANDER | G166: 6805 | H166: CZ YARIQUIES | J166: 08 | K166: ATLÁNTICO | L166: 0803 | M166: CZ BARANOA | N166: 08832 | O166: TUBARÁ | P166: 08 | Q166: ATLÁNTICO | R166: 08832 | S166: TUBARÁ | T166: Municipio | AF166: APOYOS_MATERIALES_E_INSUMOS | AG166: APOYOS | AH166: MATERIALES E INSUMOS | AI166: Pelucas Surtidas
E167: 68 | F167: SANTANDER | G167: 6806 | H167: CZ LA FLORESTA | J167: 08 | K167: ATLÁNTICO | L167: 0803 | M167: CZ BARANOA | N167: 08849 | O167: USIACURÍ | P167: 08 | Q167: ATLÁNTICO | R167: 08849 | S167: USIACURÍ | T167: Municipio | AF167: APOYOS_MATERIALES_E_INSUMOS | AG167: APOYOS | AH167: MATERIALES E INSUMOS | AI167: Máscaras - antifaz
E168: 68 | F168: SANTANDER | G168: 6802 | H168: CZ BUCARAMANGA SUR | J168: 11 | K168: BOGOTÁ DC | L168: 1130 | M168: CZ CREER | N168: 11001 | O168: BOGOTÁ DC | P168: 11 | Q168: BOGOTÁ DC | R168: 11001 | S168: BOGOTÁ, D.C. | T168: Municipio | AF168: APOYOS_MATERIALES_E_INSUMOS | AG168: APOYOS | AH168: MATERIALES E INSUMOS | AI168: Sombreros surtidos
E169: 68 | F169: SANTANDER | G169: 6801 | H169: CZ ANTONIA SANTOS | J169: 11 | K169: BOGOTÁ DC | L169: 1101 | M169: CZ CIUDAD BOLIVAR | N169: 11019 | O169: CIUDAD BOLIVAR | P169: 11 | Q169: BOGOTÁ DC | R169: n/a | S169: n/a | T169: Localidad | AF169: APOYOS_MATERIALES_E_INSUMOS | AG169: APOYOS | AH169: MATERIALES E INSUMOS | AI169: Diadema Disfraz Surtida
E170: 68 | F170: SANTANDER | G170: 6810 | H170: CZ MALAGA | J170: 11 | K170: BOGOTÁ DC | L170: 1102 | M170: CZ TUNJUELITO | N170: 11006 | O170: TUNJUELITO | P170: 11 | Q170: BOGOTÁ DC | R170: n/a | S170: n/a | T170: Localidad | AF170: BID_TALENTO_HUMANO | AG170: BID | AH170: TALENTO HUMANO | AI170: Coordinador(a)
E171: 68 | F171: SANTANDER | G171: 6808 | H171: CZ SOCORRO | J171: 11 | K171: BOGOTÁ DC | L171: 1103 | M171: CZ USME | N171: 11005 | O171: USME | P171: 11 | Q171: BOGOTÁ DC | R171: n/a | S171: n/a | T171: Localidad | AF171: BID_TALENTO_HUMANO | AG171: BID | AH171: TALENTO HUMANO | AI171: Gestor Metodológico
E172: 70 | F172: SUCRE | G172: 7003 | H172: CZ SINCELEJO | J172: 11 | K172: BOGOTÁ DC | L172: 1103 | M172: CZ USME | N172: 11020 | O172: SUMAPAZ | P172: 11 | Q172: BOGOTÁ DC | R172: n/a | S172: n/a | T172: Localidad | AF172: BID_TALENTO_HUMANO | AG172: BID | AH172: TALENTO HUMANO | AI172: Psicólogo(a)
E173: 70 | F173: SUCRE | G173: 7001 | H173: CZ BOSTON | J173: 11 | K173: BOGOTÁ DC | L173: 1104 | M173: CZ SAN CRISTOBAL SUR | N173: 11004 | O173: SAN CRISTOBAL SUR | P173: 11 | Q173: BOGOTÁ DC | R173: n/a | S173: n/a | T173: Localidad | AF173: BID_TALENTO_HUMANO | AG173: BID | AH173: TALENTO HUMANO | AI173: Gestor(a) Desarrollo
E174: 70 | F174: SUCRE | G174: 7002 | H174: CZ NORTE | J174: 11 | K174: BOGOTÁ DC | L174: 1105 | M174: CZ KENNEDY | N174: 11008 | O174: KENNEDY | P174: 11 | Q174: BOGOTÁ DC | R174: n/a | S174: n/a | T174: Localidad | AF174: BID_TALENTO_HUMANO | AG174: BID | AH174: TALENTO HUMANO | AI174: Profesional Social
E175: 70 | F175: SUCRE | G175: 7004 | H175: CZ LA MOJANA | J175: 11 | K175: BOGOTÁ DC | L175: 1106 | M175: CZ REVIVIR | N175: 11013 | O175: TEUSAQUILLO | P175: 11 | Q175: BOGOTÁ DC | R175: n/a | S175: n/a | T175: Localidad | AF175: BID_TALENTO_HUMANO | AG175: BID | AH175: TALENTO HUMANO | AI175: Auxiliar Administrativo
E176: 73 | F176: TOLIMA | G176: 7301 | H176: CZ JORDAN | J176: 11 | K176: BOGOTÁ DC | L176: 1107 | M176: CZ PUENTE ARANDA | N176: 11016 | O176: PUENTE ARANDA | P176: 11 | Q176: BOGOTÁ DC | R176: n/a | S176: n/a | T176: Localidad | AF176: BID_TALENTO_HUMANO | AG176: BID | AH176: TALENTO HUMANO | AI176: Gestor de la información
E177: 73 | F177: TOLIMA | G177: 7302 | H177: CZ GALAN | J177: 11 | K177: BOGOTÁ DC | L177: 1108 | M177: CZ BOSA | N177: 11007 | O177: BOSA | P177: 11 | Q177: BOGOTÁ DC | R177: n/a | S177: n/a | T177: Localidad | AF177: BID_TRANSPORTE_Y_VIAJES_DEL_TH | AG177: BID | AH177: TRANSPORTE Y VIAJES DEL TH | AI177: Coordinador General
E178: 73 | F178: TOLIMA | G178: 7303 | H178: CZ IBAGUE | J178: 11 | K178: BOGOTÁ DC | L178: 1109 | M178: CZ RAFAEL URIBE | N178: 11015 | O178: ANTONIO NARIÑO | P178: 11 | Q178: BOGOTÁ DC | R178: n/a | S178: n/a | T178: Localidad | AF178: BID_TRANSPORTE_Y_VIAJES_DEL_TH | AG178: BID | AH178: TRANSPORTE Y VIAJES DEL TH | AI178: Gestor(a) Metodológico(a)
E179: 73 | F179: TOLIMA | G179: 7309 | H179: CZ PURIFICACION | J179: 11 | K179: BOGOTÁ DC | L179: 1109 | M179: CZ RAFAEL URIBE | N179: 11018 | O179: RAFAEL URIBE | P179: 11 | Q179: BOGOTÁ DC | R179: n/a | S179: n/a | T179: Localidad | AF179: BID_TRANSPORTE_Y_VIAJES_DEL_TH | AG179: BID | AH179: TRANSPORTE Y VIAJES DEL TH | AI179: Gestor(a) Desarrollo
E180: 73 | F180: TOLIMA | G180: 7305 | H180: CZ LERIDA | J180: 11 | K180: BOGOTÁ DC | L180: 1110 | M180: CZ SANTA FE | N180: 11003 | O180: SANTA FE | P180: 11 | Q180: BOGOTÁ DC | R180: n/a | S180: n/a | T180: Localidad | AF180: BID_TRANSPORTE_Y_VIAJES_DEL_TH | AG180: BID | AH180: TRANSPORTE Y VIAJES DEL TH | AI180: Profesional Social
E181: 73 | F181: TOLIMA | G181: 7308 | H181: CZ CHAPARRAL | J181: 11 | K181: BOGOTÁ DC | L181: 1110 | M181: CZ SANTA FE | N181: 11017 | O181: LA CANDELARIA | P181: 11 | Q181: BOGOTÁ DC | R181: n/a | S181: n/a | T181: Localidad | AF181: BID_APOYOS_NUTRICIONALES | AG181: BID | AH181: APOYOS NUTRICIONALES | AI181: Botellón
E182: 73 | F182: TOLIMA | G182: 7312 | H182: CZ MELGAR | J182: 11 | K182: BOGOTÁ DC | L182: 1111 | M182: CZ FONTIBON | N182: 11009 | O182: FONTIBON | P182: 11 | Q182: BOGOTÁ DC | R182: n/a | S182: n/a | T182: Localidad | AF182: BID_APOYOS_NUTRICIONALES | AG182: BID | AH182: APOYOS NUTRICIONALES | AI182: Refrigerios
E183: 73 | F183: TOLIMA | G183: 7304 | H183: CZ LIBANO | J183: 11 | K183: BOGOTÁ DC | L183: 1112 | M183: CZ BARRIOS UNIDOS | N183: 11002 | O183: CHAPINERO | P183: 11 | Q183: BOGOTÁ DC | R183: n/a | S183: n/a | T183: Localidad | AF183: BID_APOYOS_NUTRICIONALES | AG183: BID | AH183: APOYOS NUTRICIONALES | AI183: Agua
E184: 73 | F184: TOLIMA | G184: 7307 | H184: CZ ESPINAL | J184: 11 | K184: BOGOTÁ DC | L184: 1112 | M184: CZ BARRIOS UNIDOS | N184: 11012 | O184: BARRIOS UNIDOS | P184: 11 | Q184: BOGOTÁ DC | R184: n/a | S184: n/a | T184: Localidad | AF184: BID_APOYOS_NUTRICIONALES | AG184: BID | AH184: APOYOS NUTRICIONALES | AI184: Paquete vasos
E185: 73 | F185: TOLIMA | G185: 7306 | H185: CZ HONDA | J185: 11 | K185: BOGOTÁ DC | L185: 1112 | M185: CZ BARRIOS UNIDOS | N185: 11013 | O185: TEUSAQUILLO | P185: 11 | Q185: BOGOTÁ DC | R185: n/a | S185: n/a | T185: Localidad | AF185: BID_DOTACIÓN | AG185: BID | AH185: DOTACIÓN | AI185: Dotación - Mat. Ludi. Deportivo
E186: 76 | F186: VALLE DEL CAUCA | G186: 7601 | H186: CZ SURORIENTAL | J186: 11 | K186: BOGOTÁ DC | L186: 1113 | M186: CZ ENGATIVA | N186: 11010 | O186: ENGATIVA | P186: 11 | Q186: BOGOTÁ DC | R186: n/a | S186: n/a | T186: Localidad | AF186: BID_DOTACIÓN | AG186: BID | AH186: DOTACIÓN | AI186: Dotación - Botiquin
E187: 76 | F187: VALLE DEL CAUCA | G187: 7602 | H187: CZ NORORIENTAL | J187: 11 | K187: BOGOTÁ DC | L187: 1114 | M187: CZ SUBA | N187: 11011 | O187: SUBA | P187: 11 | Q187: BOGOTÁ DC | R187: n/a | S187: n/a | T187: Localidad | AF187: BID_DOTACIÓN | AG187: BID | AH187: DOTACIÓN | AI187: Kit de aseo personal - Toallas de papel - paquetes
E188: 76 | F188: VALLE DEL CAUCA | G188: 7603 | H188: CZ LADERA | J188: 11 | K188: BOGOTÁ DC | L188: 1115 | M188: CZ USAQUEN | N188: 11021 | O188: USAQUEN | P188: 11 | Q188: BOGOTÁ DC | R188: n/a | S188: n/a | T188: Localidad | AF188: BID_DOTACIÓN | AG188: BID | AH188: DOTACIÓN | AI188: Kit de aseo personal - Papel higiénico - paquetes
E189: 76 | F189: VALLE DEL CAUCA | G189: 7604 | H189: CZ CENTRO | J189: 11 | K189: BOGOTÁ DC | L189: 1116 | M189: CZ MARTIRES | N189: 11014 | O189: MARTIRES | P189: 11 | Q189: BOGOTÁ DC | R189: n/a | S189: n/a | T189: Localidad | AF189: BID_DOTACIÓN | AG189: BID | AH189: DOTACIÓN | AI189: Kit de aseo personal - Jabón para manos - litro
E190: 76 | F190: VALLE DEL CAUCA | G190: 7605 | H190: CZ SUR | J190: 11 | K190: BOGOTÁ DC | L190: 1116 | M190: CZ MARTIRES | N190: 11016 | O190: PUENTE ARANDA | P190: 11 | Q190: BOGOTÁ DC | R190: n/a | S190: n/a | T190: Localidad | AF190: BID_INTERNET | AG190: BID | AH190: INTERNET | AI190: Internet
E191: 76 | F191: VALLE DEL CAUCA | G191: 7620 | H191: CZ RESTAURAR | J191: 11 | K191: BOGOTÁ DC | L191: 1131 | M191: CZ KENNEDY CENTRAL | N191: 11008 | O191: KENNEDY | P191: 11 | Q191: BOGOTÁ DC | R191: n/a | S191: n/a | T191: Localidad | AF191: BID_MATERIAL_IDENTIFICACIÓN | AG191: BID | AH191: MATERIAL IDENTIFICACIÓN | AI191: Chalecos
E192: 76 | F192: VALLE DEL CAUCA | G192: 7613 | H192: CZ CARTAGO | J192: 13 | K192: BOLÍVAR | L192: 1301 | M192: CZ HISTORICO Y DEL CARIBE NORTE | N192: 13001 | O192: CARTAGENA DE INDIAS | P192: 13 | Q192: BOLÍVAR | R192: 13001 | S192: CARTAGENA DE INDIAS | T192: Municipio | AF192: BID_MATERIAL_IDENTIFICACIÓN | AG192: BID | AH192: MATERIAL IDENTIFICACIÓN | AI192: Gorras
E193: 76 | F193: VALLE DEL CAUCA | G193: 7610 | H193: CZ TULUA | J193: 13 | K193: BOLÍVAR | L193: 1302 | M193: CZ DE LA VIRGEN Y TURISTICO | N193: 13001 | O193: CARTAGENA DE INDIAS | P193: 13 | Q193: BOLÍVAR | R193: 13001 | S193: CARTAGENA DE INDIAS | T193: Municipio | AF193: BID_MATERIAL_IDENTIFICACIÓN | AG193: BID | AH193: MATERIAL IDENTIFICACIÓN | AI193: Camiseta tipo 1
E194: 76 | F194: VALLE DEL CAUCA | G194: 7612 | H194: CZ ROLDANILLO | J194: 13 | K194: BOLÍVAR | L194: 1303 | M194: CZ INDUSTRIAL DE LA BAHIA | N194: 13001 | O194: CARTAGENA DE INDIAS | P194: 13 | Q194: BOLÍVAR | R194: 13001 | S194: CARTAGENA DE INDIAS | T194: Municipio | AF194: BID_MATERIAL_IDENTIFICACIÓN | AG194: BID | AH194: MATERIAL IDENTIFICACIÓN | AI194: Camiseta tipo 2
E195: 76 | F195: VALLE DEL CAUCA | G195: 7614 | H195: CZ BUENAVENTURA | J195: 13 | K195: BOLÍVAR | L195: 1306 | M195: CZ MAGANGUE | N195: 13006 | O195: ACHÍ | P195: 13 | Q195: BOLÍVAR | R195: 13006 | S195: ACHÍ | T195: Municipio | AF195: BID_MATERIAL_IDENTIFICACIÓN | AG195: BID | AH195: MATERIAL IDENTIFICACIÓN | AI195: Carné
E196: 76 | F196: VALLE DEL CAUCA | G196: 7609 | H196: CZ BUGA | J196: 13 | K196: BOLÍVAR | L196: 1307 | M196: CZ MOMPOX | N196: 13030 | O196: ALTOS DEL ROSARIO | P196: 13 | Q196: BOLÍVAR | R196: 13030 | S196: ALTOS DEL ROSARIO | T196: Municipio | AF196: BID_SEGURO | AG196: BID | AH196: SEGURO | AI196: Seguro
E197: 76 | F197: VALLE DEL CAUCA | G197: 7611 | H197: CZ SEVILLA | J197: 13 | K197: BOLÍVAR | L197: 1308 | M197: CZ SIMITI | N197: 13042 | O197: ARENAL | P197: 13 | Q197: BOLÍVAR | R197: 13042 | S197: ARENAL | T197: Municipio | AF197: BID_ENCUENTROS_EXPERIENCIAS_OPORTUNIDADES | AG197: BID | AH197: ENCUENTROS EXPERIENCIAS OPORTUNIDADES | AI197: Salidas o expediciones a espacios significativos del territorio
E198: 76 | F198: VALLE DEL CAUCA | G198: 7608 | H198: CZ PALMIRA | J198: 13 | K198: BOLÍVAR | L198: 1304 | M198: CZ TURBACO | N198: 13052 | O198: ARJONA | P198: 13 | Q198: BOLÍVAR | R198: 13052 | S198: ARJONA | T198: Municipio | AF198: BID_ENCUENTROS_EXPERIENCIAS_OPORTUNIDADES | AG198: BID | AH198: ENCUENTROS EXPERIENCIAS OPORTUNIDADES | AI198: Ferias de emprendimiento popular
E199: 76 | F199: VALLE DEL CAUCA | G199: 7606 | H199: CZ JAMUNDI | J199: 13 | K199: BOLÍVAR | L199: 1304 | M199: CZ TURBACO | N199: 13062 | O199: ARROYOHONDO | P199: 13 | Q199: BOLÍVAR | R199: 13062 | S199: ARROYOHONDO | T199: Municipio | AF199: BID_ENCUENTROS_EXPERIENCIAS_OPORTUNIDADES | AG199: BID | AH199: ENCUENTROS EXPERIENCIAS OPORTUNIDADES | AI199: Encuentros de intercambio
E200: 76 | F200: VALLE DEL CAUCA | G200: 7607 | H200: CZ YUMBO | J200: 13 | K200: BOLÍVAR | L200: 1307 | M200: CZ MOMPOX | N200: 13074 | O200: BARRANCO DE LOBA | P200: 13 | Q200: BOLÍVAR | R200: 13074 | S200: BARRANCO DE LOBA | T200: Municipio | AF200: BID_ENCUENTROS_EXPERIENCIAS_OPORTUNIDADES | AG200: BID | AH200: ENCUENTROS EXPERIENCIAS OPORTUNIDADES | AI200: Circulación artística cultural
... 1154 more rows

Sheet CCM-APOYOS (hidden)
C3: ALISTAMIENTO | D3: ATENCIÓN | E3: CIERRE | F3: CCM (Promedio)
A4: 2025 | B4: CCM (Promedio) | C4: 1355419 | D4: 1782712 | E4: 1674919 | F4: 1494831
A5: 2024 | B5: CCM (Promedio) | C5: 1315146 | D5: 1641383 | E5: 1540212 | F5: 1587957
B7: REGIONAL | C7: =+$C$4 -> 1355419 | D7: =+$D$4 -> 1782712 | E7: =+$E$4 -> 1674919
B8: ATLÁNTICO | C8: =+$C$4 -> 1355419 | D8: =+$D$4 -> 1782712 | E8: =+$E$4 -> 1674919
B9: BOGOTÁ | C9: 1355419 | D9: 1782712 | E9: 1674919
B10: BOLÍVAR | C10: 1355419 | D10: 1782712 | E10: 1674919
B11: BOYACÁ | C11: 1355419 | D11: 1782712 | E11: 1674919
B12: CALDAS | C12: 1355419 | D12: 1782712 | E12: 1674919
B13: CAUCA | C13: 1355419 | D13: 1782712 | E13: 1674919
B14: CESAR | C14: 1355419 | D14: 1782712 | E14: 1674919
B15: CÓRDOBA | C15: 1355419 | D15: 1782712 | E15: 1674919
B16: MAGDALENA | C16: 1355419 | D16: 1782712 | E16: 1674919
B17: META | C17: 1355419 | D17: 1782712 | E17: 1674919
B18: NARIÑO | C18: 1355419 | D18: 1782712 | E18: 1674919
B19: NORTE DE SANTANDER | C19: 1355419 | D19: 1782712 | E19: 1674919
B20: PUTUMAYO | C20: 1355419 | D20: 1782712 | E20: 1674919
B21: QUINDÍO | C21: 1355419 | D21: 1782712 | E21: 1674919
B22: RISARALDA | C22: 1355419 | D22: 1782712 | E22: 1674919
B23: SAN ANDRÉS | C23: 1355419 | D23: 1782712 | E23: 1674919
B24: SANTANDER | C24: 1355419 | D24: 1782712 | E24: 1674919
B25: SUCRE | C25: 1355419 | D25: 1782712 | E25: 1674919
B26: TOLIMA | C26: 1355419 | D26: 1782712 | E26: 1674919
B27: VALLE DEL CAUCA | C27: 1355419 | D27: 1782712 | E27: 1674919

Sheet TR (hidden)
C4: ALISTAMIENTO | D4: ATENCIÓN | E4: CIERRE | F4: CCM (Promedio) | I4: ALISTAMIENTO | J4: ATENCIÓN | K4: CIERRE | L4: CCM (Promedio) | O4: ALISTAMIENTO | P4: ATENCIÓN | Q4: CIERRE | R4: CCM (Promedio) | U4: ALISTAMIENTO | V4: ATENCIÓN/CIERRE | W4: CIERRE | X4: CCM (Promedio/Regional) | Z4: CCM | AA4: 350000
C5: =+C10+C22+C40+C48+C50+C66+C79+C28+C38+C36+C57+C60 -> 1 | D5: =+D10+D22+D40+D48+D50+D66+D79+D28+D38+D36+D57+D60 -> 1 | E5: =+E10+E22+E40+E48+E50+E66+E79+E28+E38+E36+E57+E60 -> 1 | F5: =+F10+F22+F40+F48+F50+F66+F79+F28+F38+F36+F57+F60 -> 1 | I5: =+I10+I36+I28+I38+I50+I57+I40+I60+I77+I66+I79+I22 -> 1 | J5: =+J10+J36+J28+J38+J50+J57+J40+J60+J77+J66+J79+J22 -> 1 | K5: =+K10+K36+K28+K38+K50+K57+K40+K60+K77+K66+K79+K22 -> 0.9999999998 | L5: =+L10+L36+L28+L38+L50+L57+L40+L60+L77+L66+L79+L22 -> 0.9999999998 | O5: =+O10+O36+O28+O38+O50+O57+O40+O60+O77+O66+O79+O22 -> 1 | P5: =+P10+P36+P28+P38+P50+P57+P40+P60+P77+P66+P79+P22 -> 1 | Q5: =+Q10+Q36+Q28+Q38+Q50+Q57+Q40+Q60+Q77+Q66+Q79+Q22 -> 1 | R5: =+R10+R36+R28+R38+R50+R57+R40+R60+R77+R66+R79+R22 -> 1 | U5: =+U10+U22+U28+U38+U40+U50+U48+U57+U59+U66+U79 -> 0 | V5: =+V10+V22+V28+V38+V40+V50+V48+V57+V59+V66+V79 -> 0 | W5: =+W10+W22+W28+W38+W40+W50+W48+W57+W59+W66+W79 -> 0 | X5: =+X10+X22+X28+X38+X40+X50+X48+X57+X59+X66+X79 -> 0.9318676796
B8: CUMUNITARIOS PROPIOS | H8: APOYOS 2025 | N8: APOYOS 2024 | T8: CUMUNITARIOS BID | Z8: EXPERIENCIAS | AH8: =TRANS_APOYOS -> 2110 | AI8: N/A | AJ8: 0 | AK8: 0 | AL8: 0 | AM8: 0
A9: COD | C9: ALISTAMIENTO | D9: ATENCIÓN | E9: CIERRE | F9: CCM (Regional/etapa) | G9: COD | I9: ALISTAMIENTO | J9: ATENCIÓN | K9: CIERRE | L9: CCM (Promedio) | M9: COD | O9: ALISTAMIENTO | P9: ATENCIÓN | Q9: CIERRE | R9: CCM (Promedio) | S9: COD | U9: ALISTAMIENTO | V9: ATENCIÓN/CIERRE | W9: CIERRE | X9: CCM (Promedio/Regional) | Y9: COD | AA9: PREPARACIÓN | AB9: IMPLEMENTACIÓN | AC9: CIERRE | AD9: CCM (Promedio/Regional) | AH9: 2111 | AI9: N/A | AJ9: 0 | AK9: 0 | AL9: 0 | AM9: 0
A10: 2100 | B10: TALENTO HUMANO | C10: =+SUM(C11:C19) -> 0.7367404229 | D10: =SUM(D11:D19) -> 0.4100707506 | E10: =SUM(E11:E19) -> 0.7815337016 | F10: 0.4444338966 | G10: 2100 | H10: TALENTO HUMANO | I10: =+SUM(I11:I20) -> 0.7624707054 | J10: =+SUM(J11:J20) -> 0.5797162595 | K10: =+SUM(K11:K20) -> 0.6170254172 | L10: 0.6102440574 | M10: 2100 | N10: TALENTO HUMANO | O10: =+SUM(O11:O20) -> 0.731180041 | P10: =+SUM(P11:P20) -> 0.585852493 | Q10: =+SUM(Q11:Q20) -> 0.6243352665 | R10: 0.6055632387 | S10: 2100 | T10: TALENTO HUMANO | U10: =SUM(U11:U17) -> 0 | V10: =SUM(V11:V17) -> 0 | W10: 0 | X10: 0.3295676796 | Y10: 2100 | Z10: TALENTO HUMANO | AH10: 2112 | AI10: N/A | AJ10: 0 | AK10: 0 | AL10: 0 | AM10: 0
A11: 2101 | B11: Coordinador(a) | C11: 0.03709280349 | D11: 0.02135286348 | E11: 0.04104675445 | G11: 2101 | H11: Gestor Operativo | I11: 0.05438740281 | J11: 0.0413514386 | K11: 0.04401272032 | M11: 2101 | N11: Gestor Operativo | O11: 0.0522588878 | P11: 0.04187204032 | Q11: 0.04462247985 | S11: 2101 | T11: Coordinador(a) | U11: 0 | V11: 0 | W11: 0 | Y11: 2101 | Z11: Auxiliar Administrativo y logistico | AA11: 0 | AB11: 0 | AC11: 0 | AH11: 2113 | AI11: N/A | AJ11: 0 | AK11: 0 | AL11: 0 | AM11: 0
A12: 2102 | B12: Pedagogo | C12: 0.06215008968 | D12: 0.03577735451 | E12: 0.06877505149 | G12: 2102 | H12: Gestor Pedagógico | I12: 0.05438740281 | J12: 0.0413514386 | K12: 0.04401272032 | M12: 2102 | N12: Gestor Pedagógico | O12: 0.0522588878 | P12: 0.04187204032 | Q12: 0.04462247985 | S12: 2102 | T12: Gestor Metodológico | U12: 0 | V12: 0 | W12: 0 | Y12: 2102 | Z12: Referente de la experiencia comunitaria | AA12: 0 | AB12: 0 | AC12: 0 | AH12: 2114 | AI12: N/A | AJ12: 0 | AK12: 0 | AL12: 0 | AM12: 0
A13: 2103 | B13: Nutricionista | C13: 0.03049028447 | D13: 0.003510410756 | E13: 0 | G13: 2103 | H13: Gestor de Experiencias | I13: 0.1830345205 | J13: 0.1391634953 | K13: 0.1481197252 | M13: 2103 | N13: Gestor de Experiencias | O13: 0.175871257 | P13: 0.1409155203 | Q13: 0.1501718072 | S13: 2103 | T13: Psicólogo(a) | U13: 0 | V13: 0 | W13: 0 | Y13: 2103
A14: 2104 | B14: Psicólogo(a) | C14: 0.2705098243 | D14: 0.1557218329 | E14: 0.2993451367 | G14: 2104 | H14: Gestor Territorial para la inclusión y participación | I14: 0.06275469509 | J14: 0.04771319839 | K14: 0.05078390769 | M14: 2104 | N14: Gestor Territorial para la inclusión y participación | O14: 0.0602987167 | P14: 0.04831389268 | Q14: 0.05148747675 | S14: 2104 | T14: Gestor(a) Desarrollo | U14: 0 | V14: 0 | W14: 0 | Y14: 2104
A15: 2105 | B15: Psicosocial | C15: 0 | D15: 0 | E15: 0 | G15: 2105 | H15: Nutricionista Dietista | I15: 0.06275469509 | J15: 0.04771319839 | K15: 0.05078390769 | M15: 2105 | N15: Nutricionista Dietista | O15: 0.0602987167 | P15: 0.04831389268 | Q15: 0.05148747675 | S15: 2105 | T15: Profesional Social | U15: 0 | V15: 0 | W15: 0 | Y15: 2105
A16: 2106 | B16: Gestor(a) de Experiencias 1 | C16: 0.2705098243 | D16: 0.1557218329 | E16: 0.2993451367 | G16: 2106 | H16: Apoyo para el cuidado | I16: 0.04758582844 | J16: 0.03618011653 | K16: 0.03850858196 | M16: 2106 | N16: Apoyo para el cuidado | O16: 0.04572350988 | P16: 0.03663561549 | Q16: 0.03904209377 | S16: 2106 | T16: Auxiliar Administrativo | U16: 0 | V16: 0 | W16: 0 | Y16: 2106
A17: 2107 | B17: Gestor(a) de Experiencias 2 | C17: 0 | D17: 0 | E17: 0 | G17: 2107 | H17: Apoyo a la experiencia | I17: 0.1601446149 | J17: 0.1217600076 | K17: 0.1295961893 | M17: 2107 | N17: Apoyo a la experiencia | O17: 0.1538771883 | P17: 0.1232929367 | Q17: 0.1313916545 | S17: 2107 | T17: Gestor de la información | U17: 0 | V17: 0 | W17: 0 | Y17: 2107
A18: 2108 | B18: Dinamizador(a) comunitario | C18: 0.01448025677 | D18: 0.008335712506 | E18: 0.01602379675 | G18: 2108 | H18: Auxiliar Administrativo | I18: 0.04758582844 | J18: 0.03618011653 | K18: 0.03850858196 | M18: 2108 | N18: Auxiliar Administrativo | O18: 0.04572350988 | P18: 0.03663561549 | Q18: 0.03904209377 | S18: 2108 | Y18: 2108
A19: 2109 | B19: Auxiliar Administrativo | C19: 0.05150734 | D19: 0.02965074343 | E19: 0.05699782541 | G19: 2109 | H19: Manipulador de alimentos | I19: 0.05961696971 | J19: 0.04532754776 | K19: 0.04824471989 | M19: 2109 | N19: Manipulador de alimentos | O19: 0.05728378351 | P19: 0.04589819804 | Q19: 0.04891310518 | S19: 2109 | Y19: 2109
A20: 2110 | G20: 2110 | H20: Servicios generales | I20: 0.03021874754 | J20: 0.02297570187 | K20: 0.02445436287 | M20: 2110 | N20: Servicios generales | O20: 0.0275855834 | P20: 0.02210274097 | Q20: 0.02355459887 | S20: 2110 | Y20: 2110
A22: 2110 | B22: TRANSPORTE Y VIAJES DEL TH | C22: =SUM(C23:C26) -> 0.07080789077 | D22: =SUM(D23:D26) -> 0.03904165309 | E22: =SUM(E23:E26) -> 0.04607781872 | F22: 0.04101958216 | G22: 2110 | H22: N/A | M22: 2110 | N22: N/A | S22: 2110 | T22: TRANSPORTE Y VIAJES DEL TH | U22: =SUM(U23:U26) -> 0 | V22: =SUM(V23:V26) -> 0 | W22: 0 | X22: 0.0532 | Y22: 2110 | Z22: N/A
A23: 2111 | B23: Coordinador General | C23: 0.01082824695 | D23: 0.006233394546 | E23: 0.01198249666 | G23: 2111 | H23: N/A | M23: 2111 | N23: N/A | S23: 2111 | T23: Coordinador General | U23: 0 | V23: 0 | W23: 0 | Y23: 2111 | Z23: N/A | AA23: 0 | AB23: 0 | AC23: 0
A24: 2112 | B24: Pedagogo (a) | C24: 0.03972571582 | D24: 0.02858565904 | E24: 0.02198016258 | G24: 2112 | H24: N/A | M24: 2112 | N24: N/A | S24: 2112 | T24: Gestor(a) Metodológico(a) | U24: 0 | V24: 0 | W24: 0 | Y24: 2112 | Z24: N/A | AA24: 0 | AB24: 0 | AC24: 0
A25: 2113 | B25: Nutricionista Dietista | C25: 0.009305797364 | D25: 0.001071396077 | E25: 0 | G25: 2113 | H25: N/A | M25: 2113 | N25: N/A | S25: 2113 | T25: Gestor(a) Desarrollo | U25: 0 | V25: 0 | W25: 0 | Y25: 2113 | Z25: N/A | AA25: 0 | AB25: 0 | AC25: 0
A26: 2114 | B26: Dinamizador(a) Comunitario | C26: 0.01094813063 | D26: 0.003151203425 | E26: 0.01211515948 | G26: 2114 | H26: N/A | M26: 2114 | N26: N/A | S26: 2114 | T26: Profesional Social | U26: 0 | V26: 0 | W26: 0 | Y26: 2114 | Z26: N/A | AA26: 0 | AB26: 0 | AC26: 0
A28: 2200 | B28: APOYOS NUTRICIONALES | C28: 0 | D28: =SUM(D29:D32) -> 0.3223312414 | E28: 0.09290070701 | F28: 0.2948520907 | G28: 2200 | H28: COMPLEMENTACIÓN ALIMENTARIA Y NUTRICIONAL | I28: =+SUM(I29:I32) -> 0 | J28: =+J29+J30+J31 -> 0.1600963212 | K28: =+K29+K30+K31 -> 0.1303813208 | L28: 0.1338427136 | M28: 2200 | N28: COMPLEMENTACIÓN ALIMENTARIA Y NUTRICIONAL | O28: =+SUM(O29:O32) -> 0 | P28: =+P29+P30+P31 -> 0.1647987702 | Q28: =+Q29+Q30+Q31 -> 0.134406302 | R28: 0.1440531479 | S28: 2200 | T28: APOYOS NUTRICIONALES | U28: =SUM(U29:U34) -> 0 | V28: =SUM(V29:V34) -> 0 | W28: 0 | X28: 0.2891 | Y28: 2200 | Z28: COMPLEMENTACIÓN ALIMENTARIA Y NUTRICIONAL
A29: 2201 | B29: Refrigerio reforzado (Encuentros grupales) | C29: 0 | D29: 0.2385339045 | G29: 2201 | H29: Encuentros Grupales | I29: 0 | J29: 0.144558306 | K29: 0.1076385606 | M29: 2201 | N29: Encuentros Grupales | O29: 0 | P29: 0.1488641016 | Q29: 0.111076984 | S29: 2201 | T29: Botellón | U29: 0 | V29: 0 | W29: 0 | Y29: 2201 | Z29: Refrigerio reforzado (Encuentros grupales) | AA29: 0 | AB29: 0 | AC29: 0
A30: 2202 | B30: Refrigerio reforzado (Encuentros comunitarios) | C30: 0 | D30: 0.05963347613 | G30: 2202 | H30: Encuentros Familiares | I30: 0 | J30: 0.009708437131 | K30: 0.01033324883 | M30: 2202 | N30: Encuentros Familiares | O30: 0 | P30: 0.00997799125 | Q30: 0.01063341337 | S30: 2202 | T30: Refrigerios | U30: 0 | V30: 0 | W30: 0 | Y30: 2202 | Z30: Refrigerio reforzado (Encuentros Familiares) | AA30: 0 | AB30: 0 | AC30: 0
A31: 2203 | B31: Olla comunitaria | C31: 0 | D31: 0.02416386071 | E31: 0.0929 | G31: 2203 | H31: Encuentros Comunitarios | I31: 0 | J31: 0.005829578033 | K31: 0.01240951135 | M31: 2203 | N31: Encuentros Comunitarios | O31: 0 | P31: 0.005956677357 | Q31: 0.01269590463 | S31: 2203 | T31: Agua | U31: 0 | V31: 0 | W31: 0 | Y31: 2203 | Z31: Olla comunitaria | AA31: 0 | AB31: 0 | AC31: 0
S32: 2204 | T32: Paquete vasos | U32: 0 | V32: 0 | W32: 0 | Y32: 2204
A36: 2202 | B36: N/A | C36: 0 | D36: 0 | E36: 0 | F36: 0 | G36: 2202 | H36: TRANSPORTE NNA | I36: 0 | J36: 0.0923356989 | K36: 0.09827820276 | L36: 0.0809984055 | M36: 2202 | N36: TRANSPORTE NNA | O36: 0 | P36: 0.08882751554 | Q36: 0.09466230907 | R36: 0.08033906765 | S36: 2202 | T36: N/A | U36: 0 | V36: 0 | W36: 0 | X36: 0 | Y36: 2202 | Z36: N/A | AA36: 0 | AB36: 0 | AC36: 0
A38: 2203 | B38: MATERIAL DE CONSUMO | C38: 0 | D38: 0.1222520779 | E38: 0 | F38: 0.1101780125 | G38: 2203 | H38: MATERIALES E INSUMOS | I38: 0 | J38: 0.01638963143 | K38: 0.01744442875 | L38: 0.01437725634 | M38: 2203 | N38: MATERIALES E INSUMOS | O38: 0 | P38: 0.008830356723 | Q38: 0.009410394429 | R38: 0.007986518838 | S38: 2203 | T38: MATERIALES E INSUMOS | U38: 0 | V38: 0 | W38: 0 | X38: 0.0976 | Y38: 2203 | Z38: MATERIALES E INSUMOS | AA38: 0 | AB38: 0 | AC38: 0
A40: 2204 | B40: DOTACIÓN | C40: =+C41+C42 -> 0.02072095249 | D40: =+D41+D42 -> 0.004185447222 | E40: =+E41+E42 -> 0.01609142722 | F40: =+F41+F42 -> 0.00560150829 | G40: 2204 | H40: DOTACIÓN | I40: =+I41+I43+I44+I42 -> 0.02946359069 | J40: =+J41+J43+J44+J42 -> 0.02426678343 | K40: =+K41+K43+K44+K42 -> 0.02582853543 | L40: =+L41+L43+L44+L42 -> 0.02521742622 | M40: 2204 | N40: DOTACIÓN | O40: =+O41+O43+O44+O42 -> 0.02945309469 | P40: =+P41+P43+P44+P42 -> 0.02567965529 | Q40: =+Q41+Q43+Q44+Q42 -> 0.02736647056 | R40: =+R41+R43+R44+R42 -> 0.02627481274 | S40: 2204 | T40: DOTACIÓN | U40: =SUM(U41:U46) -> 0 | V40: =SUM(V41:V46) -> 0 | W40: =SUM(W41:W46) -> 0 | X40: =SUM(X41:X46) -> 0.0008 | Y40: 2204 | Z40: BOTIQUÍN | AA40: 0 | AB40: 0 | AC40: 0
A41: 220401 | B41: Botiquín | C41: 0.02072095249 | D41: 0 | E41: 0 | F41: 0.001075015841 | G41: 220401 | H41: Reposición dotación lúdico - pedagógica - deportiva | I41: 0.02416393177 | J41: 0.01837214694 | K41: 0.01955453498 | L41: 0.02157781048 | M41: 220401 | N41: Reposición dotación lúdico - pedagógica - deportiva | O41: 0.02356983553 | P41: 0.01888515334 | Q41: 0.02012565815 | R41: 0.02177965336 | S41: 220401 | T41: Dotación - Mat. Ludi. Deportivo | U41: 0 | V41: 0 | W41: 0 | Y41: 220401 | Z41: Botiquín | AA41: 0 | AB41: 0 | AC41: 0
A42: 220402 | B42: Kit de aseo personal | C42: 0 | D42: 0.004185447222 | E42: 0.01609142722 | F42: 0.004526492449 | G42: 220402 | H42: Reposición Menaje de alimentación | I42: 0.002796508103 | J42: 0.00212622168 | K42: 0.002263059508 | L42: 0 | M42: 220402 | N42: Reposición Menaje de alimentación | O42: 0.002727744271 | P42: 0.002185584556 | Q42: 0.00232914857 | R42: 0 | S42: 220402 | T42: Dotación - Botiquin | U42: 0 | V42: 0 | W42: 0 | X42: 0.0008 | Y42: 220402
A43: 220403 | G43: 220403 | H43: Dotación de aseo e higiene personal | I43: 0 | J43: 0.003768414811 | K43: 0.004010940939 | L43: 0.003305715932 | M43: 220403 | N43: Dotación de aseo e higiene personal | O43: 0 | P43: 0.004608917387 | Q43: 0.004911663843 | R43: 0.004168484729 | S43: 220403 | T43: Kit de aseo personal - Toallas de papel - paquetes | U43: 0 | V43: 0 | W43: 0 | Y43: 220403
A44: 220404 | G44: 220404 | H44: Botiquín | I44: 0.002503150815 | J44: 0 | K44: 0 | L44: 0.000333899807 | M44: 220404 | N44: Botiquín | O44: 0.003155514886 | P44: 0 | Q44: 0 | R44: 0.0003266746437 | S44: 220404 | T44: Kit de aseo personal - Papel higiénico - paquetes | U44: 0 | V44: 0 | W44: 0 | Y44: 220404
A45: 220405 | G45: 220405 | M45: 220405 | S45: 220405 | T45: Kit de aseo personal - Jabón para manos - litro | U45: 0 | V45: 0 | W45: 0 | Y45: 220405
A48: 2205 | B48: SERVICIO DE COMUNICACIÓN MÓBIL E NTERNET | C48: 0.006664165224 | D48: 0.003710320374 | E48: 0.007071832622 | F48: 0.004021165666 | G48: 2205 | H48: N/A | I48: 0 | J48: 0 | K48: 0 | L48: 0 | M48: 2205 | N48: N/A | O48: 0 | P48: 0 | Q48: 0 | R48: 0 | S48: 2205 | T48: INTERNET | U48: 0 | V48: 0 | W48: 0 | X48: 0.002 | Y48: 2205 | Z48: N/A | AA48: 0 | AB48: 0 | AC48: 0
A50: 2206 | B50: MATERIAL IDENTIFICACIÓN | C50: =SUM(C51:C55) -> 0.1153434256 | D50: 0 | E50: 0 | F50: 0.005984088315 | G50: 2206 | H50: MATERIAL IDENTIFICACIÓN | I50: =+SUM(I51:I55) -> 0.1282861498 | J50: =+SUM(J51:J55) -> 0 | K50: =+SUM(K51:K55) -> 0 | L50: 0.01711232116 | M50: 2206 | N50: MATERIAL IDENTIFICACIÓN | O50: =+SUM(O51:O55) -> 0.1251321974 | P50: =+SUM(P51:P55) -> 0 | Q50: =+SUM(Q51:Q55) -> 0 | R50: 0.01295430935 | S50: 2206 | T50: MATERIAL IDENTIFICACIÓN | U50: =SUM(U51:U55) -> 0 | V50: =SUM(V51:V55) -> 0 | W50: 0 | X50: 0.0025 | Y50: 2206 | Z50: MATERIAL IDENTIFICACIÓN | AA50: 0 | AB50: 0 | AC50: 0
A51: 220601 | B51: Chalecos | C51: 0.04947103176 | G51: 220601 | H51: Chaleco | I51: 0.05789145698 | J51: 0 | K51: 0 | M51: 220601 | N51: Chaleco | O51: 0.0564679863 | P51: 0 | Q51: 0 | S51: 220601 | T51: Chalecos | U51: 0 | V51: 0 | W51: 0 | Y51: 220601 | Z51: Camisetas (Participantes) | AA51: 0 | AB51: 0 | AC51: 0
A52: 220602 | B52: Gorras | C52: 0.01323306422 | G52: 220602 | H52: Gorra | I52: 0.01548510581 | J52: 0 | K52: 0 | M52: 220602 | N52: Gorra | O52: 0.01510468778 | P52: 0 | Q52: 0 | S52: 220602 | T52: Gorras | U52: 0 | V52: 0 | W52: 0 | Y52: 220602 | Z52: Pendón | AA52: 0 | AB52: 0 | AC52: 0
A53: 220603 | B53: Camisetas | C53: 0.0399505992 | G53: 220603 | H53: Camisetas | I53: 0.04675013399 | J53: 0 | K53: 0 | M53: 220603 | N53: Camisetas | O53: 0.04560102768 | P53: 0 | Q53: 0 | S53: 220603 | T53: Camiseta tipo 1 | U53: 0 | V53: 0 | W53: 0 | Y53: 220603
A54: 220604 | B54: Carné | C54: 0.006070556864 | G54: 220604 | H54: Carné | I54: 0.007104164622 | J54: 0 | K54: 0 | M54: 220604 | N54: Carné | O54: 0.006929148426 | P54: 0 | Q54: 0 | S54: 220604 | T54: Camiseta tipo 2 | U54: 0 | V54: 0 | W54: 0 | Y54: 220604
A55: 220605 | B55: Pendón | C55: 0.006618173551 | G55: 220605 | H55: Pendón | I55: 0.001055288407 | J55: 0 | K55: 0 | M55: 220605 | N55: Pendón | O55: 0.001029347203 | P55: 0 | Q55: 0 | S55: 220605 | T55: Carné | U55: 0 | V55: 0 | W55: 0 | Y55: 220605
A57: 2207 | B57: SEGURO | C57: 0 | D57: 0.003434087578 | E57: 0.006601369867 | F57: 0.003404416886 | G57: 2207 | H57: PÓLIZA | I57: 0 | J57: 0.0005654305045 | K57: 0.0006018202541 | L57: 0.0004960050104 | M57: 2207 | N57: PÓLIZA | O57: 0 | P57: 0.000581217077 | Q57: 0.0006193953557 | R57: 0.0005256753809 | S57: 2207 | T57: SEGURO | U57: 0 | V57: 0 | W57: 0 | X57: 0.0023 | Y57: 2207 | Z57: SEGURO | AA57: 0 | AB57: 0 | AC57: 0
A59: 2208 | B59: APOYO A INICIATIVAS | C59: 0 | D59: 0.0474293303 | E59: 0 | F59: 0.04274503497 | G59: 2208 | H59: APOYO A INICIATIVAS | I59: 0 | J59: 0.01952972425 | K59: 0 | L59: 0.01370543825 | M59: 2208 | N59: APOYO A INICIATIVAS | O59: 0 | P59: 0.01952972441 | Q59: 0 | R59: 0.0151400949 | S59: 2208 | T59: ENCUENTROS EXPERIENCIAS OPORTUNIDADES | U59: =SUM(U60:U64) -> 0 | V59: =SUM(V60:V64) -> 0 | W59: 0 | X59: 0.1051 | Y59: 2208 | Z59: ENCUENTROS EXPERIENCIAS OPORTUNIDADES | AA59: 0 | AB59: 0 | AC59: 0
A60: 220801 | B60: Apoyo Iniciativas | C60: 0 | D60: 0.0474293303 | E60: 0 | F60: 0.04274503497 | G60: 220801 | H60: Apoyo Iniciativas | I60: 0 | J60: 0.01952972425 | K60: 0 | L60: 0.01370543825 | M60: 220801 | N60: Apoyo Iniciativas | O60: 0 | P60: 0.01952972441 | Q60: 0 | R60: 0.0151400949 | S60: 220801 | T60: Salidas o expediciones a espacios significativos del territorio | U60: 0 | V60: 0 | W60: 0 | Y60: 220801
A61: 220802 | G61: 220802 | H61: - | M61: 220802 | N61: - | S61: 220802 | T61: Ferias de emprendimiento popular | U61: 0 | V61: 0 | W61: 0 | Y61: 220802
A62: 220803 | G62: 220803 | H62: - | M62: 220803 | N62: - | S62: 220803 | T62: Encuentros de intercambio | U62: 0 | V62: 0 | W62: 0 | Y62: 220803
A63: 220804 | G63: 220804 | H63: - | M63: 220804 | N63: - | S63: 220804 | T63: Circulación artística cultural | U63: 0 | V63: 0 | W63: 0 | Y63: 220804
A64: 220805 | G64: 220805 | H64: - | M64: 220805 | N64: - | S64: 220805 | T64: Caminatas ecológicas | U64: 0 | V64: 0 | W64: 0 | Y64: 220805
A66: 2300 | B66: GASTOS OPERATIVOS | C66: 0.04573907924 | D66: 0.04356102785 | E66: 0.04573907924 | F66: 0.04377614022 | G66: 2300 | H66: GASTOS OPERATIVOS | I66: 0.07579549055 | J66: 0.07193658595 | K66: 0.07327006952 | L66: 0.07267113692 | M66: 2300 | N66: GASTOS OPERATIVOS | O66: 0.07295753801 | P66: 0.07203541632 | Q66: 0.07337223801 | R66: 0.07229295748 | S66: 2300 | T66: GASTOS OPERATIVOS ADMINISTRACIÓN | U66: 0 | V66: 0 | W66: 0 | X66: 0.0457 | Y66: 2300 | Z66: GASTOS OPERATIVOS | AA66: 0 | AB66: 0 | AC66: 0
A67: 230001 | B67: Plan de fortalecimiento técnico al talento humano | G67: 230001 | H67: Aseo | M67: 230001 | N67: Aseo | S67: 230001 | T67: Cualificación del talento humano | W67: 0 | Y67: 230001
A68: 230002 | B68: Papelería asociada con el manejo administrativo del contrato | G68: 230002 | H68: Reparación y mantenimiento de dotación instituciona | M68: 230002 | N68: Reparación y mantenimiento de dotación instituciona | S68: 230002 | T68: Acciones de movilización del eje orientador | W68: 0 | Y68: 230002
A69: 230003 | G69: 230003 | H69: Servicios públicos | M69: 230003 | N69: Servicios públicos | S69: 230003 | T69: Gastos de mantenimiento | W69: 0 | Y69: 230003
A70: 230004 | G70: 230004 | H70: Papelería | M70: 230004 | N70: Papelería | S70: 230004 | T70: Papelería asociada con el manejo administrativo del contrato | W70: 0 | Y70: 230004
A71: 230005 | G71: 230005 | H71: Mantenimiento de instalaciones locativas | M71: 230005 | N71: Mantenimiento de instalaciones locativas | S71: 230005 | T71: Gastos bancarios (comisiones, transferencias y chequeras) | W71: 0 | Y71: 230005
A72: 230006 | G72: 230006 | H72: Acciones de movilización social | M72: 230006 | N72: Acciones de movilización social | S72: 230006 | T72: Derivación de los ciclos de menú de los refrigerios | W72: 0 | Y72: 230006
A73: 230007 | G73: 230007 | H73: Gastos bancarios (comisiones, transferencias y chequeras) | M73: 230007 | N73: Gastos bancarios (comisiones, transferencias y chequeras) | S73: 230007 | T73: Impuestos locales, pendones | W73: 0 | Y73: 230007
A74: 230008 | G74: 230008 | H74: Materiales o dispositivos de apoyo de baja complejidad para los participantes | M74: 230008 | N74: Materiales o dispositivos de apoyo de baja complejidad para los participantes | S74: 230008 | W74: 0 | Y74: 230008
A75: 230008 | G75: 230009 | H75: Otros (lo que se requiera para el adecuado desarrollo de la Modalidad) | M75: 230009 | N75: Otros (lo que se requiera para el adecuado desarrollo de la Modalidad)
A77: 2302 | B77: N/A | G77: 2302 | H77: UTILIZACIÓN DE INSTALACIONES EN AMBIENTES SANOS | I77: 0 | J77: 0.03117950115 | K77: 0.0331861414 | L77: 0.0273511756 | M77: 2302 | N77: UTILIZACIÓN DE INSTALACIONES EN AMBIENTES SANOS | O77: 0.03729306514 | P77: 0.02988078761 | Q77: 0.03184356036 | R77: 0.03088611326 | S77: 2302 | T77: N/A | W77: 0 | Y77: 2302 | Z77: N/A
A79: 2303 | B79: GRAVAMEN MOVIMIENTOS FINANCIEROS GMF | C79: 0.003984063745 | D79: 0.003984063745 | E79: 0.003984063745 | F79: 0.003984063745 | G79: 2303 | H79: GRAVAMEN MOVIMIENTOS FINANCIEROS GMF | I79: 0.003984063798 | J79: 0.003984063749 | K79: 0.003984063733 | L79: 0.003984063798 | M79: 2303 | N79: GRAVAMEN MOVIMIENTOS FINANCIEROS GMF | O79: 0.003984063798 | P79: 0.003984063749 | Q79: 0.003984063733 | R79: 0.003984063798 | S79: 2303 | T79: GRAVAMEN MOVIMIENTOS FINANCIEROS GMF | U79: 0 | V79: 0 | W79: 0 | X79: 0.004 | Y79: 2303 | Z79: GRAVAMEN MOVIMIENTOS FINANCIEROS GMF | AA79: 0.004 | AB79: 0.004 | AC79: 0.004

Sheet 1. PRESUPUESTO INICIAL
B2: PROCESO PROMOCIÓN Y PREVENCIÓN FORMATO SEGUIMIENTO FINANCIERO ATRAPASUEÑOS | E2: F13.MO29.PP | F2: 2025-02-10
E3: Versión 5 | F3: 1
E4: Clasificación de la Información PÚBLICA
A5: INFORMACIÓN GENERAL DEL CONTRATO/CONVENIO/INICIATIVA
A6: Forma de Atención | C6: Regional | E6: MUNICIPIO (S) DE ATENCIÓN
A7: Centro Zonal | C7: Zona
A10: Entidad contratista | B10: Escribe la entidad Contratante | C10: Nit Entidad Contratista | D10: Escribe la entidad Contratante | E10: N° del Contrato
A11: Fecha de Inicio | C11: DD/MM/AAAA | D11: Fecha de Final | F11: DD/MM/AAAA
A12: Total Cupos Contratados | C12: Tiempo de ejecución Meses | D12: =+IF(B6="APOYOS",3.06666667,"0") -> 0 | E12: Valor contrato | F12: Valor total aportes ICBF
A13: ETAPA CONTRACTUAL | B13: Costo Cupo Mes (CCM) | C13: VALOR MENSUAL | D13: Tiempo por Etapa
A14: Alistamiento 2024 | B14: =IFERROR(IF($B$6="COMUNITARIOS",F14,IF($B$6="BID",F14,IF($B$6="APOYOS",'CCM-APOYOS'!C5,IF($B$6="EXPERIENCIAS",F14,0)))),0) -> 0 | C14: =IF(B14=F14,F14,IFERROR(B14*B12,0)) -> 0 | D14: =+IF(B14=F14,F14,(0.5*2)/15) -> 0.06666666667 | E14: =+IFERROR(ROUND(C14*D14, ),F14) -> 0
A15: Alistamiento 2025 | B15: =IFERROR(IF($B$6="COMUNITARIOS",F14,IF($B$6="BID",F14,IF($B$6="APOYOS",'CCM-APOYOS'!C4,IF($B$6="EXPERIENCIAS",F14,0)))),0) -> 0 | C15: =IF(B15=F14,F14,IFERROR(B15*B12,0)) -> 0 | D15: =+IF(B15=F14,F14,(0.5*13)/15) -> 0.4333333333 | E15: =+IFERROR(ROUND(C15*D15, ),F14) -> 0
A16: Alistamiento | B16: =IFERROR(IF($B$6="COMUNITARIOS",VLOOKUP($D$6,TR_COMU,3,0),IF($B$6="BID",VLOOKUP($D$6,TR_BID,3,0),IF($B$6="APOYOS",F14,IF($B$6="EXPERIENCIAS",'CCM-EXPERIENCIAS'!D4,0)))),0) -> 0 | C16: =IF(B16=F14,F14,IFERROR(B16*B12,0)) -> 0 | D16: =+IF(B16="",D14+D15,0.5) -> 0.5 | E16: =+ROUND(IF(B16=F14,E14+E15,C16*D16),0) -> 0 | F16: =+E16+E17+E18 -> 0
A17: =IF($B$6="BID","Atención / Cierre","Atención") -> Atención | B17: =IFERROR(IF($B$6="COMUNITARIOS",VLOOKUP($D$6,TR_COMU,3,0),IF($B$6="BID",VLOOKUP($D$6,TR_BID,3,0),IF($B$6="APOYOS",'CCM-APOYOS'!D4,IF($B$6="EXPERIENCIAS",'CCM-EXPERIENCIAS'!D4,0)))),0) -> 0 | C17: =IFERROR(B17*B12,0) -> 0 | D17: =IF(D12="","",IF(B6="BID",Listas!AA4,D12-D16-D18)) -> -1 | E17: =ROUND(C17*D17,0) -> 0
A18: =IF($B$6="BID","","Cierre") -> Cierre | B18: =IFERROR(IF($B$6="COMUNITARIOS",VLOOKUP($D$6,TR_COMU,4,0),IF($B$6="BID","",IF($B$6="APOYOS",'CCM-APOYOS'!E4,IF($B$6="EXPERIENCIAS",'CCM-EXPERIENCIAS'!E4,0)))),0) -> 0 | C18: =IFERROR(B18*B12,0) -> 0 | D18: =IF(D12="","",IF($B$6="BID",0,0.5)) -> 0.5 | E18: =+ROUND(C18*D18,0) -> 0
A19: 1. PRESUPUESTO DE INGRESOS
A20: CÓDIGO | B20: OBJETO DEL INGRESO | E20: INGRESOS | F20: % PART
A21: 1100 | B21: Aportes ICBF | E21: =+F16 -> 0 | F21: =IFERROR(E21/$E$25,0) -> 0
A22: 1200 | B22: Donaciones (Cuando aplique) | E22: 0 | F22: =IFERROR(E22/$E$25,0) -> 0
A23: 1300 | B23: Aportes contrapartida (Cuando aplique) | E23: =IFERROR(E21*VLOOKUP($B$6,CONTRAPARTIDA,2,0),0) -> 0 | F23: =IFERROR(E23/$E$25,0) -> 0
A24: 1400 | B24: Otros Ingresos (Cuando aplique) | E24: 0 | F24: =IFERROR(E24/$E$25,0) -> 0
A25: TOTAL PRESUPUESTO DE INGRESOS | E25: =SUM(E21:E24) -> 0 | F25: =SUM(F21:F24) -> 0
A27: 2. PRESUPUESTO DE EGRESOS
A29: 2.1 PRESUPUESTO DE TALENTO HUMANO Y GASTOS DE VIAJE
A30: CÓDIGO | B30: COMPONENTE DEL COSTO O GASTO | D30: ETAPA COSTO O GASTO
A31: 2100 | B31: =IFERROR(IF($B$6="COMUNITARIOS",VLOOKUP(A31,TH_COMU,2,0),IF($B$6="BID",VLOOKUP(A31,TH_BID,2,0),IF($B$6="APOYOS",VLOOKUP(A31,TH_APOYOS,2,0),IF($B$6="EXPERIENCIAS",VLOOKUP(A31,TH_EXP,2,0))))),"") -> FALSE | D31: ALISTAMIENTO | E31: =IF($B$6="BID","ATENCIÓN / CIERRE","ATENCIÓN") -> ATENCIÓN | F31: =IF($B$6="BID","","CIERRE") -> CIERRE | G31: TOTAL
A32: 2101 | B32: =IFERROR(IF($B$6="COMUNITARIOS",VLOOKUP(A32,TH_COMU,2,0),IF($B$6="BID",VLOOKUP(A32,TH_BID,2,0),IF($B$6="APOYOS",VLOOKUP(A32,TH_APOYOS,2,0),IF($B$6="EXPERIENCIAS",VLOOKUP(A32,TH_EXP,2,0))))),"") -> FALSE | D32: =ROUND(IFERROR(IF($B$6="COMUNITARIOS",(VLOOKUP(A32,TH_COMU,3,0)* $E$16),IF($B$6="BID",(VLOOKUP(A32,TH_BID,3,0)* $E$16),IF($B$6="APOYOS",(VLOOKUP(A32,TH_APOYOS,3,0)* $E$15)+(VLOOKUP(A32,TH_APOYOS_2024,3,0)*$E$14),IF($B$6="EXPERIENCIAS",(VLOOKUP(A32,TH_EXP,2,0)* $E$16))))),""),0) -> 0 | E32: =ROUND(IFERROR(IF($B$6="COMUNITARIOS",(VLOOKUP(A32,TH_COMU,4,0)* $E$17),IF($B$6="BID",(VLOOKUP(A32,TH_BID,4,0)* $E$17),IF($B$6="APOYOS",(VLOOKUP(A32,TH_APOYOS,4,0)* $E$17),IF($B$6="EXPERIENCIAS",(VLOOKUP(A32,TH_EXP,4,0)* $E$17))))),""),0) -> 0 | F32: =ROUND(IFERROR(IF($B$6="COMUNITARIOS",(VLOOKUP(A32,TH_COMU,5,0)* $E$18),IF($B$6="BID","",IF($B$6="APOYOS",(VLOOKUP(A32,TH_APOYOS,5,0)* $E$18),IF($B$6="EXPERIENCIAS",(VLOOKUP(A32,TH_EXP,5,0)* $E$18))))),""),0) -> 0 | G32: =IFERROR(IF($B$6="BID",D32+E32,D32+E32+F32),0) -> 0
A33: 2102 | B33: =IFERROR(IF($B$6="COMUNITARIOS",VLOOKUP(A33,TH_COMU,2,0),IF($B$6="BID",VLOOKUP(A33,TH_BID,2,0),IF($B$6="APOYOS",VLOOKUP(A33,TH_APOYOS,2,0),IF($B$6="EXPERIENCIAS",VLOOKUP(A33,TH_EXP,2,0))))),"") -> FALSE | D33: =ROUND(IFERROR(IF($B$6="COMUNITARIOS",(VLOOKUP(A33,TH_COMU,3,0)*$E$16),IF($B$6="BID",(VLOOKUP(A33,TH_BID,3,0)*$E$16),IF($B$6="APOYOS",(VLOOKUP(A33,TH_APOYOS,3,0)*$E$15)+(VLOOKUP(A33,TH_APOYOS_2024,3,0)*$E$14),IF($B$6="EXPERIENCIAS",(VLOOKUP(A33,TH_EXP,2,0)*$E$16))))),""),0) -> 0 | E33: =ROUND(IFERROR(IF($B$6="COMUNITARIOS",(VLOOKUP(A33,TH_COMU,4,0)*$E$17),IF($B$6="BID",(VLOOKUP(A33,TH_BID,4,0)*$E$17),IF($B$6="APOYOS",(VLOOKUP(A33,TH_APOYOS,4,0)*$E$17),IF($B$6="EXPERIENCIAS",(VLOOKUP(A33,TH_EXP,4,0)*$E$17))))),""),0) -> 0 | F33: 0 | G33: =IFERROR(IF($B$6="BID",D33+E33,D33+E33+F33),0) -> 0
A34: 2103 | B34: FALSE | D34: =ROUND(IFERROR(IF($B$6="COMUNITARIOS",(VLOOKUP(A34,TH_COMU,3,0)* $E$16),IF($B$6="BID",(VLOOKUP(A34,TH_BID,3,0)* $E$16),IF($B$6="APOYOS",(VLOOKUP(A34,TH_APOYOS,3,0)* $E$15)+(VLOOKUP(A34,TH_APOYOS_2024,3,0)*$E$14),IF($B$6="EXPERIENCIAS",(VLOOKUP(A34,TH_EXP,2,0)* $E$16))))),""),0) -> 0 | E34: =ROUND(IFERROR(IF($B$6="COMUNITARIOS",(VLOOKUP(A34,TH_COMU,4,0)* $E$17),IF($B$6="BID",(VLOOKUP(A34,TH_BID,4,0)* $E$17),IF($B$6="APOYOS",(VLOOKUP(A34,TH_APOYOS,4,0)* $E$17),IF($B$6="EXPERIENCIAS",(VLOOKUP(A34,TH_EXP,4,0)* $E$17))))),""),0) -> 0 | F34: 0 | G34: 0
A35: 2104 | B35: FALSE | D35: 0 | E35: 0 | F35: 0 | G35: 0
A36: 2105 | B36: FALSE | D36: 0 | E36: 0 | F36: 0 | G36: 0
A37: 2106 | B37: FALSE | D37: 0 | E37: 0 | F37: 0 | G37: 0
A38: 2107 | B38: FALSE | D38: 0 | E38: 0 | F38: 0 | G38: =IFERROR(IF($B$6="BID",D38+E38,D38+E38+F38),0) -> 0
A39: 2108 | B39: FALSE | D39: 0 | E39: 0 | F39: 0 | G39: =IFERROR(IF($B$6="BID",D39+E39,D39+E39+F39),0) -> 0
A40: 2109 | B40: FALSE | D40: 0 | E40: 0 | F40: 0 | G40: 0
A41: 2110 | B41: FALSE | D41: 0 | E41: 0 | F41: 0 | G41: =IFERROR(IF($B$6="BID",D41+E41,D41+E41+F41),0) -> 0
A42: SUBTOTAL PRESUPUESTO DE COSTOS TALENTO HUMANO | D42: =SUM(D32:D41) -> 0 | E42: =SUM(E32:E41) -> 0 | F42: 0 | G42: 0
A43: TOPE DE PARTICIPACIÓN TALENTO HUMANO | D43: =IFERROR(IF($B$6="COMUNITARIOS",TR!$C$10,IF($B$6="BID",TR!$U$10,IF($B$6="APOYOS",TR!$I$10,IF($B$6="EXPERIENCIAS",TR!$AA$10)))),"") -> FALSE | E43: =IFERROR(IF($B$6="COMUNITARIOS",TR!$D$10,IF($B$6="BID",TR!$V$10,IF($B$6="APOYOS",TR!$J$10,IF($B$6="EXPERIENCIAS",TR!$AB$10)))),"") -> FALSE | F43: =IFERROR(IF($B$6="COMUNITARIOS",TR!$E$10,IF($B$6="BID","",IF($B$6="APOYOS",TR!$K$10,IF($B$6="EXPERIENCIAS",TR!$AC$10)))),"") -> FALSE | G43: =IFERROR(IF($B$6="COMUNITARIOS",TR!$F$10,IF($B$6="BID",TR!$X$10,IF($B$6="APOYOS",TR!$L$10,IF($B$6="EXPERIENCIAS",TR!$AD$10)))),"") -> FALSE
D44: =+$D$42/$E$16 ->  | E44: =+$E$42/$E$17 ->  | F44: =IFERROR($F$42/$E$18,0) -> 0
A45: 2110 | B45: =IFERROR(IF($B$6="COMUNITARIOS",VLOOKUP(A45,TRANS_COMU,2,0),IF($B$6="BID",VLOOKUP(A45,TRANS_BID,2,0),IF($B$6="APOYOS",VLOOKUP(A45,TRANS_APOYOS,2,0),IF($B$6="EXPERIENCIAS",VLOOKUP(A45,TRANS_EXP,2,0))))),"") -> FALSE | D45: ALISTAMIENTO | E45: =IF($B$6="BID","ATENCIÓN / CIERRE","ATENCIÓN") -> ATENCIÓN | F45: =IF($B$6="BID","","CIERRE") -> CIERRE | G45: TOTAL
A46: 2111 | B46: =IFERROR(IF($B$6="COMUNITARIOS",VLOOKUP(A46,TRANS_COMU,2,0),IF($B$6="BID",VLOOKUP(A46,TRANS_BID,2,0),IF($B$6="APOYOS",VLOOKUP(A46,TRANS_APOYOS,2,0),IF($B$6="EXPERIENCIAS",VLOOKUP(A46,TRANS_EXP,2,0))))),"") -> FALSE | D46: =ROUND(IFERROR(IF($B$6="COMUNITARIOS",(VLOOKUP(A46,TRANS_COMU,3,0)* $E$16),IF($B$6="BID",(VLOOKUP(A46,TRANS_BID,3,0)* $E$16), IF($B$6="APOYOS",(VLOOKUP(A46,TRANS_APOYOS,3,0)* $E$15)+(VLOOKUP(A46,TRANS_APOYOS_2024,3,0)*$E$14),IF($B$6="EXPERIENCIAS",(VLOOKUP(A46,TRANS_EXP,3,0)* $E$16))))),""),0) -> 0 | E46: =ROUND(IFERROR(IF($B$6="COMUNITARIOS",(VLOOKUP(A46,TRANS_COMU,4,0)* $E$17),IF($B$6="BID",(VLOOKUP(A46,TRANS_BID,4,0)* $E$17), IF($B$6="APOYOS",(VLOOKUP(A46,TRANS_APOYOS,4,0)* $E$17),IF($B$6="EXPERIENCIAS",(VLOOKUP(A46,TRANS_EXP,4,0)* $E$17))))),""),0) -> 0 | F46: =ROUND(IFERROR(IF($B$6="COMUNITARIOS",(VLOOKUP(A46,TRANS_COMU,5,0)* $E$18),IF($B$6="BID","", IF($B$6="APOYOS",(VLOOKUP(A46,TRANS_APOYOS,5,0)* $E$18),IF($B$6="EXPERIENCIAS",(VLOOKUP(A46,TRANS_EXP,5,0)* $E$18))))),""),0) -> 0 | G46: =IFERROR(IF($B$6="BID",D46+E46,D46+E46+F46),0) -> 0
A47: 2112 | B47: =IFERROR(IF($B$6="COMUNITARIOS",VLOOKUP(A47,TRANS_COMU,2,0),IF($B$6="BID",VLOOKUP(A47,TRANS_BID,2,0),IF($B$6="APOYOS",VLOOKUP(A47,TRANS_APOYOS,2,0),IF($B$6="EXPERIENCIAS",VLOOKUP(A47,TRANS_EXP,2,0))))),"") -> FALSE | D47: =ROUND(IFERROR(IF($B$6="COMUNITARIOS",(VLOOKUP(A47,TRANS_COMU,3,0)* $E$16),IF($B$6="BID",(VLOOKUP(A47,TRANS_BID,3,0)* $E$16), IF($B$6="APOYOS",(VLOOKUP(A47,TRANS_APOYOS,3,0)* $E$15)+(VLOOKUP(A47,TRANS_APOYOS_2024,3,0)*$E$14),IF($B$6="EXPERIENCIAS",(VLOOKUP(A47,TRANS_EXP,3,0)* $E$16))))),""),0) -> 0 | E47: =ROUND(IFERROR(IF($B$6="COMUNITARIOS",(VLOOKUP(A47,TRANS_COMU,4,0)* $E$17),IF($B$6="BID",(VLOOKUP(A47,TRANS_BID,4,0)* $E$17), IF($B$6="APOYOS",(VLOOKUP(A47,TRANS_APOYOS,4,0)* $E$17),IF($B$6="EXPERIENCIAS",(VLOOKUP(A47,TRANS_EXP,4,0)* $E$17))))),""),0) -> 0 | F47: =ROUND(IFERROR(IF($B$6="COMUNITARIOS",(VLOOKUP(A47,TRANS_COMU,5,0)* $E$18),IF($B$6="BID","", IF($B$6="APOYOS",(VLOOKUP(A47,TRANS_APOYOS,5,0)* $E$18),IF($B$6="EXPERIENCIAS",(VLOOKUP(A47,TRANS_EXP,5,0)* $E$18))))),""),0) -> 0 | G47: =IFERROR(IF($B$6="BID",D47+E47,D47+E47+F47),0) -> 0
A48: 2113 | B48: =IFERROR(IF($B$6="COMUNITARIOS",VLOOKUP(A48,TRANS_COMU,2,0),IF($B$6="BID",VLOOKUP(A48,TRANS_BID,2,0),IF($B$6="APOYOS",VLOOKUP(A48,TRANS_APOYOS,2,0),IF($B$6="EXPERIENCIAS",VLOOKUP(A48,TRANS_EXP,2,0))))),"") -> FALSE | D48: =ROUND(IFERROR(IF($B$6="COMUNITARIOS",(VLOOKUP(A48,TRANS_COMU,3,0)* $E$16),IF($B$6="BID",(VLOOKUP(A48,TRANS_BID,3,0)* $E$16), IF($B$6="APOYOS",(VLOOKUP(A48,TRANS_APOYOS,3,0)* $E$15)+(VLOOKUP(A48,TRANS_APOYOS_2024,3,0)*$E$14),IF($B$6="EXPERIENCIAS",(VLOOKUP(A48,TRANS_EXP,3,0)* $E$16))))),""),0) -> 0 | E48: =ROUND(IFERROR(IF($B$6="COMUNITARIOS",(VLOOKUP(A48,TRANS_COMU,4,0)* $E$17),IF($B$6="BID",(VLOOKUP(A48,TRANS_BID,4,0)* $E$17), IF($B$6="APOYOS",(VLOOKUP(A48,TRANS_APOYOS,4,0)* $E$17),IF($B$6="EXPERIENCIAS",(VLOOKUP(A48,TRANS_EXP,4,0)* $E$17))))),""),0) -> 0 | F48: =ROUND(IFERROR(IF($B$6="COMUNITARIOS",(VLOOKUP(A48,TRANS_COMU,5,0)* $E$18),IF($B$6="BID","", IF($B$6="APOYOS",(VLOOKUP(A48,TRANS_APOYOS,5,0)* $E$18),IF($B$6="EXPERIENCIAS",(VLOOKUP(A48,TRANS_EXP,5,0)* $E$18))))),""),0) -> 0 | G48: =IFERROR(IF($B$6="BID",D48+E48,D48+E48+F48),0) -> 0
A49: 2114 | B49: =IFERROR(IF($B$6="COMUNITARIOS",VLOOKUP(A49,TRANS_COMU,2,0),IF($B$6="BID",VLOOKUP(A49,TRANS_BID,2,0),IF($B$6="APOYOS",VLOOKUP(A49,TRANS_APOYOS,2,0),IF($B$6="EXPERIENCIAS",VLOOKUP(A49,TRANS_EXP,2,0))))),"") -> FALSE | D49: =ROUND(IFERROR(IF($B$6="COMUNITARIOS",(VLOOKUP(A49,TRANS_COMU,3,0)* $E$16),IF($B$6="BID",(VLOOKUP(A49,TRANS_BID,3,0)* $E$16), IF($B$6="APOYOS",(VLOOKUP(A49,TRANS_APOYOS,3,0)* $E$15)+(VLOOKUP(A49,TRANS_APOYOS_2024,3,0)*$E$14),IF($B$6="EXPERIENCIAS",(VLOOKUP(A49,TRANS_EXP,3,0)* $E$16))))),""),0) -> 0 | E49: =ROUND(IFERROR(IF($B$6="COMUNITARIOS",(VLOOKUP(A49,TRANS_COMU,4,0)* $E$17),IF($B$6="BID",(VLOOKUP(A49,TRANS_BID,4,0)* $E$17), IF($B$6="APOYOS",(VLOOKUP(A49,TRANS_APOYOS,4,0)* $E$17),IF($B$6="EXPERIENCIAS",(VLOOKUP(A49,TRANS_EXP,4,0)* $E$17))))),""),0) -> 0 | F49: =ROUND(IFERROR(IF($B$6="COMUNITARIOS",(VLOOKUP(A49,TRANS_COMU,5,0)* $E$18),IF($B$6="BID","", IF($B$6="APOYOS",(VLOOKUP(A49,TRANS_APOYOS,5,0)* $E$18),IF($B$6="EXPERIENCIAS",(VLOOKUP(A49,TRANS_EXP,5,0)* $E$18))))),""),0) -> 0 | G49: =IFERROR(IF($B$6="BID",D49+E49,D49+E49+F49),0) -> 0
A50: SUBTOTAL PRESUPUESTO DE TRANSPORTE Y GASTOS DE VIAJE | D50: =SUM(D46:D49) -> 0 | E50: =SUM(E46:E49) -> 0 | F50: 0 | G50: 0
A51: =+CONCATENATE("TOPE DE PARTICIPACIÓN DE ",A50) -> TOPE DE PARTICIPACIÓN DE SUBTOTAL PRESUPUESTO DE TRANSPORTE Y GASTOS DE VIAJE | D51: =IFERROR(IF($B$6="COMUNITARIOS",TR!$C$22,IF($B$6="BID",TR!$U$22,IF($B$6="APOYOS",TR!$I$22,IF($B$6="EXPERIENCIAS",TR!$AA$22)))),"") -> FALSE | E51: =IFERROR(IF($B$6="COMUNITARIOS",TR!$D$22,IF($B$6="BID",TR!$V$22,IF($B$6="APOYOS",TR!$J$22,IF($B$6="EXPERIENCIAS",TR!$AB$22)))),"") -> FALSE | F51: =IFERROR(IF($B$6="COMUNITARIOS",TR!$E$22,IF($B$6="BID","",IF($B$6="APOYOS",TR!$K$22,IF($B$6="EXPERIENCIAS",TR!$AC$22)))),"") -> FALSE | G51: =IFERROR(IF($B$6="COMUNITARIOS",TR!$F$22,IF($B$6="BID",TR!$X$22,IF($B$6="APOYOS",TR!$L$22,IF($B$6="EXPERIENCIAS",TR!$AD$22)))),"") -> FALSE
D52: =+D50/$E$16 ->  | E52: =+E50/$E$17 ->  | F52: =IFERROR(F50/$E$18,0) -> 0
A53: 2.1 SUBTOTAL PRESUPUESTO DE TALENTO HUMANO, TRASPORTE Y GASTOS DE VIAJE | D53: =+D42+D50 -> 0 | E53: 0 | F53: 0 | G53: 0
A55: 2.2 NIÑAS, NIÑOS Y ADOLESCENTES
A56: 2200 | B56: =IFERROR(IF($B$6="COMUNITARIOS",VLOOKUP(A56,NUT_COMU,2,0),IF($B$6="BID",VLOOKUP(A56,NUT_BID,2,0), IF($B$6="APOYOS",VLOOKUP(A56,NUT_APOYOS,2,0),IF($B$6="EXPERIENCIAS",VLOOKUP(A56,NUT_EXP,2,0))))),"") -> FALSE | D56: ALISTAMIENTO | E56: =IF($B$6="BID","ATENCIÓN / CIERRE","ATENCIÓN") -> ATENCIÓN | F56: =IF($B$6="BID","","CIERRE") -> CIERRE | G56: TOTAL
A57: 2201 | B57: =IFERROR(IF($B$6="COMUNITARIOS",VLOOKUP(A57,NUT_COMU,2,0),IF($B$6="BID",VLOOKUP(A57,NUT_BID,2,0), IF($B$6="APOYOS",VLOOKUP(A57,NUT_APOYOS,2,0),IF($B$6="EXPERIENCIAS",VLOOKUP(A57,NUT_EXP,2,0))))),"") -> FALSE | D57: =ROUND(IFERROR(IF($B$6="COMUNITARIOS",(VLOOKUP(A57,NUT_COMU,3,0)* $E$16),IF($B$6="BID",(VLOOKUP(A57,NUT_BID,3,0)* $E$16),IF($B$6="APOYOS",(VLOOKUP(A57,NUT_APOYOS,3,0)* $E$15)+(VLOOKUP(A57,NUT_APOYOS_2024,3,0)*$E$14),IF($B$6="EXPERIENCIAS",(VLOOKUP(A57,NUT_EXP,3,0)* $E$16))))),""),0) -> 0 | E57: =ROUND(IFERROR(IF($B$6="COMUNITARIOS",(VLOOKUP(A57,NUT_COMU,4,0)* $E$17),IF($B$6="BID",(VLOOKUP(A57,NUT_BID,4,0)* $E$17), IF($B$6="APOYOS",(VLOOKUP(A57,NUT_APOYOS,4,0)* $E$17),IF($B$6="EXPERIENCIAS",(VLOOKUP(A57,NUT_EXP,4,0)* $E$17))))),""),0) -> 0 | F57: =ROUND(IFERROR(IF($B$6="COMUNITARIOS",(VLOOKUP(A57,NUT_COMU,5,0)* $E$18),IF($B$6="BID","",IF($B$6="APOYOS",(VLOOKUP(A57,NUT_APOYOS,5,0)* $E$18),IF($B$6="EXPERIENCIAS",(VLOOKUP(A57,NUT_EXP,5,0)* $E$18))))),""),0) -> 0 | G57: =IFERROR(IF($B$6="BID",D57+E57,D57+E57+F57),0) -> 0
A58: 2202 | B58: =IFERROR(IF($B$6="COMUNITARIOS",VLOOKUP(A58,NUT_COMU,2,0),IF($B$6="BID",VLOOKUP(A58,NUT_BID,2,0), IF($B$6="APOYOS",VLOOKUP(A58,NUT_APOYOS,2,0),IF($B$6="EXPERIENCIAS",VLOOKUP(A58,NUT_EXP,2,0))))),"") -> FALSE | D58: =ROUND(IFERROR(IF($B$6="COMUNITARIOS",(VLOOKUP(A58,NUT_COMU,3,0)* $E$16),IF($B$6="BID",(VLOOKUP(A58,NUT_BID,3,0)* $E$16),IF($B$6="APOYOS",(VLOOKUP(A58,NUT_APOYOS,3,0)* $E$15)+(VLOOKUP(A58,NUT_APOYOS_2024,3,0)*$E$14),IF($B$6="EXPERIENCIAS",(VLOOKUP(A58,NUT_EXP,3,0)* $E$16))))),""),0) -> 0 | E58: =ROUND(IFERROR(IF($B$6="COMUNITARIOS",(VLOOKUP(A58,NUT_COMU,4,0)* $E$17),IF($B$6="BID",(VLOOKUP(A58,NUT_BID,4,0)* $E$17), IF($B$6="APOYOS",(VLOOKUP(A58,NUT_APOYOS,4,0)* $E$17),IF($B$6="EXPERIENCIAS",(VLOOKUP(A58,NUT_EXP,4,0)* $E$17))))),""),0) -> 0 | F58: =ROUND(IFERROR(IF($B$6="COMUNITARIOS",(VLOOKUP(A58,NUT_COMU,5,0)* $E$18),IF($B$6="BID","",IF($B$6="APOYOS",(VLOOKUP(A58,NUT_APOYOS,5,0)* $E$18),IF($B$6="EXPERIENCIAS",(VLOOKUP(A58,NUT_EXP,5,0)* $E$18))))),""),0) -> 0 | G58: =IFERROR(IF($B$6="BID",D58+E58,D58+E58+F58),0) -> 0
A59: 2203 | B59: =IFERROR(IF($B$6="COMUNITARIOS",VLOOKUP(A59,NUT_COMU,2,0),IF($B$6="BID",VLOOKUP(A59,NUT_BID,2,0), IF($B$6="APOYOS",VLOOKUP(A59,NUT_APOYOS,2,0),IF($B$6="EXPERIENCIAS",VLOOKUP(A59,NUT_EXP,2,0))))),"") -> FALSE | D59: =ROUND(IFERROR(IF($B$6="COMUNITARIOS",(VLOOKUP(A59,NUT_COMU,3,0)* $E$16),IF($B$6="BID",(VLOOKUP(A59,NUT_BID,3,0)* $E$16),IF($B$6="APOYOS",(VLOOKUP(A59,NUT_APOYOS,3,0)* $E$15)+(VLOOKUP(A59,NUT_APOYOS_2024,3,0)*$E$14),IF($B$6="EXPERIENCIAS",(VLOOKUP(A59,NUT_EXP,3,0)* $E$16))))),""),0) -> 0 | E59: =ROUND(IFERROR(IF($B$6="COMUNITARIOS",(VLOOKUP(A59,NUT_COMU,4,0)* $E$17),IF($B$6="BID",(VLOOKUP(A59,NUT_BID,4,0)* $E$17), IF($B$6="APOYOS",(VLOOKUP(A59,NUT_APOYOS,4,0)* $E$17),IF($B$6="EXPERIENCIAS",(VLOOKUP(A59,NUT_EXP,4,0)* $E$17))))),""),0) -> 0 | F59: =ROUND(IFERROR(IF($B$6="COMUNITARIOS",(VLOOKUP(A59,NUT_COMU,5,0)* $E$18),IF($B$6="BID","",IF($B$6="APOYOS",(VLOOKUP(A59,NUT_APOYOS,5,0)* $E$18),IF($B$6="EXPERIENCIAS",(VLOOKUP(A59,NUT_EXP,5,0)* $E$18))))),""),0) -> 0 | G59: 0
A60: 2204 | B60: =IFERROR(IF($B$6="COMUNITARIOS",VLOOKUP(A60,NUT_COMU,2,0),IF($B$6="BID",VLOOKUP(A60,NUT_BID,2,0), IF($B$6="APOYOS",VLOOKUP(A60,NUT_APOYOS,2,0),IF($B$6="EXPERIENCIAS",VLOOKUP(A60,NUT_EXP,2,0))))),"") -> FALSE | D60: =IFERROR(IF($B$6="COMUNITARIOS",(VLOOKUP(A60,NUT_COMU,3,0)* $E$16),IF($B$6="BID",(VLOOKUP(A60,NUT_BID,3,0)* $E$16),IF($B$6="APOYOS",(VLOOKUP(A60,NUT_APOYOS,3,0)* $E$15)+(VLOOKUP(A60,NUT_APOYOS_2024,3,0)*$E$14),IF($B$6="EXPERIENCIAS",(VLOOKUP(A60,NUT_EXP,3,0)* $E$16))))),"") -> FALSE | E60: =IFERROR(IF($B$6="COMUNITARIOS",(VLOOKUP(A60,NUT_COMU,4,0)* $E$17),IF($B$6="BID",(VLOOKUP(A60,NUT_BID,4,0)* $E$17), IF($B$6="APOYOS",(VLOOKUP(A60,NUT_APOYOS,4,0)* $E$17),IF($B$6="EXPERIENCIAS",(VLOOKUP(A60,NUT_EXP,4,0)* $E$17))))),"") -> FALSE | F60: =IFERROR(IF($B$6="COMUNITARIOS",(VLOOKUP(A60,NUT_COMU,5,0)* $E$18),IF($B$6="BID","",IF($B$6="APOYOS",(VLOOKUP(A60,NUT_APOYOS,5,0)* $E$18),IF($B$6="EXPERIENCIAS",(VLOOKUP(A60,NUT_EXP,5,0)* $E$18))))),"") -> FALSE | G60: =IFERROR(IF($B$6="BID",D60+E60,D60+E60+F60),0) -> 0
A61: SUBTOTAL PRESUPUESTO DE COMPLEMENTACIÓN ALIMENTARIA Y NUTRICIONAL / APOYOS NUTRICIONALES | D61: =SUM(D57:D60) -> 0 | E61: =SUM(E57:E60) -> 0 | F61: 0 | G61: 0
A62: =+CONCATENATE("TOPE DE PARTICIPACIÓN DE ",A61) -> TOPE DE PARTICIPACIÓN DE SUBTOTAL PRESUPUESTO DE COMPLEMENTACIÓN ALIMENTARIA Y NUTRICIONAL / APOYOS NUTRICIONALES | D62: =IFERROR(IF($B$6="COMUNITARIOS",TR!$C$28,IF($B$6="BID",TR!$U$28,IF($B$6="APOYOS",TR!$I$28,IF($B$6="EXPERIENCIAS",TR!$AA$28)))),"") -> FALSE | E62: =IFERROR(IF($B$6="COMUNITARIOS",TR!$D$28,IF($B$6="BID",TR!$V$28,IF($B$6="APOYOS",TR!$J$28,IF($B$6="EXPERIENCIAS",TR!$AB$28)))),"") -> FALSE | F62: =IFERROR(IF($B$6="COMUNITARIOS",TR!$E$28,IF($B$6="BID","",IF($B$6="APOYOS",TR!$K$28,IF($B$6="EXPERIENCIAS",TR!$AC$28)))),"") -> FALSE | G62: =IFERROR(IF($B$6="COMUNITARIOS",TR!$F$28,IF($B$6="BID",TR!$X$28,IF($B$6="APOYOS",TR!$L$28,IF($B$6="EXPERIENCIAS",TR!$AD$28)))),"") -> FALSE
D63: =+$D$61/$E$16 ->  | E63: =ROUND($E$61/$E$17,3) ->  | F63: =ROUND(IFERROR($F$61/$E$18,0),3) -> 0
A64: 2202 | B64: =IFERROR(IF($B$6="COMUNITARIOS",VLOOKUP(A64,TRANS_NNA_COMU,2,0),IF($B$6="BID",VLOOKUP(A64,TRANS_NNA_BID,2,0), IF($B$6="APOYOS",VLOOKUP(A64,TRANS_NNA_APOYOS,2,0),IF($B$6="EXPERIENCIAS",VLOOKUP(A64,TRANS_NNA_EXP,2,0))))),"") -> FALSE | D64: =ROUND(IFERROR(IF($B$6="COMUNITARIOS",(VLOOKUP(A64,TRANS_NNA_COMU,3,0)* $E$17),IF($B$6="BID",(VLOOKUP(A64,TRANS_NNA_BID,3,0)* $E$17), IF($B$6="APOYOS",(VLOOKUP(A64,TRANS_NNA_APOYOS,3,0)* $E$15)+(VLOOKUP(A64,APOYOS_TRANSPORTE_NNA_2024,3,0)*$E$14),IF($B$6="EXPERIENCIAS",(VLOOKUP(A64,TRANS_NNA_EXP,3,0)* $E$17))))),""),0) -> 0 | E64: =ROUND(IFERROR(IF($B$6="COMUNITARIOS",(VLOOKUP(A64,TRANS_NNA_COMU,4,0)* $E$17),IF($B$6="BID",(VLOOKUP(A64,TRANS_NNA_BID,4,0)* $E$17), IF($B$6="APOYOS",(VLOOKUP(A64,TRANS_NNA_APOYOS,4,0)* $E$17),IF($B$6="EXPERIENCIAS",(VLOOKUP(A64,TRANS_NNA_EXP,4,0)* $E$17))))),""),0) -> 0 | F64: =ROUND(IFERROR(IF($B$6="COMUNITARIOS",(VLOOKUP(A64,TRANS_NNA_COMU,5,0)* $E$18),IF($B$6="BID",0,IF($B$6="APOYOS",(VLOOKUP(A64,TRANS_NNA_APOYOS,5,0)* $E$18),IF($B$6="EXPERIENCIAS",(VLOOKUP(A64,TRANS_NNA_EXP,5,0)* $E$18))))),""),0) -> 0 | G64: =IFERROR(IF($B$6="BID",D64+E64,D64+E64+F64),0) -> 0
A65: =+CONCATENATE("TOPE DE PARTICIPACIÓN DE ",B64) -> TOPE DE PARTICIPACIÓN DE FALSO | D65: =IFERROR(IF($B$6="COMUNITARIOS",TR!$C$36,IF($B$6="BID",TR!$U$36,IF($B$6="APOYOS",TR!$I$36,IF($B$6="EXPERIENCIAS",TR!$AA$36)))),"") -> FALSE | E65: =IFERROR(IF($B$6="COMUNITARIOS",TR!$D$36,IF($B$6="BID",TR!$V$36,IF($B$6="APOYOS",TR!$J$36,IF($B$6="EXPERIENCIAS",TR!$AB$36)))),"") -> FALSE | F65: =IFERROR(IF($B$6="COMUNITARIOS",TR!$E$36,IF($B$6="BID","",IF($B$6="APOYOS",TR!$K$36,IF($B$6="EXPERIENCIAS",TR!$AC$36)))),"") -> FALSE | G65: =IFERROR(IF($B$6="COMUNITARIOS",TR!$F$36,IF($B$6="BID",TR!$X$36,IF($B$6="APOYOS",TR!$L$36,IF($B$6="EXPERIENCIAS",TR!$AD$36)))),"") -> FALSE
D66: =+$D$64/$E$16 ->  | E66: =+$E$64/$E$17 ->  | F66: =IFERROR($F$64/$E$18,0) -> 0
A67: 2203 | B67: =IFERROR(IF($B$6="COMUNITARIOS",VLOOKUP(A67,MATER_COMU,2,0),IF($B$6="BID",VLOOKUP(A67,MATER_BID,2,0),IF($B$6="APOYOS",VLOOKUP(A67,MATER_APOYOS,2,0),IF($B$6="EXPERIENCIAS",VLOOKUP(A67,MATER_EXP,2,0))))),"") -> FALSE | D67: =ROUND(IFERROR(IF($B$6="COMUNITARIOS",(VLOOKUP(A67,MATER_COMU,3,0)* $E$17),IF($B$6="BID",(VLOOKUP(A67,MATER_BID,3,0)* $E$17),IF($B$6="APOYOS",(VLOOKUP(A67,MATER_APOYOS,3,0)* $E$15)+(VLOOKUP(A67,MATER_APOYOS_2024,3,0)*$E$14),IF($B$6="EXPERIENCIAS",(VLOOKUP(A67,MATER_EXP,3,0)* $E$17))))),""),0) -> 0 | E67: =ROUND(IFERROR(IF($B$6="COMUNITARIOS",(VLOOKUP(A67,MATER_COMU,4,0)* $E$17),IF($B$6="BID",(VLOOKUP(A67,MATER_BID,4,0)* $E$17),IF($B$6="APOYOS",(VLOOKUP(A67,MATER_APOYOS,4,0)* $E$17),IF($B$6="EXPERIENCIAS",(VLOOKUP(A67,MATER_EXP,4,0)* $E$17))))),""),0) -> 0 | F67: =ROUND(IFERROR(IF($B$6="COMUNITARIOS",(VLOOKUP(A67,MATER_COMU,5,0)* $E$18),IF($B$6="BID",0,IF($B$6="APOYOS",(VLOOKUP(A67,MATER_APOYOS,5,0)* $E$18),IF($B$6="EXPERIENCIAS",(VLOOKUP(A67,MATER_EXP,5,0)* $E$18))))),""),0) -> 0 | G67: =IFERROR(IF($B$6="BID",D67+E67,D67+E67+F67),0) -> 0
A68: =+CONCATENATE("TOPE DE PARTICIPACIÓN DE ",B67) -> TOPE DE PARTICIPACIÓN DE FALSO | D68: =IFERROR(IF($B$6="COMUNITARIOS",TR!$C$38,IF($B$6="BID",TR!$U$38,IF($B$6="APOYOS",TR!$I$38,IF($B$6="EXPERIENCIAS",TR!$AA$38)))),"") -> FALSE | E68: =IFERROR(IF($B$6="COMUNITARIOS",TR!$D$38,IF($B$6="BID",TR!$V$38,IF($B$6="APOYOS",TR!$J$38,IF($B$6="EXPERIENCIAS",TR!$AB$38)))),"") -> FALSE | F68: =IFERROR(IF($B$6="COMUNITARIOS",TR!$E$38,IF($B$6="BID","",IF($B$6="APOYOS",TR!$K$38,IF($B$6="EXPERIENCIAS",TR!$AC$38)))),"") -> FALSE | G68: =IFERROR(IF($B$6="COMUNITARIOS",TR!$F$38,IF($B$6="BID",TR!$X$38,IF($B$6="APOYOS",TR!$L$38,IF($B$6="EXPERIENCIAS",TR!$AD$38)))),"") -> FALSE
D69: =+$D$67/$E$16 ->  | E69: =+ROUND($E$67/$E$17,3) ->  | F69: =IFERROR($F$67/$E$18,0) -> 0
A70: 2204 | B70: =IFERROR(IF($B$6="COMUNITARIOS",VLOOKUP(A70,DOT_COMU,2,0),IF($B$6="BID",VLOOKUP(A70,DOT_BID,2,0),IF($B$6="APOYOS",VLOOKUP(A70,DOT_APOYOS,2,0),IF($B$6="EXPERIENCIAS",VLOOKUP(A70,DOT_EXP,2,0))))),"") -> FALSE | D70: ALISTAMIENTO | E70: =IF($B$6="BID","ATENCIÓN / CIERRE","ATENCIÓN") -> ATENCIÓN | F70: =IF($B$6="BID","","CIERRE") -> CIERRE | G70: TOTAL
A71: 220401 | B71: FALSE | D71: =ROUND(IFERROR(IF($B$6="COMUNITARIOS",(VLOOKUP(A71,DOT_COMU,3,0)* $E$16),IF($B$6="BID",(VLOOKUP(A71,DOT_BID,3,0)* $E$16),IF($B$6="APOYOS",(VLOOKUP(A71,DOT_APOYOS,3,0)* $E$15)+(VLOOKUP(A71,DOT_APOYOS_2024,3,0)*$E$14),IF($B$6="EXPERIENCIAS",(VLOOKUP(A71,DOT_EXP,3,0)* $E$16))))),""),0) -> 0 | E71: =ROUND(IFERROR(IF($B$6="COMUNITARIOS",(VLOOKUP(A71,DOT_COMU,4,0)*$E$17),IF($B$6="BID",(VLOOKUP(A71,DOT_BID,4,0)* $E$17),IF($B$6="APOYOS",(VLOOKUP(A71,DOT_APOYOS,4,0)*$E$17),IF($B$6="EXPERIENCIAS",(VLOOKUP(A71,DOT_EXP,4,0)* $E$17))))),""),0) -> 0 | F71: =ROUND(IFERROR(IF($B$6="COMUNITARIOS",(VLOOKUP(A71,DOT_COMU,5,0)* $E$18),IF($B$6="BID","",IF($B$6="APOYOS",(VLOOKUP(A71,DOT_APOYOS,5,0)* $E$18),IF($B$6="EXPERIENCIAS",(VLOOKUP(A71,DOT_EXP,5,0)* $E$18))))),""),0) -> 0 | G71: =IFERROR(IF($B$6="BID",D71+E71,D71+E71+F71),0) -> 0
A72: 220402 | B72: FALSE | D72: =ROUND(IFERROR(IF($B$6="COMUNITARIOS",(VLOOKUP(A72,DOT_COMU,3,0)* $E$16),IF($B$6="BID",(VLOOKUP(A72,DOT_BID,3,0)* $E$16),IF($B$6="APOYOS",(VLOOKUP(A72,DOT_APOYOS,3,0)* $E$15)+(VLOOKUP(A72,DOT_APOYOS_2024,3,0)*$E$14),IF($B$6="EXPERIENCIAS",(VLOOKUP(A72,DOT_EXP,3,0)* $E$16))))),""),0) -> 0 | E72: =ROUND(IFERROR(IF($B$6="COMUNITARIOS",(VLOOKUP(A72,DOT_COMU,4,0)*$E$17),IF($B$6="BID",(VLOOKUP(A72,DOT_BID,4,0)* $E$17),IF($B$6="APOYOS",(VLOOKUP(A72,DOT_APOYOS,4,0)*$E$17),IF($B$6="EXPERIENCIAS",(VLOOKUP(A72,DOT_EXP,4,0)* $E$17))))),""),0) -> 0 | F72: =ROUND(IFERROR(IF($B$6="COMUNITARIOS",(VLOOKUP(A72,DOT_COMU,5,0)* $E$18),IF($B$6="BID","",IF($B$6="APOYOS",(VLOOKUP(A72,DOT_APOYOS,5,0)* $E$18),IF($B$6="EXPERIENCIAS",(VLOOKUP(A72,DOT_EXP,5,0)* $E$18))))),""),0) -> 0 | G72: =IFERROR(IF($B$6="BID",D72+E72,D72+E72+F72),0) -> 0
A73: 220403 | B73: FALSE | D73: =ROUND(IFERROR(IF($B$6="COMUNITARIOS",(VLOOKUP(A73,DOT_COMU,3,0)* $E$16),IF($B$6="BID",(VLOOKUP(A73,DOT_BID,3,0)* $E$16),IF($B$6="APOYOS",(VLOOKUP(A73,DOT_APOYOS,3,0)* $E$15)+(VLOOKUP(A73,DOT_APOYOS_2024,3,0)*$E$14),IF($B$6="EXPERIENCIAS",(VLOOKUP(A73,DOT_EXP,3,0)* $E$16))))),""),0) -> 0 | E73: =ROUND(IFERROR(IF($B$6="COMUNITARIOS",(VLOOKUP(A73,DOT_COMU,4,0)*$E$17),IF($B$6="BID",(VLOOKUP(A73,DOT_BID,4,0)* $E$17),IF($B$6="APOYOS",(VLOOKUP(A73,DOT_APOYOS,4,0)*$E$17),IF($B$6="EXPERIENCIAS",(VLOOKUP(A73,DOT_EXP,4,0)* $E$17))))),""),0) -> 0 | F73: =ROUND(IFERROR(IF($B$6="COMUNITARIOS",(VLOOKUP(A73,DOT_COMU,5,0)* $E$18),IF($B$6="BID","",IF($B$6="APOYOS",(VLOOKUP(A73,DOT_APOYOS,5,0)* $E$18),IF($B$6="EXPERIENCIAS",(VLOOKUP(A73,DOT_EXP,5,0)* $E$18))))),""),0) -> 0 | G73: =IFERROR(IF($B$6="BID",D73+E73,D73+E73+F73),0) -> 0
A74: 220404 | B74: FALSE | D74: =ROUND(IFERROR(IF($B$6="COMUNITARIOS",(VLOOKUP(A74,DOT_COMU,3,0)* $E$16),IF($B$6="BID",(VLOOKUP(A74,DOT_BID,3,0)* $E$16),IF($B$6="APOYOS",(VLOOKUP(A74,DOT_APOYOS,3,0)* $E$15)+(VLOOKUP(A74,DOT_APOYOS_2024,3,0)*$E$14),IF($B$6="EXPERIENCIAS",(VLOOKUP(A74,DOT_EXP,3,0)* $E$16))))),""),0) -> 0 | E74: =ROUND(IFERROR(IF($B$6="COMUNITARIOS",(VLOOKUP(A74,DOT_COMU,4,0)*$E$17),IF($B$6="BID",(VLOOKUP(A74,DOT_BID,4,0)* $E$17),IF($B$6="APOYOS",(VLOOKUP(A74,DOT_APOYOS,4,0)*$E$17),IF($B$6="EXPERIENCIAS",(VLOOKUP(A74,DOT_EXP,4,0)* $E$17))))),""),0) -> 0 | F74: =ROUND(IFERROR(IF($B$6="COMUNITARIOS",(VLOOKUP(A74,DOT_COMU,5,0)* $E$18),IF($B$6="BID","",IF($B$6="APOYOS",(VLOOKUP(A74,DOT_APOYOS,5,0)* $E$18),IF($B$6="EXPERIENCIAS",(VLOOKUP(A74,DOT_EXP,5,0)* $E$18))))),""),0) -> 0 | G74: =IFERROR(IF($B$6="BID",D74+E74,D74+E74+F74),0) -> 0
A75: 220405 | B75: FALSE | D75: =IFERROR(IF($B$6="COMUNITARIOS",(VLOOKUP(A75,DOT_COMU,3,0)* $E$16),IF($B$6="BID",(VLOOKUP(A75,DOT_BID,3,0)* $E$16),IF($B$6="APOYOS",(VLOOKUP(A75,DOT_APOYOS,3,0)* $E$15)+(VLOOKUP(A75,DOT_APOYOS_2024,3,0)*$E$14),IF($B$6="EXPERIENCIAS",(VLOOKUP(A75,DOT_EXP,3,0)* $E$16))))),"") -> FALSE | E75: =IFERROR(IF($B$6="COMUNITARIOS",(VLOOKUP(A75,DOT_COMU,4,0)* $E$17),IF($B$6="BID",(VLOOKUP(A75,DOT_BID,4,0)* $E$17),IF($B$6="APOYOS",(VLOOKUP(A75,DOT_APOYOS,4,0)* $E$17),IF($B$6="EXPERIENCIAS",(VLOOKUP(A75,DOT_EXP,4,0)* $E$17))))),"") -> FALSE | F75: =IFERROR(IF($B$6="COMUNITARIOS",(VLOOKUP(A75,DOT_COMU,5,0)* $E$18),IF($B$6="BID","",IF($B$6="APOYOS",(VLOOKUP(A75,DOT_APOYOS,5,0)* $E$18),IF($B$6="EXPERIENCIAS",(VLOOKUP(A75,DOT_EXP,5,0)* $E$18))))),"") -> FALSE | G75: =IFERROR(IF($B$6="BID",D75+E75,D75+E75+F75),0) -> 0
A76: SUBTOTAL PRESUPUESTO DE DOTACIÓN | D76: =SUM(D71:D75) -> 0 | E76: =SUM(E71:E75) -> 0 | F76: =SUM(F71:F75) -> 0 | G76: 0
A77: =+CONCATENATE("TOPE DE PARTICIPACIÓN DE ",A76) -> TOPE DE PARTICIPACIÓN DE SUBTOTAL PRESUPUESTO DE DOTACIÓN | D77: =IFERROR(IF($B$6="COMUNITARIOS",TR!$C$40,IF($B$6="BID",TR!$U$40,IF($B$6="APOYOS",TR!$I$40,IF($B$6="EXPERIENCIAS",TR!$AA$40)))),"") -> FALSE | E77: =IFERROR(IF($B$6="COMUNITARIOS",TR!$D$40,IF($B$6="BID",TR!$V$40,IF($B$6="APOYOS",TR!$J$40,IF($B$6="EXPERIENCIAS",TR!$AB$40)))),"") -> FALSE | F77: =IFERROR(IF($B$6="COMUNITARIOS",TR!$E$40,IF($B$6="BID","",IF($B$6="APOYOS",TR!$K$40,IF($B$6="EXPERIENCIAS",TR!$AC$40)))),"") -> FALSE | G77: =IFERROR(IF($B$6="COMUNITARIOS",TR!$F$40,IF($B$6="BID",TR!$X$40,IF($B$6="APOYOS",TR!$L$40,IF($B$6="EXPERIENCIAS",TR!$AD$40)))),"") -> FALSE
D78: =+$D$76/$E$16 ->  | E78: =ROUND($E$76/$E$17,3) ->  | F78: =ROUND(IFERROR($F$76/$E$18,0),4) -> 0
A79: 2205 | B79: =IFERROR(IF($B$6="COMUNITARIOS",VLOOKUP(A79,INT_COMU,2,0),IF($B$6="BID",VLOOKUP(A79,INT_BID,2,0),IF($B$6="APOYOS",VLOOKUP(A79,INT_APOYOS,2,0),IF($B$6="EXPERIENCIAS",VLOOKUP(A79,INT_EXP,2,0))))),"") -> FALSE | E79: =IFERROR(IF($B$6="COMUNITARIOS",(VLOOKUP(A79,INT_COMU,4,0)* $E$17),IF($B$6="BID",(VLOOKUP(A79,INT_BID,4,0)* $E$17),IF($B$6="APOYOS",(VLOOKUP(A79,INT_APOYOS,4,0)* $E$17),IF($B$6="EXPERIENCIAS",(VLOOKUP(A79,INT_EXP,4,0)* $E$17))))),"") -> FALSE | F79: =IFERROR(IF($B$6="COMUNITARIOS",(VLOOKUP(A79,INT_COMU,5,0)* $E$18),IF($B$6="BID",0,IF($B$6="APOYOS",(VLOOKUP(A79,INT_APOYOS,5,0)* $E$18),IF($B$6="EXPERIENCIAS",(VLOOKUP(A79,INT_EXP,5,0)* $E$18))))),"") -> FALSE | G79: =IFERROR(IF($B$6="BID",D79+E79,D79+E79+F79),0) -> 0
A80: =+CONCATENATE("TOPE DE PARTICIPACIÓN DE ",B79) -> TOPE DE PARTICIPACIÓN DE FALSO | D80: =IFERROR(IF($B$6="COMUNITARIOS",TR!$C$48,IF($B$6="BID",TR!$U$48,IF($B$6="APOYOS",TR!$I$48,IF($B$6="EXPERIENCIAS",TR!$AA$48)))),"") -> FALSE | E80: =IFERROR(IF($B$6="COMUNITARIOS",TR!$D$48,IF($B$6="BID",TR!$V$48,IF($B$6="APOYOS",TR!$J$48,IF($B$6="EXPERIENCIAS",TR!$AB$48)))),"") -> FALSE | F80: =IFERROR(IF($B$6="COMUNITARIOS",TR!$E$48,IF($B$6="BID","",IF($B$6="APOYOS",TR!$K$48,IF($B$6="EXPERIENCIAS",TR!$AC$48)))),"") -> FALSE | G80: =IFERROR(IF($B$6="COMUNITARIOS",TR!$F$48,IF($B$6="BID",TR!$X$48,IF($B$6="APOYOS",TR!$L$48,IF($B$6="EXPERIENCIAS",TR!$AD$48)))),"") -> FALSE
D81: =+$D$79/$E$16 ->  | E81: =+$E$79/$E$17 ->  | F81: =IFERROR($F$79/$E$18,0) -> 0
A82: 2206 | B82: =IFERROR(IF($B$6="COMUNITARIOS",VLOOKUP(A82,MAT_COMU,2,0),IF($B$6="BID",VLOOKUP(A82,MAT_BID,2,0), IF($B$6="APOYOS",VLOOKUP(A82,MAT_APOYOS,2,0),IF($B$6="EXPERIENCIAS",VLOOKUP(A82,MAT_EXP,2,0))))),"") -> FALSE | D82: ALISTAMIENTO | E82: =IF($B$6="BID","ATENCIÓN / CIERRE","ATENCIÓN") -> ATENCIÓN | F82: =IF($B$6="BID","","CIERRE") -> CIERRE | G82: TOTAL
A83: 220601 | B83: FALSE | D83: =ROUND(IFERROR(IF($B$6="COMUNITARIOS",(VLOOKUP(A83,MAT_COMU,3,0)* $E$16),IF($B$6="BID",(VLOOKUP(A83,MAT_BID,3,0)* $E$16),IF($B$6="APOYOS",(VLOOKUP(A83,MAT_APOYOS,3,0)* $E$15)+(VLOOKUP(A83,MAT_APOYOS_2024,3,0)*$E$14),IF($B$6="EXPERIENCIAS",(VLOOKUP(A83,MAT_EXP,3,0)* $E$16))))),"0"),0) -> 0 | E83: =IFERROR(IF($B$6="COMUNITARIOS",(VLOOKUP(A83,MAT_COMU,4,0)* $E$17),IF($B$6="BID",(VLOOKUP(A83,MAT_BID,4,0)* $E$17),IF($B$6="APOYOS",(VLOOKUP(A83,MAT_APOYOS,4,0)* $E$17),IF($B$6="EXPERIENCIAS",(VLOOKUP(A83,MAT_EXP,4,0)* $E$17))))),0) -> FALSE | F83: =IFERROR(IF($B$6="COMUNITARIOS",(VLOOKUP(A83,MAT_COMU,5,0)* $E$18),IF($B$6="BID","",IF($B$6="APOYOS",(VLOOKUP(A83,MAT_APOYOS,5,0)* $E$18),IF($B$6="EXPERIENCIAS",(VLOOKUP(A83,MAT_EXP,5,0)* $E$18))))),0) -> FALSE | G83: =IFERROR(IF($B$6="BID",D83+E83,D83+E83+F83),0) -> 0
A84: 220602 | B84: FALSE | D84: =ROUND(IFERROR(IF($B$6="COMUNITARIOS",(VLOOKUP(A84,MAT_COMU,3,0)* $E$16),IF($B$6="BID",(VLOOKUP(A84,MAT_BID,3,0)* $E$16),IF($B$6="APOYOS",(VLOOKUP(A84,MAT_APOYOS,3,0)* $E$15)+(VLOOKUP(A84,MAT_APOYOS_2024,3,0)*$E$14),IF($B$6="EXPERIENCIAS",(VLOOKUP(A84,MAT_EXP,3,0)* $E$16))))),"0"),0) -> 0 | E84: =IFERROR(IF($B$6="COMUNITARIOS",(VLOOKUP(A84,MAT_COMU,4,0)* $E$17),IF($B$6="BID",(VLOOKUP(A84,MAT_BID,4,0)* $E$17),IF($B$6="APOYOS",(VLOOKUP(A84,MAT_APOYOS,4,0)* $E$17),IF($B$6="EXPERIENCIAS",(VLOOKUP(A84,MAT_EXP,4,0)* $E$17))))),0) -> FALSE | F84: =IFERROR(IF($B$6="COMUNITARIOS",(VLOOKUP(A84,MAT_COMU,5,0)* $E$18),IF($B$6="BID","",IF($B$6="APOYOS",(VLOOKUP(A84,MAT_APOYOS,5,0)* $E$18),IF($B$6="EXPERIENCIAS",(VLOOKUP(A84,MAT_EXP,5,0)* $E$18))))),0) -> FALSE | G84: =IFERROR(IF($B$6="BID",D84+E84,D84+E84+F84),0) -> 0
A85: 220603 | B85: FALSE | D85: =ROUND(IFERROR(IF($B$6="COMUNITARIOS",(VLOOKUP(A85,MAT_COMU,3,0)* $E$16),IF($B$6="BID",(VLOOKUP(A85,MAT_BID,3,0)* $E$16),IF($B$6="APOYOS",(VLOOKUP(A85,MAT_APOYOS,3,0)* $E$15)+(VLOOKUP(A85,MAT_APOYOS_2024,3,0)*$E$14),IF($B$6="EXPERIENCIAS",(VLOOKUP(A85,MAT_EXP,3,0)* $E$16))))),"0"),0) -> 0 | E85: =IFERROR(IF($B$6="COMUNITARIOS",(VLOOKUP(A85,MAT_COMU,4,0)* $E$17),IF($B$6="BID",(VLOOKUP(A85,MAT_BID,4,0)* $E$17),IF($B$6="APOYOS",(VLOOKUP(A85,MAT_APOYOS,4,0)* $E$17),IF($B$6="EXPERIENCIAS",(VLOOKUP(A85,MAT_EXP,4,0)* $E$17))))),0) -> FALSE | F85: =IFERROR(IF($B$6="COMUNITARIOS",(VLOOKUP(A85,MAT_COMU,5,0)* $E$18),IF($B$6="BID","",IF($B$6="APOYOS",(VLOOKUP(A85,MAT_APOYOS,5,0)* $E$18),IF($B$6="EXPERIENCIAS",(VLOOKUP(A85,MAT_EXP,5,0)* $E$18))))),0) -> FALSE | G85: =IFERROR(IF($B$6="BID",D85+E85,D85+E85+F85),0) -> 0
A86: 220604 | B86: FALSE | D86: =ROUND(IFERROR(IF($B$6="COMUNITARIOS",(VLOOKUP(A86,MAT_COMU,3,0)* $E$16),IF($B$6="BID",(VLOOKUP(A86,MAT_BID,3,0)* $E$16),IF($B$6="APOYOS",(VLOOKUP(A86,MAT_APOYOS,3,0)* $E$15)+(VLOOKUP(A86,MAT_APOYOS_2024,3,0)*$E$14),IF($B$6="EXPERIENCIAS",(VLOOKUP(A86,MAT_EXP,3,0)* $E$16))))),"0"),0) -> 0 | E86: =IFERROR(IF($B$6="COMUNITARIOS",(VLOOKUP(A86,MAT_COMU,4,0)* $E$17),IF($B$6="BID",(VLOOKUP(A86,MAT_BID,4,0)* $E$17),IF($B$6="APOYOS",(VLOOKUP(A86,MAT_APOYOS,4,0)* $E$17),IF($B$6="EXPERIENCIAS",(VLOOKUP(A86,MAT_EXP,4,0)* $E$17))))),0) -> FALSE | F86: =IFERROR(IF($B$6="COMUNITARIOS",(VLOOKUP(A86,MAT_COMU,5,0)* $E$18),IF($B$6="BID","",IF($B$6="APOYOS",(VLOOKUP(A86,MAT_APOYOS,5,0)* $E$18),IF($B$6="EXPERIENCIAS",(VLOOKUP(A86,MAT_EXP,5,0)* $E$18))))),0) -> FALSE | G86: =IFERROR(IF($B$6="BID",D86+E86,D86+E86+F86),0) -> 0
A87: 220605 | B87: FALSE | D87: =ROUND(IFERROR(IF($B$6="COMUNITARIOS",(VLOOKUP(A87,MAT_COMU,3,0)* $E$16),IF($B$6="BID",(VLOOKUP(A87,MAT_BID,3,0)* $E$16),IF($B$6="APOYOS",(VLOOKUP(A87,MAT_APOYOS,3,0)* $E$15)+(VLOOKUP(A87,MAT_APOYOS_2024,3,0)*$E$14),IF($B$6="EXPERIENCIAS",(VLOOKUP(A87,MAT_EXP,3,0)* $E$16))))),"0"),0) -> 0 | E87: =IFERROR(IF($B$6="COMUNITARIOS",(VLOOKUP(A87,MAT_COMU,4,0)* $E$17),IF($B$6="BID",(VLOOKUP(A87,MAT_BID,4,0)* $E$17),IF($B$6="APOYOS",(VLOOKUP(A87,MAT_APOYOS,4,0)* $E$17),IF($B$6="EXPERIENCIAS",(VLOOKUP(A87,MAT_EXP,4,0)* $E$17))))),0) -> FALSE | F87: =IFERROR(IF($B$6="COMUNITARIOS",(VLOOKUP(A87,MAT_COMU,5,0)* $E$18),IF($B$6="BID","",IF($B$6="APOYOS",(VLOOKUP(A87,MAT_APOYOS,5,0)* $E$18),IF($B$6="EXPERIENCIAS",(VLOOKUP(A87,MAT_EXP,5,0)* $E$18))))),0) -> FALSE | G87: =IFERROR(IF($B$6="BID",D87+E87,D87+E87+F87),0) -> 0
A88: SUBTOTAL PRESUPUESTO DE MATERIAL IDENTIFICACIÓN | D88: =SUM(D83:D87) -> 0 | E88: =SUM(E83:E87) -> 0 | F88: 0 | G88: 0
A89: =+CONCATENATE("TOPE DE PARTICIPACIÓN DE ",A88) -> TOPE DE PARTICIPACIÓN DE SUBTOTAL PRESUPUESTO DE MATERIAL IDENTIFICACIÓN | D89: =IFERROR(IF($B$6="COMUNITARIOS",TR!$C$50,IF($B$6="BID",TR!$U$50,IF($B$6="APOYOS",TR!$I$50,IF($B$6="EXPERIENCIAS",TR!$AA$50)))),"") -> FALSE | E89: =IFERROR(IF($B$6="COMUNITARIOS",TR!$D$50,IF($B$6="BID",TR!$V$50,IF($B$6="APOYOS",TR!$J$50,IF($B$6="EXPERIENCIAS",TR!$AB$50)))),"") -> FALSE | F89: =IFERROR(IF($B$6="COMUNITARIOS",TR!$E$50,IF($B$6="BID","",IF($B$6="APOYOS",TR!$K$50,IF($B$6="EXPERIENCIAS",TR!$AC$50)))),"") -> FALSE | G89: =IFERROR(IF($B$6="COMUNITARIOS",TR!$F$50,IF($B$6="BID",TR!$X$50,IF($B$6="APOYOS",TR!$L$50,IF($B$6="EXPERIENCIAS",TR!$AD$50)))),"") -> FALSE
D90: =+$D$88/$E$16 ->  | E90: =+$E$88/$E$17 ->  | F90: =IFERROR($F$88/$E$18,0) -> 0
A91: 2207 | B91: =IFERROR(IF($B$6="COMUNITARIOS",VLOOKUP(A91,SEG_COMU,2,0),IF($B$6="BID",VLOOKUP(A91,SEG_BID,2,0),IF($B$6="APOYOS",VLOOKUP(A91,SEG_APOYOS,2,0),IF($B$6="EXPERIENCIAS",VLOOKUP(A91,SEG_EXP,2,0))))),"") -> FALSE | D91: =IFERROR(IF($B$6="COMUNITARIOS",(VLOOKUP(A91,SEG_COMU,3,0)* $E$16),IF($B$6="BID",(VLOOKUP(A91,SEG_BID,3,0)* $E$16),IF($B$6="APOYOS",(VLOOKUP(A91,SEG_APOYOS,3,0)* $E$15)+(VLOOKUP(A91,SEG_APOYOS_2024,3,0)*$E$14),IF($B$6="EXPERIENCIAS",(VLOOKUP(A91,SEG_EXP,3,0)* $E$16))))),"") -> FALSE | E91: =ROUND(IFERROR(IF($B$6="COMUNITARIOS",(VLOOKUP(A91,SEG_COMU,4,0)* $E$17),IF($B$6="BID",(VLOOKUP(A91,SEG_BID,4,0)* $E$17),IF($B$6="APOYOS",(VLOOKUP(A91,SEG_APOYOS,4,0)* $E$17),IF($B$6="EXPERIENCIAS",(VLOOKUP(A91,SEG_EXP,4,0)* $E$17))))),""),0) -> 0 | F91: =IFERROR(IF($B$6="COMUNITARIOS",(VLOOKUP(A91,SEG_COMU,5,0)* $E$18),IF($B$6="BID",0,IF($B$6="APOYOS",(VLOOKUP(A91,SEG_APOYOS,5,0)* $E$18),IF($B$6="EXPERIENCIAS",(VLOOKUP(A91,SEG_EXP,5,0)* $E$18))))),"") -> FALSE | G91: =IFERROR(IF($B$6="BID",D91+E91,D91+E91+F91),0) -> 0
A92: =+CONCATENATE("TOPE DE PARTICIPACIÓN DE ",B91) -> TOPE DE PARTICIPACIÓN DE FALSO | D92: =IFERROR(IF($B$6="COMUNITARIOS",TR!$C$57,IF($B$6="BID",TR!$U$57,IF($B$6="APOYOS",TR!$I$57,IF($B$6="EXPERIENCIAS",TR!$AA$57)))),"") -> FALSE | E92: =IFERROR(IF($B$6="COMUNITARIOS",TR!$D$57,IF($B$6="BID",TR!$V$57,IF($B$6="APOYOS",TR!$J$57,IF($B$6="EXPERIENCIAS",TR!$AB$57)))),"") -> FALSE | F92: =IFERROR(IF($B$6="COMUNITARIOS",TR!$E$57,IF($B$6="BID","",IF($B$6="APOYOS",TR!$K$57,IF($B$6="EXPERIENCIAS",TR!$AC$57)))),"") -> FALSE | G92: =IFERROR(IF($B$6="COMUNITARIOS",TR!$F$57,IF($B$6="BID",TR!$X$57,IF($B$6="APOYOS",TR!$L$57,IF($B$6="EXPERIENCIAS",TR!$AD$57)))),"") -> FALSE
D93: =+$D$91/$E$16 ->  | E93: =+$E$91/$E$17 ->  | F93: =IFERROR($F$91/$E$18,0) -> 0
A94: 2208 | B94: =IFERROR(IF($B$6="COMUNITARIOS",VLOOKUP(A94,ENC_COMU,2,0),IF($B$6="BID",VLOOKUP(A94,ENC_BID_2,2,0),IF($B$6="APOYOS",VLOOKUP(A94,ENC_APOYOS,2,0),IF($B$6="EXPERIENCIAS",VLOOKUP(A94,ENC_EXP,2,0))))),"") -> FALSE | D94: ALISTAMIENTO | E94: =IF($B$6="BID","ATENCIÓN / CIERRE","ATENCIÓN") -> ATENCIÓN | F94: =IF($B$6="BID","","CIERRE") -> CIERRE | G94: TOTAL
A95: 220801 | B95: =IFERROR(IF($B$6="COMUNITARIOS",VLOOKUP(A95,ENC_COMU,2,0),IF($B$6="BID",VLOOKUP(A95,ENC_BID_2,2,0),IF($B$6="APOYOS",VLOOKUP(A95,ENC_APOYOS,2,0),IF($B$6="EXPERIENCIAS",VLOOKUP(A95,ENC_EXP,2,0))))),"") -> FALSE | D95: =IFERROR(IF($B$6="COMUNITARIOS",(VLOOKUP(A95,ENC_COMU,3,0)* $E$16),IF($B$6="BID",(VLOOKUP(A95,ENC_BID_2,3,0)* $E$16), IF($B$6="APOYOS",(VLOOKUP(A95,ENC_APOYOS,3,0)* $E$15)+(VLOOKUP(A95,ENC_APOYOS_2024,3,0)*$E$14),IF($B$6="EXPERIENCIAS",(VLOOKUP(A95,ENC_EXP,3,0)* $E$16))))),"") -> FALSE | E95: =ROUND(IFERROR(IF($B$6="COMUNITARIOS",(VLOOKUP(A95,ENC_COMU,4,0)* $E$17),IF($B$6="BID",(VLOOKUP(A95,ENC_BID_2,4,0)* $E$17),IF($B$6="APOYOS",(VLOOKUP(A95,ENC_APOYOS,4,0)* $E$17),IF($B$6="EXPERIENCIAS",(VLOOKUP(A95,ENC_EXP,4,0)* $E$17))))),""),0) -> 0 | F95: =IFERROR(IF($B$6="COMUNITARIOS",(VLOOKUP(A95,ENC_COMU,5,0)* $E$18),IF($B$6="BID","",IF($B$6="APOYOS",(VLOOKUP(A95,ENC_APOYOS,5,0)* $E$18),IF($B$6="EXPERIENCIAS",(VLOOKUP(A95,ENC_EXP,5,0)* $E$18))))),"") -> FALSE | G95: =IFERROR(IF($B$6="BID",D95+E95,D95+E95+F95),0) -> 0
A96: 220802 | B96: FALSE | D96: =IFERROR(IF($B$6="COMUNITARIOS",(VLOOKUP(A96,ENC_COMU,3,0)* $E$16),IF($B$6="BID",(VLOOKUP(A96,ENC_BID_2,3,0)* $E$16), IF($B$6="APOYOS",(VLOOKUP(A96,ENC_APOYOS,3,0)* $E$16),IF($B$6="EXPERIENCIAS",(VLOOKUP(A96,ENC_EXP,3,0)* $E$16))))),"") -> FALSE | E96: =ROUND(IFERROR(IF($B$6="COMUNITARIOS",(VLOOKUP(A96,ENC_COMU,4,0)* $E$17),IF($B$6="BID",(VLOOKUP(A96,ENC_BID_2,4,0)* $E$17),IF($B$6="APOYOS",(VLOOKUP(A96,ENC_APOYOS,4,0)* $E$17),IF($B$6="EXPERIENCIAS",(VLOOKUP(A96,ENC_EXP,4,0)* $E$17))))),""),0) -> 0 | F96: =IFERROR(IF($B$6="COMUNITARIOS",(VLOOKUP(A96,ENC_COMU,5,0)* $E$18),IF($B$6="BID","",IF($B$6="APOYOS",(VLOOKUP(A96,ENC_APOYOS,5,0)* $E$18),IF($B$6="EXPERIENCIAS",(VLOOKUP(A96,ENC_EXP,5,0)* $E$18))))),"") -> FALSE | G96: =IFERROR(IF($B$6="BID",D96+E96,D96+E96+F96),0) -> 0
A97: 220803 | B97: FALSE | D97: =IFERROR(IF($B$6="COMUNITARIOS",(VLOOKUP(A97,ENC_COMU,3,0)* $E$16),IF($B$6="BID",(VLOOKUP(A97,ENC_BID_2,3,0)* $E$16), IF($B$6="APOYOS",(VLOOKUP(A97,ENC_APOYOS,3,0)* $E$16),IF($B$6="EXPERIENCIAS",(VLOOKUP(A97,ENC_EXP,3,0)* $E$16))))),"") -> FALSE | E97: =ROUND(IFERROR(IF($B$6="COMUNITARIOS",(VLOOKUP(A97,ENC_COMU,4,0)* $E$17),IF($B$6="BID",(VLOOKUP(A97,ENC_BID_2,4,0)* $E$17),IF($B$6="APOYOS",(VLOOKUP(A97,ENC_APOYOS,4,0)* $E$17),IF($B$6="EXPERIENCIAS",(VLOOKUP(A97,ENC_EXP,4,0)* $E$17))))),""),0) -> 0 | F97: =IFERROR(IF($B$6="COMUNITARIOS",(VLOOKUP(A97,ENC_COMU,5,0)* $E$18),IF($B$6="BID","",IF($B$6="APOYOS",(VLOOKUP(A97,ENC_APOYOS,5,0)* $E$18),IF($B$6="EXPERIENCIAS",(VLOOKUP(A97,ENC_EXP,5,0)* $E$18))))),"") -> FALSE | G97: =IFERROR(IF($B$6="BID",D97+E97,D97+E97+F97),0) -> 0
A98: 220804 | B98: FALSE | D98: =IFERROR(IF($B$6="COMUNITARIOS",(VLOOKUP(A98,ENC_COMU,3,0)* $E$16),IF($B$6="BID",(VLOOKUP(A98,ENC_BID_2,3,0)* $E$16), IF($B$6="APOYOS",(VLOOKUP(A98,ENC_APOYOS,3,0)* $E$16),IF($B$6="EXPERIENCIAS",(VLOOKUP(A98,ENC_EXP,3,0)* $E$16))))),"") -> FALSE | E98: =ROUND(IFERROR(IF($B$6="COMUNITARIOS",(VLOOKUP(A98,ENC_COMU,4,0)* $E$17),IF($B$6="BID",(VLOOKUP(A98,ENC_BID_2,4,0)* $E$17),IF($B$6="APOYOS",(VLOOKUP(A98,ENC_APOYOS,4,0)* $E$17),IF($B$6="EXPERIENCIAS",(VLOOKUP(A98,ENC_EXP,4,0)* $E$17))))),""),0) -> 0 | F98: =IFERROR(IF($B$6="COMUNITARIOS",(VLOOKUP(A98,ENC_COMU,5,0)* $E$18),IF($B$6="BID","",IF($B$6="APOYOS",(VLOOKUP(A98,ENC_APOYOS,5,0)* $E$18),IF($B$6="EXPERIENCIAS",(VLOOKUP(A98,ENC_EXP,5,0)* $E$18))))),"") -> FALSE | G98: =IFERROR(IF($B$6="BID",D98+E98,D98+E98+F98),0) -> 0
A99: 220805 | B99: FALSE | D99: =IFERROR(IF($B$6="COMUNITARIOS",(VLOOKUP(A99,ENC_COMU,3,0)* $E$16),IF($B$6="BID",(VLOOKUP(A99,ENC_BID_2,3,0)* $E$16), IF($B$6="APOYOS",(VLOOKUP(A99,ENC_APOYOS,3,0)* $E$16),IF($B$6="EXPERIENCIAS",(VLOOKUP(A99,ENC_EXP,3,0)* $E$16))))),"") -> FALSE | E99: =ROUND(IFERROR(IF($B$6="COMUNITARIOS",(VLOOKUP(A99,ENC_COMU,4,0)* $E$17),IF($B$6="BID",(VLOOKUP(A99,ENC_BID_2,4,0)* $E$17),IF($B$6="APOYOS",(VLOOKUP(A99,ENC_APOYOS,4,0)* $E$17),IF($B$6="EXPERIENCIAS",(VLOOKUP(A99,ENC_EXP,4,0)* $E$17))))),""),0) -> 0 | F99: =IFERROR(IF($B$6="COMUNITARIOS",(VLOOKUP(A99,ENC_COMU,5,0)* $E$18),IF($B$6="BID","",IF($B$6="APOYOS",(VLOOKUP(A99,ENC_APOYOS,5,0)* $E$18),IF($B$6="EXPERIENCIAS",(VLOOKUP(A99,ENC_EXP,5,0)* $E$18))))),"") -> FALSE | G99: =IFERROR(IF($B$6="BID",D99+E99,D99+E99+F99),0) -> 0
A100: SUBTOTAL PRESUPUESTO DE ENCUENTROS, EXPERIENCIAS OPORTUNIDADES (APOYO A INICIATIVAS) | D100: =SUM(D95:D99) -> 0 | E100: =SUM(E95:E99) -> 0 | F100: =IF($B$6="BID",0,SUM(F95:F99)) -> 0 | G100: =SUM(G95:G99) -> 0
A101: =+CONCATENATE("TOPE DE PARTICIPACIÓN DE ",A100) -> TOPE DE PARTICIPACIÓN DE SUBTOTAL PRESUPUESTO DE ENCUENTROS, EXPERIENCIAS OPORTUNIDADES (APOYO A INICIATIVAS) | D101: % | E101: =IFERROR(IF($B$6="COMUNITARIOS",TR!$D$59,IF($B$6="BID",TR!$V$59,IF($B$6="APOYOS",TR!$J$59,IF($B$6="EXPERIENCIAS",TR!$AB$59)))),"") -> FALSE | F101: =IFERROR(IF($B$6="COMUNITARIOS",TR!$E$59,IF($B$6="BID","",IF($B$6="APOYOS",TR!$K$59,IF($B$6="EXPERIENCIAS",TR!$AC$59)))),"") -> FALSE | G101: =IFERROR(IF($B$6="COMUNITARIOS",TR!$F$59,IF($B$6="BID",TR!$X$59,IF($B$6="APOYOS",TR!$L$59,IF($B$6="EXPERIENCIAS",TR!$AD$59)))),"") -> FALSE
D102: =+$D$100/$E$16 ->  | E102: =ROUND(+$E$100/$E$17,4) ->  | F102: =IFERROR($F$100/$E$18,0) -> 0
A103: 2.2 SUBTOTAL PRESUPUESTO DE GASTOS NIÑAS, NIÑOS Y ADOLESCENTES | D103: =+D61+D64+D67+D76+D79+D88+D91+D100 -> 0 | E103: =+E61+E64+E67+E76+E79+E88+E91+E100 -> 0 | F103: =+F61+F64+F67+F76+F79+F88+F91+F100 -> 0 | G103: 0
A105: 2.3. OTROS GASTOS ADMINISTRATIVOS, OPERATIVOS Y FINANCIEROS
A106: 2300 | B106: =IFERROR(IF($B$6="COMUNITARIOS",VLOOKUP(A106,GAST_OPE_COMU,2,0),IF($B$6="BID",VLOOKUP(A106,GAST_OPE_BID,2,0),IF($B$6="APOYOS",VLOOKUP(A106,GAST_OPE_APOYOS,2,0),IF($B$6="EXPERIENCIAS",VLOOKUP(A106,GAST_OPE_EXP,2,0))))),"") -> FALSE | D106: ALISTAMIENTO | E106: =IF($B$6="BID","ATENCIÓN / CIERRE","ATENCIÓN") -> ATENCIÓN | F106: =IF($B$6="BID","","CIERRE") -> CIERRE | G106: TOTAL
A107: 2300 | B107: =IFERROR(IF($B$6="COMUNITARIOS",VLOOKUP(A107,GAST_OPE_COMU,2,0),IF($B$6="BID",VLOOKUP(A107,GAST_OPE_BID,2,0),IF($B$6="APOYOS",VLOOKUP(A107,GAST_OPE_APOYOS,2,0),IF($B$6="EXPERIENCIAS",VLOOKUP(A107,GAST_OPE_EXP,2,0))))),"") -> FALSE | D107: =ROUND(IFERROR(IF($B$6="COMUNITARIOS",(VLOOKUP(A107,GAST_OPE_COMU,3,0)* $E$16),IF($B$6="BID",(VLOOKUP(A107,GAST_OPE_BID,3,0)* $E$16),IF($B$6="APOYOS",(VLOOKUP(A107,GAST_OPE_APOYOS,3,0)* $E$15)+(VLOOKUP(A107,GAST_OPE_APOYOS_2024,3,0)*$E$14),IF($B$6="EXPERIENCIAS",(VLOOKUP(A107,GAST_OPE_EXP,3,0)* $E$16))))),"")-SUM(D108:D116),0) -> 0 | E107: =ROUND(IFERROR(IF($B$6="COMUNITARIOS",(VLOOKUP(A107,GAST_OPE_COMU,4,0)* $E$17),IF($B$6="BID",(VLOOKUP(A107,GAST_OPE_BID,4,0)* $E$17),IF($B$6="APOYOS",(VLOOKUP(A107,GAST_OPE_APOYOS,4,0)* $E$17),IF($B$6="EXPERIENCIAS",(VLOOKUP(A107,GAST_OPE_EXP,4,0)* $E$17))))),"")-SUM(E108:E116),0) -> 0 | F107: =ROUND(IFERROR(IF($B$6="COMUNITARIOS",(VLOOKUP(A107,GAST_OPE_COMU,5,0)* $E$18),IF($B$6="BID","0",IF($B$6="APOYOS",(VLOOKUP(A107,GAST_OPE_APOYOS,5,0)* $E$18),IF($B$6="EXPERIENCIAS",(VLOOKUP(A107,GAST_OPE_EXP,5,0)* $E$18))))),"")-SUM(F108:F116),0) -> 0 | G107: =IFERROR(IF($B$6="BID",D107+E107,D107+E107+F107),0) -> 0
A108: 230001 | B108: FALSE | D108: =IFERROR(IF($B$6="COMUNITARIOS",(VLOOKUP(A108,GAST_OPE_COMU,4,0)* $E$17),IF($B$6="BID",(VLOOKUP(A108,GAST_OPE_BID,4,0)* $E$17),IF($B$6="APOYOS",(VLOOKUP(A108,GAST_OPE_APOYOS,3,0)* $E$15)+(VLOOKUP(A108,GAST_OPE_APOYOS_2024,3,0)*$E$14),IF($B$6="EXPERIENCIAS",(VLOOKUP(A108,GAST_OPE_EXP,4,0)* $E$17))))),"") -> FALSE | E108: =IFERROR(IF($B$6="COMUNITARIOS",(VLOOKUP(A108,GAST_OPE_COMU,4,0)* $E$17),IF($B$6="BID",(VLOOKUP(A108,GAST_OPE_BID,4,0)* $E$17),IF($B$6="APOYOS",(VLOOKUP(A108,GAST_OPE_APOYOS,4,0)* $E$17),IF($B$6="EXPERIENCIAS",(VLOOKUP(A108,GAST_OPE_EXP,4,0)* $E$17))))),"") -> FALSE | F108: =IFERROR(IF($B$6="COMUNITARIOS",(VLOOKUP(A108,GAST_OPE_COMU,5,0)* $E$18),IF($B$6="BID","",IF($B$6="APOYOS",(VLOOKUP(A108,GAST_OPE_APOYOS,5,0)* $E$18),IF($B$6="EXPERIENCIAS",(VLOOKUP(A108,GAST_OPE_EXP,5,0)* $E$18))))),"") -> FALSE | G108: 0
A109: 230002 | B109: FALSE | D109: FALSE | E109: FALSE | F109: FALSE | G109: 0
A110: 230003 | B110: FALSE | D110: FALSE | E110: FALSE | F110: FALSE | G110: 0
A111: 230004 | B111: FALSE | D111: FALSE | E111: FALSE | F111: FALSE | G111: 0
A112: 230005 | B112: FALSE | D112: FALSE | E112: FALSE | F112: FALSE | G112: 0
A113: 230006 | B113: FALSE | D113: FALSE | E113: FALSE | F113: FALSE | G113: 0
A114: 230007 | B114: FALSE | D114: FALSE | E114: FALSE | F114: =IFERROR(IF($B$6="COMUNITARIOS",(VLOOKUP(A114,GAST_OPE_COMU,5,0)* $E$18),IF($B$6="BID","",IF($B$6="APOYOS",(VLOOKUP(A114,GAST_OPE_APOYOS,5,0)* $E$18),IF($B$6="EXPERIENCIAS",(VLOOKUP(A114,GAST_OPE_EXP,5,0)* $E$18))))),"") -> FALSE | G114: 0
A115: 230008 | B115: FALSE | D115: FALSE | E115: FALSE | F115: FALSE | G115: 0
A116: 230009 | B116: =IFERROR(IF($B$6="COMUNITARIOS",VLOOKUP(A116,GAST_OPE_COMU,2,0),IF($B$6="BID",VLOOKUP(A116,GAST_OPE_BID,2,0),IF($B$6="APOYOS",VLOOKUP(A116,GAST_OPE_APOYOS,2,0),IF($B$6="EXPERIENCIAS",VLOOKUP(A116,GAST_OPE_EXP,2,0))))),"") -> FALSE | D116: FALSE | E116: FALSE | F116: FALSE | G116: 0
A117: SUBTOTAL OTROS GASTOS ADMINISTRATIVOS Y OPERATIVOS | D117: =SUM(D107:D116) -> 0 | E117: =SUM(E107:E116) -> 0 | F117: 0 | G117: 0
A118: =+CONCATENATE("TOPE DE PARTICIPACIÓN DE ",B117) -> TOPE DE PARTICIPACIÓN DE | D118: =IFERROR(IF($B$6="COMUNITARIOS",TR!$C$66,IF($B$6="BID",TR!$U$66,IF($B$6="APOYOS",TR!$I$66,IF($B$6="EXPERIENCIAS",TR!$AA$66)))),"") -> FALSE | E118: =IFERROR(IF($B$6="COMUNITARIOS",TR!$D$66,IF($B$6="BID",TR!$V$66,IF($B$6="APOYOS",TR!$J$66,IF($B$6="EXPERIENCIAS",TR!$AB$66)))),"") -> FALSE | F118: =IFERROR(IF($B$6="COMUNITARIOS",TR!$E$66,IF($B$6="BID","",IF($B$6="APOYOS",TR!$K$66,IF($B$6="EXPERIENCIAS",TR!$AC$66)))),"") -> FALSE | G118: =IFERROR(IF($B$6="COMUNITARIOS",TR!$F$66,IF($B$6="BID",TR!$X$66,IF($B$6="APOYOS",TR!$L$66,IF($B$6="EXPERIENCIAS",TR!$AD$66)))),"") -> FALSE
D119: =+$D$117/$E$16 ->  | E119: =+$E$117/$E$17 ->  | F119: =IFERROR($F$117/$E$18,0) -> 0
A120: 2302 | B120: =IFERROR(IF($B$6="COMUNITARIOS",VLOOKUP(A120,UT_COMU,2,0),IF($B$6="BID",VLOOKUP(A120,UT_BID,2,0),IF($B$6="APOYOS",VLOOKUP(A120,UT_APOYOS,2,0),IF($B$6="EXPERIENCIAS",VLOOKUP(A120,UT_EXP,2,0))))),"") -> FALSE | D120: =ROUND(IFERROR(IF($B$6="COMUNITARIOS",(VLOOKUP(A120,UT_COMU,3,0)* $E$17),IF($B$6="BID",(VLOOKUP(A120,UT_BID,3,0)* $E$17),IF($B$6="APOYOS",(VLOOKUP(A120,UT_APOYOS,3,0)* $E$15)+(VLOOKUP(A120,UT_APOYOS_2024,3,0)*$E$14),IF($B$6="EXPERIENCIAS",(VLOOKUP(A120,UT_EXP,3,0)* $E$17))))),""),0) -> 0 | E120: =ROUND(IFERROR(IF($B$6="COMUNITARIOS",(VLOOKUP(A120,UT_COMU,4,0)* $E$17),IF($B$6="BID",(VLOOKUP(A120,UT_BID,4,0)* $E$17),IF($B$6="APOYOS",(VLOOKUP(A120,UT_APOYOS,4,0)* $E$17),IF($B$6="EXPERIENCIAS",(VLOOKUP(A120,UT_EXP,4,0)* $E$17))))),""),0) -> 0 | F120: =ROUND(IFERROR(IF($B$6="COMUNITARIOS",(VLOOKUP(A120,UT_COMU,5,0)* $E$18),IF($B$6="BID","",IF($B$6="APOYOS",(VLOOKUP(A120,UT_APOYOS,5,0)* $E$18),IF($B$6="EXPERIENCIAS",(VLOOKUP(A120,UT_EXP,5,0)* $E$18))))),""),0) -> 0 | G120: =IFERROR(D120+E120+F120,0) -> 0
A121: =+CONCATENATE("TOPE DE PARTICIPACIÓN DE ",B120) -> TOPE DE PARTICIPACIÓN DE FALSO | D121: =IFERROR(IF($B$6="COMUNITARIOS",TR!$C$77,IF($B$6="BID",TR!$U$77,IF($B$6="APOYOS",TR!$I$77,IF($B$6="EXPERIENCIAS",TR!$AA$77)))),"") -> FALSE | E121: =IFERROR(IF($B$6="COMUNITARIOS",TR!$D$77,IF($B$6="BID",TR!$V$77,IF($B$6="APOYOS",TR!$J$77,IF($B$6="EXPERIENCIAS",TR!$AB$77)))),"") -> FALSE | F121: =IFERROR(IF($B$6="COMUNITARIOS",TR!$E$77,IF($B$6="BID","",IF($B$6="APOYOS",TR!$K$77,IF($B$6="EXPERIENCIAS",TR!$AC$77)))),"") -> FALSE | G121: =IFERROR(IF($B$6="COMUNITARIOS",TR!$F$77,IF($B$6="BID",TR!$X$77,IF($B$6="APOYOS",TR!$L$77,IF($B$6="EXPERIENCIAS",TR!$AD$77)))),"") -> FALSE
D122: =+$D$120/$E$16 ->  | E122: =+$E$120/$E$17 ->  | F122: =IFERROR($F$120/$E$18,0) -> 0
A123: 2303 | B123: =IFERROR(IF($B$6="COMUNITARIOS",VLOOKUP(A123,GRAV_COMU,2,0),IF($B$6="BID",VLOOKUP(A123,GRAV_BID,2,0),IF($B$6="APOYOS",VLOOKUP(A123,GRAV_APOYOS,2,0),IF($B$6="EXPERIENCIAS",VLOOKUP(A123,GRAV_EXP,2,0))))),"") -> FALSE | D123: =ROUND(IFERROR(IF($B$6="COMUNITARIOS",(VLOOKUP(A123,GRAV_COMU,4,0)* $E$17),IF($B$6="BID",(VLOOKUP(A123,GRAV_BID,4,0)* $E$17),IF($B$6="APOYOS",(VLOOKUP(A123,GRAV_APOYOS,3,0)* $E$15)+(VLOOKUP(A123,GRAV_APOYOS_2024,3,0)*$E$14),IF($B$6="EXPERIENCIAS",(VLOOKUP(A123,GRAV_EXP,4,0)* $E$17))))),""),0) -> 0 | E123: =ROUND(IFERROR(IF($B$6="COMUNITARIOS",(VLOOKUP(A123,GRAV_COMU,4,0)* $E$17),IF($B$6="BID",(VLOOKUP(A123,GRAV_BID,4,0)* $E$17),IF($B$6="APOYOS",(VLOOKUP(A123,GRAV_APOYOS,4,0)* $E$17),IF($B$6="EXPERIENCIAS",(VLOOKUP(A123,GRAV_EXP,4,0)* $E$17))))),""),0) -> 0 | F123: =ROUND(IFERROR(IF($B$6="COMUNITARIOS",(VLOOKUP(A123,GRAV_COMU,5,0)* $E$18),IF($B$6="BID","",IF($B$6="APOYOS",(VLOOKUP(A123,GRAV_APOYOS,5,0)* $E$18),IF($B$6="EXPERIENCIAS",(VLOOKUP(A123,GRAV_EXP,5,0)* $E$18))))),""),0) -> 0 | G123: =IFERROR(D123+E123+F123,0) -> 0
A124: =+CONCATENATE("TOPE DE PARTICIPACIÓN DE ",B123) -> TOPE DE PARTICIPACIÓN DE FALSO | D124: =IFERROR(IF($B$6="COMUNITARIOS",TR!$C$79,IF($B$6="BID",TR!$U$79,IF($B$6="APOYOS",TR!$I$79,IF($B$6="EXPERIENCIAS",TR!$AA$79)))),"") -> FALSE | E124: =IFERROR(IF($B$6="COMUNITARIOS",TR!$D$79,IF($B$6="BID",TR!$V$79,IF($B$6="APOYOS",TR!$J$79,IF($B$6="EXPERIENCIAS",TR!$AB$79)))),"") -> FALSE | F124: =IFERROR(IF($B$6="COMUNITARIOS",TR!$E$79,IF($B$6="BID","",IF($B$6="APOYOS",TR!$K$79,IF($B$6="EXPERIENCIAS",TR!$AC$79)))),"") -> FALSE | G124: =IFERROR(IF($B$6="COMUNITARIOS",TR!$F$79,IF($B$6="BID",TR!$X$79,IF($B$6="APOYOS",TR!$L$79,IF($B$6="EXPERIENCIAS",TR!$AD$79)))),"") -> FALSE
D125: =+$D$123/$E$16 ->  | E125: =ROUND(+$E$123/$E$17,5) ->  | F125: =IFERROR($F$123/$E$18,0) -> 0
A126: 2.2 SUBTOTAL PRESUPUESTO DE GASTOS NIÑAS, NIÑOS Y ADOLESCENTES | D126: =+D117+D120+D123 -> 0 | E126: =+E117+E120+E123 -> 0 | F126: =IF($B$6="BID",0,F117+F120+F123) -> 0 | G126: =IFERROR(D126+E126+F126,0) -> 0
A128: TOTAL PRESUPUESTO DE GASTOS | D128: =+D53+D103+D126 -> 0 | E128: =+E53+E103+E126 -> 0 | F128: =+F53+F103+F126 -> 0 | G128: =+G53+G103+G126 -> 0
D129: =+E16 -> 0 | E129: =+E17 -> 0 | F129: =+E18 -> 0 | G129: =+F16 -> 0
C130: Diferencia | D130: =+D128-D129 -> 0 | E130: =+E128-E129 -> 0 | F130: =+F128-F129 -> 0 | G130: =+G128-G129 -> 0
C131: Control de Valores | D131: =D128=D129 -> TRUE | E131: =E128=E129 -> TRUE | F131: TRUE | G131: TRUE
C133: % Total | D133: =IFERROR(+D44+D52+D63+D66+D69+D78+D81+D90+D93+D102+D119+D122+D125,"") ->  | E133: =IFERROR(+E44+E52+E63+E66+E69+E78+E81+E90+E93+E102+E119+E122+E125,"") ->  | F133: =IFERROR(+F44+F52+F63+F66+F69+F78+F81+F90+F93+F102+F119+F122+F125,"") -> 0
A140: Contador/Revisor Fiscal (cuando aplique) | D140: Representante Legal
A141: Nombre: | D141: Nombre:
A142: C.C.: | D142: C.C.:
A143: Tarjeta profesional:
A145: ¡Antes de imprimir este documento… piense en el medio ambiente! Cualquier copia impresa de este documento se considera como COPIA NO CONTROLADA LOS DATOS PROPORCIONADOS SERÁN TRATADOS DE ACUERDO A LA POLÍTICA DE TRATAMIENTO DE DATOS PERSONALES DEL ICBF Y A LA LEY 1581 DE 2012

Sheet 2. INFORMACION GENERAL
D2: PROCESO PROMOCIÓN Y PREVENCIÓN FORMATO SEGUIMIENTO FINANCIERO ATRAPASUEÑOS | AA2: F13.MO29.PP | AD2: 2025-02-10
AA3: =+'1. PRESUPUESTO INICIAL'!E3 -> Versión 5 | AD3: =+'1. PRESUPUESTO INICIAL'!F3+1 -> 2
AA4: Clasificación de la Información PÚBLICA
B5: 1. INFORMACIÓN GENERAL DEL CONTRATO
B6: Forma de Atención | D6: =+'1. PRESUPUESTO INICIAL'!B6 -> 0 | E6: ENTIDAD CONTRATISTA | G6: =+'1. PRESUPUESTO INICIAL'!B10 -> Escribe la entidad Contratante | J6: NIT ENTIDAD CONTRATISTA | K6: =+'1. PRESUPUESTO INICIAL'!D10 -> Escribe la entidad Contratante | O6: CONTRATO N° | P6: =+'1. PRESUPUESTO INICIAL'!F10 -> 0 | Q6: DE | R6: AÑO | S6: FECHA LEGALIZACIÓN DEL CONTRATO | U6: DD/MM/AA | W6: FECHA INICIO | X6: DD/MM/AA | Z6: FECHA FIN | AA6: DD/MM/AA | AC6: TIEMPO DE ATENCIÓN | AE6: =+'1. PRESUPUESTO INICIAL'!D12 -> 0
B7: REGIONAL | D7: =+'1. PRESUPUESTO INICIAL'!D6 -> 0 | G7: CENTRO ZONAL | H7: =+'1. PRESUPUESTO INICIAL'!B8 -> 0 | K7: MUNICIPIO (S) DE ATENCIÓN | M7: =+'1. PRESUPUESTO INICIAL'!F6 -> 0 | S7: PERIODO DEL INFORME | U7: DESDE - DD/MM/AA | W7: HASTA - DD/MM/AA | Y7: FECHA DE ELABORACIÓN INFORME FINANCIERO | AA7: DD/MM/AA | AC7: RESPONSABLE DE LA ELABORACIÓN
B8: 2. VALOR DEL CONTRATO
B9: # CUPOS CONTRATADOS | C9: =+'1. PRESUPUESTO INICIAL'!B12 -> 0 | D9: VALOR COSTO CUPO MES ALISTAMIENTO | F9: =+'1. PRESUPUESTO INICIAL'!B15 -> 0 | G9: VALOR APORTES | O9: VALOR ADICIONES | U9: VALOR DISMINUCIONES | AA9: VALOR TOTAL
B10: VALOR COSTO CUPO MES ATENCIÓN | C10: =+'1. PRESUPUESTO INICIAL'!B17 -> 0 | D10: VALOR COSTO CUPO MES CIERRE | F10: =+'1. PRESUPUESTO INICIAL'!B18 -> 0 | G10: APORTES ICBF | K10: OTROS APORTES | O10: APORTES ICBF | R10: OTRAS ADICIONES | U10: APORTES ICBF | X10: OTROS APORTES | AA10: APORTES ICBF | AD10: OTROS APORTES
B11: =UPPER('1. PRESUPUESTO INICIAL'!B21) -> APORTES ICBF | D11: =+'1. PRESUPUESTO INICIAL'!E21 -> 0 | G11: =D11 -> 0 | K11: =+D12 -> 0 | O11: 0 | R11: 0 | U11: 0 | X11: 0 | AA11: =+G11+O11+U11 -> 0 | AD11: =+K11+R11-X11 -> 0
B12: =+UPPER('1. PRESUPUESTO INICIAL'!B23) -> APORTES CONTRAPARTIDA (CUANDO APLIQUE) | D12: =+'1. PRESUPUESTO INICIAL'!E23 -> 0
B13: VALOR FINAL DEL CONTRATO | D13: =+D11+D12 -> 0 | AA13: =+AA11 -> 0 | AD13: =+AD11 -> 0
B14: 3. PRESUPUESTO DE INGRESOS APORTES ICBF
B15: Mes | D15: ALISTAMIENTO | G15: Mes 1 | J15: Mes 2 | M15: Mes 3 | O15: Mes 4 | Q15: Mes 5 | S15: Mes 6 | U15: Mes 7 | W15: Mes 8 | Y15: Mes 9 | AA15: Mes 10 | AC15: Mes 11 | AE15: Mes 12
B16: CUPOS CONTRATADOS | D16: =+C9 -> 0 | G16: =+D16 -> 0 | J16: =+G16 -> 0 | M16: =+J16 -> 0 | O16: =+M16 -> 0 | Q16: =+O16 -> 0 | S16: =+Q16 -> 0 | U16: =+S16 -> 0 | W16: =+U16 -> 0 | Y16: =+W16 -> 0 | AA16: =+Y16 -> 0 | AC16: =+AA16 -> 0 | AE16: =+AC16 -> 0
B17: CUPOS ATENDIDOS | D17: 0
B18: CUPOS NO ATENDIDOS | D18: =+D16-D17 -> 0 | G18: =+G16-G17 -> 0 | J18: =+J16-J17 -> 0 | M18: =+M16-M17 -> 0 | O18: =+O16-O17 -> 0 | Q18: =+Q16-Q17 -> 0 | S18: =+S16-S17 -> 0 | U18: =+U16-U17 -> 0 | W18: =+W16-W17 -> 0 | Y18: =+Y16-Y17 -> 0 | AA18: =+AA16-AA17 -> 0 | AC18: =+AC16-AC17 -> 0 | AE18: =+AE16-AE17 -> 0 | AG18: TOTAL
B19: VALOR MENSUAL PROGRAMADO | D19: =+D83 -> 0 | G19: =+G83 -> 0 | J19: =+J83 -> 0 | M19: =+M83 -> 0 | O19: =+P83 -> 0 | Q19: =+S83 -> 0 | S19: =+V83 -> 0 | U19: =+Y83 -> 0 | W19: =+AB83 -> 0 | Y19: =+AE83 -> 0 | AA19: =+AH83 -> 0 | AC19: =+AK83 -> 0 | AE19: =+AN83 -> 0 | AG19: =SUM(D19:AF19) -> 0
B20: VALOR INEJECUCIONES MENSUALES (Inasistencias) | D20: 0 | AG20: =+D20+G20+J20+M20+O20+Q20+S20+U20+W20+Y20+AA20+AC20+AE20 -> 0
B22: VALOR REINVERSIONES MENSUALES | G22: ALISTAMIENTO (Valor Aprobado) | H22: Acta y Fecha (Aprobación) | J22: =+G26 -> ATENCIÓN Mes 1 | K22: Acta y Fecha (Aprobación) | M22: =+J26 -> ATENCIÓN Mes 2 | N22: Acta y Fecha (Aprobación) | O22: =+M26 -> ATENCIÓN Mes 3 | P22: Acta y Fecha (Aprobación) | Q22: =+P26 -> ATENCIÓN Mes 4 | R22: Acta y Fecha (Aprobación) | S22: =+S26 -> ATENCIÓN Mes 5 | T22: Acta y Fecha (Aprobación) | U22: =+V26 -> ATENCIÓN Mes 6 | V22: Acta y Fecha (Aprobación) | W22: =+Y26 -> ATENCIÓN Mes 7 | X22: Acta y Fecha (Aprobación) | Y22: =+Y26 -> ATENCIÓN Mes 7 | Z22: Acta y Fecha (Aprobación) | AA22: =+AB26 -> ATENCIÓN Mes 8 | AB22: Acta y Fecha (Aprobación) | AC22: =+AE26 -> ATENCIÓN Mes 9 | AD22: Acta y Fecha (Aprobación) | AE22: =+AH26 -> ATENCIÓN Mes 10 | AF22: Acta y Fecha (Aprobación) | AG22: =+AK26 -> ATENCIÓN Mes 11 | AH22: Acta y Fecha (Aprobación) | AI22: TOTAL REINVERSIONES APROBADAS Y EJECUTADAS
G23: 14175517 | H23: 2024-01-13 | J23: 0 | M23: 0 | O23: 0 | Q23: 0 | S23: 0 | U23: 0 | W23: 0 | Y23: 0 | AA23: 0 | AC23: 0 | AE23: 0 | AG23: 0 | AI23: =+G23+J23+M23+O23+Q23+S23+U23+W23+Y23+AA23+AC23+AE23+AG23 -> 14175517
B24: 4. PRESUPUESTO DE GASTOS APORTES ICBF
B25: 4. PRESUPUESTO DE GASTOS APORTES ICBF
B26: ETAPA | D26: ALISTAMIENTO | G26: ATENCIÓN Mes 1 | J26: ATENCIÓN Mes 2 | M26: ATENCIÓN Mes 3 | P26: ATENCIÓN Mes 4 | S26: ATENCIÓN Mes 5 | V26: ATENCIÓN Mes 6 | Y26: ATENCIÓN Mes 7 | AB26: ATENCIÓN Mes 8 | AE26: ATENCIÓN Mes 9 | AH26: ATENCIÓN Mes 10 | AK26: ATENCIÓN Mes 11 | AN26: ATENCIÓN Mes 12 | AQ26: CIERRE | AT26: TOTAL
D27: PROGRAMADO | E27: EJECUTADO | F27: NO EJECUTADO | G27: PROGRAMADO | H27: EJECUTADO | I27: NO EJECUTADO | J27: PROGRAMADO | K27: EJECUTADO | L27: NO EJECUTADO | M27: PROGRAMADO | N27: EJECUTADO | O27: NO EJECUTADO | P27: PROGRAMADO | Q27: EJECUTADO | R27: NO EJECUTADO | S27: PROGRAMADO | T27: EJECUTADO | U27: NO EJECUTADO | V27: PROGRAMADO | W27: EJECUTADO | X27: NO EJECUTADO | Y27: PROGRAMADO | Z27: EJECUTADO | AA27: NO EJECUTADO | AB27: PROGRAMADO | AC27: EJECUTADO | AD27: NO EJECUTADO | AE27: PROGRAMADO | AF27: EJECUTADO | AG27: NO EJECUTADO | AH27: PROGRAMADO | AI27: EJECUTADO | AJ27: NO EJECUTADO | AK27: PROGRAMADO | AL27: EJECUTADO | AM27: NO EJECUTADO | AN27: PROGRAMADO | AO27: EJECUTADO | AP27: NO EJECUTADO | AQ27: PROGRAMADO | AR27: EJECUTADO | AS27: NO EJECUTADO | AT27: PROGRAMADO | AU27: EJECUTADO | AV27: NO EJECUTADO
A28: 2100 | B28: =IF('1. PRESUPUESTO INICIAL'!B31="","",'1. PRESUPUESTO INICIAL'!B31) -> FALSE | D28: =+SUM(D29:D38) -> 0 | E28: =+SUM(E29:E38) -> 0 | F28: =+SUM(F29:F38) -> 0 | G28: 0 | H28: 0 | I28: =+SUM(I29:I38) -> 0 | J28: =+SUM(J29:J38) -> 0 | K28: 0 | L28: =+SUM(L29:L38) -> 0 | M28: =+SUM(M29:M38) -> 0 | N28: 0 | O28: 0 | P28: =+SUM(P29:P38) -> 0 | Q28: 0 | R28: 0 | S28: =+SUM(S29:S38) -> 0 | T28: 0 | U28: 0 | V28: =+SUM(V29:V38) -> 0 | W28: 0 | X28: 0 | Y28: =+SUM(Y29:Y38) -> 0 | Z28: 0 | AA28: 0 | AB28: =+SUM(AB29:AB38) -> 0 | AC28: 0 | AD28: 0 | AE28: =+SUM(AE29:AE38) -> 0 | AF28: 0 | AG28: 0 | AH28: =+SUM(AH29:AH38) -> 0 | AI28: 0 | AJ28: 0 | AK28: =+SUM(AK29:AK38) -> 0 | AL28: 0 | AM28: 0 | AN28: =+SUM(AN29:AN38) -> 0 | AO28: 0 | AP28: 0 | AQ28: =+SUM(AQ29:AQ38) -> 0 | AR28: 0 | AS28: =+SUM(AS29:AS38) -> 0 | AT28: 0 | AU28: 0 | AV28: 0
A29: 2101 | B29: =IF('1. PRESUPUESTO INICIAL'!B32="","",'1. PRESUPUESTO INICIAL'!B32) -> FALSE | D29: =IF('1. PRESUPUESTO INICIAL'!D32="",0,'1. PRESUPUESTO INICIAL'!D32) -> 0 | E29: =IF(OR(B29="",D29=0),0,SUMIFS('4. DETALLADA-RECURSOS ICBF'!$M$10:$M$1300,'4. DETALLADA-RECURSOS ICBF'!$B$10:$B$1300,'2. INFORMACION GENERAL'!$D$26,'4. DETALLADA-RECURSOS ICBF'!$K$10:$K$1300,'2. INFORMACION GENERAL'!$B$28,'4. DETALLADA-RECURSOS ICBF'!$L$10:$L$1300,'2. INFORMACION GENERAL'!B29)) -> 0 | F29: =IFERROR(D29-E29,0) -> 0 | G29: 0 | H29: =IF(OR(B29="",G29=0),0,SUMIFS('4. DETALLADA-RECURSOS ICBF'!$M$10:$M$1300,'4. DETALLADA-RECURSOS ICBF'!$B$10:$B$1300,'2. INFORMACION GENERAL'!$G$26,'4. DETALLADA-RECURSOS ICBF'!$K$10:$K$1300,'2. INFORMACION GENERAL'!$B$28,'4. DETALLADA-RECURSOS ICBF'!$L$10:$L$1300,'2. INFORMACION GENERAL'!B29)) -> 0 | I29: =IFERROR(G29-H29,0) -> 0 | J29: 0 | K29: =IF(OR(B29="",J29=0),0,SUMIFS('4. DETALLADA-RECURSOS ICBF'!$M$10:$M$1300,'4. DETALLADA-RECURSOS ICBF'!$B$10:$B$1300,'2. INFORMACION GENERAL'!$J$26,'4. DETALLADA-RECURSOS ICBF'!$K$10:$K$1300,'2. INFORMACION GENERAL'!$B$28,'4. DETALLADA-RECURSOS ICBF'!$L$10:$L$1300,'2. INFORMACION GENERAL'!B29)) -> 0 | L29: =IFERROR(J29-K29,0) -> 0 | M29: 0 | N29: =IF(OR(B29="",M29=0),0,SUMIFS('4. DETALLADA-RECURSOS ICBF'!$M$10:$M$1300,'4. DETALLADA-RECURSOS ICBF'!$B$10:$B$1300,'2. INFORMACION GENERAL'!$M$26,'4. DETALLADA-RECURSOS ICBF'!$K$10:$K$1300,'2. INFORMACION GENERAL'!$B$28,'4. DETALLADA-RECURSOS ICBF'!$L$10:$L$1300,'2. INFORMACION GENERAL'!B29)) -> 0 | O29: =IFERROR(M29-N29,0) -> 0 | P29: 0 | Q29: =IF(OR(B29="",P29=0),0,SUMIFS('4. DETALLADA-RECURSOS ICBF'!$M$10:$M$1300,'4. DETALLADA-RECURSOS ICBF'!$B$10:$B$1300,'2. INFORMACION GENERAL'!$P$26,'4. DETALLADA-RECURSOS ICBF'!$K$10:$K$1300,'2. INFORMACION GENERAL'!$B$28,'4. DETALLADA-RECURSOS ICBF'!$L$10:$L$1300,'2. INFORMACION GENERAL'!B29)) -> 0 | R29: =IFERROR(P29-Q29,0) -> 0 | S29: 0 | T29: =IF(OR(B29="",S29=0),0,SUMIFS('4. DETALLADA-RECURSOS ICBF'!$M$10:$M$1300,'4. DETALLADA-RECURSOS ICBF'!$B$10:$B$1300,'2. INFORMACION GENERAL'!$S$26,'4. DETALLADA-RECURSOS ICBF'!$K$10:$K$1300,'2. INFORMACION GENERAL'!$B$28,'4. DETALLADA-RECURSOS ICBF'!$L$10:$L$1300,'2. INFORMACION GENERAL'!B29)) -> 0 | U29: =IFERROR(S29-T29,0) -> 0 | V29: 0 | W29: =IF(OR(B29="",V29=0),0,SUMIFS('4. DETALLADA-RECURSOS ICBF'!$M$10:$M$1300,'4. DETALLADA-RECURSOS ICBF'!$B$10:$B$1300,'2. INFORMACION GENERAL'!$V$26,'4. DETALLADA-RECURSOS ICBF'!$K$10:$K$1300,'2. INFORMACION GENERAL'!$B$28,'4. DETALLADA-RECURSOS ICBF'!$L$10:$L$1300,'2. INFORMACION GENERAL'!B29)) -> 0 | X29: =IFERROR(V29-W29,0) -> 0 | Y29: 0 | Z29: =IF(OR(B29="",Y29=0),0,SUMIFS('4. DETALLADA-RECURSOS ICBF'!$M$10:$M$1300,'4. DETALLADA-RECURSOS ICBF'!$B$10:$B$1300,'2. INFORMACION GENERAL'!$Y$26,'4. DETALLADA-RECURSOS ICBF'!$K$10:$K$1300,'2. INFORMACION GENERAL'!$B$28,'4. DETALLADA-RECURSOS ICBF'!$L$10:$L$1300,'2. INFORMACION GENERAL'!B29)) -> 0 | AA29: =IFERROR(Y29-Z29,0) -> 0 | AB29: 0 | AC29: =IF(OR(B29="",AB29=0),0,SUMIFS('4. DETALLADA-RECURSOS ICBF'!$M$10:$M$1300,'4. DETALLADA-RECURSOS ICBF'!$B$10:$B$1300,'2. INFORMACION GENERAL'!$AB$26,'4. DETALLADA-RECURSOS ICBF'!$K$10:$K$1300,'2. INFORMACION GENERAL'!$B$28,'4. DETALLADA-RECURSOS ICBF'!$L$10:$L$1300,'2. INFORMACION GENERAL'!B29)) -> 0 | AD29: =IFERROR(AB29-AC29,0) -> 0 | AE29: 0 | AF29: =IF(OR(B29="",AE29=0),0,SUMIFS('4. DETALLADA-RECURSOS ICBF'!$M$10:$M$1300,'4. DETALLADA-RECURSOS ICBF'!$B$10:$B$1300,'2. INFORMACION GENERAL'!$AE$26,'4. DETALLADA-RECURSOS ICBF'!$K$10:$K$1300,'2. INFORMACION GENERAL'!$B$28,'4. DETALLADA-RECURSOS ICBF'!$L$10:$L$1300,'2. INFORMACION GENERAL'!B29)) -> 0 | AG29: =IFERROR(AE29-AF29,0) -> 0 | AH29: 0 | AI29: =IF(OR(B29="",AH29=0),0,SUMIFS('4. DETALLADA-RECURSOS ICBF'!$M$10:$M$1300,'4. DETALLADA-RECURSOS ICBF'!$B$10:$B$1300,'2. INFORMACION GENERAL'!$AH$26,'4. DETALLADA-RECURSOS ICBF'!$K$10:$K$1300,'2. INFORMACION GENERAL'!$B$28,'4. DETALLADA-RECURSOS ICBF'!$L$10:$L$1300,'2. INFORMACION GENERAL'!B29)) -> 0 | AJ29: =IFERROR(AH29-AI29,0) -> 0 | AK29: 0 | AL29: =IF(OR(B29="",AK29=0),0,SUMIFS('4. DETALLADA-RECURSOS ICBF'!$M$10:$M$1300,'4. DETALLADA-RECURSOS ICBF'!$B$10:$B$1300,'2. INFORMACION GENERAL'!$AK$26,'4. DETALLADA-RECURSOS ICBF'!$K$10:$K$1300,'2. INFORMACION GENERAL'!$B$28,'4. DETALLADA-RECURSOS ICBF'!$L$10:$L$1300,'2. INFORMACION GENERAL'!B29)) -> 0 | AM29: =IFERROR(AK29-AL29,0) -> 0 | AN29: 0 | AO29: =IF(OR(B29="",AN29=0),0,SUMIFS('4. DETALLADA-RECURSOS ICBF'!$M$10:$M$1300,'4. DETALLADA-RECURSOS ICBF'!$B$10:$B$1300,'2. INFORMACION GENERAL'!$AN$26,'4. DETALLADA-RECURSOS ICBF'!$K$10:$K$1300,'2. INFORMACION GENERAL'!$B$28,'4. DETALLADA-RECURSOS ICBF'!$L$10:$L$1300,'2. INFORMACION GENERAL'!B29)) -> 0 | AP29: =IFERROR(AN29-AO29,0) -> 0 | AQ29: =IF('1. PRESUPUESTO INICIAL'!F32="",0,'1. PRESUPUESTO INICIAL'!F32) -> 0 | AR29: =IF(OR(B29="",AQ29=0),0,SUMIFS('4. DETALLADA-RECURSOS ICBF'!$M$10:$M$1300,'4. DETALLADA-RECURSOS ICBF'!$B$10:$B$1300,'2. INFORMACION GENERAL'!$AQ$26,'4. DETALLADA-RECURSOS ICBF'!$K$10:$K$1300,'2. INFORMACION GENERAL'!$B$28,'4. DETALLADA-RECURSOS ICBF'!$L$10:$L$1300,'2. INFORMACION GENERAL'!B29)) -> 0 | AS29: =IFERROR(AQ29-AR29,0) -> 0 | AT29: =+SUMIFS(D29:AS29,$D$27:$AS$27,$AT$27) -> 0 | AU29: =+SUMIFS(D29:AS29,$D$27:$AS$27,$AU$27) -> 0 | AV29: =+SUMIFS(D29:AS29,$D$27:$AS$27,$AV$27) -> 0
A30: 2102 | B30: =IF('1. PRESUPUESTO INICIAL'!B33="","",'1. PRESUPUESTO INICIAL'!B33) -> FALSE | D30: =IF('1. PRESUPUESTO INICIAL'!D33="",0,'1. PRESUPUESTO INICIAL'!D33) -> 0 | E30: =IF(OR(B30="",D30=0),0,SUMIFS('4. DETALLADA-RECURSOS ICBF'!$M$10:$M$1300,'4. DETALLADA-RECURSOS ICBF'!$B$10:$B$1300,'2. INFORMACION GENERAL'!$D$26,'4. DETALLADA-RECURSOS ICBF'!$K$10:$K$1300,'2. INFORMACION GENERAL'!$B$28,'4. DETALLADA-RECURSOS ICBF'!$L$10:$L$1300,'2. INFORMACION GENERAL'!B30)) -> 0 | F30: 0 | G30: 0 | H30: =IF(OR(B30="",G30=0),0,SUMIFS('4. DETALLADA-RECURSOS ICBF'!$M$10:$M$1300,'4. DETALLADA-RECURSOS ICBF'!$B$10:$B$1300,'2. INFORMACION GENERAL'!$G$26,'4. DETALLADA-RECURSOS ICBF'!$K$10:$K$1300,'2. INFORMACION GENERAL'!$B$28,'4. DETALLADA-RECURSOS ICBF'!$L$10:$L$1300,'2. INFORMACION GENERAL'!B30)) -> 0 | I30: =IFERROR(G30-H30,0) -> 0 | J30: 0 | K30: =IF(OR(B30="",J30=0),0,SUMIFS('4. DETALLADA-RECURSOS ICBF'!$M$10:$M$1300,'4. DETALLADA-RECURSOS ICBF'!$B$10:$B$1300,'2. INFORMACION GENERAL'!$J$26,'4. DETALLADA-RECURSOS ICBF'!$K$10:$K$1300,'2. INFORMACION GENERAL'!$B$28,'4. DETALLADA-RECURSOS ICBF'!$L$10:$L$1300,'2. INFORMACION GENERAL'!B30)) -> 0 | L30: =IFERROR(J30-K30,0) -> 0 | M30: 0 | N30: =IF(OR(B30="",M30=0),0,SUMIFS('4. DETALLADA-RECURSOS ICBF'!$M$10:$M$1300,'4. DETALLADA-RECURSOS ICBF'!$B$10:$B$1300,'2. INFORMACION GENERAL'!$M$26,'4. DETALLADA-RECURSOS ICBF'!$K$10:$K$1300,'2. INFORMACION GENERAL'!$B$28,'4. DETALLADA-RECURSOS ICBF'!$L$10:$L$1300,'2. INFORMACION GENERAL'!B30)) -> 0 | O30: =IFERROR(M30-N30,0) -> 0 | P30: 0 | Q30: =IF(OR(B30="",P30=0),0,SUMIFS('4. DETALLADA-RECURSOS ICBF'!$M$10:$M$1300,'4. DETALLADA-RECURSOS ICBF'!$B$10:$B$1300,'2. INFORMACION GENERAL'!$P$26,'4. DETALLADA-RECURSOS ICBF'!$K$10:$K$1300,'2. INFORMACION GENERAL'!$B$28,'4. DETALLADA-RECURSOS ICBF'!$L$10:$L$1300,'2. INFORMACION GENERAL'!B30)) -> 0 | R30: =IFERROR(P30-Q30,0) -> 0 | S30: 0 | T30: =IF(OR(B30="",S30=0),0,SUMIFS('4. DETALLADA-RECURSOS ICBF'!$M$10:$M$1300,'4. DETALLADA-RECURSOS ICBF'!$B$10:$B$1300,'2. INFORMACION GENERAL'!$S$26,'4. DETALLADA-RECURSOS ICBF'!$K$10:$K$1300,'2. INFORMACION GENERAL'!$B$28,'4. DETALLADA-RECURSOS ICBF'!$L$10:$L$1300,'2. INFORMACION GENERAL'!B30)) -> 0 | U30: =IFERROR(S30-T30,0) -> 0 | V30: 0 | W30: =IF(OR(B30="",V30=0),0,SUMIFS('4. DETALLADA-RECURSOS ICBF'!$M$10:$M$1300,'4. DETALLADA-RECURSOS ICBF'!$B$10:$B$1300,'2. INFORMACION GENERAL'!$V$26,'4. DETALLADA-RECURSOS ICBF'!$K$10:$K$1300,'2. INFORMACION GENERAL'!$B$28,'4. DETALLADA-RECURSOS ICBF'!$L$10:$L$1300,'2. INFORMACION GENERAL'!B30)) -> 0 | X30: =IFERROR(V30-W30,0) -> 0 | Y30: 0 | Z30: =IF(OR(B30="",Y30=0),0,SUMIFS('4. DETALLADA-RECURSOS ICBF'!$M$10:$M$1300,'4. DETALLADA-RECURSOS ICBF'!$B$10:$B$1300,'2. INFORMACION GENERAL'!$Y$26,'4. DETALLADA-RECURSOS ICBF'!$K$10:$K$1300,'2. INFORMACION GENERAL'!$B$28,'4. DETALLADA-RECURSOS ICBF'!$L$10:$L$1300,'2. INFORMACION GENERAL'!B30)) -> 0 | AA30: =IFERROR(Y30-Z30,0) -> 0 | AB30: 0 | AC30: =IF(OR(B30="",AB30=0),0,SUMIFS('4. DETALLADA-RECURSOS ICBF'!$M$10:$M$1300,'4. DETALLADA-RECURSOS ICBF'!$B$10:$B$1300,'2. INFORMACION GENERAL'!$AB$26,'4. DETALLADA-RECURSOS ICBF'!$K$10:$K$1300,'2. INFORMACION GENERAL'!$B$28,'4. DETALLADA-RECURSOS ICBF'!$L$10:$L$1300,'2. INFORMACION GENERAL'!B30)) -> 0 | AD30: =IFERROR(AB30-AC30,0) -> 0 | AE30: 0 | AF30: =IF(OR(B30="",AE30=0),0,SUMIFS('4. DETALLADA-RECURSOS ICBF'!$M$10:$M$1300,'4. DETALLADA-RECURSOS ICBF'!$B$10:$B$1300,'2. INFORMACION GENERAL'!$AE$26,'4. DETALLADA-RECURSOS ICBF'!$K$10:$K$1300,'2. INFORMACION GENERAL'!$B$28,'4. DETALLADA-RECURSOS ICBF'!$L$10:$L$1300,'2. INFORMACION GENERAL'!B30)) -> 0 | AG30: =IFERROR(AE30-AF30,0) -> 0 | AH30: 0 | AI30: =IF(OR(B30="",AH30=0),0,SUMIFS('4. DETALLADA-RECURSOS ICBF'!$M$10:$M$1300,'4. DETALLADA-RECURSOS ICBF'!$B$10:$B$1300,'2. INFORMACION GENERAL'!$AH$26,'4. DETALLADA-RECURSOS ICBF'!$K$10:$K$1300,'2. INFORMACION GENERAL'!$B$28,'4. DETALLADA-RECURSOS ICBF'!$L$10:$L$1300,'2. INFORMACION GENERAL'!B30)) -> 0 | AJ30: =IFERROR(AH30-AI30,0) -> 0 | AK30: 0 | AL30: =IF(OR(B30="",AK30=0),0,SUMIFS('4. DETALLADA-RECURSOS ICBF'!$M$10:$M$1300,'4. DETALLADA-RECURSOS ICBF'!$B$10:$B$1300,'2. INFORMACION GENERAL'!$AK$26,'4. DETALLADA-RECURSOS ICBF'!$K$10:$K$1300,'2. INFORMACION GENERAL'!$B$28,'4. DETALLADA-RECURSOS ICBF'!$L$10:$L$1300,'2. INFORMACION GENERAL'!B30)) -> 0 | AM30: =IFERROR(AK30-AL30,0) -> 0 | AN30: 0 | AO30: =IF(OR(B30="",AN30=0),0,SUMIFS('4. DETALLADA-RECURSOS ICBF'!$M$10:$M$1300,'4. DETALLADA-RECURSOS ICBF'!$B$10:$B$1300,'2. INFORMACION GENERAL'!$AN$26,'4. DETALLADA-RECURSOS ICBF'!$K$10:$K$1300,'2. INFORMACION GENERAL'!$B$28,'4. DETALLADA-RECURSOS ICBF'!$L$10:$L$1300,'2. INFORMACION GENERAL'!B30)) -> 0 | AP30: =IFERROR(AN30-AO30,0) -> 0 | AQ30: =IF('1. PRESUPUESTO INICIAL'!F33="",0,'1. PRESUPUESTO INICIAL'!F33) -> 0 | AR30: =IF(OR(B30="",AQ30=0),0,SUMIFS('4. DETALLADA-RECURSOS ICBF'!$M$10:$M$1300,'4. DETALLADA-RECURSOS ICBF'!$B$10:$B$1300,'2. INFORMACION GENERAL'!$AQ$26,'4. DETALLADA-RECURSOS ICBF'!$K$10:$K$1300,'2. INFORMACION GENERAL'!$B$28,'4. DETALLADA-RECURSOS ICBF'!$L$10:$L$1300,'2. INFORMACION GENERAL'!B30)) -> 0 | AS30: =IFERROR(AQ30-AR30,0) -> 0 | AT30: =+SUMIFS(D30:AS30,$D$27:$AS$27,$AT$27) -> 0 | AU30: =+SUMIFS(D30:AS30,$D$27:$AS$27,$AU$27) -> 0 | AV30: =+SUMIFS(D30:AS30,$D$27:$AS$27,$AV$27) -> 0
A31: 2103 | B31: =IF('1. PRESUPUESTO INICIAL'!B34="","",'1. PRESUPUESTO INICIAL'!B34) -> FALSE | D31: =IF('1. PRESUPUESTO INICIAL'!D34="",0,'1. PRESUPUESTO INICIAL'!D34) -> 0 | E31: =IF(OR(B31="",D31=0),0,SUMIFS('4. DETALLADA-RECURSOS ICBF'!$M$10:$M$1300,'4. DETALLADA-RECURSOS ICBF'!$B$10:$B$1300,'2. INFORMACION GENERAL'!$D$26,'4. DETALLADA-RECURSOS ICBF'!$K$10:$K$1300,'2. INFORMACION GENERAL'!$B$28,'4. DETALLADA-RECURSOS ICBF'!$L$10:$L$1300,'2. INFORMACION GENERAL'!B31)) -> 0 | F31: 0 | G31: 0 | H31: =IF(OR(B31="",G31=0),0,SUMIFS('4. DETALLADA-RECURSOS ICBF'!$M$10:$M$1300,'4. DETALLADA-RECURSOS ICBF'!$B$10:$B$1300,'2. INFORMACION GENERAL'!$G$26,'4. DETALLADA-RECURSOS ICBF'!$K$10:$K$1300,'2. INFORMACION GENERAL'!$B$28,'4. DETALLADA-RECURSOS ICBF'!$L$10:$L$1300,'2. INFORMACION GENERAL'!B31)) -> 0 | I31: 0 | J31: 0 | K31: =IF(OR(B31="",J31=0),0,SUMIFS('4. DETALLADA-RECURSOS ICBF'!$M$10:$M$1300,'4. DETALLADA-RECURSOS ICBF'!$B$10:$B$1300,'2. INFORMACION GENERAL'!$J$26,'4. DETALLADA-RECURSOS ICBF'!$K$10:$K$1300,'2. INFORMACION GENERAL'!$B$28,'4. DETALLADA-RECURSOS ICBF'!$L$10:$L$1300,'2. INFORMACION GENERAL'!B31)) -> 0 | L31: 0 | M31: 0 | N31: =IF(OR(B31="",M31=0),0,SUMIFS('4. DETALLADA-RECURSOS ICBF'!$M$10:$M$1300,'4. DETALLADA-RECURSOS ICBF'!$B$10:$B$1300,'2. INFORMACION GENERAL'!$M$26,'4. DETALLADA-RECURSOS ICBF'!$K$10:$K$1300,'2. INFORMACION GENERAL'!$B$28,'4. DETALLADA-RECURSOS ICBF'!$L$10:$L$1300,'2. INFORMACION GENERAL'!B31)) -> 0 | O31: 0 | P31: 0 | Q31: =IF(OR(B31="",P31=0),0,SUMIFS('4. DETALLADA-RECURSOS ICBF'!$M$10:$M$1300,'4. DETALLADA-RECURSOS ICBF'!$B$10:$B$1300,'2. INFORMACION GENERAL'!$P$26,'4. DETALLADA-RECURSOS ICBF'!$K$10:$K$1300,'2. INFORMACION GENERAL'!$B$28,'4. DETALLADA-RECURSOS ICBF'!$L$10:$L$1300,'2. INFORMACION GENERAL'!B31)) -> 0 | R31: 0 | S31: 0 | T31: =IF(OR(B31="",S31=0),0,SUMIFS('4. DETALLADA-RECURSOS ICBF'!$M$10:$M$1300,'4. DETALLADA-RECURSOS ICBF'!$B$10:$B$1300,'2. INFORMACION GENERAL'!$S$26,'4. DETALLADA-RECURSOS ICBF'!$K$10:$K$1300,'2. INFORMACION GENERAL'!$B$28,'4. DETALLADA-RECURSOS ICBF'!$L$10:$L$1300,'2. INFORMACION GENERAL'!B31)) -> 0 | U31: 0 | V31: 0 | W31: =IF(OR(B31="",V31=0),0,SUMIFS('4. DETALLADA-RECURSOS ICBF'!$M$10:$M$1300,'4. DETALLADA-RECURSOS ICBF'!$B$10:$B$1300,'2. INFORMACION GENERAL'!$V$26,'4. DETALLADA-RECURSOS ICBF'!$K$10:$K$1300,'2. INFORMACION GENERAL'!$B$28,'4. DETALLADA-RECURSOS ICBF'!$L$10:$L$1300,'2. INFORMACION GENERAL'!B31)) -> 0 | X31: =IFERROR(V31-W31,0) -> 0 | Y31: 0 | Z31: =IF(OR(B31="",Y31=0),0,SUMIFS('4. DETALLADA-RECURSOS ICBF'!$M$10:$M$1300,'4. DETALLADA-RECURSOS ICBF'!$B$10:$B$1300,'2. INFORMACION GENERAL'!$Y$26,'4. DETALLADA-RECURSOS ICBF'!$K$10:$K$1300,'2. INFORMACION GENERAL'!$B$28,'4. DETALLADA-RECURSOS ICBF'!$L$10:$L$1300,'2. INFORMACION GENERAL'!B31)) -> 0 | AA31: =IFERROR(Y31-Z31,0) -> 0 | AB31: 0 | AC31: =IF(OR(B31="",AB31=0),0,SUMIFS('4. DETALLADA-RECURSOS ICBF'!$M$10:$M$1300,'4. DETALLADA-RECURSOS ICBF'!$B$10:$B$1300,'2. INFORMACION GENERAL'!$AB$26,'4. DETALLADA-RECURSOS ICBF'!$K$10:$K$1300,'2. INFORMACION GENERAL'!$B$28,'4. DETALLADA-RECURSOS ICBF'!$L$10:$L$1300,'2. INFORMACION GENERAL'!B31)) -> 0 | AD31: =IFERROR(AB31-AC31,0) -> 0 | AE31: 0 | AF31: =IF(OR(B31="",AE31=0),0,SUMIFS('4. DETALLADA-RECURSOS ICBF'!$M$10:$M$1300,'4. DETALLADA-RECURSOS ICBF'!$B$10:$B$1300,'2. INFORMACION GENERAL'!$AE$26,'4. DETALLADA-RECURSOS ICBF'!$K$10:$K$1300,'2. INFORMACION GENERAL'!$B$28,'4. DETALLADA-RECURSOS ICBF'!$L$10:$L$1300,'2. INFORMACION GENERAL'!B31)) -> 0 | AG31: =IFERROR(AE31-AF31,0) -> 0 | AH31: 0 | AI31: =IF(OR(B31="",AH31=0),0,SUMIFS('4. DETALLADA-RECURSOS ICBF'!$M$10:$M$1300,'4. DETALLADA-RECURSOS ICBF'!$B$10:$B$1300,'2. INFORMACION GENERAL'!$AH$26,'4. DETALLADA-RECURSOS ICBF'!$K$10:$K$1300,'2. INFORMACION GENERAL'!$B$28,'4. DETALLADA-RECURSOS ICBF'!$L$10:$L$1300,'2. INFORMACION GENERAL'!B31)) -> 0 | AJ31: =IFERROR(AH31-AI31,0) -> 0 | AK31: 0 | AL31: =IF(OR(B31="",AK31=0),0,SUMIFS('4. DETALLADA-RECURSOS ICBF'!$M$10:$M$1300,'4. DETALLADA-RECURSOS ICBF'!$B$10:$B$1300,'2. INFORMACION GENERAL'!$AK$26,'4. DETALLADA-RECURSOS ICBF'!$K$10:$K$1300,'2. INFORMACION GENERAL'!$B$28,'4. DETALLADA-RECURSOS ICBF'!$L$10:$L$1300,'2. INFORMACION GENERAL'!B31)) -> 0 | AM31: =IFERROR(AK31-AL31,0) -> 0 | AN31: 0 | AO31: =IF(OR(B31="",AN31=0),0,SUMIFS('4. DETALLADA-RECURSOS ICBF'!$M$10:$M$1300,'4. DETALLADA-RECURSOS ICBF'!$B$10:$B$1300,'2. INFORMACION GENERAL'!$AN$26,'4. DETALLADA-RECURSOS ICBF'!$K$10:$K$1300,'2. INFORMACION GENERAL'!$B$28,'4. DETALLADA-RECURSOS ICBF'!$L$10:$L$1300,'2. INFORMACION GENERAL'!B31)) -> 0 | AP31: =IFERROR(AN31-AO31,0) -> 0 | AQ31: =IF('1. PRESUPUESTO INICIAL'!F34="",0,'1. PRESUPUESTO INICIAL'!F34) -> 0 | AR31: =IF(OR(B31="",AQ31=0),0,SUMIFS('4. DETALLADA-RECURSOS ICBF'!$M$10:$M$1300,'4. DETALLADA-RECURSOS ICBF'!$B$10:$B$1300,'2. INFORMACION GENERAL'!$AQ$26,'4. DETALLADA-RECURSOS ICBF'!$K$10:$K$1300,'2. INFORMACION GENERAL'!$B$28,'4. DETALLADA-RECURSOS ICBF'!$L$10:$L$1300,'2. INFORMACION GENERAL'!B31)) -> 0 | AS31: 0 | AT31: 0 | AU31: 0 | AV31: 0
A32: 2104 | B32: =IF('1. PRESUPUESTO INICIAL'!B35="","",'1. PRESUPUESTO INICIAL'!B35) -> FALSE | D32: =IF('1. PRESUPUESTO INICIAL'!D35="",0,'1. PRESUPUESTO INICIAL'!D35) -> 0 | E32: =IF(OR(B32="",D32=0),0,SUMIFS('4. DETALLADA-RECURSOS ICBF'!$M$10:$M$1300,'4. DETALLADA-RECURSOS ICBF'!$B$10:$B$1300,'2. INFORMACION GENERAL'!$D$26,'4. DETALLADA-RECURSOS ICBF'!$K$10:$K$1300,'2. INFORMACION GENERAL'!$B$28,'4. DETALLADA-RECURSOS ICBF'!$L$10:$L$1300,'2. INFORMACION GENERAL'!B32)) -> 0 | F32: 0 | G32: 0 | H32: =IF(OR(B32="",G32=0),0,SUMIFS('4. DETALLADA-RECURSOS ICBF'!$M$10:$M$1300,'4. DETALLADA-RECURSOS ICBF'!$B$10:$B$1300,'2. INFORMACION GENERAL'!$G$26,'4. DETALLADA-RECURSOS ICBF'!$K$10:$K$1300,'2. INFORMACION GENERAL'!$B$28,'4. DETALLADA-RECURSOS ICBF'!$L$10:$L$1300,'2. INFORMACION GENERAL'!B32)) -> 0 | I32: 0 | J32: 0 | K32: =IF(OR(B32="",J32=0),0,SUMIFS('4. DETALLADA-RECURSOS ICBF'!$M$10:$M$1300,'4. DETALLADA-RECURSOS ICBF'!$B$10:$B$1300,'2. INFORMACION GENERAL'!$J$26,'4. DETALLADA-RECURSOS ICBF'!$K$10:$K$1300,'2. INFORMACION GENERAL'!$B$28,'4. DETALLADA-RECURSOS ICBF'!$L$10:$L$1300,'2. INFORMACION GENERAL'!B32)) -> 0 | L32: 0 | M32: 0 | N32: =IF(OR(B32="",M32=0),0,SUMIFS('4. DETALLADA-RECURSOS ICBF'!$M$10:$M$1300,'4. DETALLADA-RECURSOS ICBF'!$B$10:$B$1300,'2. INFORMACION GENERAL'!$M$26,'4. DETALLADA-RECURSOS ICBF'!$K$10:$K$1300,'2. INFORMACION GENERAL'!$B$28,'4. DETALLADA-RECURSOS ICBF'!$L$10:$L$1300,'2. INFORMACION GENERAL'!B32)) -> 0 | O32: 0 | P32: 0 | Q32: =IF(OR(B32="",P32=0),0,SUMIFS('4. DETALLADA-RECURSOS ICBF'!$M$10:$M$1300,'4. DETALLADA-RECURSOS ICBF'!$B$10:$B$1300,'2. INFORMACION GENERAL'!$P$26,'4. DETALLADA-RECURSOS ICBF'!$K$10:$K$1300,'2. INFORMACION GENERAL'!$B$28,'4. DETALLADA-RECURSOS ICBF'!$L$10:$L$1300,'2. INFORMACION GENERAL'!B32)) -> 0 | R32: 0 | S32: 0 | T32: =IF(OR(B32="",S32=0),0,SUMIFS('4. DETALLADA-RECURSOS ICBF'!$M$10:$M$1300,'4. DETALLADA-RECURSOS ICBF'!$B$10:$B$1300,'2. INFORMACION GENERAL'!$S$26,'4. DETALLADA-RECURSOS ICBF'!$K$10:$K$1300,'2. INFORMACION GENERAL'!$B$28,'4. DETALLADA-RECURSOS ICBF'!$L$10:$L$1300,'2. INFORMACION GENERAL'!B32)) -> 0 | U32: 0 | V32: 0 | W32: =IF(OR(B32="",V32=0),0,SUMIFS('4. DETALLADA-RECURSOS ICBF'!$M$10:$M$1300,'4. DETALLADA-RECURSOS ICBF'!$B$10:$B$1300,'2. INFORMACION GENERAL'!$V$26,'4. DETALLADA-RECURSOS ICBF'!$K$10:$K$1300,'2. INFORMACION GENERAL'!$B$28,'4. DETALLADA-RECURSOS ICBF'!$L$10:$L$1300,'2. INFORMACION GENERAL'!B32)) -> 0 | X32: 0 | Y32: 0 | Z32: =IF(OR(B32="",Y32=0),0,SUMIFS('4. DETALLADA-RECURSOS ICBF'!$M$10:$M$1300,'4. DETALLADA-RECURSOS ICBF'!$B$10:$B$1300,'2. INFORMACION GENERAL'!$Y$26,'4. DETALLADA-RECURSOS ICBF'!$K$10:$K$1300,'2. INFORMACION GENERAL'!$B$28,'4. DETALLADA-RECURSOS ICBF'!$L$10:$L$1300,'2. INFORMACION GENERAL'!B32)) -> 0 | AA32: =IFERROR(Y32-Z32,0) -> 0 | AB32: 0 | AC32: =IF(OR(B32="",AB32=0),0,SUMIFS('4. DETALLADA-RECURSOS ICBF'!$M$10:$M$1300,'4. DETALLADA-RECURSOS ICBF'!$B$10:$B$1300,'2. INFORMACION GENERAL'!$AB$26,'4. DETALLADA-RECURSOS ICBF'!$K$10:$K$1300,'2. INFORMACION GENERAL'!$B$28,'4. DETALLADA-RECURSOS ICBF'!$L$10:$L$1300,'2. INFORMACION GENERAL'!B32)) -> 0 | AD32: =IFERROR(AB32-AC32,0) -> 0 | AE32: 0 | AF32: =IF(OR(B32="",AE32=0),0,SUMIFS('4. DETALLADA-RECURSOS ICBF'!$M$10:$M$1300,'4. DETALLADA-RECURSOS ICBF'!$B$10:$B$1300,'2. INFORMACION GENERAL'!$AE$26,'4. DETALLADA-RECURSOS ICBF'!$K$10:$K$1300,'2. INFORMACION GENERAL'!$B$28,'4. DETALLADA-RECURSOS ICBF'!$L$10:$L$1300,'2. INFORMACION GENERAL'!B32)) -> 0 | AG32: =IFERROR(AE32-AF32,0) -> 0 | AH32: 0 | AI32: =IF(OR(B32="",AH32=0),0,SUMIFS('4. DETALLADA-RECURSOS ICBF'!$M$10:$M$1300,'4. DETALLADA-RECURSOS ICBF'!$B$10:$B$1300,'2. INFORMACION GENERAL'!$AH$26,'4. DETALLADA-RECURSOS ICBF'!$K$10:$K$1300,'2. INFORMACION GENERAL'!$B$28,'4. DETALLADA-RECURSOS ICBF'!$L$10:$L$1300,'2. INFORMACION GENERAL'!B32)) -> 0 | AJ32: =IFERROR(AH32-AI32,0) -> 0 | AK32: 0 | AL32: =IF(OR(B32="",AK32=0),0,SUMIFS('4. DETALLADA-RECURSOS ICBF'!$M$10:$M$1300,'4. DETALLADA-RECURSOS ICBF'!$B$10:$B$1300,'2. INFORMACION GENERAL'!$AK$26,'4. DETALLADA-RECURSOS ICBF'!$K$10:$K$1300,'2. INFORMACION GENERAL'!$B$28,'4. DETALLADA-RECURSOS ICBF'!$L$10:$L$1300,'2. INFORMACION GENERAL'!B32)) -> 0 | AM32: =IFERROR(AK32-AL32,0) -> 0 | AN32: 0 | AO32: =IF(OR(B32="",AN32=0),0,SUMIFS('4. DETALLADA-RECURSOS ICBF'!$M$10:$M$1300,'4. DETALLADA-RECURSOS ICBF'!$B$10:$B$1300,'2. INFORMACION GENERAL'!$AN$26,'4. DETALLADA-RECURSOS ICBF'!$K$10:$K$1300,'2. INFORMACION GENERAL'!$B$28,'4. DETALLADA-RECURSOS ICBF'!$L$10:$L$1300,'2. INFORMACION GENERAL'!B32)) -> 0 | AP32: =IFERROR(AN32-AO32,0) -> 0 | AQ32: =IF('1. PRESUPUESTO INICIAL'!F35="",0,'1. PRESUPUESTO INICIAL'!F35) -> 0 | AR32: =IF(OR(B32="",AQ32=0),0,SUMIFS('4. DETALLADA-RECURSOS ICBF'!$M$10:$M$1300,'4. DETALLADA-RECURSOS ICBF'!$B$10:$B$1300,'2. INFORMACION GENERAL'!$AQ$26,'4. DETALLADA-RECURSOS ICBF'!$K$10:$K$1300,'2. INFORMACION GENERAL'!$B$28,'4. DETALLADA-RECURSOS ICBF'!$L$10:$L$1300,'2. INFORMACION GENERAL'!B32)) -> 0 | AS32: 0 | AT32: 0 | AU32: 0 | AV32: 0
A33: 2105 | B33: =IF('1. PRESUPUESTO INICIAL'!B36="","",'1. PRESUPUESTO INICIAL'!B36) -> FALSE | D33: =IF('1. PRESUPUESTO INICIAL'!D36="",0,'1. PRESUPUESTO INICIAL'!D36) -> 0 | E33: =IF(OR(B33="",D33=0),0,SUMIFS('4. DETALLADA-RECURSOS ICBF'!$M$10:$M$1300,'4. DETALLADA-RECURSOS ICBF'!$B$10:$B$1300,'2. INFORMACION GENERAL'!$D$26,'4. DETALLADA-RECURSOS ICBF'!$K$10:$K$1300,'2. INFORMACION GENERAL'!$B$28,'4. DETALLADA-RECURSOS ICBF'!$L$10:$L$1300,'2. INFORMACION GENERAL'!B33)) -> 0 | F33: 0 | G33: 0 | H33: =IF(OR(B33="",G33=0),0,SUMIFS('4. DETALLADA-RECURSOS ICBF'!$M$10:$M$1300,'4. DETALLADA-RECURSOS ICBF'!$B$10:$B$1300,'2. INFORMACION GENERAL'!$G$26,'4. DETALLADA-RECURSOS ICBF'!$K$10:$K$1300,'2. INFORMACION GENERAL'!$B$28,'4. DETALLADA-RECURSOS ICBF'!$L$10:$L$1300,'2. INFORMACION GENERAL'!B33)) -> 0 | I33: 0 | J33: 0 | K33: =IF(OR(B33="",J33=0),0,SUMIFS('4. DETALLADA-RECURSOS ICBF'!$M$10:$M$1300,'4. DETALLADA-RECURSOS ICBF'!$B$10:$B$1300,'2. INFORMACION GENERAL'!$J$26,'4. DETALLADA-RECURSOS ICBF'!$K$10:$K$1300,'2. INFORMACION GENERAL'!$B$28,'4. DETALLADA-RECURSOS ICBF'!$L$10:$L$1300,'2. INFORMACION GENERAL'!B33)) -> 0 | L33: 0 | M33: 0 | N33: =IF(OR(B33="",M33=0),0,SUMIFS('4. DETALLADA-RECURSOS ICBF'!$M$10:$M$1300,'4. DETALLADA-RECURSOS ICBF'!$B$10:$B$1300,'2. INFORMACION GENERAL'!$M$26,'4. DETALLADA-RECURSOS ICBF'!$K$10:$K$1300,'2. INFORMACION GENERAL'!$B$28,'4. DETALLADA-RECURSOS ICBF'!$L$10:$L$1300,'2. INFORMACION GENERAL'!B33)) -> 0 | O33: 0 | P33: 0 | Q33: =IF(OR(B33="",P33=0),0,SUMIFS('4. DETALLADA-RECURSOS ICBF'!$M$10:$M$1300,'4. DETALLADA-RECURSOS ICBF'!$B$10:$B$1300,'2. INFORMACION GENERAL'!$P$26,'4. DETALLADA-RECURSOS ICBF'!$K$10:$K$1300,'2. INFORMACION GENERAL'!$B$28,'4. DETALLADA-RECURSOS ICBF'!$L$10:$L$1300,'2. INFORMACION GENERAL'!B33)) -> 0 | R33: 0 | S33: 0 | T33: =IF(OR(B33="",S33=0),0,SUMIFS('4. DETALLADA-RECURSOS ICBF'!$M$10:$M$1300,'4. DETALLADA-RECURSOS ICBF'!$B$10:$B$1300,'2. INFORMACION GENERAL'!$S$26,'4. DETALLADA-RECURSOS ICBF'!$K$10:$K$1300,'2. INFORMACION GENERAL'!$B$28,'4. DETALLADA-RECURSOS ICBF'!$L$10:$L$1300,'2. INFORMACION GENERAL'!B33)) -> 0 | U33: 0 | V33: 0 | W33: =IF(OR(B33="",V33=0),0,SUMIFS('4. DETALLADA-RECURSOS ICBF'!$M$10:$M$1300,'4. DETALLADA-RECURSOS ICBF'!$B$10:$B$1300,'2. INFORMACION GENERAL'!$V$26,'4. DETALLADA-RECURSOS ICBF'!$K$10:$K$1300,'2. INFORMACION GENERAL'!$B$28,'4. DETALLADA-RECURSOS ICBF'!$L$10:$L$1300,'2. INFORMACION GENERAL'!B33)) -> 0 | X33: 0 | Y33: 0 | Z33: =IF(OR(B33="",Y33=0),0,SUMIFS('4. DETALLADA-RECURSOS ICBF'!$M$10:$M$1300,'4. DETALLADA-RECURSOS ICBF'!$B$10:$B$1300,'2. INFORMACION GENERAL'!$Y$26,'4. DETALLADA-RECURSOS ICBF'!$K$10:$K$1300,'2. INFORMACION GENERAL'!$B$28,'4. DETALLADA-RECURSOS ICBF'!$L$10:$L$1300,'2. INFORMACION GENERAL'!B33)) -> 0 | AA33: =IFERROR(Y33-Z33,0) -> 0 | AB33: 0 | AC33: =IF(OR(B33="",AB33=0),0,SUMIFS('4. DETALLADA-RECURSOS ICBF'!$M$10:$M$1300,'4. DETALLADA-RECURSOS ICBF'!$B$10:$B$1300,'2. INFORMACION GENERAL'!$AB$26,'4. DETALLADA-RECURSOS ICBF'!$K$10:$K$1300,'2. INFORMACION GENERAL'!$B$28,'4. DETALLADA-RECURSOS ICBF'!$L$10:$L$1300,'2. INFORMACION GENERAL'!B33)) -> 0 | AD33: 0 | AE33: 0 | AF33: =IF(OR(B33="",AE33=0),0,SUMIFS('4. DETALLADA-RECURSOS ICBF'!$M$10:$M$1300,'4. DETALLADA-RECURSOS ICBF'!$B$10:$B$1300,'2. INFORMACION GENERAL'!$AE$26,'4. DETALLADA-RECURSOS ICBF'!$K$10:$K$1300,'2. INFORMACION GENERAL'!$B$28,'4. DETALLADA-RECURSOS ICBF'!$L$10:$L$1300,'2. INFORMACION GENERAL'!B33)) -> 0 | AG33: 0 | AH33: 0 | AI33: =IF(OR(B33="",AH33=0),0,SUMIFS('4. DETALLADA-RECURSOS ICBF'!$M$10:$M$1300,'4. DETALLADA-RECURSOS ICBF'!$B$10:$B$1300,'2. INFORMACION GENERAL'!$AH$26,'4. DETALLADA-RECURSOS ICBF'!$K$10:$K$1300,'2. INFORMACION GENERAL'!$B$28,'4. DETALLADA-RECURSOS ICBF'!$L$10:$L$1300,'2. INFORMACION GENERAL'!B33)) -> 0 | AJ33: 0 | AK33: 0 | AL33: =IF(OR(B33="",AK33=0),0,SUMIFS('4. DETALLADA-RECURSOS ICBF'!$M$10:$M$1300,'4. DETALLADA-RECURSOS ICBF'!$B$10:$B$1300,'2. INFORMACION GENERAL'!$AK$26,'4. DETALLADA-RECURSOS ICBF'!$K$10:$K$1300,'2. INFORMACION GENERAL'!$B$28,'4. DETALLADA-RECURSOS ICBF'!$L$10:$L$1300,'2. INFORMACION GENERAL'!B33)) -> 0 | AM33: =IFERROR(AK33-AL33,0) -> 0 | AN33: 0 | AO33: =IF(OR(B33="",AN33=0),0,SUMIFS('4. DETALLADA-RECURSOS ICBF'!$M$10:$M$1300,'4. DETALLADA-RECURSOS ICBF'!$B$10:$B$1300,'2. INFORMACION GENERAL'!$AN$26,'4. DETALLADA-RECURSOS ICBF'!$K$10:$K$1300,'2. INFORMACION GENERAL'!$B$28,'4. DETALLADA-RECURSOS ICBF'!$L$10:$L$1300,'2. INFORMACION GENERAL'!B33)) -> 0 | AP33: 0 | AQ33: =IF('1. PRESUPUESTO INICIAL'!F36="",0,'1. PRESUPUESTO INICIAL'!F36) -> 0 | AR33: =IF(OR(B33="",AQ33=0),0,SUMIFS('4. DETALLADA-RECURSOS ICBF'!$M$10:$M$1300,'4. DETALLADA-RECURSOS ICBF'!$B$10:$B$1300,'2. INFORMACION GENERAL'!$AQ$26,'4. DETALLADA-RECURSOS ICBF'!$K$10:$K$1300,'2. INFORMACION GENERAL'!$B$28,'4. DETALLADA-RECURSOS ICBF'!$L$10:$L$1300,'2. INFORMACION GENERAL'!B33)) -> 0 | AS33: 0 | AT33: 0 | AU33: 0 | AV33: 0
A34: 2106 | B34: =IF('1. PRESUPUESTO INICIAL'!B37="","",'1. PRESUPUESTO INICIAL'!B37) -> FALSE | D34: =IF('1. PRESUPUESTO INICIAL'!D37="",0,'1. PRESUPUESTO INICIAL'!D37) -> 0 | E34: =IF(OR(B34="",D34=0),0,SUMIFS('4. DETALLADA-RECURSOS ICBF'!$M$10:$M$1300,'4. DETALLADA-RECURSOS ICBF'!$B$10:$B$1300,'2. INFORMACION GENERAL'!$D$26,'4. DETALLADA-RECURSOS ICBF'!$K$10:$K$1300,'2. INFORMACION GENERAL'!$B$28,'4. DETALLADA-RECURSOS ICBF'!$L$10:$L$1300,'2. INFORMACION GENERAL'!B34)) -> 0 | F34: 0 | G34: 0 | H34: =IF(OR(B34="",G34=0),0,SUMIFS('4. DETALLADA-RECURSOS ICBF'!$M$10:$M$1300,'4. DETALLADA-RECURSOS ICBF'!$B$10:$B$1300,'2. INFORMACION GENERAL'!$G$26,'4. DETALLADA-RECURSOS ICBF'!$K$10:$K$1300,'2. INFORMACION GENERAL'!$B$28,'4. DETALLADA-RECURSOS ICBF'!$L$10:$L$1300,'2. INFORMACION GENERAL'!B34)) -> 0 | I34: 0 | J34: 0 | K34: =IF(OR(B34="",J34=0),0,SUMIFS('4. DETALLADA-RECURSOS ICBF'!$M$10:$M$1300,'4. DETALLADA-RECURSOS ICBF'!$B$10:$B$1300,'2. INFORMACION GENERAL'!$J$26,'4. DETALLADA-RECURSOS ICBF'!$K$10:$K$1300,'2. INFORMACION GENERAL'!$B$28,'4. DETALLADA-RECURSOS ICBF'!$L$10:$L$1300,'2. INFORMACION GENERAL'!B34)) -> 0 | L34: 0 | M34: 0 | N34: =IF(OR(B34="",M34=0),0,SUMIFS('4. DETALLADA-RECURSOS ICBF'!$M$10:$M$1300,'4. DETALLADA-RECURSOS ICBF'!$B$10:$B$1300,'2. INFORMACION GENERAL'!$M$26,'4. DETALLADA-RECURSOS ICBF'!$K$10:$K$1300,'2. INFORMACION GENERAL'!$B$28,'4. DETALLADA-RECURSOS ICBF'!$L$10:$L$1300,'2. INFORMACION GENERAL'!B34)) -> 0 | O34: 0 | P34: 0 | Q34: =IF(OR(B34="",P34=0),0,SUMIFS('4. DETALLADA-RECURSOS ICBF'!$M$10:$M$1300,'4. DETALLADA-RECURSOS ICBF'!$B$10:$B$1300,'2. INFORMACION GENERAL'!$P$26,'4. DETALLADA-RECURSOS ICBF'!$K$10:$K$1300,'2. INFORMACION GENERAL'!$B$28,'4. DETALLADA-RECURSOS ICBF'!$L$10:$L$1300,'2. INFORMACION GENERAL'!B34)) -> 0 | R34: 0 | S34: 0 | T34: =IF(OR(B34="",S34=0),0,SUMIFS('4. DETALLADA-RECURSOS ICBF'!$M$10:$M$1300,'4. DETALLADA-RECURSOS ICBF'!$B$10:$B$1300,'2. INFORMACION GENERAL'!$S$26,'4. DETALLADA-RECURSOS ICBF'!$K$10:$K$1300,'2. INFORMACION GENERAL'!$B$28,'4. DETALLADA-RECURSOS ICBF'!$L$10:$L$1300,'2. INFORMACION GENERAL'!B34)) -> 0 | U34: 0 | V34: 0 | W34: =IF(OR(B34="",V34=0),0,SUMIFS('4. DETALLADA-RECURSOS ICBF'!$M$10:$M$1300,'4. DETALLADA-RECURSOS ICBF'!$B$10:$B$1300,'2. INFORMACION GENERAL'!$V$26,'4. DETALLADA-RECURSOS ICBF'!$K$10:$K$1300,'2. INFORMACION GENERAL'!$B$28,'4. DETALLADA-RECURSOS ICBF'!$L$10:$L$1300,'2. INFORMACION GENERAL'!B34)) -> 0 | X34: 0 | Y34: 0 | Z34: =IF(OR(B34="",Y34=0),0,SUMIFS('4. DETALLADA-RECURSOS ICBF'!$M$10:$M$1300,'4. DETALLADA-RECURSOS ICBF'!$B$10:$B$1300,'2. INFORMACION GENERAL'!$Y$26,'4. DETALLADA-RECURSOS ICBF'!$K$10:$K$1300,'2. INFORMACION GENERAL'!$B$28,'4. DETALLADA-RECURSOS ICBF'!$L$10:$L$1300,'2. INFORMACION GENERAL'!B34)) -> 0 | AA34: 0 | AB34: 0 | AC34: =IF(OR(B34="",AB34=0),0,SUMIFS('4. DETALLADA-RECURSOS ICBF'!$M$10:$M$1300,'4. DETALLADA-RECURSOS ICBF'!$B$10:$B$1300,'2. INFORMACION GENERAL'!$AB$26,'4. DETALLADA-RECURSOS ICBF'!$K$10:$K$1300,'2. INFORMACION GENERAL'!$B$28,'4. DETALLADA-RECURSOS ICBF'!$L$10:$L$1300,'2. INFORMACION GENERAL'!B34)) -> 0 | AD34: 0 | AE34: 0 | AF34: =IF(OR(B34="",AE34=0),0,SUMIFS('4. DETALLADA-RECURSOS ICBF'!$M$10:$M$1300,'4. DETALLADA-RECURSOS ICBF'!$B$10:$B$1300,'2. INFORMACION GENERAL'!$AE$26,'4. DETALLADA-RECURSOS ICBF'!$K$10:$K$1300,'2. INFORMACION GENERAL'!$B$28,'4. DETALLADA-RECURSOS ICBF'!$L$10:$L$1300,'2. INFORMACION GENERAL'!B34)) -> 0 | AG34: 0 | AH34: 0 | AI34: =IF(OR(B34="",AH34=0),0,SUMIFS('4. DETALLADA-RECURSOS ICBF'!$M$10:$M$1300,'4. DETALLADA-RECURSOS ICBF'!$B$10:$B$1300,'2. INFORMACION GENERAL'!$AH$26,'4. DETALLADA-RECURSOS ICBF'!$K$10:$K$1300,'2. INFORMACION GENERAL'!$B$28,'4. DETALLADA-RECURSOS ICBF'!$L$10:$L$1300,'2. INFORMACION GENERAL'!B34)) -> 0 | AJ34: 0 | AK34: 0 | AL34: =IF(OR(B34="",AK34=0),0,SUMIFS('4. DETALLADA-RECURSOS ICBF'!$M$10:$M$1300,'4. DETALLADA-RECURSOS ICBF'!$B$10:$B$1300,'2. INFORMACION GENERAL'!$AK$26,'4. DETALLADA-RECURSOS ICBF'!$K$10:$K$1300,'2. INFORMACION GENERAL'!$B$28,'4. DETALLADA-RECURSOS ICBF'!$L$10:$L$1300,'2. INFORMACION GENERAL'!B34)) -> 0 | AM34: 0 | AN34: 0 | AO34: =IF(OR(B34="",AN34=0),0,SUMIFS('4. DETALLADA-RECURSOS ICBF'!$M$10:$M$1300,'4. DETALLADA-RECURSOS ICBF'!$B$10:$B$1300,'2. INFORMACION GENERAL'!$AN$26,'4. DETALLADA-RECURSOS ICBF'!$K$10:$K$1300,'2. INFORMACION GENERAL'!$B$28,'4. DETALLADA-RECURSOS ICBF'!$L$10:$L$1300,'2. INFORMACION GENERAL'!B34)) -> 0 | AP34: 0 | AQ34: =IF('1. PRESUPUESTO INICIAL'!F37="",0,'1. PRESUPUESTO INICIAL'!F37) -> 0 | AR34: =IF(OR(B34="",AQ34=0),0,SUMIFS('4. DETALLADA-RECURSOS ICBF'!$M$10:$M$1300,'4. DETALLADA-RECURSOS ICBF'!$B$10:$B$1300,'2. INFORMACION GENERAL'!$AQ$26,'4. DETALLADA-RECURSOS ICBF'!$K$10:$K$1300,'2. INFORMACION GENERAL'!$B$28,'4. DETALLADA-RECURSOS ICBF'!$L$10:$L$1300,'2. INFORMACION GENERAL'!B34)) -> 0 | AS34: 0 | AT34: 0 | AU34: =+SUMIFS(D34:AS34,$D$27:$AS$27,$AU$27) -> 0 | AV34: 0
A35: 2107 | B35: =IF('1. PRESUPUESTO INICIAL'!B38="","",'1. PRESUPUESTO INICIAL'!B38) -> FALSE | D35: =IF('1. PRESUPUESTO INICIAL'!D38="",0,'1. PRESUPUESTO INICIAL'!D38) -> 0 | E35: =IF(OR(B35="",D35=0),0,SUMIFS('4. DETALLADA-RECURSOS ICBF'!$M$10:$M$1300,'4. DETALLADA-RECURSOS ICBF'!$B$10:$B$1300,'2. INFORMACION GENERAL'!$D$26,'4. DETALLADA-RECURSOS ICBF'!$K$10:$K$1300,'2. INFORMACION GENERAL'!$B$28,'4. DETALLADA-RECURSOS ICBF'!$L$10:$L$1300,'2. INFORMACION GENERAL'!B35)) -> 0 | F35: 0 | G35: 0 | H35: =IF(OR(B35="",G35=0),0,SUMIFS('4. DETALLADA-RECURSOS ICBF'!$M$10:$M$1300,'4. DETALLADA-RECURSOS ICBF'!$B$10:$B$1300,'2. INFORMACION GENERAL'!$G$26,'4. DETALLADA-RECURSOS ICBF'!$K$10:$K$1300,'2. INFORMACION GENERAL'!$B$28,'4. DETALLADA-RECURSOS ICBF'!$L$10:$L$1300,'2. INFORMACION GENERAL'!B35)) -> 0 | I35: 0 | J35: 0 | K35: =IF(OR(B35="",J35=0),0,SUMIFS('4. DETALLADA-RECURSOS ICBF'!$M$10:$M$1300,'4. DETALLADA-RECURSOS ICBF'!$B$10:$B$1300,'2. INFORMACION GENERAL'!$J$26,'4. DETALLADA-RECURSOS ICBF'!$K$10:$K$1300,'2. INFORMACION GENERAL'!$B$28,'4. DETALLADA-RECURSOS ICBF'!$L$10:$L$1300,'2. INFORMACION GENERAL'!B35)) -> 0 | L35: 0 | M35: 0 | N35: =IF(OR(B35="",M35=0),0,SUMIFS('4. DETALLADA-RECURSOS ICBF'!$M$10:$M$1300,'4. DETALLADA-RECURSOS ICBF'!$B$10:$B$1300,'2. INFORMACION GENERAL'!$M$26,'4. DETALLADA-RECURSOS ICBF'!$K$10:$K$1300,'2. INFORMACION GENERAL'!$B$28,'4. DETALLADA-RECURSOS ICBF'!$L$10:$L$1300,'2. INFORMACION GENERAL'!B35)) -> 0 | O35: 0 | P35: 0 | Q35: =IF(OR(B35="",P35=0),0,SUMIFS('4. DETALLADA-RECURSOS ICBF'!$M$10:$M$1300,'4. DETALLADA-RECURSOS ICBF'!$B$10:$B$1300,'2. INFORMACION GENERAL'!$P$26,'4. DETALLADA-RECURSOS ICBF'!$K$10:$K$1300,'2. INFORMACION GENERAL'!$B$28,'4. DETALLADA-RECURSOS ICBF'!$L$10:$L$1300,'2. INFORMACION GENERAL'!B35)) -> 0 | R35: 0 | S35: 0 | T35: =IF(OR(B35="",S35=0),0,SUMIFS('4. DETALLADA-RECURSOS ICBF'!$M$10:$M$1300,'4. DETALLADA-RECURSOS ICBF'!$B$10:$B$1300,'2. INFORMACION GENERAL'!$S$26,'4. DETALLADA-RECURSOS ICBF'!$K$10:$K$1300,'2. INFORMACION GENERAL'!$B$28,'4. DETALLADA-RECURSOS ICBF'!$L$10:$L$1300,'2. INFORMACION GENERAL'!B35)) -> 0 | U35: 0 | V35: 0 | W35: =IF(OR(B35="",V35=0),0,SUMIFS('4. DETALLADA-RECURSOS ICBF'!$M$10:$M$1300,'4. DETALLADA-RECURSOS ICBF'!$B$10:$B$1300,'2. INFORMACION GENERAL'!$V$26,'4. DETALLADA-RECURSOS ICBF'!$K$10:$K$1300,'2. INFORMACION GENERAL'!$B$28,'4. DETALLADA-RECURSOS ICBF'!$L$10:$L$1300,'2. INFORMACION GENERAL'!B35)) -> 0 | X35: 0 | Y35: 0 | Z35: =IF(OR(B35="",Y35=0),0,SUMIFS('4. DETALLADA-RECURSOS ICBF'!$M$10:$M$1300,'4. DETALLADA-RECURSOS ICBF'!$B$10:$B$1300,'2. INFORMACION GENERAL'!$Y$26,'4. DETALLADA-RECURSOS ICBF'!$K$10:$K$1300,'2. INFORMACION GENERAL'!$B$28,'4. DETALLADA-RECURSOS ICBF'!$L$10:$L$1300,'2. INFORMACION GENERAL'!B35)) -> 0 | AA35: 0 | AB35: 0 | AC35: =IF(OR(B35="",AB35=0),0,SUMIFS('4. DETALLADA-RECURSOS ICBF'!$M$10:$M$1300,'4. DETALLADA-RECURSOS ICBF'!$B$10:$B$1300,'2. INFORMACION GENERAL'!$AB$26,'4. DETALLADA-RECURSOS ICBF'!$K$10:$K$1300,'2. INFORMACION GENERAL'!$B$28,'4. DETALLADA-RECURSOS ICBF'!$L$10:$L$1300,'2. INFORMACION GENERAL'!B35)) -> 0 | AD35: 0 | AE35: 0 | AF35: =IF(OR(B35="",AE35=0),0,SUMIFS('4. DETALLADA-RECURSOS ICBF'!$M$10:$M$1300,'4. DETALLADA-RECURSOS ICBF'!$B$10:$B$1300,'2. INFORMACION GENERAL'!$AE$26,'4. DETALLADA-RECURSOS ICBF'!$K$10:$K$1300,'2. INFORMACION GENERAL'!$B$28,'4. DETALLADA-RECURSOS ICBF'!$L$10:$L$1300,'2. INFORMACION GENERAL'!B35)) -> 0 | AG35: 0 | AH35: 0 | AI35: =IF(OR(B35="",AH35=0),0,SUMIFS('4. DETALLADA-RECURSOS ICBF'!$M$10:$M$1300,'4. DETALLADA-RECURSOS ICBF'!$B$10:$B$1300,'2. INFORMACION GENERAL'!$AH$26,'4. DETALLADA-RECURSOS ICBF'!$K$10:$K$1300,'2. INFORMACION GENERAL'!$B$28,'4. DETALLADA-RECURSOS ICBF'!$L$10:$L$1300,'2. INFORMACION GENERAL'!B35)) -> 0 | AJ35: 0 | AK35: 0 | AL35: =IF(OR(B35="",AK35=0),0,SUMIFS('4. DETALLADA-RECURSOS ICBF'!$M$10:$M$1300,'4. DETALLADA-RECURSOS ICBF'!$B$10:$B$1300,'2. INFORMACION GENERAL'!$AK$26,'4. DETALLADA-RECURSOS ICBF'!$K$10:$K$1300,'2. INFORMACION GENERAL'!$B$28,'4. DETALLADA-RECURSOS ICBF'!$L$10:$L$1300,'2. INFORMACION GENERAL'!B35)) -> 0 | AM35: 0 | AN35: 0 | AO35: =IF(OR(B35="",AN35=0),0,SUMIFS('4. DETALLADA-RECURSOS ICBF'!$M$10:$M$1300,'4. DETALLADA-RECURSOS ICBF'!$B$10:$B$1300,'2. INFORMACION GENERAL'!$AN$26,'4. DETALLADA-RECURSOS ICBF'!$K$10:$K$1300,'2. INFORMACION GENERAL'!$B$28,'4. DETALLADA-RECURSOS ICBF'!$L$10:$L$1300,'2. INFORMACION GENERAL'!B35)) -> 0 | AP35: 0 | AQ35: =IF('1. PRESUPUESTO INICIAL'!F38="",0,'1. PRESUPUESTO INICIAL'!F38) -> 0 | AR35: =IF(OR(B35="",AQ35=0),0,SUMIFS('4. DETALLADA-RECURSOS ICBF'!$M$10:$M$1300,'4. DETALLADA-RECURSOS ICBF'!$B$10:$B$1300,'2. INFORMACION GENERAL'!$AQ$26,'4. DETALLADA-RECURSOS ICBF'!$K$10:$K$1300,'2. INFORMACION GENERAL'!$B$28,'4. DETALLADA-RECURSOS ICBF'!$L$10:$L$1300,'2. INFORMACION GENERAL'!B35)) -> 0 | AS35: 0 | AT35: 0 | AU35: 0 | AV35: 0
A36: 2108 | B36: =IF('1. PRESUPUESTO INICIAL'!B39="","",'1. PRESUPUESTO INICIAL'!B39) -> FALSE | D36: =IF('1. PRESUPUESTO INICIAL'!D39="",0,'1. PRESUPUESTO INICIAL'!D39) -> 0 | E36: =IF(OR(B36="",D36=0),0,SUMIFS('4. DETALLADA-RECURSOS ICBF'!$M$10:$M$1300,'4. DETALLADA-RECURSOS ICBF'!$B$10:$B$1300,'2. INFORMACION GENERAL'!$D$26,'4. DETALLADA-RECURSOS ICBF'!$K$10:$K$1300,'2. INFORMACION GENERAL'!$B$28,'4. DETALLADA-RECURSOS ICBF'!$L$10:$L$1300,'2. INFORMACION GENERAL'!B36)) -> 0 | F36: 0 | G36: 0 | H36: =IF(OR(B36="",G36=0),0,SUMIFS('4. DETALLADA-RECURSOS ICBF'!$M$10:$M$1300,'4. DETALLADA-RECURSOS ICBF'!$B$10:$B$1300,'2. INFORMACION GENERAL'!$G$26,'4. DETALLADA-RECURSOS ICBF'!$K$10:$K$1300,'2. INFORMACION GENERAL'!$B$28,'4. DETALLADA-RECURSOS ICBF'!$L$10:$L$1300,'2. INFORMACION GENERAL'!B36)) -> 0 | I36: 0 | J36: 0 | K36: =IF(OR(B36="",J36=0),0,SUMIFS('4. DETALLADA-RECURSOS ICBF'!$M$10:$M$1300,'4. DETALLADA-RECURSOS ICBF'!$B$10:$B$1300,'2. INFORMACION GENERAL'!$J$26,'4. DETALLADA-RECURSOS ICBF'!$K$10:$K$1300,'2. INFORMACION GENERAL'!$B$28,'4. DETALLADA-RECURSOS ICBF'!$L$10:$L$1300,'2. INFORMACION GENERAL'!B36)) -> 0 | L36: 0 | M36: 0 | N36: =IF(OR(B36="",M36=0),0,SUMIFS('4. DETALLADA-RECURSOS ICBF'!$M$10:$M$1300,'4. DETALLADA-RECURSOS ICBF'!$B$10:$B$1300,'2. INFORMACION GENERAL'!$M$26,'4. DETALLADA-RECURSOS ICBF'!$K$10:$K$1300,'2. INFORMACION GENERAL'!$B$28,'4. DETALLADA-RECURSOS ICBF'!$L$10:$L$1300,'2. INFORMACION GENERAL'!B36)) -> 0 | O36: 0 | P36: 0 | Q36: =IF(OR(B36="",P36=0),0,SUMIFS('4. DETALLADA-RECURSOS ICBF'!$M$10:$M$1300,'4. DETALLADA-RECURSOS ICBF'!$B$10:$B$1300,'2. INFORMACION GENERAL'!$P$26,'4. DETALLADA-RECURSOS ICBF'!$K$10:$K$1300,'2. INFORMACION GENERAL'!$B$28,'4. DETALLADA-RECURSOS ICBF'!$L$10:$L$1300,'2. INFORMACION GENERAL'!B36)) -> 0 | R36: 0 | S36: 0 | T36: =IF(OR(B36="",S36=0),0,SUMIFS('4. DETALLADA-RECURSOS ICBF'!$M$10:$M$1300,'4. DETALLADA-RECURSOS ICBF'!$B$10:$B$1300,'2. INFORMACION GENERAL'!$S$26,'4. DETALLADA-RECURSOS ICBF'!$K$10:$K$1300,'2. INFORMACION GENERAL'!$B$28,'4. DETALLADA-RECURSOS ICBF'!$L$10:$L$1300,'2. INFORMACION GENERAL'!B36)) -> 0 | U36: 0 | V36: 0 | W36: =IF(OR(B36="",V36=0),0,SUMIFS('4. DETALLADA-RECURSOS ICBF'!$M$10:$M$1300,'4. DETALLADA-RECURSOS ICBF'!$B$10:$B$1300,'2. INFORMACION GENERAL'!$V$26,'4. DETALLADA-RECURSOS ICBF'!$K$10:$K$1300,'2. INFORMACION GENERAL'!$B$28,'4. DETALLADA-RECURSOS ICBF'!$L$10:$L$1300,'2. INFORMACION GENERAL'!B36)) -> 0 | X36: 0 | Y36: 0 | Z36: =IF(OR(B36="",Y36=0),0,SUMIFS('4. DETALLADA-RECURSOS ICBF'!$M$10:$M$1300,'4. DETALLADA-RECURSOS ICBF'!$B$10:$B$1300,'2. INFORMACION GENERAL'!$Y$26,'4. DETALLADA-RECURSOS ICBF'!$K$10:$K$1300,'2. INFORMACION GENERAL'!$B$28,'4. DETALLADA-RECURSOS ICBF'!$L$10:$L$1300,'2. INFORMACION GENERAL'!B36)) -> 0 | AA36: 0 | AB36: 0 | AC36: =IF(OR(B36="",AB36=0),0,SUMIFS('4. DETALLADA-RECURSOS ICBF'!$M$10:$M$1300,'4. DETALLADA-RECURSOS ICBF'!$B$10:$B$1300,'2. INFORMACION GENERAL'!$AB$26,'4. DETALLADA-RECURSOS ICBF'!$K$10:$K$1300,'2. INFORMACION GENERAL'!$B$28,'4. DETALLADA-RECURSOS ICBF'!$L$10:$L$1300,'2. INFORMACION GENERAL'!B36)) -> 0 | AD36: 0 | AE36: 0 | AF36: =IF(OR(B36="",AE36=0),0,SUMIFS('4. DETALLADA-RECURSOS ICBF'!$M$10:$M$1300,'4. DETALLADA-RECURSOS ICBF'!$B$10:$B$1300,'2. INFORMACION GENERAL'!$AE$26,'4. DETALLADA-RECURSOS ICBF'!$K$10:$K$1300,'2. INFORMACION GENERAL'!$B$28,'4. DETALLADA-RECURSOS ICBF'!$L$10:$L$1300,'2. INFORMACION GENERAL'!B36)) -> 0 | AG36: 0 | AH36: 0 | AI36: =IF(OR(B36="",AH36=0),0,SUMIFS('4. DETALLADA-RECURSOS ICBF'!$M$10:$M$1300,'4. DETALLADA-RECURSOS ICBF'!$B$10:$B$1300,'2. INFORMACION GENERAL'!$AH$26,'4. DETALLADA-RECURSOS ICBF'!$K$10:$K$1300,'2. INFORMACION GENERAL'!$B$28,'4. DETALLADA-RECURSOS ICBF'!$L$10:$L$1300,'2. INFORMACION GENERAL'!B36)) -> 0 | AJ36: 0 | AK36: 0 | AL36: =IF(OR(B36="",AK36=0),0,SUMIFS('4. DETALLADA-RECURSOS ICBF'!$M$10:$M$1300,'4. DETALLADA-RECURSOS ICBF'!$B$10:$B$1300,'2. INFORMACION GENERAL'!$AK$26,'4. DETALLADA-RECURSOS ICBF'!$K$10:$K$1300,'2. INFORMACION GENERAL'!$B$28,'4. DETALLADA-RECURSOS ICBF'!$L$10:$L$1300,'2. INFORMACION GENERAL'!B36)) -> 0 | AM36: 0 | AN36: 0 | AO36: =IF(OR(B36="",AN36=0),0,SUMIFS('4. DETALLADA-RECURSOS ICBF'!$M$10:$M$1300,'4. DETALLADA-RECURSOS ICBF'!$B$10:$B$1300,'2. INFORMACION GENERAL'!$AN$26,'4. DETALLADA-RECURSOS ICBF'!$K$10:$K$1300,'2. INFORMACION GENERAL'!$B$28,'4. DETALLADA-RECURSOS ICBF'!$L$10:$L$1300,'2. INFORMACION GENERAL'!B36)) -> 0 | AP36: 0 | AQ36: =IF('1. PRESUPUESTO INICIAL'!F39="",0,'1. PRESUPUESTO INICIAL'!F39) -> 0 | AR36: =IF(OR(B36="",AQ36=0),0,SUMIFS('4. DETALLADA-RECURSOS ICBF'!$M$10:$M$1300,'4. DETALLADA-RECURSOS ICBF'!$B$10:$B$1300,'2. INFORMACION GENERAL'!$AQ$26,'4. DETALLADA-RECURSOS ICBF'!$K$10:$K$1300,'2. INFORMACION GENERAL'!$B$28,'4. DETALLADA-RECURSOS ICBF'!$L$10:$L$1300,'2. INFORMACION GENERAL'!B36)) -> 0 | AS36: 0 | AT36: 0 | AU36: 0 | AV36: 0
A37: 2109 | B37: =IF('1. PRESUPUESTO INICIAL'!B40="","",'1. PRESUPUESTO INICIAL'!B40) -> FALSE | D37: =IF('1. PRESUPUESTO INICIAL'!D40="",0,'1. PRESUPUESTO INICIAL'!D40) -> 0 | E37: =IF(OR(B37="",D37=0),0,SUMIFS('4. DETALLADA-RECURSOS ICBF'!$M$10:$M$1300,'4. DETALLADA-RECURSOS ICBF'!$B$10:$B$1300,'2. INFORMACION GENERAL'!$D$26,'4. DETALLADA-RECURSOS ICBF'!$K$10:$K$1300,'2. INFORMACION GENERAL'!$B$28,'4. DETALLADA-RECURSOS ICBF'!$L$10:$L$1300,'2. INFORMACION GENERAL'!B37)) -> 0 | F37: 0 | H37: =IF(OR(B37="",G37=0),0,SUMIFS('4. DETALLADA-RECURSOS ICBF'!$M$10:$M$1300,'4. DETALLADA-RECURSOS ICBF'!$B$10:$B$1300,'2. INFORMACION GENERAL'!$G$26,'4. DETALLADA-RECURSOS ICBF'!$K$10:$K$1300,'2. INFORMACION GENERAL'!$B$28,'4. DETALLADA-RECURSOS ICBF'!$L$10:$L$1300,'2. INFORMACION GENERAL'!B37)) -> 0 | I37: 0 | J37: 0 | K37: =IF(OR(B37="",J37=0),0,SUMIFS('4. DETALLADA-RECURSOS ICBF'!$M$10:$M$1300,'4. DETALLADA-RECURSOS ICBF'!$B$10:$B$1300,'2. INFORMACION GENERAL'!$J$26,'4. DETALLADA-RECURSOS ICBF'!$K$10:$K$1300,'2. INFORMACION GENERAL'!$B$28,'4. DETALLADA-RECURSOS ICBF'!$L$10:$L$1300,'2. INFORMACION GENERAL'!B37)) -> 0 | L37: 0 | M37: 0 | N37: =IF(OR(B37="",M37=0),0,SUMIFS('4. DETALLADA-RECURSOS ICBF'!$M$10:$M$1300,'4. DETALLADA-RECURSOS ICBF'!$B$10:$B$1300,'2. INFORMACION GENERAL'!$M$26,'4. DETALLADA-RECURSOS ICBF'!$K$10:$K$1300,'2. INFORMACION GENERAL'!$B$28,'4. DETALLADA-RECURSOS ICBF'!$L$10:$L$1300,'2. INFORMACION GENERAL'!B37)) -> 0 | O37: 0 | P37: 0 | Q37: =IF(OR(B37="",P37=0),0,SUMIFS('4. DETALLADA-RECURSOS ICBF'!$M$10:$M$1300,'4. DETALLADA-RECURSOS ICBF'!$B$10:$B$1300,'2. INFORMACION GENERAL'!$P$26,'4. DETALLADA-RECURSOS ICBF'!$K$10:$K$1300,'2. INFORMACION GENERAL'!$B$28,'4. DETALLADA-RECURSOS ICBF'!$L$10:$L$1300,'2. INFORMACION GENERAL'!B37)) -> 0 | R37: 0 | S37: 0 | T37: =IF(OR(B37="",S37=0),0,SUMIFS('4. DETALLADA-RECURSOS ICBF'!$M$10:$M$1300,'4. DETALLADA-RECURSOS ICBF'!$B$10:$B$1300,'2. INFORMACION GENERAL'!$S$26,'4. DETALLADA-RECURSOS ICBF'!$K$10:$K$1300,'2. INFORMACION GENERAL'!$B$28,'4. DETALLADA-RECURSOS ICBF'!$L$10:$L$1300,'2. INFORMACION GENERAL'!B37)) -> 0 | U37: 0 | V37: 0 | W37: =IF(OR(B37="",V37=0),0,SUMIFS('4. DETALLADA-RECURSOS ICBF'!$M$10:$M$1300,'4. DETALLADA-RECURSOS ICBF'!$B$10:$B$1300,'2. INFORMACION GENERAL'!$V$26,'4. DETALLADA-RECURSOS ICBF'!$K$10:$K$1300,'2. INFORMACION GENERAL'!$B$28,'4. DETALLADA-RECURSOS ICBF'!$L$10:$L$1300,'2. INFORMACION GENERAL'!B37)) -> 0 | X37: 0 | Y37: 0 | Z37: =IF(OR(B37="",Y37=0),0,SUMIFS('4. DETALLADA-RECURSOS ICBF'!$M$10:$M$1300,'4. DETALLADA-RECURSOS ICBF'!$B$10:$B$1300,'2. INFORMACION GENERAL'!$Y$26,'4. DETALLADA-RECURSOS ICBF'!$K$10:$K$1300,'2. INFORMACION GENERAL'!$B$28,'4. DETALLADA-RECURSOS ICBF'!$L$10:$L$1300,'2. INFORMACION GENERAL'!B37)) -> 0 | AA37: 0 | AB37: 0 | AC37: =IF(OR(B37="",AB37=0),0,SUMIFS('4. DETALLADA-RECURSOS ICBF'!$M$10:$M$1300,'4. DETALLADA-RECURSOS ICBF'!$B$10:$B$1300,'2. INFORMACION GENERAL'!$AB$26,'4. DETALLADA-RECURSOS ICBF'!$K$10:$K$1300,'2. INFORMACION GENERAL'!$B$28,'4. DETALLADA-RECURSOS ICBF'!$L$10:$L$1300,'2. INFORMACION GENERAL'!B37)) -> 0 | AD37: 0 | AE37: 0 | AF37: =IF(OR(B37="",AE37=0),0,SUMIFS('4. DETALLADA-RECURSOS ICBF'!$M$10:$M$1300,'4. DETALLADA-RECURSOS ICBF'!$B$10:$B$1300,'2. INFORMACION GENERAL'!$AE$26,'4. DETALLADA-RECURSOS ICBF'!$K$10:$K$1300,'2. INFORMACION GENERAL'!$B$28,'4. DETALLADA-RECURSOS ICBF'!$L$10:$L$1300,'2. INFORMACION GENERAL'!B37)) -> 0 | AG37: 0 | AH37: 0 | AI37: =IF(OR(B37="",AH37=0),0,SUMIFS('4. DETALLADA-RECURSOS ICBF'!$M$10:$M$1300,'4. DETALLADA-RECURSOS ICBF'!$B$10:$B$1300,'2. INFORMACION GENERAL'!$AH$26,'4. DETALLADA-RECURSOS ICBF'!$K$10:$K$1300,'2. INFORMACION GENERAL'!$B$28,'4. DETALLADA-RECURSOS ICBF'!$L$10:$L$1300,'2. INFORMACION GENERAL'!B37)) -> 0 | AJ37: 0 | AK37: 0 | AL37: =IF(OR(B37="",AK37=0),0,SUMIFS('4. DETALLADA-RECURSOS ICBF'!$M$10:$M$1300,'4. DETALLADA-RECURSOS ICBF'!$B$10:$B$1300,'2. INFORMACION GENERAL'!$AK$26,'4. DETALLADA-RECURSOS ICBF'!$K$10:$K$1300,'2. INFORMACION GENERAL'!$B$28,'4. DETALLADA-RECURSOS ICBF'!$L$10:$L$1300,'2. INFORMACION GENERAL'!B37)) -> 0 | AM37: 0 | AN37: 0 | AO37: =IF(OR(B37="",AN37=0),0,SUMIFS('4. DETALLADA-RECURSOS ICBF'!$M$10:$M$1300,'4. DETALLADA-RECURSOS ICBF'!$B$10:$B$1300,'2. INFORMACION GENERAL'!$AN$26,'4. DETALLADA-RECURSOS ICBF'!$K$10:$K$1300,'2. INFORMACION GENERAL'!$B$28,'4. DETALLADA-RECURSOS ICBF'!$L$10:$L$1300,'2. INFORMACION GENERAL'!B37)) -> 0 | AP37: 0 | AQ37: =IF('1. PRESUPUESTO INICIAL'!F40="",0,'1. PRESUPUESTO INICIAL'!F40) -> 0 | AR37: =IF(OR(B37="",AQ37=0),0,SUMIFS('4. DETALLADA-RECURSOS ICBF'!$M$10:$M$1300,'4. DETALLADA-RECURSOS ICBF'!$B$10:$B$1300,'2. INFORMACION GENERAL'!$AQ$26,'4. DETALLADA-RECURSOS ICBF'!$K$10:$K$1300,'2. INFORMACION GENERAL'!$B$28,'4. DETALLADA-RECURSOS ICBF'!$L$10:$L$1300,'2. INFORMACION GENERAL'!B37)) -> 0 | AS37: 0 | AT37: 0 | AU37: 0 | AV37: 0
A38: 2110 | B38: =IF('1. PRESUPUESTO INICIAL'!B41="","",'1. PRESUPUESTO INICIAL'!B41) -> FALSE | D38: =IF('1. PRESUPUESTO INICIAL'!D41="",0,'1. PRESUPUESTO INICIAL'!D41) -> 0 | E38: =IF(OR(B38="",D38=0),0,SUMIFS('4. DETALLADA-RECURSOS ICBF'!$M$10:$M$1300,'4. DETALLADA-RECURSOS ICBF'!$B$10:$B$1300,'2. INFORMACION GENERAL'!$D$26,'4. DETALLADA-RECURSOS ICBF'!$K$10:$K$1300,'2. INFORMACION GENERAL'!$B$28,'4. DETALLADA-RECURSOS ICBF'!$L$10:$L$1300,'2. INFORMACION GENERAL'!B38)) -> 0 | F38: =IFERROR(D38-E38,0) -> 0 | G38: 0 | H38: =IF(OR(B38="",G38=0),0,SUMIFS('4. DETALLADA-RECURSOS ICBF'!$M$10:$M$1300,'4. DETALLADA-RECURSOS ICBF'!$B$10:$B$1300,'2. INFORMACION GENERAL'!$G$26,'4. DETALLADA-RECURSOS ICBF'!$K$10:$K$1300,'2. INFORMACION GENERAL'!$B$28,'4. DETALLADA-RECURSOS ICBF'!$L$10:$L$1300,'2. INFORMACION GENERAL'!B38)) -> 0 | I38: 0 | J38: 0 | K38: =IF(OR(B38="",J38=0),0,SUMIFS('4. DETALLADA-RECURSOS ICBF'!$M$10:$M$1300,'4. DETALLADA-RECURSOS ICBF'!$B$10:$B$1300,'2. INFORMACION GENERAL'!$J$26,'4. DETALLADA-RECURSOS ICBF'!$K$10:$K$1300,'2. INFORMACION GENERAL'!$B$28,'4. DETALLADA-RECURSOS ICBF'!$L$10:$L$1300,'2. INFORMACION GENERAL'!B38)) -> 0 | L38: 0 | M38: 0 | N38: =IF(OR(B38="",M38=0),0,SUMIFS('4. DETALLADA-RECURSOS ICBF'!$M$10:$M$1300,'4. DETALLADA-RECURSOS ICBF'!$B$10:$B$1300,'2. INFORMACION GENERAL'!$M$26,'4. DETALLADA-RECURSOS ICBF'!$K$10:$K$1300,'2. INFORMACION GENERAL'!$B$28,'4. DETALLADA-RECURSOS ICBF'!$L$10:$L$1300,'2. INFORMACION GENERAL'!B38)) -> 0 | O38: 0 | P38: 0 | Q38: =IF(OR(B38="",P38=0),0,SUMIFS('4. DETALLADA-RECURSOS ICBF'!$M$10:$M$1300,'4. DETALLADA-RECURSOS ICBF'!$B$10:$B$1300,'2. INFORMACION GENERAL'!$P$26,'4. DETALLADA-RECURSOS ICBF'!$K$10:$K$1300,'2. INFORMACION GENERAL'!$B$28,'4. DETALLADA-RECURSOS ICBF'!$L$10:$L$1300,'2. INFORMACION GENERAL'!B38)) -> 0 | R38: 0 | S38: 0 | T38: =IF(OR(B38="",S38=0),0,SUMIFS('4. DETALLADA-RECURSOS ICBF'!$M$10:$M$1300,'4. DETALLADA-RECURSOS ICBF'!$B$10:$B$1300,'2. INFORMACION GENERAL'!$S$26,'4. DETALLADA-RECURSOS ICBF'!$K$10:$K$1300,'2. INFORMACION GENERAL'!$B$28,'4. DETALLADA-RECURSOS ICBF'!$L$10:$L$1300,'2. INFORMACION GENERAL'!B38)) -> 0 | U38: 0 | V38: 0 | W38: =IF(OR(B38="",V38=0),0,SUMIFS('4. DETALLADA-RECURSOS ICBF'!$M$10:$M$1300,'4. DETALLADA-RECURSOS ICBF'!$B$10:$B$1300,'2. INFORMACION GENERAL'!$V$26,'4. DETALLADA-RECURSOS ICBF'!$K$10:$K$1300,'2. INFORMACION GENERAL'!$B$28,'4. DETALLADA-RECURSOS ICBF'!$L$10:$L$1300,'2. INFORMACION GENERAL'!B38)) -> 0 | X38: 0 | Y38: 0 | Z38: =IF(OR(B38="",Y38=0),0,SUMIFS('4. DETALLADA-RECURSOS ICBF'!$M$10:$M$1300,'4. DETALLADA-RECURSOS ICBF'!$B$10:$B$1300,'2. INFORMACION GENERAL'!$Y$26,'4. DETALLADA-RECURSOS ICBF'!$K$10:$K$1300,'2. INFORMACION GENERAL'!$B$28,'4. DETALLADA-RECURSOS ICBF'!$L$10:$L$1300,'2. INFORMACION GENERAL'!B38)) -> 0 | AA38: 0 | AB38: 0 | AC38: =IF(OR(B38="",AB38=0),0,SUMIFS('4. DETALLADA-RECURSOS ICBF'!$M$10:$M$1300,'4. DETALLADA-RECURSOS ICBF'!$B$10:$B$1300,'2. INFORMACION GENERAL'!$AB$26,'4. DETALLADA-RECURSOS ICBF'!$K$10:$K$1300,'2. INFORMACION GENERAL'!$B$28,'4. DETALLADA-RECURSOS ICBF'!$L$10:$L$1300,'2. INFORMACION GENERAL'!B38)) -> 0 | AD38: 0 | AE38: 0 | AF38: =IF(OR(B38="",AE38=0),0,SUMIFS('4. DETALLADA-RECURSOS ICBF'!$M$10:$M$1300,'4. DETALLADA-RECURSOS ICBF'!$B$10:$B$1300,'2. INFORMACION GENERAL'!$AE$26,'4. DETALLADA-RECURSOS ICBF'!$K$10:$K$1300,'2. INFORMACION GENERAL'!$B$28,'4. DETALLADA-RECURSOS ICBF'!$L$10:$L$1300,'2. INFORMACION GENERAL'!B38)) -> 0 | AG38: 0 | AH38: 0 | AI38: =IF(OR(B38="",AH38=0),0,SUMIFS('4. DETALLADA-RECURSOS ICBF'!$M$10:$M$1300,'4. DETALLADA-RECURSOS ICBF'!$B$10:$B$1300,'2. INFORMACION GENERAL'!$AH$26,'4. DETALLADA-RECURSOS ICBF'!$K$10:$K$1300,'2. INFORMACION GENERAL'!$B$28,'4. DETALLADA-RECURSOS ICBF'!$L$10:$L$1300,'2. INFORMACION GENERAL'!B38)) -> 0 | AJ38: 0 | AK38: 0 | AL38: =IF(OR(B38="",AK38=0),0,SUMIFS('4. DETALLADA-RECURSOS ICBF'!$M$10:$M$1300,'4. DETALLADA-RECURSOS ICBF'!$B$10:$B$1300,'2. INFORMACION GENERAL'!$AK$26,'4. DETALLADA-RECURSOS ICBF'!$K$10:$K$1300,'2. INFORMACION GENERAL'!$B$28,'4. DETALLADA-RECURSOS ICBF'!$L$10:$L$1300,'2. INFORMACION GENERAL'!B38)) -> 0 | AM38: 0 | AN38: 0 | AO38: =IF(OR(B38="",AN38=0),0,SUMIFS('4. DETALLADA-RECURSOS ICBF'!$M$10:$M$1300,'4. DETALLADA-RECURSOS ICBF'!$B$10:$B$1300,'2. INFORMACION GENERAL'!$AN$26,'4. DETALLADA-RECURSOS ICBF'!$K$10:$K$1300,'2. INFORMACION GENERAL'!$B$28,'4. DETALLADA-RECURSOS ICBF'!$L$10:$L$1300,'2. INFORMACION GENERAL'!B38)) -> 0 | AP38: 0 | AQ38: =IF('1. PRESUPUESTO INICIAL'!F41="",0,'1. PRESUPUESTO INICIAL'!F41) -> 0 | AR38: =IF(OR(B38="",AQ38=0),0,SUMIFS('4. DETALLADA-RECURSOS ICBF'!$M$10:$M$1300,'4. DETALLADA-RECURSOS ICBF'!$B$10:$B$1300,'2. INFORMACION GENERAL'!$AQ$26,'4. DETALLADA-RECURSOS ICBF'!$K$10:$K$1300,'2. INFORMACION GENERAL'!$B$28,'4. DETALLADA-RECURSOS ICBF'!$L$10:$L$1300,'2. INFORMACION GENERAL'!B38)) -> 0 | AS38: 0 | AT38: 0 | AU38: 0 | AV38: 0
A39: 2110 | B39: =IF('1. PRESUPUESTO INICIAL'!B45="","",'1. PRESUPUESTO INICIAL'!B45) -> FALSE | D39: =+SUM(D40:D43) -> 0 | E39: =+SUM(E40:E43) -> 0 | F39: =IFERROR(D39-E39,0) -> 0 | G39: =+SUM(G40:G43) -> 0 | H39: 0 | I39: =+SUM(I40:I43) -> 0 | J39: =+SUM(J40:J43) -> 0 | K39: 0 | L39: =+SUM(L40:L43) -> 0 | M39: =+SUM(M40:M43) -> 0 | N39: 0 | O39: =+SUM(O40:O43) -> 0 | P39: =+SUM(P40:P43) -> 0 | Q39: 0 | R39: 0 | S39: =+SUM(S40:S43) -> 0 | T39: 0 | U39: 0 | V39: =+SUM(V40:V43) -> 0 | W39: 0 | X39: 0 | Y39: =+SUM(Y40:Y43) -> 0 | Z39: 0 | AA39: 0 | AB39: =+SUM(AB40:AB43) -> 0 | AC39: 0 | AD39: 0 | AE39: =+SUM(AE40:AE43) -> 0 | AF39: 0 | AG39: 0 | AH39: =+SUM(AH40:AH43) -> 0 | AI39: 0 | AJ39: 0 | AK39: =+SUM(AK40:AK43) -> 0 | AL39: 0 | AM39: 0 | AN39: =+SUM(AN40:AN43) -> 0 | AO39: 0 | AP39: 0 | AQ39: =+SUM(AQ40:AQ43) -> 0 | AR39: =+SUM(AR40:AR43) -> 0 | AS39: =+SUM(AS40:AS43) -> 0 | AT39: 0 | AU39: 0 | AV39: 0
A40: 2111 | B40: =IF('1. PRESUPUESTO INICIAL'!B46="","",'1. PRESUPUESTO INICIAL'!B46) -> FALSE | D40: =IF('1. PRESUPUESTO INICIAL'!D46="",0,'1. PRESUPUESTO INICIAL'!D46) -> 0 | E40: =IF(OR(B40="",D40=0),0,SUMIFS('4. DETALLADA-RECURSOS ICBF'!$M$10:$M$1300,'4. DETALLADA-RECURSOS ICBF'!$B$10:$B$1300,'2. INFORMACION GENERAL'!$D$26,'4. DETALLADA-RECURSOS ICBF'!$K$10:$K$1300,'2. INFORMACION GENERAL'!$B$39,'4. DETALLADA-RECURSOS ICBF'!$L$10:$L$1300,'2. INFORMACION GENERAL'!B40)) -> 0 | F40: =IFERROR(D40-E40,0) -> 0 | G40: 0 | H40: =IF(OR(B40="",G40=0),0,SUMIFS('4. DETALLADA-RECURSOS ICBF'!$M$10:$M$1300,'4. DETALLADA-RECURSOS ICBF'!$B$10:$B$1300,'2. INFORMACION GENERAL'!$G$26,'4. DETALLADA-RECURSOS ICBF'!$K$10:$K$1300,'2. INFORMACION GENERAL'!$B$39,'4. DETALLADA-RECURSOS ICBF'!$L$10:$L$1300,'2. INFORMACION GENERAL'!B40)) -> 0 | I40: =IFERROR(G40-H40,0) -> 0 | J40: 0 | K40: =IF(OR(B40="",J40=0),0,SUMIFS('4. DETALLADA-RECURSOS ICBF'!$M$10:$M$1300,'4. DETALLADA-RECURSOS ICBF'!$B$10:$B$1300,'2. INFORMACION GENERAL'!$J$26,'4. DETALLADA-RECURSOS ICBF'!$K$10:$K$1300,'2. INFORMACION GENERAL'!$B$39,'4. DETALLADA-RECURSOS ICBF'!$L$10:$L$1300,'2. INFORMACION GENERAL'!B40)) -> 0 | L40: =IFERROR(J40-K40,0) -> 0 | M40: 0 | N40: =IF(OR(B40="",M40=0),0,SUMIFS('4. DETALLADA-RECURSOS ICBF'!$M$10:$M$1300,'4. DETALLADA-RECURSOS ICBF'!$B$10:$B$1300,'2. INFORMACION GENERAL'!$M$26,'4. DETALLADA-RECURSOS ICBF'!$K$10:$K$1300,'2. INFORMACION GENERAL'!$B$39,'4. DETALLADA-RECURSOS ICBF'!$L$10:$L$1300,'2. INFORMACION GENERAL'!B40)) -> 0 | O40: =IFERROR(M40-N40,0) -> 0 | P40: 0 | Q40: =IF(OR(B40="",P40=0),0,SUMIFS('4. DETALLADA-RECURSOS ICBF'!$M$10:$M$1300,'4. DETALLADA-RECURSOS ICBF'!$B$10:$B$1300,'2. INFORMACION GENERAL'!$P$26,'4. DETALLADA-RECURSOS ICBF'!$K$10:$K$1300,'2. INFORMACION GENERAL'!$B$39,'4. DETALLADA-RECURSOS ICBF'!$L$10:$L$1300,'2. INFORMACION GENERAL'!B40)) -> 0 | R40: =IFERROR(P40-Q40,0) -> 0 | S40: 0 | T40: =IF(OR(B40="",S40=0),0,SUMIFS('4. DETALLADA-RECURSOS ICBF'!$M$10:$M$1300,'4. DETALLADA-RECURSOS ICBF'!$B$10:$B$1300,'2. INFORMACION GENERAL'!$S$26,'4. DETALLADA-RECURSOS ICBF'!$K$10:$K$1300,'2. INFORMACION GENERAL'!$B$39,'4. DETALLADA-RECURSOS ICBF'!$L$10:$L$1300,'2. INFORMACION GENERAL'!B40)) -> 0 | U40: =IFERROR(S40-T40,0) -> 0 | V40: 0 | W40: =IF(OR(B40="",V40=0),0,SUMIFS('4. DETALLADA-RECURSOS ICBF'!$M$10:$M$1300,'4. DETALLADA-RECURSOS ICBF'!$B$10:$B$1300,'2. INFORMACION GENERAL'!$V$26,'4. DETALLADA-RECURSOS ICBF'!$K$10:$K$1300,'2. INFORMACION GENERAL'!$B$39,'4. DETALLADA-RECURSOS ICBF'!$L$10:$L$1300,'2. INFORMACION GENERAL'!B40)) -> 0 | X40: =IFERROR(V40-W40,0) -> 0 | Y40: 0 | Z40: =IF(OR(B40="",Y40=0),0,SUMIFS('4. DETALLADA-RECURSOS ICBF'!$M$10:$M$1300,'4. DETALLADA-RECURSOS ICBF'!$B$10:$B$1300,'2. INFORMACION GENERAL'!$Y$26,'4. DETALLADA-RECURSOS ICBF'!$K$10:$K$1300,'2. INFORMACION GENERAL'!$B$39,'4. DETALLADA-RECURSOS ICBF'!$L$10:$L$1300,'2. INFORMACION GENERAL'!B40)) -> 0 | AA40: =IFERROR(Y40-Z40,0) -> 0 | AB40: 0 | AC40: =IF(OR(B40="",AB40=0),0,SUMIFS('4. DETALLADA-RECURSOS ICBF'!$M$10:$M$1300,'4. DETALLADA-RECURSOS ICBF'!$B$10:$B$1300,'2. INFORMACION GENERAL'!$AB$26,'4. DETALLADA-RECURSOS ICBF'!$K$10:$K$1300,'2. INFORMACION GENERAL'!$B$39,'4. DETALLADA-RECURSOS ICBF'!$L$10:$L$1300,'2. INFORMACION GENERAL'!B40)) -> 0 | AD40: =IFERROR(AB40-AC40,0) -> 0 | AE40: 0 | AF40: =IF(OR(B40="",AE40=0),0,SUMIFS('4. DETALLADA-RECURSOS ICBF'!$M$10:$M$1300,'4. DETALLADA-RECURSOS ICBF'!$B$10:$B$1300,'2. INFORMACION GENERAL'!$AE$26,'4. DETALLADA-RECURSOS ICBF'!$K$10:$K$1300,'2. INFORMACION GENERAL'!$B$39,'4. DETALLADA-RECURSOS ICBF'!$L$10:$L$1300,'2. INFORMACION GENERAL'!B40)) -> 0 | AG40: =IFERROR(AE40-AF40,0) -> 0 | AH40: 0 | AI40: =IF(OR(B40="",AH40=0),0,SUMIFS('4. DETALLADA-RECURSOS ICBF'!$M$10:$M$1300,'4. DETALLADA-RECURSOS ICBF'!$B$10:$B$1300,'2. INFORMACION GENERAL'!$AH$26,'4. DETALLADA-RECURSOS ICBF'!$K$10:$K$1300,'2. INFORMACION GENERAL'!$B$39,'4. DETALLADA-RECURSOS ICBF'!$L$10:$L$1300,'2. INFORMACION GENERAL'!B40)) -> 0 | AJ40: =IFERROR(AH40-AI40,0) -> 0 | AK40: 0 | AL40: =IF(OR(B40="",AK40=0),0,SUMIFS('4. DETALLADA-RECURSOS ICBF'!$M$10:$M$1300,'4. DETALLADA-RECURSOS ICBF'!$B$10:$B$1300,'2. INFORMACION GENERAL'!$AK$26,'4. DETALLADA-RECURSOS ICBF'!$K$10:$K$1300,'2. INFORMACION GENERAL'!$B$39,'4. DETALLADA-RECURSOS ICBF'!$L$10:$L$1300,'2. INFORMACION GENERAL'!B40)) -> 0 | AM40: =IFERROR(AK40-AL40,0) -> 0 | AN40: 0 | AO40: =IF(OR(B40="",AN40=0),0,SUMIFS('4. DETALLADA-RECURSOS ICBF'!$M$10:$M$1300,'4. DETALLADA-RECURSOS ICBF'!$B$10:$B$1300,'2. INFORMACION GENERAL'!$AN$26,'4. DETALLADA-RECURSOS ICBF'!$K$10:$K$1300,'2. INFORMACION GENERAL'!$B$39,'4. DETALLADA-RECURSOS ICBF'!$L$10:$L$1300,'2. INFORMACION GENERAL'!B40)) -> 0 | AP40: =IFERROR(AN40-AO40,0) -> 0 | AQ40: =IF('1. PRESUPUESTO INICIAL'!F46="",0,'1. PRESUPUESTO INICIAL'!F46) -> 0 | AR40: =IF(OR(B40="",AQ40=0),0,SUMIFS('4. DETALLADA-RECURSOS ICBF'!$M$10:$M$1300,'4. DETALLADA-RECURSOS ICBF'!$B$10:$B$1300,'2. INFORMACION GENERAL'!$AQ$26,'4. DETALLADA-RECURSOS ICBF'!$K$10:$K$1300,'2. INFORMACION GENERAL'!$B$39,'4. DETALLADA-RECURSOS ICBF'!$L$10:$L$1300,'2. INFORMACION GENERAL'!B40)) -> 0 | AS40: =IFERROR(AQ40-AR40,0) -> 0 | AT40: =+SUMIFS(D40:AS40,$D$27:$AS$27,$AT$27) -> 0 | AU40: =+SUMIFS(D40:AS40,$D$27:$AS$27,$AU$27) -> 0 | AV40: =+SUMIFS(D40:AS40,$D$27:$AS$27,$AV$27) -> 0
A41: 2112 | B41: =IF('1. PRESUPUESTO INICIAL'!B47="","",'1. PRESUPUESTO INICIAL'!B47) -> FALSE | D41: =IF('1. PRESUPUESTO INICIAL'!D47="",0,'1. PRESUPUESTO INICIAL'!D47) -> 0 | E41: =IF(OR(B41="",D41=0),0,SUMIFS('4. DETALLADA-RECURSOS ICBF'!$M$10:$M$1300,'4. DETALLADA-RECURSOS ICBF'!$B$10:$B$1300,'2. INFORMACION GENERAL'!$D$26,'4. DETALLADA-RECURSOS ICBF'!$K$10:$K$1300,'2. INFORMACION GENERAL'!$B$39,'4. DETALLADA-RECURSOS ICBF'!$L$10:$L$1300,'2. INFORMACION GENERAL'!B41)) -> 0 | F41: =IFERROR(D41-E41,0) -> 0 | G41: 0 | H41: =IF(OR(B41="",G41=0),0,SUMIFS('4. DETALLADA-RECURSOS ICBF'!$M$10:$M$1300,'4. DETALLADA-RECURSOS ICBF'!$B$10:$B$1300,'2. INFORMACION GENERAL'!$G$26,'4. DETALLADA-RECURSOS ICBF'!$K$10:$K$1300,'2. INFORMACION GENERAL'!$B$39,'4. DETALLADA-RECURSOS ICBF'!$L$10:$L$1300,'2. INFORMACION GENERAL'!B41)) -> 0 | I41: =IFERROR(G41-H41,0) -> 0 | J41: 0 | K41: =IF(OR(B41="",J41=0),0,SUMIFS('4. DETALLADA-RECURSOS ICBF'!$M$10:$M$1300,'4. DETALLADA-RECURSOS ICBF'!$B$10:$B$1300,'2. INFORMACION GENERAL'!$J$26,'4. DETALLADA-RECURSOS ICBF'!$K$10:$K$1300,'2. INFORMACION GENERAL'!$B$39,'4. DETALLADA-RECURSOS ICBF'!$L$10:$L$1300,'2. INFORMACION GENERAL'!B41)) -> 0 | L41: =IFERROR(J41-K41,0) -> 0 | M41: 0 | N41: =IF(OR(B41="",M41=0),0,SUMIFS('4. DETALLADA-RECURSOS ICBF'!$M$10:$M$1300,'4. DETALLADA-RECURSOS ICBF'!$B$10:$B$1300,'2. INFORMACION GENERAL'!$M$26,'4. DETALLADA-RECURSOS ICBF'!$K$10:$K$1300,'2. INFORMACION GENERAL'!$B$39,'4. DETALLADA-RECURSOS ICBF'!$L$10:$L$1300,'2. INFORMACION GENERAL'!B41)) -> 0 | O41: =IFERROR(M41-N41,0) -> 0 | P41: 0 | Q41: =IF(OR(B41="",P41=0),0,SUMIFS('4. DETALLADA-RECURSOS ICBF'!$M$10:$M$1300,'4. DETALLADA-RECURSOS ICBF'!$B$10:$B$1300,'2. INFORMACION GENERAL'!$P$26,'4. DETALLADA-RECURSOS ICBF'!$K$10:$K$1300,'2. INFORMACION GENERAL'!$B$39,'4. DETALLADA-RECURSOS ICBF'!$L$10:$L$1300,'2. INFORMACION GENERAL'!B41)) -> 0 | R41: =IFERROR(P41-Q41,0) -> 0 | S41: 0 | T41: =IF(OR(B41="",S41=0),0,SUMIFS('4. DETALLADA-RECURSOS ICBF'!$M$10:$M$1300,'4. DETALLADA-RECURSOS ICBF'!$B$10:$B$1300,'2. INFORMACION GENERAL'!$S$26,'4. DETALLADA-RECURSOS ICBF'!$K$10:$K$1300,'2. INFORMACION GENERAL'!$B$39,'4. DETALLADA-RECURSOS ICBF'!$L$10:$L$1300,'2. INFORMACION GENERAL'!B41)) -> 0 | U41: =IFERROR(S41-T41,0) -> 0 | V41: 0 | W41: =IF(OR(B41="",V41=0),0,SUMIFS('4. DETALLADA-RECURSOS ICBF'!$M$10:$M$1300,'4. DETALLADA-RECURSOS ICBF'!$B$10:$B$1300,'2. INFORMACION GENERAL'!$V$26,'4. DETALLADA-RECURSOS ICBF'!$K$10:$K$1300,'2. INFORMACION GENERAL'!$B$39,'4. DETALLADA-RECURSOS ICBF'!$L$10:$L$1300,'2. INFORMACION GENERAL'!B41)) -> 0 | X41: =IFERROR(V41-W41,0) -> 0 | Y41: 0 | Z41: =IF(OR(B41="",Y41=0),0,SUMIFS('4. DETALLADA-RECURSOS ICBF'!$M$10:$M$1300,'4. DETALLADA-RECURSOS ICBF'!$B$10:$B$1300,'2. INFORMACION GENERAL'!$Y$26,'4. DETALLADA-RECURSOS ICBF'!$K$10:$K$1300,'2. INFORMACION GENERAL'!$B$39,'4. DETALLADA-RECURSOS ICBF'!$L$10:$L$1300,'2. INFORMACION GENERAL'!B41)) -> 0 | AA41: =IFERROR(Y41-Z41,0) -> 0 | AB41: 0 | AC41: =IF(OR(B41="",AB41=0),0,SUMIFS('4. DETALLADA-RECURSOS ICBF'!$M$10:$M$1300,'4. DETALLADA-RECURSOS ICBF'!$B$10:$B$1300,'2. INFORMACION GENERAL'!$AB$26,'4. DETALLADA-RECURSOS ICBF'!$K$10:$K$1300,'2. INFORMACION GENERAL'!$B$39,'4. DETALLADA-RECURSOS ICBF'!$L$10:$L$1300,'2. INFORMACION GENERAL'!B41)) -> 0 | AD41: =IFERROR(AB41-AC41,0) -> 0 | AE41: 0 | AF41: =IF(OR(B41="",AE41=0),0,SUMIFS('4. DETALLADA-RECURSOS ICBF'!$M$10:$M$1300,'4. DETALLADA-RECURSOS ICBF'!$B$10:$B$1300,'2. INFORMACION GENERAL'!$AE$26,'4. DETALLADA-RECURSOS ICBF'!$K$10:$K$1300,'2. INFORMACION GENERAL'!$B$39,'4. DETALLADA-RECURSOS ICBF'!$L$10:$L$1300,'2. INFORMACION GENERAL'!B41)) -> 0 | AG41: =IFERROR(AE41-AF41,0) -> 0 | AH41: 0 | AI41: =IF(OR(B41="",AH41=0),0,SUMIFS('4. DETALLADA-RECURSOS ICBF'!$M$10:$M$1300,'4. DETALLADA-RECURSOS ICBF'!$B$10:$B$1300,'2. INFORMACION GENERAL'!$AH$26,'4. DETALLADA-RECURSOS ICBF'!$K$10:$K$1300,'2. INFORMACION GENERAL'!$B$39,'4. DETALLADA-RECURSOS ICBF'!$L$10:$L$1300,'2. INFORMACION GENERAL'!B41)) -> 0 | AJ41: =IFERROR(AH41-AI41,0) -> 0 | AK41: 0 | AL41: =IF(OR(B41="",AK41=0),0,SUMIFS('4. DETALLADA-RECURSOS ICBF'!$M$10:$M$1300,'4. DETALLADA-RECURSOS ICBF'!$B$10:$B$1300,'2. INFORMACION GENERAL'!$AK$26,'4. DETALLADA-RECURSOS ICBF'!$K$10:$K$1300,'2. INFORMACION GENERAL'!$B$39,'4. DETALLADA-RECURSOS ICBF'!$L$10:$L$1300,'2. INFORMACION GENERAL'!B41)) -> 0 | AM41: =IFERROR(AK41-AL41,0) -> 0 | AN41: 0 | AO41: =IF(OR(B41="",AN41=0),0,SUMIFS('4. DETALLADA-RECURSOS ICBF'!$M$10:$M$1300,'4. DETALLADA-RECURSOS ICBF'!$B$10:$B$1300,'2. INFORMACION GENERAL'!$AN$26,'4. DETALLADA-RECURSOS ICBF'!$K$10:$K$1300,'2. INFORMACION GENERAL'!$B$39,'4. DETALLADA-RECURSOS ICBF'!$L$10:$L$1300,'2. INFORMACION GENERAL'!B41)) -> 0 | AP41: =IFERROR(AN41-AO41,0) -> 0 | AQ41: =IF('1. PRESUPUESTO INICIAL'!F47="",0,'1. PRESUPUESTO INICIAL'!F47) -> 0 | AR41: =IF(OR(B41="",AQ41=0),0,SUMIFS('4. DETALLADA-RECURSOS ICBF'!$M$10:$M$1300,'4. DETALLADA-RECURSOS ICBF'!$B$10:$B$1300,'2. INFORMACION GENERAL'!$AQ$26,'4. DETALLADA-RECURSOS ICBF'!$K$10:$K$1300,'2. INFORMACION GENERAL'!$B$39,'4. DETALLADA-RECURSOS ICBF'!$L$10:$L$1300,'2. INFORMACION GENERAL'!B41)) -> 0 | AS41: =IFERROR(AQ41-AR41,0) -> 0 | AT41: 0 | AU41: 0 | AV41: 0
A42: 2113 | B42: =IF('1. PRESUPUESTO INICIAL'!B48="","",'1. PRESUPUESTO INICIAL'!B48) -> FALSE | D42: =IF('1. PRESUPUESTO INICIAL'!D48="",0,'1. PRESUPUESTO INICIAL'!D48) -> 0 | E42: =IF(OR(B42="",D42=0),0,SUMIFS('4. DETALLADA-RECURSOS ICBF'!$M$10:$M$1300,'4. DETALLADA-RECURSOS ICBF'!$B$10:$B$1300,'2. INFORMACION GENERAL'!$D$26,'4. DETALLADA-RECURSOS ICBF'!$K$10:$K$1300,'2. INFORMACION GENERAL'!$B$39,'4. DETALLADA-RECURSOS ICBF'!$L$10:$L$1300,'2. INFORMACION GENERAL'!B42)) -> 0 | F42: 0 | G42: 0 | H42: =IF(OR(B42="",G42=0),0,SUMIFS('4. DETALLADA-RECURSOS ICBF'!$M$10:$M$1300,'4. DETALLADA-RECURSOS ICBF'!$B$10:$B$1300,'2. INFORMACION GENERAL'!$G$26,'4. DETALLADA-RECURSOS ICBF'!$K$10:$K$1300,'2. INFORMACION GENERAL'!$B$39,'4. DETALLADA-RECURSOS ICBF'!$L$10:$L$1300,'2. INFORMACION GENERAL'!B42)) -> 0 | I42: 0 | J42: 0 | K42: =IF(OR(B42="",J42=0),0,SUMIFS('4. DETALLADA-RECURSOS ICBF'!$M$10:$M$1300,'4. DETALLADA-RECURSOS ICBF'!$B$10:$B$1300,'2. INFORMACION GENERAL'!$J$26,'4. DETALLADA-RECURSOS ICBF'!$K$10:$K$1300,'2. INFORMACION GENERAL'!$B$39,'4. DETALLADA-RECURSOS ICBF'!$L$10:$L$1300,'2. INFORMACION GENERAL'!B42)) -> 0 | L42: 0 | M42: 0 | N42: =IF(OR(B42="",M42=0),0,SUMIFS('4. DETALLADA-RECURSOS ICBF'!$M$10:$M$1300,'4. DETALLADA-RECURSOS ICBF'!$B$10:$B$1300,'2. INFORMACION GENERAL'!$M$26,'4. DETALLADA-RECURSOS ICBF'!$K$10:$K$1300,'2. INFORMACION GENERAL'!$B$39,'4. DETALLADA-RECURSOS ICBF'!$L$10:$L$1300,'2. INFORMACION GENERAL'!B42)) -> 0 | O42: 0 | P42: 0 | Q42: =IF(OR(B42="",P42=0),0,SUMIFS('4. DETALLADA-RECURSOS ICBF'!$M$10:$M$1300,'4. DETALLADA-RECURSOS ICBF'!$B$10:$B$1300,'2. INFORMACION GENERAL'!$P$26,'4. DETALLADA-RECURSOS ICBF'!$K$10:$K$1300,'2. INFORMACION GENERAL'!$B$39,'4. DETALLADA-RECURSOS ICBF'!$L$10:$L$1300,'2. INFORMACION GENERAL'!B42)) -> 0 | R42: 0 | S42: 0 | T42: =IF(OR(B42="",S42=0),0,SUMIFS('4. DETALLADA-RECURSOS ICBF'!$M$10:$M$1300,'4. DETALLADA-RECURSOS ICBF'!$B$10:$B$1300,'2. INFORMACION GENERAL'!$S$26,'4. DETALLADA-RECURSOS ICBF'!$K$10:$K$1300,'2. INFORMACION GENERAL'!$B$39,'4. DETALLADA-RECURSOS ICBF'!$L$10:$L$1300,'2. INFORMACION GENERAL'!B42)) -> 0 | U42: 0 | V42: 0 | W42: =IF(OR(B42="",V42=0),0,SUMIFS('4. DETALLADA-RECURSOS ICBF'!$M$10:$M$1300,'4. DETALLADA-RECURSOS ICBF'!$B$10:$B$1300,'2. INFORMACION GENERAL'!$V$26,'4. DETALLADA-RECURSOS ICBF'!$K$10:$K$1300,'2. INFORMACION GENERAL'!$B$39,'4. DETALLADA-RECURSOS ICBF'!$L$10:$L$1300,'2. INFORMACION GENERAL'!B42)) -> 0 | X42: 0 | Y42: 0 | Z42: =IF(OR(B42="",Y42=0),0,SUMIFS('4. DETALLADA-RECURSOS ICBF'!$M$10:$M$1300,'4. DETALLADA-RECURSOS ICBF'!$B$10:$B$1300,'2. INFORMACION GENERAL'!$Y$26,'4. DETALLADA-RECURSOS ICBF'!$K$10:$K$1300,'2. INFORMACION GENERAL'!$B$39,'4. DETALLADA-RECURSOS ICBF'!$L$10:$L$1300,'2. INFORMACION GENERAL'!B42)) -> 0 | AA42: 0 | AB42: 0 | AC42: =IF(OR(B42="",AB42=0),0,SUMIFS('4. DETALLADA-RECURSOS ICBF'!$M$10:$M$1300,'4. DETALLADA-RECURSOS ICBF'!$B$10:$B$1300,'2. INFORMACION GENERAL'!$AB$26,'4. DETALLADA-RECURSOS ICBF'!$K$10:$K$1300,'2. INFORMACION GENERAL'!$B$39,'4. DETALLADA-RECURSOS ICBF'!$L$10:$L$1300,'2. INFORMACION GENERAL'!B42)) -> 0 | AD42: 0 | AE42: 0 | AF42: =IF(OR(B42="",AE42=0),0,SUMIFS('4. DETALLADA-RECURSOS ICBF'!$M$10:$M$1300,'4. DETALLADA-RECURSOS ICBF'!$B$10:$B$1300,'2. INFORMACION GENERAL'!$AE$26,'4. DETALLADA-RECURSOS ICBF'!$K$10:$K$1300,'2. INFORMACION GENERAL'!$B$39,'4. DETALLADA-RECURSOS ICBF'!$L$10:$L$1300,'2. INFORMACION GENERAL'!B42)) -> 0 | AG42: =IFERROR(AE42-AF42,0) -> 0 | AH42: 0 | AI42: =IF(OR(B42="",AH42=0),0,SUMIFS('4. DETALLADA-RECURSOS ICBF'!$M$10:$M$1300,'4. DETALLADA-RECURSOS ICBF'!$B$10:$B$1300,'2. INFORMACION GENERAL'!$AH$26,'4. DETALLADA-RECURSOS ICBF'!$K$10:$K$1300,'2. INFORMACION GENERAL'!$B$39,'4. DETALLADA-RECURSOS ICBF'!$L$10:$L$1300,'2. INFORMACION GENERAL'!B42)) -> 0 | AJ42: =IFERROR(AH42-AI42,0) -> 0 | AK42: 0 | AL42: =IF(OR(B42="",AK42=0),0,SUMIFS('4. DETALLADA-RECURSOS ICBF'!$M$10:$M$1300,'4. DETALLADA-RECURSOS ICBF'!$B$10:$B$1300,'2. INFORMACION GENERAL'!$AK$26,'4. DETALLADA-RECURSOS ICBF'!$K$10:$K$1300,'2. INFORMACION GENERAL'!$B$39,'4. DETALLADA-RECURSOS ICBF'!$L$10:$L$1300,'2. INFORMACION GENERAL'!B42)) -> 0 | AM42: 0 | AN42: 0 | AO42: =IF(OR(B42="",AN42=0),0,SUMIFS('4. DETALLADA-RECURSOS ICBF'!$M$10:$M$1300,'4. DETALLADA-RECURSOS ICBF'!$B$10:$B$1300,'2. INFORMACION GENERAL'!$AN$26,'4. DETALLADA-RECURSOS ICBF'!$K$10:$K$1300,'2. INFORMACION GENERAL'!$B$39,'4. DETALLADA-RECURSOS ICBF'!$L$10:$L$1300,'2. INFORMACION GENERAL'!B42)) -> 0 | AP42: =IFERROR(AN42-AO42,0) -> 0 | AQ42: =IF('1. PRESUPUESTO INICIAL'!F48="",0,'1. PRESUPUESTO INICIAL'!F48) -> 0 | AR42: =IF(OR(B42="",AQ42=0),0,SUMIFS('4. DETALLADA-RECURSOS ICBF'!$M$10:$M$1300,'4. DETALLADA-RECURSOS ICBF'!$B$10:$B$1300,'2. INFORMACION GENERAL'!$AQ$26,'4. DETALLADA-RECURSOS ICBF'!$K$10:$K$1300,'2. INFORMACION GENERAL'!$B$39,'4. DETALLADA-RECURSOS ICBF'!$L$10:$L$1300,'2. INFORMACION GENERAL'!B42)) -> 0 | AS42: 0 | AT42: 0 | AU42: 0 | AV42: 0
A43: 2114 | B43: =IF('1. PRESUPUESTO INICIAL'!B49="","",'1. PRESUPUESTO INICIAL'!B49) -> FALSE | D43: =IF('1. PRESUPUESTO INICIAL'!D49="",0,'1. PRESUPUESTO INICIAL'!D49) -> 0 | E43: =IF(OR(B43="",D43=0),0,SUMIFS('4. DETALLADA-RECURSOS ICBF'!$M$10:$M$1300,'4. DETALLADA-RECURSOS ICBF'!$B$10:$B$1300,'2. INFORMACION GENERAL'!$D$26,'4. DETALLADA-RECURSOS ICBF'!$K$10:$K$1300,'2. INFORMACION GENERAL'!$B$39,'4. DETALLADA-RECURSOS ICBF'!$L$10:$L$1300,'2. INFORMACION GENERAL'!B43)) -> 0 | F43: 0 | G43: 0 | H43: =IF(OR(B43="",G43=0),0,SUMIFS('4. DETALLADA-RECURSOS ICBF'!$M$10:$M$1300,'4. DETALLADA-RECURSOS ICBF'!$B$10:$B$1300,'2. INFORMACION GENERAL'!$G$26,'4. DETALLADA-RECURSOS ICBF'!$K$10:$K$1300,'2. INFORMACION GENERAL'!$B$39,'4. DETALLADA-RECURSOS ICBF'!$L$10:$L$1300,'2. INFORMACION GENERAL'!B43)) -> 0 | I43: 0 | J43: 0 | K43: =IF(OR(B43="",J43=0),0,SUMIFS('4. DETALLADA-RECURSOS ICBF'!$M$10:$M$1300,'4. DETALLADA-RECURSOS ICBF'!$B$10:$B$1300,'2. INFORMACION GENERAL'!$J$26,'4. DETALLADA-RECURSOS ICBF'!$K$10:$K$1300,'2. INFORMACION GENERAL'!$B$39,'4. DETALLADA-RECURSOS ICBF'!$L$10:$L$1300,'2. INFORMACION GENERAL'!B43)) -> 0 | L43: 0 | M43: 0 | N43: =IF(OR(B43="",M43=0),0,SUMIFS('4. DETALLADA-RECURSOS ICBF'!$M$10:$M$1300,'4. DETALLADA-RECURSOS ICBF'!$B$10:$B$1300,'2. INFORMACION GENERAL'!$M$26,'4. DETALLADA-RECURSOS ICBF'!$K$10:$K$1300,'2. INFORMACION GENERAL'!$B$39,'4. DETALLADA-RECURSOS ICBF'!$L$10:$L$1300,'2. INFORMACION GENERAL'!B43)) -> 0 | O43: 0 | P43: 0 | Q43: =IF(OR(B43="",P43=0),0,SUMIFS('4. DETALLADA-RECURSOS ICBF'!$M$10:$M$1300,'4. DETALLADA-RECURSOS ICBF'!$B$10:$B$1300,'2. INFORMACION GENERAL'!$P$26,'4. DETALLADA-RECURSOS ICBF'!$K$10:$K$1300,'2. INFORMACION GENERAL'!$B$39,'4. DETALLADA-RECURSOS ICBF'!$L$10:$L$1300,'2. INFORMACION GENERAL'!B43)) -> 0 | R43: 0 | S43: 0 | T43: =IF(OR(B43="",S43=0),0,SUMIFS('4. DETALLADA-RECURSOS ICBF'!$M$10:$M$1300,'4. DETALLADA-RECURSOS ICBF'!$B$10:$B$1300,'2. INFORMACION GENERAL'!$S$26,'4. DETALLADA-RECURSOS ICBF'!$K$10:$K$1300,'2. INFORMACION GENERAL'!$B$39,'4. DETALLADA-RECURSOS ICBF'!$L$10:$L$1300,'2. INFORMACION GENERAL'!B43)) -> 0 | U43: 0 | V43: 0 | W43: =IF(OR(B43="",V43=0),0,SUMIFS('4. DETALLADA-RECURSOS ICBF'!$M$10:$M$1300,'4. DETALLADA-RECURSOS ICBF'!$B$10:$B$1300,'2. INFORMACION GENERAL'!$V$26,'4. DETALLADA-RECURSOS ICBF'!$K$10:$K$1300,'2. INFORMACION GENERAL'!$B$39,'4. DETALLADA-RECURSOS ICBF'!$L$10:$L$1300,'2. INFORMACION GENERAL'!B43)) -> 0 | X43: 0 | Y43: 0 | Z43: =IF(OR(B43="",Y43=0),0,SUMIFS('4. DETALLADA-RECURSOS ICBF'!$M$10:$M$1300,'4. DETALLADA-RECURSOS ICBF'!$B$10:$B$1300,'2. INFORMACION GENERAL'!$Y$26,'4. DETALLADA-RECURSOS ICBF'!$K$10:$K$1300,'2. INFORMACION GENERAL'!$B$39,'4. DETALLADA-RECURSOS ICBF'!$L$10:$L$1300,'2. INFORMACION GENERAL'!B43)) -> 0 | AA43: 0 | AB43: 0 | AC43: =IF(OR(B43="",AB43=0),0,SUMIFS('4. DETALLADA-RECURSOS ICBF'!$M$10:$M$1300,'4. DETALLADA-RECURSOS ICBF'!$B$10:$B$1300,'2. INFORMACION GENERAL'!$AB$26,'4. DETALLADA-RECURSOS ICBF'!$K$10:$K$1300,'2. INFORMACION GENERAL'!$B$39,'4. DETALLADA-RECURSOS ICBF'!$L$10:$L$1300,'2. INFORMACION GENERAL'!B43)) -> 0 | AD43: 0 | AE43: 0 | AF43: =IF(OR(B43="",AE43=0),0,SUMIFS('4. DETALLADA-RECURSOS ICBF'!$M$10:$M$1300,'4. DETALLADA-RECURSOS ICBF'!$B$10:$B$1300,'2. INFORMACION GENERAL'!$AE$26,'4. DETALLADA-RECURSOS ICBF'!$K$10:$K$1300,'2. INFORMACION GENERAL'!$B$39,'4. DETALLADA-RECURSOS ICBF'!$L$10:$L$1300,'2. INFORMACION GENERAL'!B43)) -> 0 | AG43: 0 | AH43: 0 | AI43: =IF(OR(B43="",AH43=0),0,SUMIFS('4. DETALLADA-RECURSOS ICBF'!$M$10:$M$1300,'4. DETALLADA-RECURSOS ICBF'!$B$10:$B$1300,'2. INFORMACION GENERAL'!$AH$26,'4. DETALLADA-RECURSOS ICBF'!$K$10:$K$1300,'2. INFORMACION GENERAL'!$B$39,'4. DETALLADA-RECURSOS ICBF'!$L$10:$L$1300,'2. INFORMACION GENERAL'!B43)) -> 0 | AJ43: 0 | AK43: 0 | AL43: =IF(OR(B43="",AK43=0),0,SUMIFS('4. DETALLADA-RECURSOS ICBF'!$M$10:$M$1300,'4. DETALLADA-RECURSOS ICBF'!$B$10:$B$1300,'2. INFORMACION GENERAL'!$AK$26,'4. DETALLADA-RECURSOS ICBF'!$K$10:$K$1300,'2. INFORMACION GENERAL'!$B$39,'4. DETALLADA-RECURSOS ICBF'!$L$10:$L$1300,'2. INFORMACION GENERAL'!B43)) -> 0 | AM43: 0 | AN43: 0 | AO43: =IF(OR(B43="",AN43=0),0,SUMIFS('4. DETALLADA-RECURSOS ICBF'!$M$10:$M$1300,'4. DETALLADA-RECURSOS ICBF'!$B$10:$B$1300,'2. INFORMACION GENERAL'!$AN$26,'4. DETALLADA-RECURSOS ICBF'!$K$10:$K$1300,'2. INFORMACION GENERAL'!$B$39,'4. DETALLADA-RECURSOS ICBF'!$L$10:$L$1300,'2. INFORMACION GENERAL'!B43)) -> 0 | AP43: 0 | AQ43: =IF('1. PRESUPUESTO INICIAL'!F49="",0,'1. PRESUPUESTO INICIAL'!F49) -> 0 | AR43: =IF(OR(B43="",AQ43=0),0,SUMIFS('4. DETALLADA-RECURSOS ICBF'!$M$10:$M$1300,'4. DETALLADA-RECURSOS ICBF'!$B$10:$B$1300,'2. INFORMACION GENERAL'!$AQ$26,'4. DETALLADA-RECURSOS ICBF'!$K$10:$K$1300,'2. INFORMACION GENERAL'!$B$39,'4. DETALLADA-RECURSOS ICBF'!$L$10:$L$1300,'2. INFORMACION GENERAL'!B43)) -> 0 | AS43: 0 | AT43: 0 | AU43: 0 | AV43: 0
A44: 2200 | B44: =IF('1. PRESUPUESTO INICIAL'!B56="","",'1. PRESUPUESTO INICIAL'!B56) -> FALSE | D44: =+SUM(D45:D48) -> 0 | E44: =+SUM(E45:E48) -> 0 | F44: =+SUM(F45:F48) -> 0 | G44: =+SUM(G45:G48) -> 0 | H44: 0 | I44: 0 | J44: =+SUM(J45:J48) -> 0 | K44: 0 | L44: =+SUM(L45:L48) -> 0 | M44: =+SUM(M45:M48) -> 0 | N44: 0 | O44: 0 | P44: =+SUM(P45:P48) -> 0 | Q44: 0 | R44: 0 | S44: =+SUM(S45:S48) -> 0 | T44: 0 | U44: 0 | V44: =+SUM(V45:V48) -> 0 | W44: 0 | X44: 0 | Y44: =+SUM(Y45:Y48) -> 0 | Z44: 0 | AA44: 0 | AB44: =+SUM(AB45:AB48) -> 0 | AC44: 0 | AD44: 0 | AE44: =+SUM(AE45:AE48) -> 0 | AF44: 0 | AG44: 0 | AH44: =+SUM(AH45:AH48) -> 0 | AI44: 0 | AJ44: 0 | AK44: =+SUM(AK45:AK48) -> 0 | AL44: 0 | AM44: 0 | AN44: =+SUM(AN45:AN48) -> 0 | AO44: 0 | AP44: 0 | AQ44: =+SUM(AQ45:AQ48) -> 0 | AR44: 0 | AS44: =+SUM(AS45:AS48) -> 0 | AT44: 0 | AU44: 0 | AV44: 0
A45: 2201 | B45: =IF('1. PRESUPUESTO INICIAL'!B57="","",'1. PRESUPUESTO INICIAL'!B57) -> FALSE | D45: =IF('1. PRESUPUESTO INICIAL'!D57="",0,'1. PRESUPUESTO INICIAL'!D57) -> 0 | E45: =IF(OR(B45="",D45=0),0,SUMIFS('4. DETALLADA-RECURSOS ICBF'!$M$10:$M$1300,'4. DETALLADA-RECURSOS ICBF'!$B$10:$B$1300,'2. INFORMACION GENERAL'!$D$26,'4. DETALLADA-RECURSOS ICBF'!$K$10:$K$1300,'2. INFORMACION GENERAL'!$B$44,'4. DETALLADA-RECURSOS ICBF'!$L$10:$L$1300,'2. INFORMACION GENERAL'!B45)) -> 0 | F45: =IFERROR(D45-E45,0) -> 0 | G45: 0 | H45: =IF(OR(B45="",G45=0),0,SUMIFS('4. DETALLADA-RECURSOS ICBF'!$M$10:$M$1300,'4. DETALLADA-RECURSOS ICBF'!$B$10:$B$1300,'2. INFORMACION GENERAL'!$G$26,'4. DETALLADA-RECURSOS ICBF'!$K$10:$K$1300,'2. INFORMACION GENERAL'!$B$44,'4. DETALLADA-RECURSOS ICBF'!$L$10:$L$1300,'2. INFORMACION GENERAL'!B45)) -> 0 | I45: =IFERROR(G45-H45,0) -> 0 | J45: 0 | K45: =IF(OR(B45="",J45=0),0,SUMIFS('4. DETALLADA-RECURSOS ICBF'!$M$10:$M$1300,'4. DETALLADA-RECURSOS ICBF'!$B$10:$B$1300,'2. INFORMACION GENERAL'!$J$26,'4. DETALLADA-RECURSOS ICBF'!$K$10:$K$1300,'2. INFORMACION GENERAL'!$B$44,'4. DETALLADA-RECURSOS ICBF'!$L$10:$L$1300,'2. INFORMACION GENERAL'!B45)) -> 0 | L45: =IFERROR(J45-K45,0) -> 0 | M45: 0 | N45: =IF(OR(B45="",M45=0),0,SUMIFS('4. DETALLADA-RECURSOS ICBF'!$M$10:$M$1300,'4. DETALLADA-RECURSOS ICBF'!$B$10:$B$1300,'2. INFORMACION GENERAL'!$M$26,'4. DETALLADA-RECURSOS ICBF'!$K$10:$K$1300,'2. INFORMACION GENERAL'!$B$44,'4. DETALLADA-RECURSOS ICBF'!$L$10:$L$1300,'2. INFORMACION GENERAL'!B45)) -> 0 | O45: =IFERROR(M45-N45,0) -> 0 | P45: 0 | Q45: =IF(OR(B45="",P45=0),0,SUMIFS('4. DETALLADA-RECURSOS ICBF'!$M$10:$M$1300,'4. DETALLADA-RECURSOS ICBF'!$B$10:$B$1300,'2. INFORMACION GENERAL'!$P$26,'4. DETALLADA-RECURSOS ICBF'!$K$10:$K$1300,'2. INFORMACION GENERAL'!$B$44,'4. DETALLADA-RECURSOS ICBF'!$L$10:$L$1300,'2. INFORMACION GENERAL'!B45)) -> 0 | R45: =IFERROR(P45-Q45,0) -> 0 | S45: 0 | T45: =IF(OR(B45="",S45=0),0,SUMIFS('4. DETALLADA-RECURSOS ICBF'!$M$10:$M$1300,'4. DETALLADA-RECURSOS ICBF'!$B$10:$B$1300,'2. INFORMACION GENERAL'!$S$26,'4. DETALLADA-RECURSOS ICBF'!$K$10:$K$1300,'2. INFORMACION GENERAL'!$B$44,'4. DETALLADA-RECURSOS ICBF'!$L$10:$L$1300,'2. INFORMACION GENERAL'!B45)) -> 0 | U45: =IFERROR(S45-T45,0) -> 0 | V45: 0 | W45: =IF(OR(B45="",V45=0),0,SUMIFS('4. DETALLADA-RECURSOS ICBF'!$M$10:$M$1300,'4. DETALLADA-RECURSOS ICBF'!$B$10:$B$1300,'2. INFORMACION GENERAL'!$V$26,'4. DETALLADA-RECURSOS ICBF'!$K$10:$K$1300,'2. INFORMACION GENERAL'!$B$44,'4. DETALLADA-RECURSOS ICBF'!$L$10:$L$1300,'2. INFORMACION GENERAL'!B45)) -> 0 | X45: =IFERROR(V45-W45,0) -> 0 | Y45: 0 | Z45: =IF(OR(B45="",Y45=0),0,SUMIFS('4. DETALLADA-RECURSOS ICBF'!$M$10:$M$1300,'4. DETALLADA-RECURSOS ICBF'!$B$10:$B$1300,'2. INFORMACION GENERAL'!$Y$26,'4. DETALLADA-RECURSOS ICBF'!$K$10:$K$1300,'2. INFORMACION GENERAL'!$B$44,'4. DETALLADA-RECURSOS ICBF'!$L$10:$L$1300,'2. INFORMACION GENERAL'!B45)) -> 0 | AA45: =IFERROR(Y45-Z45,0) -> 0 | AB45: 0 | AC45: =IF(OR(B45="",AB45=0),0,SUMIFS('4. DETALLADA-RECURSOS ICBF'!$M$10:$M$1300,'4. DETALLADA-RECURSOS ICBF'!$B$10:$B$1300,'2. INFORMACION GENERAL'!$AB$26,'4. DETALLADA-RECURSOS ICBF'!$K$10:$K$1300,'2. INFORMACION GENERAL'!$B$44,'4. DETALLADA-RECURSOS ICBF'!$L$10:$L$1300,'2. INFORMACION GENERAL'!B45)) -> 0 | AD45: =IFERROR(AB45-AC45,0) -> 0 | AE45: 0 | AF45: =IF(OR(B45="",AE45=0),0,SUMIFS('4. DETALLADA-RECURSOS ICBF'!$M$10:$M$1300,'4. DETALLADA-RECURSOS ICBF'!$B$10:$B$1300,'2. INFORMACION GENERAL'!$AE$26,'4. DETALLADA-RECURSOS ICBF'!$K$10:$K$1300,'2. INFORMACION GENERAL'!$B$44,'4. DETALLADA-RECURSOS ICBF'!$L$10:$L$1300,'2. INFORMACION GENERAL'!B45)) -> 0 | AG45: =IFERROR(AE45-AF45,0) -> 0 | AH45: 0 | AI45: =IF(OR(B45="",AH45=0),0,SUMIFS('4. DETALLADA-RECURSOS ICBF'!$M$10:$M$1300,'4. DETALLADA-RECURSOS ICBF'!$B$10:$B$1300,'2. INFORMACION GENERAL'!$AH$26,'4. DETALLADA-RECURSOS ICBF'!$K$10:$K$1300,'2. INFORMACION GENERAL'!$B$44,'4. DETALLADA-RECURSOS ICBF'!$L$10:$L$1300,'2. INFORMACION GENERAL'!B45)) -> 0 | AJ45: =IFERROR(AH45-AI45,0) -> 0 | AK45: 0 | AL45: =IF(OR(B45="",AK45=0),0,SUMIFS('4. DETALLADA-RECURSOS ICBF'!$M$10:$M$1300,'4. DETALLADA-RECURSOS ICBF'!$B$10:$B$1300,'2. INFORMACION GENERAL'!$AK$26,'4. DETALLADA-RECURSOS ICBF'!$K$10:$K$1300,'2. INFORMACION GENERAL'!$B$44,'4. DETALLADA-RECURSOS ICBF'!$L$10:$L$1300,'2. INFORMACION GENERAL'!B45)) -> 0 | AM45: =IFERROR(AK45-AL45,0) -> 0 | AN45: 0 | AO45: =IF(OR(B45="",AN45=0),0,SUMIFS('4. DETALLADA-RECURSOS ICBF'!$M$10:$M$1300,'4. DETALLADA-RECURSOS ICBF'!$B$10:$B$1300,'2. INFORMACION GENERAL'!$AN$26,'4. DETALLADA-RECURSOS ICBF'!$K$10:$K$1300,'2. INFORMACION GENERAL'!$B$44,'4. DETALLADA-RECURSOS ICBF'!$L$10:$L$1300,'2. INFORMACION GENERAL'!B45)) -> 0 | AP45: =IFERROR(AN45-AO45,0) -> 0 | AQ45: =IF('1. PRESUPUESTO INICIAL'!F57="",0,'1. PRESUPUESTO INICIAL'!F57) -> 0 | AR45: =IF(OR(B45="",AQ45=0),0,SUMIFS('4. DETALLADA-RECURSOS ICBF'!$M$10:$M$1300,'4. DETALLADA-RECURSOS ICBF'!$B$10:$B$1300,'2. INFORMACION GENERAL'!$AQ$26,'4. DETALLADA-RECURSOS ICBF'!$K$10:$K$1300,'2. INFORMACION GENERAL'!$B$44,'4. DETALLADA-RECURSOS ICBF'!$L$10:$L$1300,'2. INFORMACION GENERAL'!B45)) -> 0 | AS45: =IFERROR(AQ45-AR45,0) -> 0 | AT45: =+SUMIFS(D45:AS45,$D$27:$AS$27,$AT$27) -> 0 | AU45: =+SUMIFS(D45:AS45,$D$27:$AS$27,$AU$27) -> 0 | AV45: =+SUMIFS(D45:AS45,$D$27:$AS$27,$AV$27) -> 0
A46: 2202 | B46: =IF('1. PRESUPUESTO INICIAL'!B58="","",'1. PRESUPUESTO INICIAL'!B58) -> FALSE | D46: =IF('1. PRESUPUESTO INICIAL'!D58="",0,'1. PRESUPUESTO INICIAL'!D58) -> 0 | E46: =IF(OR(B46="",D46=0),0,SUMIFS('4. DETALLADA-RECURSOS ICBF'!$M$10:$M$1300,'4. DETALLADA-RECURSOS ICBF'!$B$10:$B$1300,'2. INFORMACION GENERAL'!$D$26,'4. DETALLADA-RECURSOS ICBF'!$K$10:$K$1300,'2. INFORMACION GENERAL'!$B$44,'4. DETALLADA-RECURSOS ICBF'!$L$10:$L$1300,'2. INFORMACION GENERAL'!B46)) -> 0 | F46: =IFERROR(D46-E46,0) -> 0 | G46: 0 | H46: =IF(OR(B46="",G46=0),0,SUMIFS('4. DETALLADA-RECURSOS ICBF'!$M$10:$M$1300,'4. DETALLADA-RECURSOS ICBF'!$B$10:$B$1300,'2. INFORMACION GENERAL'!$G$26,'4. DETALLADA-RECURSOS ICBF'!$K$10:$K$1300,'2. INFORMACION GENERAL'!$B$44,'4. DETALLADA-RECURSOS ICBF'!$L$10:$L$1300,'2. INFORMACION GENERAL'!B46)) -> 0 | I46: =IFERROR(G46-H46,0) -> 0 | J46: 0 | K46: =IF(OR(B46="",J46=0),0,SUMIFS('4. DETALLADA-RECURSOS ICBF'!$M$10:$M$1300,'4. DETALLADA-RECURSOS ICBF'!$B$10:$B$1300,'2. INFORMACION GENERAL'!$J$26,'4. DETALLADA-RECURSOS ICBF'!$K$10:$K$1300,'2. INFORMACION GENERAL'!$B$44,'4. DETALLADA-RECURSOS ICBF'!$L$10:$L$1300,'2. INFORMACION GENERAL'!B46)) -> 0 | L46: =IFERROR(J46-K46,0) -> 0 | M46: 0 | N46: =IF(OR(B46="",M46=0),0,SUMIFS('4. DETALLADA-RECURSOS ICBF'!$M$10:$M$1300,'4. DETALLADA-RECURSOS ICBF'!$B$10:$B$1300,'2. INFORMACION GENERAL'!$M$26,'4. DETALLADA-RECURSOS ICBF'!$K$10:$K$1300,'2. INFORMACION GENERAL'!$B$44,'4. DETALLADA-RECURSOS ICBF'!$L$10:$L$1300,'2. INFORMACION GENERAL'!B46)) -> 0 | O46: =IFERROR(M46-N46,0) -> 0 | P46: 0 | Q46: =IF(OR(B46="",P46=0),0,SUMIFS('4. DETALLADA-RECURSOS ICBF'!$M$10:$M$1300,'4. DETALLADA-RECURSOS ICBF'!$B$10:$B$1300,'2. INFORMACION GENERAL'!$P$26,'4. DETALLADA-RECURSOS ICBF'!$K$10:$K$1300,'2. INFORMACION GENERAL'!$B$44,'4. DETALLADA-RECURSOS ICBF'!$L$10:$L$1300,'2. INFORMACION GENERAL'!B46)) -> 0 | R46: =IFERROR(P46-Q46,0) -> 0 | S46: 0 | T46: =IF(OR(B46="",S46=0),0,SUMIFS('4. DETALLADA-RECURSOS ICBF'!$M$10:$M$1300,'4. DETALLADA-RECURSOS ICBF'!$B$10:$B$1300,'2. INFORMACION GENERAL'!$S$26,'4. DETALLADA-RECURSOS ICBF'!$K$10:$K$1300,'2. INFORMACION GENERAL'!$B$44,'4. DETALLADA-RECURSOS ICBF'!$L$10:$L$1300,'2. INFORMACION GENERAL'!B46)) -> 0 | U46: =IFERROR(S46-T46,0) -> 0 | V46: 0 | W46: =IF(OR(B46="",V46=0),0,SUMIFS('4. DETALLADA-RECURSOS ICBF'!$M$10:$M$1300,'4. DETALLADA-RECURSOS ICBF'!$B$10:$B$1300,'2. INFORMACION GENERAL'!$V$26,'4. DETALLADA-RECURSOS ICBF'!$K$10:$K$1300,'2. INFORMACION GENERAL'!$B$44,'4. DETALLADA-RECURSOS ICBF'!$L$10:$L$1300,'2. INFORMACION GENERAL'!B46)) -> 0 | X46: =IFERROR(V46-W46,0) -> 0 | Y46: 0 | Z46: =IF(OR(B46="",Y46=0),0,SUMIFS('4. DETALLADA-RECURSOS ICBF'!$M$10:$M$1300,'4. DETALLADA-RECURSOS ICBF'!$B$10:$B$1300,'2. INFORMACION GENERAL'!$Y$26,'4. DETALLADA-RECURSOS ICBF'!$K$10:$K$1300,'2. INFORMACION GENERAL'!$B$44,'4. DETALLADA-RECURSOS ICBF'!$L$10:$L$1300,'2. INFORMACION GENERAL'!B46)) -> 0 | AA46: =IFERROR(Y46-Z46,0) -> 0 | AB46: 0 | AC46: =IF(OR(B46="",AB46=0),0,SUMIFS('4. DETALLADA-RECURSOS ICBF'!$M$10:$M$1300,'4. DETALLADA-RECURSOS ICBF'!$B$10:$B$1300,'2. INFORMACION GENERAL'!$AB$26,'4. DETALLADA-RECURSOS ICBF'!$K$10:$K$1300,'2. INFORMACION GENERAL'!$B$44,'4. DETALLADA-RECURSOS ICBF'!$L$10:$L$1300,'2. INFORMACION GENERAL'!B46)) -> 0 | AD46: =IFERROR(AB46-AC46,0) -> 0 | AE46: 0 | AF46: =IF(OR(B46="",AE46=0),0,SUMIFS('4. DETALLADA-RECURSOS ICBF'!$M$10:$M$1300,'4. DETALLADA-RECURSOS ICBF'!$B$10:$B$1300,'2. INFORMACION GENERAL'!$AE$26,'4. DETALLADA-RECURSOS ICBF'!$K$10:$K$1300,'2. INFORMACION GENERAL'!$B$44,'4. DETALLADA-RECURSOS ICBF'!$L$10:$L$1300,'2. INFORMACION GENERAL'!B46)) -> 0 | AG46: =IFERROR(AE46-AF46,0) -> 0 | AH46: 0 | AI46: =IF(OR(B46="",AH46=0),0,SUMIFS('4. DETALLADA-RECURSOS ICBF'!$M$10:$M$1300,'4. DETALLADA-RECURSOS ICBF'!$B$10:$B$1300,'2. INFORMACION GENERAL'!$AH$26,'4. DETALLADA-RECURSOS ICBF'!$K$10:$K$1300,'2. INFORMACION GENERAL'!$B$44,'4. DETALLADA-RECURSOS ICBF'!$L$10:$L$1300,'2. INFORMACION GENERAL'!B46)) -> 0 | AJ46: =IFERROR(AH46-AI46,0) -> 0 | AK46: 0 | AL46: =IF(OR(B46="",AK46=0),0,SUMIFS('4. DETALLADA-RECURSOS ICBF'!$M$10:$M$1300,'4. DETALLADA-RECURSOS ICBF'!$B$10:$B$1300,'2. INFORMACION GENERAL'!$AK$26,'4. DETALLADA-RECURSOS ICBF'!$K$10:$K$1300,'2. INFORMACION GENERAL'!$B$44,'4. DETALLADA-RECURSOS ICBF'!$L$10:$L$1300,'2. INFORMACION GENERAL'!B46)) -> 0 | AM46: =IFERROR(AK46-AL46,0) -> 0 | AN46: 0 | AO46: =IF(OR(B46="",AN46=0),0,SUMIFS('4. DETALLADA-RECURSOS ICBF'!$M$10:$M$1300,'4. DETALLADA-RECURSOS ICBF'!$B$10:$B$1300,'2. INFORMACION GENERAL'!$AN$26,'4. DETALLADA-RECURSOS ICBF'!$K$10:$K$1300,'2. INFORMACION GENERAL'!$B$44,'4. DETALLADA-RECURSOS ICBF'!$L$10:$L$1300,'2. INFORMACION GENERAL'!B46)) -> 0 | AP46: =IFERROR(AN46-AO46,0) -> 0 | AQ46: =IF('1. PRESUPUESTO INICIAL'!F58="",0,'1. PRESUPUESTO INICIAL'!F58) -> 0 | AR46: =IF(OR(B46="",AQ46=0),0,SUMIFS('4. DETALLADA-RECURSOS ICBF'!$M$10:$M$1300,'4. DETALLADA-RECURSOS ICBF'!$B$10:$B$1300,'2. INFORMACION GENERAL'!$AQ$26,'4. DETALLADA-RECURSOS ICBF'!$K$10:$K$1300,'2. INFORMACION GENERAL'!$B$44,'4. DETALLADA-RECURSOS ICBF'!$L$10:$L$1300,'2. INFORMACION GENERAL'!B46)) -> 0 | AS46: =IFERROR(AQ46-AR46,0) -> 0 | AT46: 0 | AU46: 0 | AV46: 0
A47: 2203 | B47: =IF('1. PRESUPUESTO INICIAL'!B59="","",'1. PRESUPUESTO INICIAL'!B59) -> FALSE | D47: =IF('1. PRESUPUESTO INICIAL'!D59="",0,'1. PRESUPUESTO INICIAL'!D59) -> 0 | E47: =IF(OR(B47="",D47=0),0,SUMIFS('4. DETALLADA-RECURSOS ICBF'!$M$10:$M$1300,'4. DETALLADA-RECURSOS ICBF'!$B$10:$B$1300,'2. INFORMACION GENERAL'!$D$26,'4. DETALLADA-RECURSOS ICBF'!$K$10:$K$1300,'2. INFORMACION GENERAL'!$B$44,'4. DETALLADA-RECURSOS ICBF'!$L$10:$L$1300,'2. INFORMACION GENERAL'!B47)) -> 0 | F47: 0 | G47: 0 | H47: =IF(OR(B47="",G47=0),0,SUMIFS('4. DETALLADA-RECURSOS ICBF'!$M$10:$M$1300,'4. DETALLADA-RECURSOS ICBF'!$B$10:$B$1300,'2. INFORMACION GENERAL'!$G$26,'4. DETALLADA-RECURSOS ICBF'!$K$10:$K$1300,'2. INFORMACION GENERAL'!$B$44,'4. DETALLADA-RECURSOS ICBF'!$L$10:$L$1300,'2. INFORMACION GENERAL'!B47)) -> 0 | I47: 0 | J47: 0 | K47: =IF(OR(B47="",J47=0),0,SUMIFS('4. DETALLADA-RECURSOS ICBF'!$M$10:$M$1300,'4. DETALLADA-RECURSOS ICBF'!$B$10:$B$1300,'2. INFORMACION GENERAL'!$J$26,'4. DETALLADA-RECURSOS ICBF'!$K$10:$K$1300,'2. INFORMACION GENERAL'!$B$44,'4. DETALLADA-RECURSOS ICBF'!$L$10:$L$1300,'2. INFORMACION GENERAL'!B47)) -> 0 | L47: 0 | M47: 0 | N47: =IF(OR(B47="",M47=0),0,SUMIFS('4. DETALLADA-RECURSOS ICBF'!$M$10:$M$1300,'4. DETALLADA-RECURSOS ICBF'!$B$10:$B$1300,'2. INFORMACION GENERAL'!$M$26,'4. DETALLADA-RECURSOS ICBF'!$K$10:$K$1300,'2. INFORMACION GENERAL'!$B$44,'4. DETALLADA-RECURSOS ICBF'!$L$10:$L$1300,'2. INFORMACION GENERAL'!B47)) -> 0 | O47: 0 | P47: 0 | Q47: =IF(OR(B47="",P47=0),0,SUMIFS('4. DETALLADA-RECURSOS ICBF'!$M$10:$M$1300,'4. DETALLADA-RECURSOS ICBF'!$B$10:$B$1300,'2. INFORMACION GENERAL'!$P$26,'4. DETALLADA-RECURSOS ICBF'!$K$10:$K$1300,'2. INFORMACION GENERAL'!$B$44,'4. DETALLADA-RECURSOS ICBF'!$L$10:$L$1300,'2. INFORMACION GENERAL'!B47)) -> 0 | R47: 0 | S47: 0 | T47: =IF(OR(B47="",S47=0),0,SUMIFS('4. DETALLADA-RECURSOS ICBF'!$M$10:$M$1300,'4. DETALLADA-RECURSOS ICBF'!$B$10:$B$1300,'2. INFORMACION GENERAL'!$S$26,'4. DETALLADA-RECURSOS ICBF'!$K$10:$K$1300,'2. INFORMACION GENERAL'!$B$44,'4. DETALLADA-RECURSOS ICBF'!$L$10:$L$1300,'2. INFORMACION GENERAL'!B47)) -> 0 | U47: 0 | V47: 0 | W47: =IF(OR(B47="",V47=0),0,SUMIFS('4. DETALLADA-RECURSOS ICBF'!$M$10:$M$1300,'4. DETALLADA-RECURSOS ICBF'!$B$10:$B$1300,'2. INFORMACION GENERAL'!$V$26,'4. DETALLADA-RECURSOS ICBF'!$K$10:$K$1300,'2. INFORMACION GENERAL'!$B$44,'4. DETALLADA-RECURSOS ICBF'!$L$10:$L$1300,'2. INFORMACION GENERAL'!B47)) -> 0 | X47: 0 | Y47: 0 | Z47: =IF(OR(B47="",Y47=0),0,SUMIFS('4. DETALLADA-RECURSOS ICBF'!$M$10:$M$1300,'4. DETALLADA-RECURSOS ICBF'!$B$10:$B$1300,'2. INFORMACION GENERAL'!$Y$26,'4. DETALLADA-RECURSOS ICBF'!$K$10:$K$1300,'2. INFORMACION GENERAL'!$B$44,'4. DETALLADA-RECURSOS ICBF'!$L$10:$L$1300,'2. INFORMACION GENERAL'!B47)) -> 0 | AA47: 0 | AB47: 0 | AC47: =IF(OR(B47="",AB47=0),0,SUMIFS('4. DETALLADA-RECURSOS ICBF'!$M$10:$M$1300,'4. DETALLADA-RECURSOS ICBF'!$B$10:$B$1300,'2. INFORMACION GENERAL'!$AB$26,'4. DETALLADA-RECURSOS ICBF'!$K$10:$K$1300,'2. INFORMACION GENERAL'!$B$44,'4. DETALLADA-RECURSOS ICBF'!$L$10:$L$1300,'2. INFORMACION GENERAL'!B47)) -> 0 | AD47: 0 | AE47: 0 | AF47: =IF(OR(B47="",AE47=0),0,SUMIFS('4. DETALLADA-RECURSOS ICBF'!$M$10:$M$1300,'4. DETALLADA-RECURSOS ICBF'!$B$10:$B$1300,'2. INFORMACION GENERAL'!$AE$26,'4. DETALLADA-RECURSOS ICBF'!$K$10:$K$1300,'2. INFORMACION GENERAL'!$B$44,'4. DETALLADA-RECURSOS ICBF'!$L$10:$L$1300,'2. INFORMACION GENERAL'!B47)) -> 0 | AG47: 0 | AH47: 0 | AI47: =IF(OR(B47="",AH47=0),0,SUMIFS('4. DETALLADA-RECURSOS ICBF'!$M$10:$M$1300,'4. DETALLADA-RECURSOS ICBF'!$B$10:$B$1300,'2. INFORMACION GENERAL'!$AH$26,'4. DETALLADA-RECURSOS ICBF'!$K$10:$K$1300,'2. INFORMACION GENERAL'!$B$44,'4. DETALLADA-RECURSOS ICBF'!$L$10:$L$1300,'2. INFORMACION GENERAL'!B47)) -> 0 | AJ47: 0 | AK47: 0 | AL47: =IF(OR(B47="",AK47=0),0,SUMIFS('4. DETALLADA-RECURSOS ICBF'!$M$10:$M$1300,'4. DETALLADA-RECURSOS ICBF'!$B$10:$B$1300,'2. INFORMACION GENERAL'!$AK$26,'4. DETALLADA-RECURSOS ICBF'!$K$10:$K$1300,'2. INFORMACION GENERAL'!$B$44,'4. DETALLADA-RECURSOS ICBF'!$L$10:$L$1300,'2. INFORMACION GENERAL'!B47)) -> 0 | AM47: 0 | AN47: 0 | AO47: =IF(OR(B47="",AN47=0),0,SUMIFS('4. DETALLADA-RECURSOS ICBF'!$M$10:$M$1300,'4. DETALLADA-RECURSOS ICBF'!$B$10:$B$1300,'2. INFORMACION GENERAL'!$AN$26,'4. DETALLADA-RECURSOS ICBF'!$K$10:$K$1300,'2. INFORMACION GENERAL'!$B$44,'4. DETALLADA-RECURSOS ICBF'!$L$10:$L$1300,'2. INFORMACION GENERAL'!B47)) -> 0 | AP47: =IFERROR(AN47-AO47,0) -> 0 | AQ47: =IF('1. PRESUPUESTO INICIAL'!F59="",0,'1. PRESUPUESTO INICIAL'!F59) -> 0 | AR47: =IF(OR(B47="",AQ47=0),0,SUMIFS('4. DETALLADA-RECURSOS ICBF'!$M$10:$M$1300,'4. DETALLADA-RECURSOS ICBF'!$B$10:$B$1300,'2. INFORMACION GENERAL'!$AQ$26,'4. DETALLADA-RECURSOS ICBF'!$K$10:$K$1300,'2. INFORMACION GENERAL'!$B$44,'4. DETALLADA-RECURSOS ICBF'!$L$10:$L$1300,'2. INFORMACION GENERAL'!B47)) -> 0 | AS47: 0 | AT47: 0 | AU47: 0 | AV47: 0
A48: 2204 | B48: =IF('1. PRESUPUESTO INICIAL'!B60="","",'1. PRESUPUESTO INICIAL'!B60) -> FALSE | D48: =IF('1. PRESUPUESTO INICIAL'!D60="",0,'1. PRESUPUESTO INICIAL'!D60) -> FALSE | E48: =IF(OR(B48="",D48=0),0,SUMIFS('4. DETALLADA-RECURSOS ICBF'!$M$10:$M$1300,'4. DETALLADA-RECURSOS ICBF'!$B$10:$B$1300,'2. INFORMACION GENERAL'!$D$26,'4. DETALLADA-RECURSOS ICBF'!$K$10:$K$1300,'2. INFORMACION GENERAL'!$B$44,'4. DETALLADA-RECURSOS ICBF'!$L$10:$L$1300,'2. INFORMACION GENERAL'!B48)) -> 0 | F48: 0 | G48: 0 | H48: =IF(OR(B48="",G48=0),0,SUMIFS('4. DETALLADA-RECURSOS ICBF'!$M$10:$M$1300,'4. DETALLADA-RECURSOS ICBF'!$B$10:$B$1300,'2. INFORMACION GENERAL'!$G$26,'4. DETALLADA-RECURSOS ICBF'!$K$10:$K$1300,'2. INFORMACION GENERAL'!$B$44,'4. DETALLADA-RECURSOS ICBF'!$L$10:$L$1300,'2. INFORMACION GENERAL'!B48)) -> 0 | I48: 0 | J48: 0 | K48: =IF(OR(B48="",J48=0),0,SUMIFS('4. DETALLADA-RECURSOS ICBF'!$M$10:$M$1300,'4. DETALLADA-RECURSOS ICBF'!$B$10:$B$1300,'2. INFORMACION GENERAL'!$J$26,'4. DETALLADA-RECURSOS ICBF'!$K$10:$K$1300,'2. INFORMACION GENERAL'!$B$44,'4. DETALLADA-RECURSOS ICBF'!$L$10:$L$1300,'2. INFORMACION GENERAL'!B48)) -> 0 | L48: 0 | M48: 0 | N48: =IF(OR(B48="",M48=0),0,SUMIFS('4. DETALLADA-RECURSOS ICBF'!$M$10:$M$1300,'4. DETALLADA-RECURSOS ICBF'!$B$10:$B$1300,'2. INFORMACION GENERAL'!$M$26,'4. DETALLADA-RECURSOS ICBF'!$K$10:$K$1300,'2. INFORMACION GENERAL'!$B$44,'4. DETALLADA-RECURSOS ICBF'!$L$10:$L$1300,'2. INFORMACION GENERAL'!B48)) -> 0 | O48: 0 | P48: 0 | Q48: =IF(OR(B48="",P48=0),0,SUMIFS('4. DETALLADA-RECURSOS ICBF'!$M$10:$M$1300,'4. DETALLADA-RECURSOS ICBF'!$B$10:$B$1300,'2. INFORMACION GENERAL'!$P$26,'4. DETALLADA-RECURSOS ICBF'!$K$10:$K$1300,'2. INFORMACION GENERAL'!$B$44,'4. DETALLADA-RECURSOS ICBF'!$L$10:$L$1300,'2. INFORMACION GENERAL'!B48)) -> 0 | R48: 0 | S48: 0 | T48: =IF(OR(B48="",S48=0),0,SUMIFS('4. DETALLADA-RECURSOS ICBF'!$M$10:$M$1300,'4. DETALLADA-RECURSOS ICBF'!$B$10:$B$1300,'2. INFORMACION GENERAL'!$S$26,'4. DETALLADA-RECURSOS ICBF'!$K$10:$K$1300,'2. INFORMACION GENERAL'!$B$44,'4. DETALLADA-RECURSOS ICBF'!$L$10:$L$1300,'2. INFORMACION GENERAL'!B48)) -> 0 | U48: 0 | V48: 0 | W48: =IF(OR(B48="",V48=0),0,SUMIFS('4. DETALLADA-RECURSOS ICBF'!$M$10:$M$1300,'4. DETALLADA-RECURSOS ICBF'!$B$10:$B$1300,'2. INFORMACION GENERAL'!$V$26,'4. DETALLADA-RECURSOS ICBF'!$K$10:$K$1300,'2. INFORMACION GENERAL'!$B$44,'4. DETALLADA-RECURSOS ICBF'!$L$10:$L$1300,'2. INFORMACION GENERAL'!B48)) -> 0 | X48: 0 | Y48: 0 | Z48: =IF(OR(B48="",Y48=0),0,SUMIFS('4. DETALLADA-RECURSOS ICBF'!$M$10:$M$1300,'4. DETALLADA-RECURSOS ICBF'!$B$10:$B$1300,'2. INFORMACION GENERAL'!$Y$26,'4. DETALLADA-RECURSOS ICBF'!$K$10:$K$1300,'2. INFORMACION GENERAL'!$B$44,'4. DETALLADA-RECURSOS ICBF'!$L$10:$L$1300,'2. INFORMACION GENERAL'!B48)) -> 0 | AA48: 0 | AB48: 0 | AC48: =IF(OR(B48="",AB48=0),0,SUMIFS('4. DETALLADA-RECURSOS ICBF'!$M$10:$M$1300,'4. DETALLADA-RECURSOS ICBF'!$B$10:$B$1300,'2. INFORMACION GENERAL'!$AB$26,'4. DETALLADA-RECURSOS ICBF'!$K$10:$K$1300,'2. INFORMACION GENERAL'!$B$44,'4. DETALLADA-RECURSOS ICBF'!$L$10:$L$1300,'2. INFORMACION GENERAL'!B48)) -> 0 | AD48: 0 | AE48: 0 | AF48: =IF(OR(B48="",AE48=0),0,SUMIFS('4. DETALLADA-RECURSOS ICBF'!$M$10:$M$1300,'4. DETALLADA-RECURSOS ICBF'!$B$10:$B$1300,'2. INFORMACION GENERAL'!$AE$26,'4. DETALLADA-RECURSOS ICBF'!$K$10:$K$1300,'2. INFORMACION GENERAL'!$B$44,'4. DETALLADA-RECURSOS ICBF'!$L$10:$L$1300,'2. INFORMACION GENERAL'!B48)) -> 0 | AG48: 0 | AH48: 0 | AI48: =IF(OR(B48="",AH48=0),0,SUMIFS('4. DETALLADA-RECURSOS ICBF'!$M$10:$M$1300,'4. DETALLADA-RECURSOS ICBF'!$B$10:$B$1300,'2. INFORMACION GENERAL'!$AH$26,'4. DETALLADA-RECURSOS ICBF'!$K$10:$K$1300,'2. INFORMACION GENERAL'!$B$44,'4. DETALLADA-RECURSOS ICBF'!$L$10:$L$1300,'2. INFORMACION GENERAL'!B48)) -> 0 | AJ48: 0 | AK48: 0 | AL48: =IF(OR(B48="",AK48=0),0,SUMIFS('4. DETALLADA-RECURSOS ICBF'!$M$10:$M$1300,'4. DETALLADA-RECURSOS ICBF'!$B$10:$B$1300,'2. INFORMACION GENERAL'!$AK$26,'4. DETALLADA-RECURSOS ICBF'!$K$10:$K$1300,'2. INFORMACION GENERAL'!$B$44,'4. DETALLADA-RECURSOS ICBF'!$L$10:$L$1300,'2. INFORMACION GENERAL'!B48)) -> 0 | AM48: 0 | AN48: 0 | AO48: =IF(OR(B48="",AN48=0),0,SUMIFS('4. DETALLADA-RECURSOS ICBF'!$M$10:$M$1300,'4. DETALLADA-RECURSOS ICBF'!$B$10:$B$1300,'2. INFORMACION GENERAL'!$AN$26,'4. DETALLADA-RECURSOS ICBF'!$K$10:$K$1300,'2. INFORMACION GENERAL'!$B$44,'4. DETALLADA-RECURSOS ICBF'!$L$10:$L$1300,'2. INFORMACION GENERAL'!B48)) -> 0 | AP48: 0 | AQ48: =IF('1. PRESUPUESTO INICIAL'!F60="",0,'1. PRESUPUESTO INICIAL'!F60) -> FALSE | AR48: =IF(OR(B48="",AQ48=0),0,SUMIFS('4. DETALLADA-RECURSOS ICBF'!$M$10:$M$1300,'4. DETALLADA-RECURSOS ICBF'!$B$10:$B$1300,'2. INFORMACION GENERAL'!$AQ$26,'4. DETALLADA-RECURSOS ICBF'!$K$10:$K$1300,'2. INFORMACION GENERAL'!$B$44,'4. DETALLADA-RECURSOS ICBF'!$L$10:$L$1300,'2. INFORMACION GENERAL'!B48)) -> 0 | AS48: 0 | AT48: 0 | AU48: 0 | AV48: 0
A49: 2202 | B49: =IF('1. PRESUPUESTO INICIAL'!B64="","",'1. PRESUPUESTO INICIAL'!B64) -> FALSE | D49: =IF('1. PRESUPUESTO INICIAL'!D64="",0,'1. PRESUPUESTO INICIAL'!D64) -> 0 | E49: =IF(OR(B49="",D49=0),0,SUMIFS('4. DETALLADA-RECURSOS ICBF'!$M$10:$M$1300,'4. DETALLADA-RECURSOS ICBF'!$B$10:$B$1300,'2. INFORMACION GENERAL'!$D$26,'4. DETALLADA-RECURSOS ICBF'!$K$10:$K$1300,'2. INFORMACION GENERAL'!$B$49,'4. DETALLADA-RECURSOS ICBF'!$L$10:$L$1300,'2. INFORMACION GENERAL'!B49)) -> 0 | F49: =IFERROR(D49-E49,0) -> 0 | G49: 0 | H49: =IF(OR(B49="",G49=0),0,SUMIFS('4. DETALLADA-RECURSOS ICBF'!$M$10:$M$1300,'4. DETALLADA-RECURSOS ICBF'!$B$10:$B$1300,'2. INFORMACION GENERAL'!$G$26,'4. DETALLADA-RECURSOS ICBF'!$K$10:$K$1300,'2. INFORMACION GENERAL'!$B$49)) -> 0 | I49: =IFERROR(G49-H49,0) -> 0 | J49: 0 | K49: =IF(OR(B49="",J49=0),0,SUMIFS('4. DETALLADA-RECURSOS ICBF'!$M$10:$M$1300,'4. DETALLADA-RECURSOS ICBF'!$B$10:$B$1300,'2. INFORMACION GENERAL'!$J$26,'4. DETALLADA-RECURSOS ICBF'!$K$10:$K$1300,'2. INFORMACION GENERAL'!$B$49)) -> 0 | L49: =IFERROR(J49-K49,0) -> 0 | M49: 0 | N49: =IF(OR(B49="",M49=0),0,SUMIFS('4. DETALLADA-RECURSOS ICBF'!$M$10:$M$1300,'4. DETALLADA-RECURSOS ICBF'!$B$10:$B$1300,'2. INFORMACION GENERAL'!$M$26,'4. DETALLADA-RECURSOS ICBF'!$K$10:$K$1300,'2. INFORMACION GENERAL'!$B$49)) -> 0 | O49: =IFERROR(M49-N49,0) -> 0 | P49: 0 | Q49: =IF(OR(B49="",P49=0),0,SUMIFS('4. DETALLADA-RECURSOS ICBF'!$M$10:$M$1300,'4. DETALLADA-RECURSOS ICBF'!$B$10:$B$1300,'2. INFORMACION GENERAL'!$P$26,'4. DETALLADA-RECURSOS ICBF'!$K$10:$K$1300,'2. INFORMACION GENERAL'!$B$49)) -> 0 | R49: =IFERROR(P49-Q49,0) -> 0 | S49: 0 | T49: =IF(OR(B49="",S49=0),0,SUMIFS('4. DETALLADA-RECURSOS ICBF'!$M$10:$M$1300,'4. DETALLADA-RECURSOS ICBF'!$B$10:$B$1300,'2. INFORMACION GENERAL'!$S$26,'4. DETALLADA-RECURSOS ICBF'!$K$10:$K$1300,'2. INFORMACION GENERAL'!$B$49)) -> 0 | U49: =IFERROR(S49-T49,0) -> 0 | V49: 0 | W49: =IF(OR(B49="",V49=0),0,SUMIFS('4. DETALLADA-RECURSOS ICBF'!$M$10:$M$1300,'4. DETALLADA-RECURSOS ICBF'!$B$10:$B$1300,'2. INFORMACION GENERAL'!$V$26,'4. DETALLADA-RECURSOS ICBF'!$K$10:$K$1300,'2. INFORMACION GENERAL'!$B$49)) -> 0 | X49: =IFERROR(V49-W49,0) -> 0 | Y49: 0 | Z49: =IF(OR(B49="",Y49=0),0,SUMIFS('4. DETALLADA-RECURSOS ICBF'!$M$10:$M$1300,'4. DETALLADA-RECURSOS ICBF'!$B$10:$B$1300,'2. INFORMACION GENERAL'!$Y$26,'4. DETALLADA-RECURSOS ICBF'!$K$10:$K$1300,'2. INFORMACION GENERAL'!$B$49)) -> 0 | AA49: =IFERROR(Y49-Z49,0) -> 0 | AB49: 0 | AC49: =IF(OR(B49="",AB49=0),0,SUMIFS('4. DETALLADA-RECURSOS ICBF'!$M$10:$M$1300,'4. DETALLADA-RECURSOS ICBF'!$B$10:$B$1300,'2. INFORMACION GENERAL'!$AB$26,'4. DETALLADA-RECURSOS ICBF'!$K$10:$K$1300,'2. INFORMACION GENERAL'!$B$49)) -> 0 | AD49: =IFERROR(AB49-AC49,0) -> 0 | AE49: 0 | AF49: =IF(OR(B49="",AE49=0),0,SUMIFS('4. DETALLADA-RECURSOS ICBF'!$M$10:$M$1300,'4. DETALLADA-RECURSOS ICBF'!$B$10:$B$1300,'2. INFORMACION GENERAL'!$AE$26,'4. DETALLADA-RECURSOS ICBF'!$K$10:$K$1300,'2. INFORMACION GENERAL'!$B$49)) -> 0 | AG49: =IFERROR(AE49-AF49,0) -> 0 | AH49: 0 | AI49: =IF(OR(B49="",AH49=0),0,SUMIFS('4. DETALLADA-RECURSOS ICBF'!$M$10:$M$1300,'4. DETALLADA-RECURSOS ICBF'!$B$10:$B$1300,'2. INFORMACION GENERAL'!$AH$26,'4. DETALLADA-RECURSOS ICBF'!$K$10:$K$1300,'2. INFORMACION GENERAL'!$B$49)) -> 0 | AJ49: =IFERROR(AH49-AI49,0) -> 0 | AK49: 0 | AL49: =IF(OR(B49="",AK49=0),0,SUMIFS('4. DETALLADA-RECURSOS ICBF'!$M$10:$M$1300,'4. DETALLADA-RECURSOS ICBF'!$B$10:$B$1300,'2. INFORMACION GENERAL'!$AK$26,'4. DETALLADA-RECURSOS ICBF'!$K$10:$K$1300,'2. INFORMACION GENERAL'!$B$49)) -> 0 | AM49: =IFERROR(AK49-AL49,0) -> 0 | AN49: 0 | AO49: =IF(OR(B49="",AN49=0),0,SUMIFS('4. DETALLADA-RECURSOS ICBF'!$M$10:$M$1300,'4. DETALLADA-RECURSOS ICBF'!$B$10:$B$1300,'2. INFORMACION GENERAL'!$AN$26,'4. DETALLADA-RECURSOS ICBF'!$K$10:$K$1300,'2. INFORMACION GENERAL'!$B$49)) -> 0 | AP49: =IFERROR(AN49-AO49,0) -> 0 | AQ49: =IF('1. PRESUPUESTO INICIAL'!F64="",0,'1. PRESUPUESTO INICIAL'!F64) -> 0 | AR49: =IF(OR(B49="",AQ49=0),0,SUMIFS('4. DETALLADA-RECURSOS ICBF'!$M$10:$M$1300,'4. DETALLADA-RECURSOS ICBF'!$B$10:$B$1300,'2. INFORMACION GENERAL'!$AQ$26,'4. DETALLADA-RECURSOS ICBF'!$K$10:$K$1300,'2. INFORMACION GENERAL'!$B$49)) -> 0 | AS49: =IFERROR(AQ49-AR49,0) -> 0 | AT49: 0 | AU49: 0 | AV49: 0
A50: 2203 | B50: =IF('1. PRESUPUESTO INICIAL'!B67="","",'1. PRESUPUESTO INICIAL'!B67) -> FALSE | D50: =IF('1. PRESUPUESTO INICIAL'!D67="",0,'1. PRESUPUESTO INICIAL'!D67) -> 0 | E50: =IF(OR(B50="",D50=0),0,SUMIFS('4. DETALLADA-RECURSOS ICBF'!$M$10:$M$1300,'4. DETALLADA-RECURSOS ICBF'!$B$10:$B$1300,'2. INFORMACION GENERAL'!$D$26,'4. DETALLADA-RECURSOS ICBF'!$K$10:$K$1300,'2. INFORMACION GENERAL'!$B$50)) -> 0 | F50: =IFERROR(D50-E50,0) -> 0 | G50: 0 | H50: =IF(OR(B50="",G50=0),0,SUMIFS('4. DETALLADA-RECURSOS ICBF'!$M$10:$M$1300,'4. DETALLADA-RECURSOS ICBF'!$B$10:$B$1300,'2. INFORMACION GENERAL'!$G$26,'4. DETALLADA-RECURSOS ICBF'!$K$10:$K$1300,'2. INFORMACION GENERAL'!$B$50)) -> 0 | I50: =IFERROR(G50-H50,0) -> 0 | J50: 0 | K50: =IF(OR(B50="",J50=0),0,SUMIFS('4. DETALLADA-RECURSOS ICBF'!$M$10:$M$1300,'4. DETALLADA-RECURSOS ICBF'!$B$10:$B$1300,'2. INFORMACION GENERAL'!$J$26,'4. DETALLADA-RECURSOS ICBF'!$K$10:$K$1300,'2. INFORMACION GENERAL'!$B$50)) -> 0 | L50: =IFERROR(J50-K50,0) -> 0 | M50: 0 | N50: =IF(OR(B50="",M50=0),0,SUMIFS('4. DETALLADA-RECURSOS ICBF'!$M$10:$M$1300,'4. DETALLADA-RECURSOS ICBF'!$B$10:$B$1300,'2. INFORMACION GENERAL'!$M$26,'4. DETALLADA-RECURSOS ICBF'!$K$10:$K$1300,'2. INFORMACION GENERAL'!$B$50)) -> 0 | O50: =IFERROR(M50-N50,0) -> 0 | P50: 0 | Q50: =IF(OR(B50="",P50=0),0,SUMIFS('4. DETALLADA-RECURSOS ICBF'!$M$10:$M$1300,'4. DETALLADA-RECURSOS ICBF'!$B$10:$B$1300,'2. INFORMACION GENERAL'!$P$26,'4. DETALLADA-RECURSOS ICBF'!$K$10:$K$1300,'2. INFORMACION GENERAL'!$B$50)) -> 0 | R50: =IFERROR(P50-Q50,0) -> 0 | S50: 0 | T50: =IF(OR(B50="",S50=0),0,SUMIFS('4. DETALLADA-RECURSOS ICBF'!$M$10:$M$1300,'4. DETALLADA-RECURSOS ICBF'!$B$10:$B$1300,'2. INFORMACION GENERAL'!$S$26,'4. DETALLADA-RECURSOS ICBF'!$K$10:$K$1300,'2. INFORMACION GENERAL'!$B$50)) -> 0 | U50: =IFERROR(S50-T50,0) -> 0 | V50: 0 | W50: =IF(OR(B50="",V50=0),0,SUMIFS('4. DETALLADA-RECURSOS ICBF'!$M$10:$M$1300,'4. DETALLADA-RECURSOS ICBF'!$B$10:$B$1300,'2. INFORMACION GENERAL'!$V$26,'4. DETALLADA-RECURSOS ICBF'!$K$10:$K$1300,'2. INFORMACION GENERAL'!$B$50)) -> 0 | X50: =IFERROR(V50-W50,0) -> 0 | Y50: 0 | Z50: =IF(OR(B50="",Y50=0),0,SUMIFS('4. DETALLADA-RECURSOS ICBF'!$M$10:$M$1300,'4. DETALLADA-RECURSOS ICBF'!$B$10:$B$1300,'2. INFORMACION GENERAL'!$Y$26,'4. DETALLADA-RECURSOS ICBF'!$K$10:$K$1300,'2. INFORMACION GENERAL'!$B$50)) -> 0 | AA50: =IFERROR(Y50-Z50,0) -> 0 | AB50: 0 | AC50: =IF(OR(B50="",AB50=0),0,SUMIFS('4. DETALLADA-RECURSOS ICBF'!$M$10:$M$1300,'4. DETALLADA-RECURSOS ICBF'!$B$10:$B$1300,'2. INFORMACION GENERAL'!$AB$26,'4. DETALLADA-RECURSOS ICBF'!$K$10:$K$1300,'2. INFORMACION GENERAL'!$B$50)) -> 0 | AD50: =IFERROR(AB50-AC50,0) -> 0 | AE50: 0 | AF50: =IF(OR(B50="",AE50=0),0,SUMIFS('4. DETALLADA-RECURSOS ICBF'!$M$10:$M$1300,'4. DETALLADA-RECURSOS ICBF'!$B$10:$B$1300,'2. INFORMACION GENERAL'!$AE$26,'4. DETALLADA-RECURSOS ICBF'!$K$10:$K$1300,'2. INFORMACION GENERAL'!$B$50)) -> 0 | AG50: =IFERROR(AE50-AF50,0) -> 0 | AH50: 0 | AI50: =IF(OR(B50="",AH50=0),0,SUMIFS('4. DETALLADA-RECURSOS ICBF'!$M$10:$M$1300,'4. DETALLADA-RECURSOS ICBF'!$B$10:$B$1300,'2. INFORMACION GENERAL'!$AH$26,'4. DETALLADA-RECURSOS ICBF'!$K$10:$K$1300,'2. INFORMACION GENERAL'!$B$50)) -> 0 | AJ50: =IFERROR(AH50-AI50,0) -> 0 | AK50: 0 | AL50: =IF(OR(B50="",AK50=0),0,SUMIFS('4. DETALLADA-RECURSOS ICBF'!$M$10:$M$1300,'4. DETALLADA-RECURSOS ICBF'!$B$10:$B$1300,'2. INFORMACION GENERAL'!$AK$26,'4. DETALLADA-RECURSOS ICBF'!$K$10:$K$1300,'2. INFORMACION GENERAL'!$B$50)) -> 0 | AM50: =IFERROR(AK50-AL50,0) -> 0 | AN50: 0 | AO50: =IF(OR(B50="",AN50=0),0,SUMIFS('4. DETALLADA-RECURSOS ICBF'!$M$10:$M$1300,'4. DETALLADA-RECURSOS ICBF'!$B$10:$B$1300,'2. INFORMACION GENERAL'!$AN$26,'4. DETALLADA-RECURSOS ICBF'!$K$10:$K$1300,'2. INFORMACION GENERAL'!$B$50)) -> 0 | AP50: =IFERROR(AN50-AO50,0) -> 0 | AQ50: =IF('1. PRESUPUESTO INICIAL'!F67="",0,'1. PRESUPUESTO INICIAL'!F67) -> 0 | AR50: =IF(OR(B50="",AQ50=0),0,SUMIFS('4. DETALLADA-RECURSOS ICBF'!$M$10:$M$1300,'4. DETALLADA-RECURSOS ICBF'!$B$10:$B$1300,'2. INFORMACION GENERAL'!$AQ$26,'4. DETALLADA-RECURSOS ICBF'!$K$10:$K$1300,'2. INFORMACION GENERAL'!$B$50)) -> 0 | AS50: =IFERROR(AQ50-AR50,0) -> 0 | AT50: 0 | AU50: 0 | AV50: 0
A51: 2204 | B51: =IF('1. PRESUPUESTO INICIAL'!B70="","",'1. PRESUPUESTO INICIAL'!B70) -> FALSE | D51: =+SUM(D52:D56) -> 0 | E51: =+SUM(E52:E56) -> 0 | F51: =+SUM(F52:F56) -> 0 | G51: =+SUM(G52:G56) -> 0 | H51: =+SUM(H52:H56) -> 0 | I51: 0 | J51: =+SUM(J52:J56) -> 0 | K51: 0 | L51: =+SUM(L52:L56) -> 0 | M51: =+SUM(M52:M56) -> 0 | N51: 0 | O51: 0 | P51: =+SUM(P52:P56) -> 0 | Q51: 0 | R51: 0 | S51: =+SUM(S52:S56) -> 0 | T51: 0 | U51: 0 | V51: =+SUM(V52:V56) -> 0 | W51: 0 | X51: 0 | Y51: =+SUM(Y52:Y56) -> 0 | Z51: 0 | AA51: 0 | AB51: =+SUM(AB52:AB56) -> 0 | AC51: 0 | AD51: 0 | AE51: =+SUM(AE52:AE56) -> 0 | AF51: 0 | AG51: 0 | AH51: =+SUM(AH52:AH56) -> 0 | AI51: 0 | AJ51: 0 | AK51: =+SUM(AK52:AK56) -> 0 | AL51: 0 | AM51: 0 | AN51: =+SUM(AN52:AN56) -> 0 | AO51: 0 | AP51: 0 | AQ51: =+SUM(AQ52:AQ56) -> 0 | AR51: =+SUM(AR52:AR56) -> 0 | AS51: =+SUM(AS52:AS56) -> 0 | AT51: 0 | AU51: 0 | AV51: 0
A52: 220401 | B52: =IF('1. PRESUPUESTO INICIAL'!B71="","",'1. PRESUPUESTO INICIAL'!B71) -> FALSE | D52: =IF('1. PRESUPUESTO INICIAL'!D71="",0,'1. PRESUPUESTO INICIAL'!D71) -> 0 | E52: =IF(OR(B52="",D52=0),0,SUMIFS('4. DETALLADA-RECURSOS ICBF'!$M$10:$M$1300,'4. DETALLADA-RECURSOS ICBF'!$B$10:$B$1300,'2. INFORMACION GENERAL'!$D$26,'4. DETALLADA-RECURSOS ICBF'!$K$10:$K$1300,'2. INFORMACION GENERAL'!$B$51,'4. DETALLADA-RECURSOS ICBF'!$L$10:$L$1300,'2. INFORMACION GENERAL'!B52)) -> 0 | F52: =IFERROR(D52-E52,0) -> 0 | G52: 0 | H52: =IF(OR(B52="",G52=0),0,SUMIFS('4. DETALLADA-RECURSOS ICBF'!$M$10:$M$1300,'4. DETALLADA-RECURSOS ICBF'!$B$10:$B$1300,'2. INFORMACION GENERAL'!$G$26,'4. DETALLADA-RECURSOS ICBF'!$K$10:$K$1300,'2. INFORMACION GENERAL'!$B$51,'4. DETALLADA-RECURSOS ICBF'!$L$10:$L$1300,'2. INFORMACION GENERAL'!B52)) -> 0 | I52: =IFERROR(G52-H52,0) -> 0 | J52: 0 | K52: =IF(OR(B52="",J52=0),0,SUMIFS('4. DETALLADA-RECURSOS ICBF'!$M$10:$M$1300,'4. DETALLADA-RECURSOS ICBF'!$B$10:$B$1300,'2. INFORMACION GENERAL'!$J$26,'4. DETALLADA-RECURSOS ICBF'!$K$10:$K$1300,'2. INFORMACION GENERAL'!$B$51,'4. DETALLADA-RECURSOS ICBF'!$L$10:$L$1300,'2. INFORMACION GENERAL'!B52)) -> 0 | L52: =IFERROR(J52-K52,0) -> 0 | M52: 0 | N52: =IF(OR(B52="",M52=0),0,SUMIFS('4. DETALLADA-RECURSOS ICBF'!$M$10:$M$1300,'4. DETALLADA-RECURSOS ICBF'!$B$10:$B$1300,'2. INFORMACION GENERAL'!$M$26,'4. DETALLADA-RECURSOS ICBF'!$K$10:$K$1300,'2. INFORMACION GENERAL'!$B$51,'4. DETALLADA-RECURSOS ICBF'!$L$10:$L$1300,'2. INFORMACION GENERAL'!B52)) -> 0 | O52: =IFERROR(M52-N52,0) -> 0 | P52: 0 | Q52: =IF(OR(B52="",P52=0),0,SUMIFS('4. DETALLADA-RECURSOS ICBF'!$M$10:$M$1300,'4. DETALLADA-RECURSOS ICBF'!$B$10:$B$1300,'2. INFORMACION GENERAL'!$P$26,'4. DETALLADA-RECURSOS ICBF'!$K$10:$K$1300,'2. INFORMACION GENERAL'!$B$51,'4. DETALLADA-RECURSOS ICBF'!$L$10:$L$1300,'2. INFORMACION GENERAL'!B52)) -> 0 | R52: =IFERROR(P52-Q52,0) -> 0 | S52: 0 | T52: =IF(OR(B52="",S52=0),0,SUMIFS('4. DETALLADA-RECURSOS ICBF'!$M$10:$M$1300,'4. DETALLADA-RECURSOS ICBF'!$B$10:$B$1300,'2. INFORMACION GENERAL'!$S$26,'4. DETALLADA-RECURSOS ICBF'!$K$10:$K$1300,'2. INFORMACION GENERAL'!$B$51,'4. DETALLADA-RECURSOS ICBF'!$L$10:$L$1300,'2. INFORMACION GENERAL'!B52)) -> 0 | U52: =IFERROR(S52-T52,0) -> 0 | V52: 0 | W52: =IF(OR(B52="",V52=0),0,SUMIFS('4. DETALLADA-RECURSOS ICBF'!$M$10:$M$1300,'4. DETALLADA-RECURSOS ICBF'!$B$10:$B$1300,'2. INFORMACION GENERAL'!$V$26,'4. DETALLADA-RECURSOS ICBF'!$K$10:$K$1300,'2. INFORMACION GENERAL'!$B$51,'4. DETALLADA-RECURSOS ICBF'!$L$10:$L$1300,'2. INFORMACION GENERAL'!B52)) -> 0 | X52: =IFERROR(V52-W52,0) -> 0 | Y52: 0 | Z52: =IF(OR(B52="",Y52=0),0,SUMIFS('4. DETALLADA-RECURSOS ICBF'!$M$10:$M$1300,'4. DETALLADA-RECURSOS ICBF'!$B$10:$B$1300,'2. INFORMACION GENERAL'!$Y$26,'4. DETALLADA-RECURSOS ICBF'!$K$10:$K$1300,'2. INFORMACION GENERAL'!$B$51,'4. DETALLADA-RECURSOS ICBF'!$L$10:$L$1300,'2. INFORMACION GENERAL'!B52)) -> 0 | AA52: =IFERROR(Y52-Z52,0) -> 0 | AB52: 0 | AC52: =IF(OR(B52="",AB52=0),0,SUMIFS('4. DETALLADA-RECURSOS ICBF'!$M$10:$M$1300,'4. DETALLADA-RECURSOS ICBF'!$B$10:$B$1300,'2. INFORMACION GENERAL'!$AB$26,'4. DETALLADA-RECURSOS ICBF'!$K$10:$K$1300,'2. INFORMACION GENERAL'!$B$51,'4. DETALLADA-RECURSOS ICBF'!$L$10:$L$1300,'2. INFORMACION GENERAL'!B52)) -> 0 | AD52: =IFERROR(AB52-AC52,0) -> 0 | AE52: 0 | AF52: =IF(OR(B52="",AE52=0),0,SUMIFS('4. DETALLADA-RECURSOS ICBF'!$M$10:$M$1300,'4. DETALLADA-RECURSOS ICBF'!$B$10:$B$1300,'2. INFORMACION GENERAL'!$AE$26,'4. DETALLADA-RECURSOS ICBF'!$K$10:$K$1300,'2. INFORMACION GENERAL'!$B$51,'4. DETALLADA-RECURSOS ICBF'!$L$10:$L$1300,'2. INFORMACION GENERAL'!B52)) -> 0 | AG52: =IFERROR(AE52-AF52,0) -> 0 | AH52: 0 | AI52: =IF(OR(B52="",AH52=0),0,SUMIFS('4. DETALLADA-RECURSOS ICBF'!$M$10:$M$1300,'4. DETALLADA-RECURSOS ICBF'!$B$10:$B$1300,'2. INFORMACION GENERAL'!$AH$26,'4. DETALLADA-RECURSOS ICBF'!$K$10:$K$1300,'2. INFORMACION GENERAL'!$B$51,'4. DETALLADA-RECURSOS ICBF'!$L$10:$L$1300,'2. INFORMACION GENERAL'!B52)) -> 0 | AJ52: =IFERROR(AH52-AI52,0) -> 0 | AK52: 0 | AL52: =IF(OR(B52="",AK52=0),0,SUMIFS('4. DETALLADA-RECURSOS ICBF'!$M$10:$M$1300,'4. DETALLADA-RECURSOS ICBF'!$B$10:$B$1300,'2. INFORMACION GENERAL'!$AK$26,'4. DETALLADA-RECURSOS ICBF'!$K$10:$K$1300,'2. INFORMACION GENERAL'!$B$51,'4. DETALLADA-RECURSOS ICBF'!$L$10:$L$1300,'2. INFORMACION GENERAL'!B52)) -> 0 | AM52: =IFERROR(AK52-AL52,0) -> 0 | AN52: 0 | AO52: =IF(OR(B52="",AN52=0),0,SUMIFS('4. DETALLADA-RECURSOS ICBF'!$M$10:$M$1300,'4. DETALLADA-RECURSOS ICBF'!$B$10:$B$1300,'2. INFORMACION GENERAL'!$AN$26,'4. DETALLADA-RECURSOS ICBF'!$K$10:$K$1300,'2. INFORMACION GENERAL'!$B$51,'4. DETALLADA-RECURSOS ICBF'!$L$10:$L$1300,'2. INFORMACION GENERAL'!B52)) -> 0 | AP52: =IFERROR(AN52-AO52,0) -> 0 | AQ52: =IF('1. PRESUPUESTO INICIAL'!F71="",0,'1. PRESUPUESTO INICIAL'!F71) -> 0 | AR52: =IF(OR(B52="",AQ52=0),0,SUMIFS('4. DETALLADA-RECURSOS ICBF'!$M$10:$M$1300,'4. DETALLADA-RECURSOS ICBF'!$B$10:$B$1300,'2. INFORMACION GENERAL'!$AQ$26,'4. DETALLADA-RECURSOS ICBF'!$K$10:$K$1300,'2. INFORMACION GENERAL'!$B$51,'4. DETALLADA-RECURSOS ICBF'!$L$10:$L$1300,'2. INFORMACION GENERAL'!B52)) -> 0 | AS52: =IFERROR(AQ52-AR52,0) -> 0 | AT52: =+SUMIFS(D52:AS52,$D$27:$AS$27,$AT$27) -> 0 | AU52: =+SUMIFS(D52:AS52,$D$27:$AS$27,$AU$27) -> 0 | AV52: =+SUMIFS(D52:AS52,$D$27:$AS$27,$AV$27) -> 0
A53: 220402 | B53: =IF('1. PRESUPUESTO INICIAL'!B72="","",'1. PRESUPUESTO INICIAL'!B72) -> FALSE | D53: =IF('1. PRESUPUESTO INICIAL'!D72="",0,'1. PRESUPUESTO INICIAL'!D72) -> 0 | E53: =IF(OR(B53="",D53=0),0,SUMIFS('4. DETALLADA-RECURSOS ICBF'!$M$10:$M$1300,'4. DETALLADA-RECURSOS ICBF'!$B$10:$B$1300,'2. INFORMACION GENERAL'!$D$26,'4. DETALLADA-RECURSOS ICBF'!$K$10:$K$1300,'2. INFORMACION GENERAL'!$B$51,'4. DETALLADA-RECURSOS ICBF'!$L$10:$L$1300,'2. INFORMACION GENERAL'!B53)) -> 0 | F53: =IFERROR(D53-E53,0) -> 0 | G53: 0 | H53: =IF(OR(B53="",G53=0),0,SUMIFS('4. DETALLADA-RECURSOS ICBF'!$M$10:$M$1300,'4. DETALLADA-RECURSOS ICBF'!$B$10:$B$1300,'2. INFORMACION GENERAL'!$G$26,'4. DETALLADA-RECURSOS ICBF'!$K$10:$K$1300,'2. INFORMACION GENERAL'!$B$51,'4. DETALLADA-RECURSOS ICBF'!$L$10:$L$1300,'2. INFORMACION GENERAL'!B53)) -> 0 | I53: =IFERROR(G53-H53,0) -> 0 | J53: 0 | K53: =IF(OR(B53="",J53=0),0,SUMIFS('4. DETALLADA-RECURSOS ICBF'!$M$10:$M$1300,'4. DETALLADA-RECURSOS ICBF'!$B$10:$B$1300,'2. INFORMACION GENERAL'!$J$26,'4. DETALLADA-RECURSOS ICBF'!$K$10:$K$1300,'2. INFORMACION GENERAL'!$B$51,'4. DETALLADA-RECURSOS ICBF'!$L$10:$L$1300,'2. INFORMACION GENERAL'!B53)) -> 0 | L53: =IFERROR(J53-K53,0) -> 0 | M53: 0 | N53: =IF(OR(B53="",M53=0),0,SUMIFS('4. DETALLADA-RECURSOS ICBF'!$M$10:$M$1300,'4. DETALLADA-RECURSOS ICBF'!$B$10:$B$1300,'2. INFORMACION GENERAL'!$M$26,'4. DETALLADA-RECURSOS ICBF'!$K$10:$K$1300,'2. INFORMACION GENERAL'!$B$51,'4. DETALLADA-RECURSOS ICBF'!$L$10:$L$1300,'2. INFORMACION GENERAL'!B53)) -> 0 | O53: =IFERROR(M53-N53,0) -> 0 | P53: 0 | Q53: =IF(OR(B53="",P53=0),0,SUMIFS('4. DETALLADA-RECURSOS ICBF'!$M$10:$M$1300,'4. DETALLADA-RECURSOS ICBF'!$B$10:$B$1300,'2. INFORMACION GENERAL'!$P$26,'4. DETALLADA-RECURSOS ICBF'!$K$10:$K$1300,'2. INFORMACION GENERAL'!$B$51,'4. DETALLADA-RECURSOS ICBF'!$L$10:$L$1300,'2. INFORMACION GENERAL'!B53)) -> 0 | R53: =IFERROR(P53-Q53,0) -> 0 | S53: 0 | T53: =IF(OR(B53="",S53=0),0,SUMIFS('4. DETALLADA-RECURSOS ICBF'!$M$10:$M$1300,'4. DETALLADA-RECURSOS ICBF'!$B$10:$B$1300,'2. INFORMACION GENERAL'!$S$26,'4. DETALLADA-RECURSOS ICBF'!$K$10:$K$1300,'2. INFORMACION GENERAL'!$B$51,'4. DETALLADA-RECURSOS ICBF'!$L$10:$L$1300,'2. INFORMACION GENERAL'!B53)) -> 0 | U53: =IFERROR(S53-T53,0) -> 0 | V53: 0 | W53: =IF(OR(B53="",V53=0),0,SUMIFS('4. DETALLADA-RECURSOS ICBF'!$M$10:$M$1300,'4. DETALLADA-RECURSOS ICBF'!$B$10:$B$1300,'2. INFORMACION GENERAL'!$V$26,'4. DETALLADA-RECURSOS ICBF'!$K$10:$K$1300,'2. INFORMACION GENERAL'!$B$51,'4. DETALLADA-RECURSOS ICBF'!$L$10:$L$1300,'2. INFORMACION GENERAL'!B53)) -> 0 | X53: =IFERROR(V53-W53,0) -> 0 | Y53: 0 | Z53: =IF(OR(B53="",Y53=0),0,SUMIFS('4. DETALLADA-RECURSOS ICBF'!$M$10:$M$1300,'4. DETALLADA-RECURSOS ICBF'!$B$10:$B$1300,'2. INFORMACION GENERAL'!$Y$26,'4. DETALLADA-RECURSOS ICBF'!$K$10:$K$1300,'2. INFORMACION GENERAL'!$B$51,'4. DETALLADA-RECURSOS ICBF'!$L$10:$L$1300,'2. INFORMACION GENERAL'!B53)) -> 0 | AA53: =IFERROR(Y53-Z53,0) -> 0 | AB53: 0 | AC53: =IF(OR(B53="",AB53=0),0,SUMIFS('4. DETALLADA-RECURSOS ICBF'!$M$10:$M$1300,'4. DETALLADA-RECURSOS ICBF'!$B$10:$B$1300,'2. INFORMACION GENERAL'!$AB$26,'4. DETALLADA-RECURSOS ICBF'!$K$10:$K$1300,'2. INFORMACION GENERAL'!$B$51,'4. DETALLADA-RECURSOS ICBF'!$L$10:$L$1300,'2. INFORMACION GENERAL'!B53)) -> 0 | AD53: =IFERROR(AB53-AC53,0) -> 0 | AE53: 0 | AF53: =IF(OR(B53="",AE53=0),0,SUMIFS('4. DETALLADA-RECURSOS ICBF'!$M$10:$M$1300,'4. DETALLADA-RECURSOS ICBF'!$B$10:$B$1300,'2. INFORMACION GENERAL'!$AE$26,'4. DETALLADA-RECURSOS ICBF'!$K$10:$K$1300,'2. INFORMACION GENERAL'!$B$51,'4. DETALLADA-RECURSOS ICBF'!$L$10:$L$1300,'2. INFORMACION GENERAL'!B53)) -> 0 | AG53: =IFERROR(AE53-AF53,0) -> 0 | AH53: 0 | AI53: =IF(OR(B53="",AH53=0),0,SUMIFS('4. DETALLADA-RECURSOS ICBF'!$M$10:$M$1300,'4. DETALLADA-RECURSOS ICBF'!$B$10:$B$1300,'2. INFORMACION GENERAL'!$AH$26,'4. DETALLADA-RECURSOS ICBF'!$K$10:$K$1300,'2. INFORMACION GENERAL'!$B$51,'4. DETALLADA-RECURSOS ICBF'!$L$10:$L$1300,'2. INFORMACION GENERAL'!B53)) -> 0 | AJ53: =IFERROR(AH53-AI53,0) -> 0 | AK53: 0 | AL53: =IF(OR(B53="",AK53=0),0,SUMIFS('4. DETALLADA-RECURSOS ICBF'!$M$10:$M$1300,'4. DETALLADA-RECURSOS ICBF'!$B$10:$B$1300,'2. INFORMACION GENERAL'!$AK$26,'4. DETALLADA-RECURSOS ICBF'!$K$10:$K$1300,'2. INFORMACION GENERAL'!$B$51,'4. DETALLADA-RECURSOS ICBF'!$L$10:$L$1300,'2. INFORMACION GENERAL'!B53)) -> 0 | AM53: =IFERROR(AK53-AL53,0) -> 0 | AN53: 0 | AO53: =IF(OR(B53="",AN53=0),0,SUMIFS('4. DETALLADA-RECURSOS ICBF'!$M$10:$M$1300,'4. DETALLADA-RECURSOS ICBF'!$B$10:$B$1300,'2. INFORMACION GENERAL'!$AN$26,'4. DETALLADA-RECURSOS ICBF'!$K$10:$K$1300,'2. INFORMACION GENERAL'!$B$51,'4. DETALLADA-RECURSOS ICBF'!$L$10:$L$1300,'2. INFORMACION GENERAL'!B53)) -> 0 | AP53: =IFERROR(AN53-AO53,0) -> 0 | AQ53: =IF('1. PRESUPUESTO INICIAL'!F72="",0,'1. PRESUPUESTO INICIAL'!F72) -> 0 | AR53: =IF(OR(B53="",AQ53=0),0,SUMIFS('4. DETALLADA-RECURSOS ICBF'!$M$10:$M$1300,'4. DETALLADA-RECURSOS ICBF'!$B$10:$B$1300,'2. INFORMACION GENERAL'!$AQ$26,'4. DETALLADA-RECURSOS ICBF'!$K$10:$K$1300,'2. INFORMACION GENERAL'!$B$51,'4. DETALLADA-RECURSOS ICBF'!$L$10:$L$1300,'2. INFORMACION GENERAL'!B53)) -> 0 | AS53: =IFERROR(AQ53-AR53,0) -> 0 | AT53: 0 | AU53: 0 | AV53: 0
A54: 220403 | B54: =IF('1. PRESUPUESTO INICIAL'!B73="","",'1. PRESUPUESTO INICIAL'!B73) -> FALSE | D54: =IF('1. PRESUPUESTO INICIAL'!D73="",0,'1. PRESUPUESTO INICIAL'!D73) -> 0 | E54: =IF(OR(B54="",D54=0),0,SUMIFS('4. DETALLADA-RECURSOS ICBF'!$M$10:$M$1300,'4. DETALLADA-RECURSOS ICBF'!$B$10:$B$1300,'2. INFORMACION GENERAL'!$D$26,'4. DETALLADA-RECURSOS ICBF'!$K$10:$K$1300,'2. INFORMACION GENERAL'!$B$51,'4. DETALLADA-RECURSOS ICBF'!$L$10:$L$1300,'2. INFORMACION GENERAL'!B54)) -> 0 | F54: 0 | G54: 0 | H54: =IF(OR(B54="",G54=0),0,SUMIFS('4. DETALLADA-RECURSOS ICBF'!$M$10:$M$1300,'4. DETALLADA-RECURSOS ICBF'!$B$10:$B$1300,'2. INFORMACION GENERAL'!$G$26,'4. DETALLADA-RECURSOS ICBF'!$K$10:$K$1300,'2. INFORMACION GENERAL'!$B$51,'4. DETALLADA-RECURSOS ICBF'!$L$10:$L$1300,'2. INFORMACION GENERAL'!B54)) -> 0 | I54: 0 | J54: 0 | K54: =IF(OR(B54="",J54=0),0,SUMIFS('4. DETALLADA-RECURSOS ICBF'!$M$10:$M$1300,'4. DETALLADA-RECURSOS ICBF'!$B$10:$B$1300,'2. INFORMACION GENERAL'!$J$26,'4. DETALLADA-RECURSOS ICBF'!$K$10:$K$1300,'2. INFORMACION GENERAL'!$B$51,'4. DETALLADA-RECURSOS ICBF'!$L$10:$L$1300,'2. INFORMACION GENERAL'!B54)) -> 0 | L54: 0 | M54: 0 | N54: =IF(OR(B54="",M54=0),0,SUMIFS('4. DETALLADA-RECURSOS ICBF'!$M$10:$M$1300,'4. DETALLADA-RECURSOS ICBF'!$B$10:$B$1300,'2. INFORMACION GENERAL'!$M$26,'4. DETALLADA-RECURSOS ICBF'!$K$10:$K$1300,'2. INFORMACION GENERAL'!$B$51,'4. DETALLADA-RECURSOS ICBF'!$L$10:$L$1300,'2. INFORMACION GENERAL'!B54)) -> 0 | O54: 0 | P54: 0 | Q54: =IF(OR(B54="",P54=0),0,SUMIFS('4. DETALLADA-RECURSOS ICBF'!$M$10:$M$1300,'4. DETALLADA-RECURSOS ICBF'!$B$10:$B$1300,'2. INFORMACION GENERAL'!$P$26,'4. DETALLADA-RECURSOS ICBF'!$K$10:$K$1300,'2. INFORMACION GENERAL'!$B$51,'4. DETALLADA-RECURSOS ICBF'!$L$10:$L$1300,'2. INFORMACION GENERAL'!B54)) -> 0 | R54: 0 | S54: 0 | T54: =IF(OR(B54="",S54=0),0,SUMIFS('4. DETALLADA-RECURSOS ICBF'!$M$10:$M$1300,'4. DETALLADA-RECURSOS ICBF'!$B$10:$B$1300,'2. INFORMACION GENERAL'!$S$26,'4. DETALLADA-RECURSOS ICBF'!$K$10:$K$1300,'2. INFORMACION GENERAL'!$B$51,'4. DETALLADA-RECURSOS ICBF'!$L$10:$L$1300,'2. INFORMACION GENERAL'!B54)) -> 0 | U54: 0 | V54: 0 | W54: =IF(OR(B54="",V54=0),0,SUMIFS('4. DETALLADA-RECURSOS ICBF'!$M$10:$M$1300,'4. DETALLADA-RECURSOS ICBF'!$B$10:$B$1300,'2. INFORMACION GENERAL'!$V$26,'4. DETALLADA-RECURSOS ICBF'!$K$10:$K$1300,'2. INFORMACION GENERAL'!$B$51,'4. DETALLADA-RECURSOS ICBF'!$L$10:$L$1300,'2. INFORMACION GENERAL'!B54)) -> 0 | X54: 0 | Y54: 0 | Z54: =IF(OR(B54="",Y54=0),0,SUMIFS('4. DETALLADA-RECURSOS ICBF'!$M$10:$M$1300,'4. DETALLADA-RECURSOS ICBF'!$B$10:$B$1300,'2. INFORMACION GENERAL'!$Y$26,'4. DETALLADA-RECURSOS ICBF'!$K$10:$K$1300,'2. INFORMACION GENERAL'!$B$51,'4. DETALLADA-RECURSOS ICBF'!$L$10:$L$1300,'2. INFORMACION GENERAL'!B54)) -> 0 | AA54: 0 | AB54: 0 | AC54: =IF(OR(B54="",AB54=0),0,SUMIFS('4. DETALLADA-RECURSOS ICBF'!$M$10:$M$1300,'4. DETALLADA-RECURSOS ICBF'!$B$10:$B$1300,'2. INFORMACION GENERAL'!$AB$26,'4. DETALLADA-RECURSOS ICBF'!$K$10:$K$1300,'2. INFORMACION GENERAL'!$B$51,'4. DETALLADA-RECURSOS ICBF'!$L$10:$L$1300,'2. INFORMACION GENERAL'!B54)) -> 0 | AD54: 0 | AE54: 0 | AF54: =IF(OR(B54="",AE54=0),0,SUMIFS('4. DETALLADA-RECURSOS ICBF'!$M$10:$M$1300,'4. DETALLADA-RECURSOS ICBF'!$B$10:$B$1300,'2. INFORMACION GENERAL'!$AE$26,'4. DETALLADA-RECURSOS ICBF'!$K$10:$K$1300,'2. INFORMACION GENERAL'!$B$51,'4. DETALLADA-RECURSOS ICBF'!$L$10:$L$1300,'2. INFORMACION GENERAL'!B54)) -> 0 | AG54: 0 | AH54: 0 | AI54: =IF(OR(B54="",AH54=0),0,SUMIFS('4. DETALLADA-RECURSOS ICBF'!$M$10:$M$1300,'4. DETALLADA-RECURSOS ICBF'!$B$10:$B$1300,'2. INFORMACION GENERAL'!$AH$26,'4. DETALLADA-RECURSOS ICBF'!$K$10:$K$1300,'2. INFORMACION GENERAL'!$B$51,'4. DETALLADA-RECURSOS ICBF'!$L$10:$L$1300,'2. INFORMACION GENERAL'!B54)) -> 0 | AJ54: 0 | AK54: 0 | AL54: =IF(OR(B54="",AK54=0),0,SUMIFS('4. DETALLADA-RECURSOS ICBF'!$M$10:$M$1300,'4. DETALLADA-RECURSOS ICBF'!$B$10:$B$1300,'2. INFORMACION GENERAL'!$AK$26,'4. DETALLADA-RECURSOS ICBF'!$K$10:$K$1300,'2. INFORMACION GENERAL'!$B$51,'4. DETALLADA-RECURSOS ICBF'!$L$10:$L$1300,'2. INFORMACION GENERAL'!B54)) -> 0 | AM54: 0 | AN54: 0 | AO54: =IF(OR(B54="",AN54=0),0,SUMIFS('4. DETALLADA-RECURSOS ICBF'!$M$10:$M$1300,'4. DETALLADA-RECURSOS ICBF'!$B$10:$B$1300,'2. INFORMACION GENERAL'!$AN$26,'4. DETALLADA-RECURSOS ICBF'!$K$10:$K$1300,'2. INFORMACION GENERAL'!$B$51,'4. DETALLADA-RECURSOS ICBF'!$L$10:$L$1300,'2. INFORMACION GENERAL'!B54)) -> 0 | AP54: =IFERROR(AN54-AO54,0) -> 0 | AQ54: =IF('1. PRESUPUESTO INICIAL'!F73="",0,'1. PRESUPUESTO INICIAL'!F73) -> 0 | AR54: =IF(OR(B54="",AQ54=0),0,SUMIFS('4. DETALLADA-RECURSOS ICBF'!$M$10:$M$1300,'4. DETALLADA-RECURSOS ICBF'!$B$10:$B$1300,'2. INFORMACION GENERAL'!$AQ$26,'4. DETALLADA-RECURSOS ICBF'!$K$10:$K$1300,'2. INFORMACION GENERAL'!$B$51,'4. DETALLADA-RECURSOS ICBF'!$L$10:$L$1300,'2. INFORMACION GENERAL'!B54)) -> 0 | AS54: 0 | AT54: 0 | AU54: 0 | AV54: 0
A55: 220404 | B55: =IF('1. PRESUPUESTO INICIAL'!B74="","",'1. PRESUPUESTO INICIAL'!B74) -> FALSE | D55: =IF('1. PRESUPUESTO INICIAL'!D74="",0,'1. PRESUPUESTO INICIAL'!D74) -> 0 | E55: =IF(OR(B55="",D55=0),0,SUMIFS('4. DETALLADA-RECURSOS ICBF'!$M$10:$M$1300,'4. DETALLADA-RECURSOS ICBF'!$B$10:$B$1300,'2. INFORMACION GENERAL'!$D$26,'4. DETALLADA-RECURSOS ICBF'!$K$10:$K$1300,'2. INFORMACION GENERAL'!$B$51,'4. DETALLADA-RECURSOS ICBF'!$L$10:$L$1300,'2. INFORMACION GENERAL'!B55)) -> 0 | F55: 0 | G55: 0 | H55: =IF(OR(B55="",G55=0),0,SUMIFS('4. DETALLADA-RECURSOS ICBF'!$M$10:$M$1300,'4. DETALLADA-RECURSOS ICBF'!$B$10:$B$1300,'2. INFORMACION GENERAL'!$G$26,'4. DETALLADA-RECURSOS ICBF'!$K$10:$K$1300,'2. INFORMACION GENERAL'!$B$51,'4. DETALLADA-RECURSOS ICBF'!$L$10:$L$1300,'2. INFORMACION GENERAL'!B55)) -> 0 | I55: 0 | J55: 0 | K55: =IF(OR(B55="",J55=0),0,SUMIFS('4. DETALLADA-RECURSOS ICBF'!$M$10:$M$1300,'4. DETALLADA-RECURSOS ICBF'!$B$10:$B$1300,'2. INFORMACION GENERAL'!$J$26,'4. DETALLADA-RECURSOS ICBF'!$K$10:$K$1300,'2. INFORMACION GENERAL'!$B$51,'4. DETALLADA-RECURSOS ICBF'!$L$10:$L$1300,'2. INFORMACION GENERAL'!B55)) -> 0 | L55: 0 | M55: 0 | N55: =IF(OR(B55="",M55=0),0,SUMIFS('4. DETALLADA-RECURSOS ICBF'!$M$10:$M$1300,'4. DETALLADA-RECURSOS ICBF'!$B$10:$B$1300,'2. INFORMACION GENERAL'!$M$26,'4. DETALLADA-RECURSOS ICBF'!$K$10:$K$1300,'2. INFORMACION GENERAL'!$B$51,'4. DETALLADA-RECURSOS ICBF'!$L$10:$L$1300,'2. INFORMACION GENERAL'!B55)) -> 0 | O55: 0 | P55: 0 | Q55: =IF(OR(B55="",P55=0),0,SUMIFS('4. DETALLADA-RECURSOS ICBF'!$M$10:$M$1300,'4. DETALLADA-RECURSOS ICBF'!$B$10:$B$1300,'2. INFORMACION GENERAL'!$P$26,'4. DETALLADA-RECURSOS ICBF'!$K$10:$K$1300,'2. INFORMACION GENERAL'!$B$51,'4. DETALLADA-RECURSOS ICBF'!$L$10:$L$1300,'2. INFORMACION GENERAL'!B55)) -> 0 | R55: 0 | S55: 0 | T55: =IF(OR(B55="",S55=0),0,SUMIFS('4. DETALLADA-RECURSOS ICBF'!$M$10:$M$1300,'4. DETALLADA-RECURSOS ICBF'!$B$10:$B$1300,'2. INFORMACION GENERAL'!$S$26,'4. DETALLADA-RECURSOS ICBF'!$K$10:$K$1300,'2. INFORMACION GENERAL'!$B$51,'4. DETALLADA-RECURSOS ICBF'!$L$10:$L$1300,'2. INFORMACION GENERAL'!B55)) -> 0 | U55: 0 | V55: 0 | W55: =IF(OR(B55="",V55=0),0,SUMIFS('4. DETALLADA-RECURSOS ICBF'!$M$10:$M$1300,'4. DETALLADA-RECURSOS ICBF'!$B$10:$B$1300,'2. INFORMACION GENERAL'!$V$26,'4. DETALLADA-RECURSOS ICBF'!$K$10:$K$1300,'2. INFORMACION GENERAL'!$B$51,'4. DETALLADA-RECURSOS ICBF'!$L$10:$L$1300,'2. INFORMACION GENERAL'!B55)) -> 0 | X55: 0 | Y55: 0 | Z55: =IF(OR(B55="",Y55=0),0,SUMIFS('4. DETALLADA-RECURSOS ICBF'!$M$10:$M$1300,'4. DETALLADA-RECURSOS ICBF'!$B$10:$B$1300,'2. INFORMACION GENERAL'!$Y$26,'4. DETALLADA-RECURSOS ICBF'!$K$10:$K$1300,'2. INFORMACION GENERAL'!$B$51,'4. DETALLADA-RECURSOS ICBF'!$L$10:$L$1300,'2. INFORMACION GENERAL'!B55)) -> 0 | AA55: 0 | AB55: 0 | AC55: =IF(OR(B55="",AB55=0),0,SUMIFS('4. DETALLADA-RECURSOS ICBF'!$M$10:$M$1300,'4. DETALLADA-RECURSOS ICBF'!$B$10:$B$1300,'2. INFORMACION GENERAL'!$AB$26,'4. DETALLADA-RECURSOS ICBF'!$K$10:$K$1300,'2. INFORMACION GENERAL'!$B$51,'4. DETALLADA-RECURSOS ICBF'!$L$10:$L$1300,'2. INFORMACION GENERAL'!B55)) -> 0 | AD55: 0 | AE55: 0 | AF55: =IF(OR(B55="",AE55=0),0,SUMIFS('4. DETALLADA-RECURSOS ICBF'!$M$10:$M$1300,'4. DETALLADA-RECURSOS ICBF'!$B$10:$B$1300,'2. INFORMACION GENERAL'!$AE$26,'4. DETALLADA-RECURSOS ICBF'!$K$10:$K$1300,'2. INFORMACION GENERAL'!$B$51,'4. DETALLADA-RECURSOS ICBF'!$L$10:$L$1300,'2. INFORMACION GENERAL'!B55)) -> 0 | AG55: 0 | AH55: 0 | AI55: =IF(OR(B55="",AH55=0),0,SUMIFS('4. DETALLADA-RECURSOS ICBF'!$M$10:$M$1300,'4. DETALLADA-RECURSOS ICBF'!$B$10:$B$1300,'2. INFORMACION GENERAL'!$AH$26,'4. DETALLADA-RECURSOS ICBF'!$K$10:$K$1300,'2. INFORMACION GENERAL'!$B$51,'4. DETALLADA-RECURSOS ICBF'!$L$10:$L$1300,'2. INFORMACION GENERAL'!B55)) -> 0 | AJ55: 0 | AK55: 0 | AL55: =IF(OR(B55="",AK55=0),0,SUMIFS('4. DETALLADA-RECURSOS ICBF'!$M$10:$M$1300,'4. DETALLADA-RECURSOS ICBF'!$B$10:$B$1300,'2. INFORMACION GENERAL'!$AK$26,'4. DETALLADA-RECURSOS ICBF'!$K$10:$K$1300,'2. INFORMACION GENERAL'!$B$51,'4. DETALLADA-RECURSOS ICBF'!$L$10:$L$1300,'2. INFORMACION GENERAL'!B55)) -> 0 | AM55: =IFERROR(AK55-AL55,0) -> 0 | AN55: 0 | AO55: =IF(OR(B55="",AN55=0),0,SUMIFS('4. DETALLADA-RECURSOS ICBF'!$M$10:$M$1300,'4. DETALLADA-RECURSOS ICBF'!$B$10:$B$1300,'2. INFORMACION GENERAL'!$AN$26,'4. DETALLADA-RECURSOS ICBF'!$K$10:$K$1300,'2. INFORMACION GENERAL'!$B$51,'4. DETALLADA-RECURSOS ICBF'!$L$10:$L$1300,'2. INFORMACION GENERAL'!B55)) -> 0 | AP55: =IFERROR(AN55-AO55,0) -> 0 | AQ55: =IF('1. PRESUPUESTO INICIAL'!F74="",0,'1. PRESUPUESTO INICIAL'!F74) -> 0 | AR55: =IF(OR(B55="",AQ55=0),0,SUMIFS('4. DETALLADA-RECURSOS ICBF'!$M$10:$M$1300,'4. DETALLADA-RECURSOS ICBF'!$B$10:$B$1300,'2. INFORMACION GENERAL'!$AQ$26,'4. DETALLADA-RECURSOS ICBF'!$K$10:$K$1300,'2. INFORMACION GENERAL'!$B$51,'4. DETALLADA-RECURSOS ICBF'!$L$10:$L$1300,'2. INFORMACION GENERAL'!B55)) -> 0 | AS55: 0 | AT55: 0 | AU55: 0 | AV55: 0
A56: 220405 | B56: =IF('1. PRESUPUESTO INICIAL'!B75="","",'1. PRESUPUESTO INICIAL'!B75) -> FALSE | D56: =IF('1. PRESUPUESTO INICIAL'!D75="",0,'1. PRESUPUESTO INICIAL'!D75) -> FALSE | E56: =IF(OR(B56="",D56=0),0,SUMIFS('4. DETALLADA-RECURSOS ICBF'!$M$10:$M$1300,'4. DETALLADA-RECURSOS ICBF'!$B$10:$B$1300,'2. INFORMACION GENERAL'!$D$26,'4. DETALLADA-RECURSOS ICBF'!$K$10:$K$1300,'2. INFORMACION GENERAL'!$B$51,'4. DETALLADA-RECURSOS ICBF'!$L$10:$L$1300,'2. INFORMACION GENERAL'!B56)) -> 0 | F56: 0 | G56: 0 | H56: =IF(OR(B56="",G56=0),0,SUMIFS('4. DETALLADA-RECURSOS ICBF'!$M$10:$M$1300,'4. DETALLADA-RECURSOS ICBF'!$B$10:$B$1300,'2. INFORMACION GENERAL'!$G$26,'4. DETALLADA-RECURSOS ICBF'!$K$10:$K$1300,'2. INFORMACION GENERAL'!$B$51,'4. DETALLADA-RECURSOS ICBF'!$L$10:$L$1300,'2. INFORMACION GENERAL'!B56)) -> 0 | I56: 0 | J56: 0 | K56: =IF(OR(B56="",J56=0),0,SUMIFS('4. DETALLADA-RECURSOS ICBF'!$M$10:$M$1300,'4. DETALLADA-RECURSOS ICBF'!$B$10:$B$1300,'2. INFORMACION GENERAL'!$J$26,'4. DETALLADA-RECURSOS ICBF'!$K$10:$K$1300,'2. INFORMACION GENERAL'!$B$51,'4. DETALLADA-RECURSOS ICBF'!$L$10:$L$1300,'2. INFORMACION GENERAL'!B56)) -> 0 | L56: =IFERROR(J56-K56,0) -> 0 | M56: 0 | N56: =IF(OR(B56="",M56=0),0,SUMIFS('4. DETALLADA-RECURSOS ICBF'!$M$10:$M$1300,'4. DETALLADA-RECURSOS ICBF'!$B$10:$B$1300,'2. INFORMACION GENERAL'!$M$26,'4. DETALLADA-RECURSOS ICBF'!$K$10:$K$1300,'2. INFORMACION GENERAL'!$B$51,'4. DETALLADA-RECURSOS ICBF'!$L$10:$L$1300,'2. INFORMACION GENERAL'!B56)) -> 0 | O56: =IFERROR(M56-N56,0) -> 0 | P56: 0 | Q56: =IF(OR(B56="",P56=0),0,SUMIFS('4. DETALLADA-RECURSOS ICBF'!$M$10:$M$1300,'4. DETALLADA-RECURSOS ICBF'!$B$10:$B$1300,'2. INFORMACION GENERAL'!$P$26,'4. DETALLADA-RECURSOS ICBF'!$K$10:$K$1300,'2. INFORMACION GENERAL'!$B$51,'4. DETALLADA-RECURSOS ICBF'!$L$10:$L$1300,'2. INFORMACION GENERAL'!B56)) -> 0 | R56: =IFERROR(P56-Q56,0) -> 0 | S56: 0 | T56: =IF(OR(B56="",S56=0),0,SUMIFS('4. DETALLADA-RECURSOS ICBF'!$M$10:$M$1300,'4. DETALLADA-RECURSOS ICBF'!$B$10:$B$1300,'2. INFORMACION GENERAL'!$S$26,'4. DETALLADA-RECURSOS ICBF'!$K$10:$K$1300,'2. INFORMACION GENERAL'!$B$51,'4. DETALLADA-RECURSOS ICBF'!$L$10:$L$1300,'2. INFORMACION GENERAL'!B56)) -> 0 | U56: =IFERROR(S56-T56,0) -> 0 | V56: 0 | W56: =IF(OR(B56="",V56=0),0,SUMIFS('4. DETALLADA-RECURSOS ICBF'!$M$10:$M$1300,'4. DETALLADA-RECURSOS ICBF'!$B$10:$B$1300,'2. INFORMACION GENERAL'!$V$26,'4. DETALLADA-RECURSOS ICBF'!$K$10:$K$1300,'2. INFORMACION GENERAL'!$B$51,'4. DETALLADA-RECURSOS ICBF'!$L$10:$L$1300,'2. INFORMACION GENERAL'!B56)) -> 0 | X56: =IFERROR(V56-W56,0) -> 0 | Y56: 0 | Z56: =IF(OR(B56="",Y56=0),0,SUMIFS('4. DETALLADA-RECURSOS ICBF'!$M$10:$M$1300,'4. DETALLADA-RECURSOS ICBF'!$B$10:$B$1300,'2. INFORMACION GENERAL'!$Y$26,'4. DETALLADA-RECURSOS ICBF'!$K$10:$K$1300,'2. INFORMACION GENERAL'!$B$51,'4. DETALLADA-RECURSOS ICBF'!$L$10:$L$1300,'2. INFORMACION GENERAL'!B56)) -> 0 | AA56: =IFERROR(Y56-Z56,0) -> 0 | AB56: 0 | AC56: =IF(OR(B56="",AB56=0),0,SUMIFS('4. DETALLADA-RECURSOS ICBF'!$M$10:$M$1300,'4. DETALLADA-RECURSOS ICBF'!$B$10:$B$1300,'2. INFORMACION GENERAL'!$AB$26,'4. DETALLADA-RECURSOS ICBF'!$K$10:$K$1300,'2. INFORMACION GENERAL'!$B$51,'4. DETALLADA-RECURSOS ICBF'!$L$10:$L$1300,'2. INFORMACION GENERAL'!B56)) -> 0 | AD56: =IFERROR(AB56-AC56,0) -> 0 | AE56: 0 | AF56: =IF(OR(B56="",AE56=0),0,SUMIFS('4. DETALLADA-RECURSOS ICBF'!$M$10:$M$1300,'4. DETALLADA-RECURSOS ICBF'!$B$10:$B$1300,'2. INFORMACION GENERAL'!$AE$26,'4. DETALLADA-RECURSOS ICBF'!$K$10:$K$1300,'2. INFORMACION GENERAL'!$B$51,'4. DETALLADA-RECURSOS ICBF'!$L$10:$L$1300,'2. INFORMACION GENERAL'!B56)) -> 0 | AG56: =IFERROR(AE56-AF56,0) -> 0 | AH56: 0 | AI56: =IF(OR(B56="",AH56=0),0,SUMIFS('4. DETALLADA-RECURSOS ICBF'!$M$10:$M$1300,'4. DETALLADA-RECURSOS ICBF'!$B$10:$B$1300,'2. INFORMACION GENERAL'!$AH$26,'4. DETALLADA-RECURSOS ICBF'!$K$10:$K$1300,'2. INFORMACION GENERAL'!$B$51,'4. DETALLADA-RECURSOS ICBF'!$L$10:$L$1300,'2. INFORMACION GENERAL'!B56)) -> 0 | AJ56: =IFERROR(AH56-AI56,0) -> 0 | AK56: 0 | AL56: =IF(OR(B56="",AK56=0),0,SUMIFS('4. DETALLADA-RECURSOS ICBF'!$M$10:$M$1300,'4. DETALLADA-RECURSOS ICBF'!$B$10:$B$1300,'2. INFORMACION GENERAL'!$AK$26,'4. DETALLADA-RECURSOS ICBF'!$K$10:$K$1300,'2. INFORMACION GENERAL'!$B$51,'4. DETALLADA-RECURSOS ICBF'!$L$10:$L$1300,'2. INFORMACION GENERAL'!B56)) -> 0 | AM56: =IFERROR(AK56-AL56,0) -> 0 | AN56: 0 | AO56: =IF(OR(B56="",AN56=0),0,SUMIFS('4. DETALLADA-RECURSOS ICBF'!$M$10:$M$1300,'4. DETALLADA-RECURSOS ICBF'!$B$10:$B$1300,'2. INFORMACION GENERAL'!$AN$26,'4. DETALLADA-RECURSOS ICBF'!$K$10:$K$1300,'2. INFORMACION GENERAL'!$B$51,'4. DETALLADA-RECURSOS ICBF'!$L$10:$L$1300,'2. INFORMACION GENERAL'!B56)) -> 0 | AP56: =IFERROR(AN56-AO56,0) -> 0 | AQ56: =IF('1. PRESUPUESTO INICIAL'!F75="",0,'1. PRESUPUESTO INICIAL'!F75) -> FALSE | AR56: =IF(OR(B56="",AQ56=0),0,SUMIFS('4. DETALLADA-RECURSOS ICBF'!$M$10:$M$1300,'4. DETALLADA-RECURSOS ICBF'!$B$10:$B$1300,'2. INFORMACION GENERAL'!$AQ$26,'4. DETALLADA-RECURSOS ICBF'!$K$10:$K$1300,'2. INFORMACION GENERAL'!$B$51,'4. DETALLADA-RECURSOS ICBF'!$L$10:$L$1300,'2. INFORMACION GENERAL'!B56)) -> 0 | AS56: 0 | AT56: 0 | AU56: 0 | AV56: 0
A57: 2205 | B57: =IF('1. PRESUPUESTO INICIAL'!B79="","",'1. PRESUPUESTO INICIAL'!B79) -> FALSE | D57: =IF('1. PRESUPUESTO INICIAL'!D79="",0,'1. PRESUPUESTO INICIAL'!D79) -> 0 | E57: =IF(OR(B57="",D57=0),0,SUMIFS('4. DETALLADA-RECURSOS ICBF'!$M$10:$M$1300,'4. DETALLADA-RECURSOS ICBF'!$B$10:$B$1300,'2. INFORMACION GENERAL'!$D$26,'4. DETALLADA-RECURSOS ICBF'!$K$10:$K$1300,'2. INFORMACION GENERAL'!$B$57)) -> 0 | F57: =IFERROR(D57-E57,0) -> 0 | G57: 0 | H57: =IF(OR(B57="",G57=0),0,SUMIFS('4. DETALLADA-RECURSOS ICBF'!$M$10:$M$1300,'4. DETALLADA-RECURSOS ICBF'!$B$10:$B$1300,'2. INFORMACION GENERAL'!$G$26,'4. DETALLADA-RECURSOS ICBF'!$K$10:$K$1300,'2. INFORMACION GENERAL'!$B$57)) -> 0 | I57: =IFERROR(G57-H57,0) -> 0 | J57: 0 | K57: =IF(OR(B57="",J57=0),0,SUMIFS('4. DETALLADA-RECURSOS ICBF'!$M$10:$M$1300,'4. DETALLADA-RECURSOS ICBF'!$B$10:$B$1300,'2. INFORMACION GENERAL'!$J$26,'4. DETALLADA-RECURSOS ICBF'!$K$10:$K$1300,'2. INFORMACION GENERAL'!$B$57)) -> 0 | L57: =IFERROR(J57-K57,0) -> 0 | M57: 0 | N57: =IF(OR(B57="",M57=0),0,SUMIFS('4. DETALLADA-RECURSOS ICBF'!$M$10:$M$1300,'4. DETALLADA-RECURSOS ICBF'!$B$10:$B$1300,'2. INFORMACION GENERAL'!$M$26,'4. DETALLADA-RECURSOS ICBF'!$K$10:$K$1300,'2. INFORMACION GENERAL'!$B$57)) -> 0 | O57: =IFERROR(M57-N57,0) -> 0 | P57: 0 | Q57: =IF(OR(B57="",P57=0),0,SUMIFS('4. DETALLADA-RECURSOS ICBF'!$M$10:$M$1300,'4. DETALLADA-RECURSOS ICBF'!$B$10:$B$1300,'2. INFORMACION GENERAL'!$P$26,'4. DETALLADA-RECURSOS ICBF'!$K$10:$K$1300,'2. INFORMACION GENERAL'!$B$57)) -> 0 | R57: =IFERROR(P57-Q57,0) -> 0 | S57: 0 | T57: =IF(OR(B57="",S57=0),0,SUMIFS('4. DETALLADA-RECURSOS ICBF'!$M$10:$M$1300,'4. DETALLADA-RECURSOS ICBF'!$B$10:$B$1300,'2. INFORMACION GENERAL'!$S$26,'4. DETALLADA-RECURSOS ICBF'!$K$10:$K$1300,'2. INFORMACION GENERAL'!$B$57)) -> 0 | U57: =IFERROR(S57-T57,0) -> 0 | V57: 0 | W57: =IF(OR(B57="",V57=0),0,SUMIFS('4. DETALLADA-RECURSOS ICBF'!$M$10:$M$1300,'4. DETALLADA-RECURSOS ICBF'!$B$10:$B$1300,'2. INFORMACION GENERAL'!$V$26,'4. DETALLADA-RECURSOS ICBF'!$K$10:$K$1300,'2. INFORMACION GENERAL'!$B$57)) -> 0 | X57: =IFERROR(V57-W57,0) -> 0 | Y57: 0 | Z57: =IF(OR(B57="",Y57=0),0,SUMIFS('4. DETALLADA-RECURSOS ICBF'!$M$10:$M$1300,'4. DETALLADA-RECURSOS ICBF'!$B$10:$B$1300,'2. INFORMACION GENERAL'!$Y$26,'4. DETALLADA-RECURSOS ICBF'!$K$10:$K$1300,'2. INFORMACION GENERAL'!$B$57)) -> 0 | AA57: =IFERROR(Y57-Z57,0) -> 0 | AB57: 0 | AC57: =IF(OR(B57="",AB57=0),0,SUMIFS('4. DETALLADA-RECURSOS ICBF'!$M$10:$M$1300,'4. DETALLADA-RECURSOS ICBF'!$B$10:$B$1300,'2. INFORMACION GENERAL'!$AB$26,'4. DETALLADA-RECURSOS ICBF'!$K$10:$K$1300,'2. INFORMACION GENERAL'!$B$57)) -> 0 | AD57: =IFERROR(AB57-AC57,0) -> 0 | AE57: 0 | AF57: =IF(OR(B57="",AE57=0),0,SUMIFS('4. DETALLADA-RECURSOS ICBF'!$M$10:$M$1300,'4. DETALLADA-RECURSOS ICBF'!$B$10:$B$1300,'2. INFORMACION GENERAL'!$AE$26,'4. DETALLADA-RECURSOS ICBF'!$K$10:$K$1300,'2. INFORMACION GENERAL'!$B$57)) -> 0 | AG57: =IFERROR(AE57-AF57,0) -> 0 | AH57: 0 | AI57: =IF(OR(B57="",AH57=0),0,SUMIFS('4. DETALLADA-RECURSOS ICBF'!$M$10:$M$1300,'4. DETALLADA-RECURSOS ICBF'!$B$10:$B$1300,'2. INFORMACION GENERAL'!$AH$26,'4. DETALLADA-RECURSOS ICBF'!$K$10:$K$1300,'2. INFORMACION GENERAL'!$B$57)) -> 0 | AJ57: =IFERROR(AH57-AI57,0) -> 0 | AK57: 0 | AL57: =IF(OR(B57="",AK57=0),0,SUMIFS('4. DETALLADA-RECURSOS ICBF'!$M$10:$M$1300,'4. DETALLADA-RECURSOS ICBF'!$B$10:$B$1300,'2. INFORMACION GENERAL'!$AK$26,'4. DETALLADA-RECURSOS ICBF'!$K$10:$K$1300,'2. INFORMACION GENERAL'!$B$57)) -> 0 | AM57: =IFERROR(AK57-AL57,0) -> 0 | AN57: 0 | AO57: =IF(OR(B57="",AN57=0),0,SUMIFS('4. DETALLADA-RECURSOS ICBF'!$M$10:$M$1300,'4. DETALLADA-RECURSOS ICBF'!$B$10:$B$1300,'2. INFORMACION GENERAL'!$AN$26,'4. DETALLADA-RECURSOS ICBF'!$K$10:$K$1300,'2. INFORMACION GENERAL'!$B$57)) -> 0 | AP57: =IFERROR(AN57-AO57,0) -> 0 | AQ57: =IF('1. PRESUPUESTO INICIAL'!F79="",0,'1. PRESUPUESTO INICIAL'!F79) -> FALSE | AR57: =IF(OR(B57="",AQ57=0),0,SUMIFS('4. DETALLADA-RECURSOS ICBF'!$M$10:$M$1300,'4. DETALLADA-RECURSOS ICBF'!$B$10:$B$1300,'2. INFORMACION GENERAL'!$AQ$26,'4. DETALLADA-RECURSOS ICBF'!$K$10:$K$1300,'2. INFORMACION GENERAL'!$B$57)) -> 0 | AS57: =IFERROR(AQ57-AR57,0) -> 0 | AT57: 0 | AU57: 0 | AV57: 0
A58: 2206 | B58: =IF('1. PRESUPUESTO INICIAL'!B82="","",'1. PRESUPUESTO INICIAL'!B82) -> FALSE | D58: =+SUM(D59:D63) -> 0 | E58: =+SUM(E59:E63) -> 0 | F58: 0 | G58: 0 | H58: 0 | I58: =+SUM(I59:I63) -> 0 | J58: =+SUM(J59:J63) -> 0 | K58: 0 | L58: =+SUM(L59:L63) -> 0 | M58: =+SUM(M59:M63) -> 0 | N58: 0 | O58: 0 | P58: =+SUM(P59:P63) -> 0 | Q58: 0 | R58: 0 | S58: =+SUM(S59:S63) -> 0 | T58: 0 | U58: 0 | V58: =+SUM(V59:V63) -> 0 | W58: 0 | X58: 0 | Y58: =+SUM(Y59:Y63) -> 0 | Z58: 0 | AA58: 0 | AB58: =+SUM(AB59:AB63) -> 0 | AC58: 0 | AD58: 0 | AE58: =+SUM(AE59:AE63) -> 0 | AF58: 0 | AG58: 0 | AH58: =+SUM(AH59:AH63) -> 0 | AI58: 0 | AJ58: 0 | AK58: =+SUM(AK59:AK63) -> 0 | AL58: 0 | AM58: 0 | AN58: =+SUM(AN59:AN63) -> 0 | AO58: 0 | AP58: 0 | AQ58: =+SUM(AQ59:AQ63) -> 0 | AR58: =+SUM(AR59:AR63) -> 0 | AS58: =+SUM(AS59:AS63) -> 0 | AT58: 0 | AU58: 0 | AV58: 0
A59: 220601 | B59: =IF('1. PRESUPUESTO INICIAL'!B83="","",'1. PRESUPUESTO INICIAL'!B83) -> FALSE | D59: =IF('1. PRESUPUESTO INICIAL'!D83="",0,'1. PRESUPUESTO INICIAL'!D83) -> 0 | E59: =IF(OR(B59="",D59=0),0,SUMIFS('4. DETALLADA-RECURSOS ICBF'!$M$10:$M$1300,'4. DETALLADA-RECURSOS ICBF'!$B$10:$B$1300,'2. INFORMACION GENERAL'!$D$26,'4. DETALLADA-RECURSOS ICBF'!$K$10:$K$1300,'2. INFORMACION GENERAL'!$B$58,'4. DETALLADA-RECURSOS ICBF'!$L$10:$L$1300,'2. INFORMACION GENERAL'!B59)) -> 0 | F59: =IFERROR(D59-E59,0) -> 0 | G59: 0 | H59: =IF(OR(B59="",G59=0),0,SUMIFS('4. DETALLADA-RECURSOS ICBF'!$M$10:$M$1300,'4. DETALLADA-RECURSOS ICBF'!$B$10:$B$1300,'2. INFORMACION GENERAL'!$G$26,'4. DETALLADA-RECURSOS ICBF'!$K$10:$K$1300,'2. INFORMACION GENERAL'!$B$58,'4. DETALLADA-RECURSOS ICBF'!$L$10:$L$1300,'2. INFORMACION GENERAL'!B59)) -> 0 | I59: =IFERROR(G59-H59,0) -> 0 | J59: 0 | K59: =IF(OR(B59="",J59=0),0,SUMIFS('4. DETALLADA-RECURSOS ICBF'!$M$10:$M$1300,'4. DETALLADA-RECURSOS ICBF'!$B$10:$B$1300,'2. INFORMACION GENERAL'!$J$26,'4. DETALLADA-RECURSOS ICBF'!$K$10:$K$1300,'2. INFORMACION GENERAL'!$B$58,'4. DETALLADA-RECURSOS ICBF'!$L$10:$L$1300,'2. INFORMACION GENERAL'!B59)) -> 0 | L59: =IFERROR(J59-K59,0) -> 0 | M59: 0 | N59: =IF(OR(B59="",M59=0),0,SUMIFS('4. DETALLADA-RECURSOS ICBF'!$M$10:$M$1300,'4. DETALLADA-RECURSOS ICBF'!$B$10:$B$1300,'2. INFORMACION GENERAL'!$M$26,'4. DETALLADA-RECURSOS ICBF'!$K$10:$K$1300,'2. INFORMACION GENERAL'!$B$58,'4. DETALLADA-RECURSOS ICBF'!$L$10:$L$1300,'2. INFORMACION GENERAL'!B59)) -> 0 | O59: =IFERROR(M59-N59,0) -> 0 | P59: 0 | Q59: =IF(OR(B59="",P59=0),0,SUMIFS('4. DETALLADA-RECURSOS ICBF'!$M$10:$M$1300,'4. DETALLADA-RECURSOS ICBF'!$B$10:$B$1300,'2. INFORMACION GENERAL'!$P$26,'4. DETALLADA-RECURSOS ICBF'!$K$10:$K$1300,'2. INFORMACION GENERAL'!$B$58,'4. DETALLADA-RECURSOS ICBF'!$L$10:$L$1300,'2. INFORMACION GENERAL'!B59)) -> 0 | R59: =IFERROR(P59-Q59,0) -> 0 | S59: 0 | T59: =IF(OR(B59="",S59=0),0,SUMIFS('4. DETALLADA-RECURSOS ICBF'!$M$10:$M$1300,'4. DETALLADA-RECURSOS ICBF'!$B$10:$B$1300,'2. INFORMACION GENERAL'!$S$26,'4. DETALLADA-RECURSOS ICBF'!$K$10:$K$1300,'2. INFORMACION GENERAL'!$B$58,'4. DETALLADA-RECURSOS ICBF'!$L$10:$L$1300,'2. INFORMACION GENERAL'!B59)) -> 0 | U59: =IFERROR(S59-T59,0) -> 0 | V59: 0 | W59: =IF(OR(B59="",V59=0),0,SUMIFS('4. DETALLADA-RECURSOS ICBF'!$M$10:$M$1300,'4. DETALLADA-RECURSOS ICBF'!$B$10:$B$1300,'2. INFORMACION GENERAL'!$V$26,'4. DETALLADA-RECURSOS ICBF'!$K$10:$K$1300,'2. INFORMACION GENERAL'!$B$58,'4. DETALLADA-RECURSOS ICBF'!$L$10:$L$1300,'2. INFORMACION GENERAL'!B59)) -> 0 | X59: =IFERROR(V59-W59,0) -> 0 | Y59: 0 | Z59: =IF(OR(B59="",Y59=0),0,SUMIFS('4. DETALLADA-RECURSOS ICBF'!$M$10:$M$1300,'4. DETALLADA-RECURSOS ICBF'!$B$10:$B$1300,'2. INFORMACION GENERAL'!$Y$26,'4. DETALLADA-RECURSOS ICBF'!$K$10:$K$1300,'2. INFORMACION GENERAL'!$B$58,'4. DETALLADA-RECURSOS ICBF'!$L$10:$L$1300,'2. INFORMACION GENERAL'!B59)) -> 0 | AA59: =IFERROR(Y59-Z59,0) -> 0 | AB59: 0 | AC59: =IF(OR(B59="",AB59=0),0,SUMIFS('4. DETALLADA-RECURSOS ICBF'!$M$10:$M$1300,'4. DETALLADA-RECURSOS ICBF'!$B$10:$B$1300,'2. INFORMACION GENERAL'!$AB$26,'4. DETALLADA-RECURSOS ICBF'!$K$10:$K$1300,'2. INFORMACION GENERAL'!$B$58,'4. DETALLADA-RECURSOS ICBF'!$L$10:$L$1300,'2. INFORMACION GENERAL'!B59)) -> 0 | AD59: =IFERROR(AB59-AC59,0) -> 0 | AE59: 0 | AF59: =IF(OR(B59="",AE59=0),0,SUMIFS('4. DETALLADA-RECURSOS ICBF'!$M$10:$M$1300,'4. DETALLADA-RECURSOS ICBF'!$B$10:$B$1300,'2. INFORMACION GENERAL'!$AE$26,'4. DETALLADA-RECURSOS ICBF'!$K$10:$K$1300,'2. INFORMACION GENERAL'!$B$58,'4. DETALLADA-RECURSOS ICBF'!$L$10:$L$1300,'2. INFORMACION GENERAL'!B59)) -> 0 | AG59: =IFERROR(AE59-AF59,0) -> 0 | AH59: 0 | AI59: =IF(OR(B59="",AH59=0),0,SUMIFS('4. DETALLADA-RECURSOS ICBF'!$M$10:$M$1300,'4. DETALLADA-RECURSOS ICBF'!$B$10:$B$1300,'2. INFORMACION GENERAL'!$AH$26,'4. DETALLADA-RECURSOS ICBF'!$K$10:$K$1300,'2. INFORMACION GENERAL'!$B$58,'4. DETALLADA-RECURSOS ICBF'!$L$10:$L$1300,'2. INFORMACION GENERAL'!B59)) -> 0 | AJ59: =IFERROR(AH59-AI59,0) -> 0 | AK59: 0 | AL59: =IF(OR(B59="",AK59=0),0,SUMIFS('4. DETALLADA-RECURSOS ICBF'!$M$10:$M$1300,'4. DETALLADA-RECURSOS ICBF'!$B$10:$B$1300,'2. INFORMACION GENERAL'!$AK$26,'4. DETALLADA-RECURSOS ICBF'!$K$10:$K$1300,'2. INFORMACION GENERAL'!$B$58,'4. DETALLADA-RECURSOS ICBF'!$L$10:$L$1300,'2. INFORMACION GENERAL'!B59)) -> 0 | AM59: =IFERROR(AK59-AL59,0) -> 0 | AN59: 0 | AO59: =IF(OR(B59="",AN59=0),0,SUMIFS('4. DETALLADA-RECURSOS ICBF'!$M$10:$M$1300,'4. DETALLADA-RECURSOS ICBF'!$B$10:$B$1300,'2. INFORMACION GENERAL'!$AN$26,'4. DETALLADA-RECURSOS ICBF'!$K$10:$K$1300,'2. INFORMACION GENERAL'!$B$58,'4. DETALLADA-RECURSOS ICBF'!$L$10:$L$1300,'2. INFORMACION GENERAL'!B59)) -> 0 | AP59: =IFERROR(AN59-AO59,0) -> 0 | AQ59: =IF('1. PRESUPUESTO INICIAL'!F83="",0,'1. PRESUPUESTO INICIAL'!F83) -> FALSE | AR59: =IF(OR(B59="",AQ59=0),0,SUMIFS('4. DETALLADA-RECURSOS ICBF'!$M$10:$M$1300,'4. DETALLADA-RECURSOS ICBF'!$B$10:$B$1300,'2. INFORMACION GENERAL'!$AQ$26,'4. DETALLADA-RECURSOS ICBF'!$K$10:$K$1300,'2. INFORMACION GENERAL'!$B$58,'4. DETALLADA-RECURSOS ICBF'!$L$10:$L$1300,'2. INFORMACION GENERAL'!B59)) -> 0 | AS59: =IFERROR(AQ59-AR59,0) -> 0 | AT59: =+SUMIFS(D59:AS59,$D$27:$AS$27,$AT$27) -> 0 | AU59: =+SUMIFS(D59:AS59,$D$27:$AS$27,$AU$27) -> 0 | AV59: =+SUMIFS(D59:AS59,$D$27:$AS$27,$AV$27) -> 0
A60: 220602 | B60: =IF('1. PRESUPUESTO INICIAL'!B84="","",'1. PRESUPUESTO INICIAL'!B84) -> FALSE | D60: =IF('1. PRESUPUESTO INICIAL'!D84="",0,'1. PRESUPUESTO INICIAL'!D84) -> 0 | E60: =IF(OR(B60="",D60=0),0,SUMIFS('4. DETALLADA-RECURSOS ICBF'!$M$10:$M$1300,'4. DETALLADA-RECURSOS ICBF'!$B$10:$B$1300,'2. INFORMACION GENERAL'!$D$26,'4. DETALLADA-RECURSOS ICBF'!$K$10:$K$1300,'2. INFORMACION GENERAL'!$B$58,'4. DETALLADA-RECURSOS ICBF'!$L$10:$L$1300,'2. INFORMACION GENERAL'!B60)) -> 0 | F60: =IFERROR(D60-E60,0) -> 0 | G60: 0 | H60: =IF(OR(B60="",G60=0),0,SUMIFS('4. DETALLADA-RECURSOS ICBF'!$M$10:$M$1300,'4. DETALLADA-RECURSOS ICBF'!$B$10:$B$1300,'2. INFORMACION GENERAL'!$G$26,'4. DETALLADA-RECURSOS ICBF'!$K$10:$K$1300,'2. INFORMACION GENERAL'!$B$58,'4. DETALLADA-RECURSOS ICBF'!$L$10:$L$1300,'2. INFORMACION GENERAL'!B60)) -> 0 | I60: =IFERROR(G60-H60,0) -> 0 | J60: 0 | K60: =IF(OR(B60="",J60=0),0,SUMIFS('4. DETALLADA-RECURSOS ICBF'!$M$10:$M$1300,'4. DETALLADA-RECURSOS ICBF'!$B$10:$B$1300,'2. INFORMACION GENERAL'!$J$26,'4. DETALLADA-RECURSOS ICBF'!$K$10:$K$1300,'2. INFORMACION GENERAL'!$B$58,'4. DETALLADA-RECURSOS ICBF'!$L$10:$L$1300,'2. INFORMACION GENERAL'!B60)) -> 0 | L60: =IFERROR(J60-K60,0) -> 0 | M60: 0 | N60: =IF(OR(B60="",M60=0),0,SUMIFS('4. DETALLADA-RECURSOS ICBF'!$M$10:$M$1300,'4. DETALLADA-RECURSOS ICBF'!$B$10:$B$1300,'2. INFORMACION GENERAL'!$M$26,'4. DETALLADA-RECURSOS ICBF'!$K$10:$K$1300,'2. INFORMACION GENERAL'!$B$58,'4. DETALLADA-RECURSOS ICBF'!$L$10:$L$1300,'2. INFORMACION GENERAL'!B60)) -> 0 | O60: =IFERROR(M60-N60,0) -> 0 | P60: 0 | Q60: =IF(OR(B60="",P60=0),0,SUMIFS('4. DETALLADA-RECURSOS ICBF'!$M$10:$M$1300,'4. DETALLADA-RECURSOS ICBF'!$B$10:$B$1300,'2. INFORMACION GENERAL'!$P$26,'4. DETALLADA-RECURSOS ICBF'!$K$10:$K$1300,'2. INFORMACION GENERAL'!$B$58,'4. DETALLADA-RECURSOS ICBF'!$L$10:$L$1300,'2. INFORMACION GENERAL'!B60)) -> 0 | R60: =IFERROR(P60-Q60,0) -> 0 | S60: 0 | T60: =IF(OR(B60="",S60=0),0,SUMIFS('4. DETALLADA-RECURSOS ICBF'!$M$10:$M$1300,'4. DETALLADA-RECURSOS ICBF'!$B$10:$B$1300,'2. INFORMACION GENERAL'!$S$26,'4. DETALLADA-RECURSOS ICBF'!$K$10:$K$1300,'2. INFORMACION GENERAL'!$B$58,'4. DETALLADA-RECURSOS ICBF'!$L$10:$L$1300,'2. INFORMACION GENERAL'!B60)) -> 0 | U60: =IFERROR(S60-T60,0) -> 0 | V60: 0 | W60: =IF(OR(B60="",V60=0),0,SUMIFS('4. DETALLADA-RECURSOS ICBF'!$M$10:$M$1300,'4. DETALLADA-RECURSOS ICBF'!$B$10:$B$1300,'2. INFORMACION GENERAL'!$V$26,'4. DETALLADA-RECURSOS ICBF'!$K$10:$K$1300,'2. INFORMACION GENERAL'!$B$58,'4. DETALLADA-RECURSOS ICBF'!$L$10:$L$1300,'2. INFORMACION GENERAL'!B60)) -> 0 | X60: =IFERROR(V60-W60,0) -> 0 | Y60: 0 | Z60: =IF(OR(B60="",Y60=0),0,SUMIFS('4. DETALLADA-RECURSOS ICBF'!$M$10:$M$1300,'4. DETALLADA-RECURSOS ICBF'!$B$10:$B$1300,'2. INFORMACION GENERAL'!$Y$26,'4. DETALLADA-RECURSOS ICBF'!$K$10:$K$1300,'2. INFORMACION GENERAL'!$B$58,'4. DETALLADA-RECURSOS ICBF'!$L$10:$L$1300,'2. INFORMACION GENERAL'!B60)) -> 0 | AA60: =IFERROR(Y60-Z60,0) -> 0 | AB60: 0 | AC60: =IF(OR(B60="",AB60=0),0,SUMIFS('4. DETALLADA-RECURSOS ICBF'!$M$10:$M$1300,'4. DETALLADA-RECURSOS ICBF'!$B$10:$B$1300,'2. INFORMACION GENERAL'!$AB$26,'4. DETALLADA-RECURSOS ICBF'!$K$10:$K$1300,'2. INFORMACION GENERAL'!$B$58,'4. DETALLADA-RECURSOS ICBF'!$L$10:$L$1300,'2. INFORMACION GENERAL'!B60)) -> 0 | AD60: =IFERROR(AB60-AC60,0) -> 0 | AE60: 0 | AF60: =IF(OR(B60="",AE60=0),0,SUMIFS('4. DETALLADA-RECURSOS ICBF'!$M$10:$M$1300,'4. DETALLADA-RECURSOS ICBF'!$B$10:$B$1300,'2. INFORMACION GENERAL'!$AE$26,'4. DETALLADA-RECURSOS ICBF'!$K$10:$K$1300,'2. INFORMACION GENERAL'!$B$58,'4. DETALLADA-RECURSOS ICBF'!$L$10:$L$1300,'2. INFORMACION GENERAL'!B60)) -> 0 | AG60: =IFERROR(AE60-AF60,0) -> 0 | AH60: 0 | AI60: =IF(OR(B60="",AH60=0),0,SUMIFS('4. DETALLADA-RECURSOS ICBF'!$M$10:$M$1300,'4. DETALLADA-RECURSOS ICBF'!$B$10:$B$1300,'2. INFORMACION GENERAL'!$AH$26,'4. DETALLADA-RECURSOS ICBF'!$K$10:$K$1300,'2. INFORMACION GENERAL'!$B$58,'4. DETALLADA-RECURSOS ICBF'!$L$10:$L$1300,'2. INFORMACION GENERAL'!B60)) -> 0 | AJ60: =IFERROR(AH60-AI60,0) -> 0 | AK60: 0 | AL60: =IF(OR(B60="",AK60=0),0,SUMIFS('4. DETALLADA-RECURSOS ICBF'!$M$10:$M$1300,'4. DETALLADA-RECURSOS ICBF'!$B$10:$B$1300,'2. INFORMACION GENERAL'!$AK$26,'4. DETALLADA-RECURSOS ICBF'!$K$10:$K$1300,'2. INFORMACION GENERAL'!$B$58,'4. DETALLADA-RECURSOS ICBF'!$L$10:$L$1300,'2. INFORMACION GENERAL'!B60)) -> 0 | AM60: =IFERROR(AK60-AL60,0) -> 0 | AN60: 0 | AO60: =IF(OR(B60="",AN60=0),0,SUMIFS('4. DETALLADA-RECURSOS ICBF'!$M$10:$M$1300,'4. DETALLADA-RECURSOS ICBF'!$B$10:$B$1300,'2. INFORMACION GENERAL'!$AN$26,'4. DETALLADA-RECURSOS ICBF'!$K$10:$K$1300,'2. INFORMACION GENERAL'!$B$58,'4. DETALLADA-RECURSOS ICBF'!$L$10:$L$1300,'2. INFORMACION GENERAL'!B60)) -> 0 | AP60: =IFERROR(AN60-AO60,0) -> 0 | AQ60: =IF('1. PRESUPUESTO INICIAL'!F84="",0,'1. PRESUPUESTO INICIAL'!F84) -> FALSE | AR60: =IF(OR(B60="",AQ60=0),0,SUMIFS('4. DETALLADA-RECURSOS ICBF'!$M$10:$M$1300,'4. DETALLADA-RECURSOS ICBF'!$B$10:$B$1300,'2. INFORMACION GENERAL'!$AQ$26,'4. DETALLADA-RECURSOS ICBF'!$K$10:$K$1300,'2. INFORMACION GENERAL'!$B$58,'4. DETALLADA-RECURSOS ICBF'!$L$10:$L$1300,'2. INFORMACION GENERAL'!B60)) -> 0 | AS60: =IFERROR(AQ60-AR60,0) -> 0 | AT60: 0 | AU60: 0 | AV60: 0
